Workbook

Sheet Hauptmenü
B1: LANDESBETRIEB LANDWIRTSCHAFT
B2: HESSEN
B3: Fachinformation Ökonomie und Markt | I3: Stand: Juni 2022 [Version 9.0]
B4: Rechenansätze (Deckungsbeiträge - Konventionell) - 2022
B5: Hauptmenü - Auswahl der Produktionsverfahren
F21: Pauschalierend
B23: Allgemeine Daten | I23: Futterbau
B24: Stammdaten | I24: Silomais
B25: Wirtschaftsdünger | I25: Grünland
B26: Strohbergung | I26: Kleegras
B27: Marktfrüchte | I27: Grünfutter
B28: Qualitätsweizen | I28: Zwischenfrucht
B29: Futterweizen | I29: Weidelgras
B30: Sommerweizen | I30: Rinder-, Schaf- und Pferdehaltung
B31: Roggen | I31: Milchkuh (Boxenlaufstall)
B32: Triticale | I32: Milchkuh (AMS)
B33: Dinkel | I33: Aufzuchtfärse, Kalb
B34: Wintergerste | I34: Mutterkuh, Mastfärse
B35: Braugerste | I35: Mastbulle, Ochse
B36: Hafer | I36: Schafhaltung
B37: Raps | I37: Pensionspferde
B38: Erbsen | I38: Schweine- und Geflügelhaltung
B39: Ackerbohnen | I39: Zuchtsau (konventionell)
B40: Zuckerrüben | I40: Zuchtsau (separat)
B41: Kartoffeln | I41: Ferkelaufzucht
B42: Körnermais | I42: Mastschweine
I43: Legehennen
B44: Energiepflanzen | I44: Legehennen (Direktverm.)
B45: Biogasmais, Grünrog. | I45: Masthähnchen
A47: Benutzerhinweise
A48: 1. | B48: Klicken Sie die grauen Schaltflächen "DB" an und Sie gelangen zu dem Produktionsverfahren Ihrer Wahl!
A49: 2. | B49: Die grauen Schaltfächen "Arbeitsgänge" führen Sie zu den dazugehörigen Arbeitsgängen. Diese Schaltfläche
B50: finden Sie auch in den jeweiligen Produktionsverfahren wieder.
A51: 3. | B51: Jedes Produktionsverfahren hat eine graue Schaltfläche "Hauptmenü", um wieder zum Inhaltsverzeichnis zurückzugelangen.
A52: 4. | B52: Jedes Produktionsverfahren hat eine Spalte "Eigene Werte" hier können Sie die betriebsindividuelle Gegebenheiten abbilden.
B53: Außerdem können die Felder mit den blauen Zahlen verändert werden. Die übrigen Felder beinhalten Funktionen und sind deshalb geschützt.
B54: Desweiteren können sämtliche Verfahren inkl. MwSt. gerechnet und angezeigt werden, wenn in den Stammdaten per Listenpfeilauswahl
B55: von "Regelbesteuerung" auf "Pauschalierend" umgeschaltet wird! Das Gleiche gilt für die Umstellung von "letztes WJ" auf "5 WJ Durchschnitt".
B58: Herausgeber: | C58: Landesbetrieb Landwirtschaft Hessen (LLH)
B60: Redaktion: | C60: Christoph Rohde, Ulrich Stahl und Klaus Wagner Kölnische Straße 48-50 , 34117 Kassel; Tel.: 0561 7299-258/ -268/ 06621 9228-13
C61: E-Mail: christoph.rohde@llh.hessen.de/ ulrich.stahl@llh.hessen.de/ klaus.wagner@llh.hessen.de
B62: Fachliche Inhalte: | C62: Abteilung Fachinformation und Bildung, Fachgebiete Ökonomie und Tierproduktion
C63: Abteilung Beratung, Fachgebiete Betriebswirtschaft, Pflanzenproduktion und Tierproduktion
M69: Vers. 9.0 - Juni/2022
A72: Fachliche Hinweise:

Sheet Vorwort (hidden)
A1: Vorwort:

Sheet Stammdatenblatt (hidden)
H2: Bitte Auswahl treffen! | S2: Durchschnitt 5 WJ.
A3: Landesbetrieb Landwirtschaft Hessen | E3: Auswahl Umsatzsteuersystem: | S3: Letztes (aktuelles) WJ.
F6: Umsatzsteuer für pauschalierende Betriebe bei Verkaufsprodukten beträgt seit dem 01.01.2022: | G6: =IF(Hauptmenü!$F$21="Regelbesteuerung","0%",H6) -> 0.09 | H6: 0.09 | V6: Pauschalierend
A7: Preise der Wirtschaftsjahre 2014/ 15 bis 2018/ 19
E8: WJ16/17 | F8: WJ 17/18 | G8: WJ 18/19 | H8: WJ 19/20 | I8: WJ 20/21 | J8: WJ 21/22 | K8: Ø | N8: noch zu aktualisieren! | P8: Preise | Q8: 2 | R8: Pauschalierend | V8: Regelbesteuerung
A9: Pflanzenproduktion
M10: Anteil | N10: Durchschnitts- preise
A11: Weizen | B11: Backweizen | C11: A-Qualität | E11: 14.67 | F11: 15.08 | G11: 17.9788 | H11: 15.97 | I11: 18.78 | J11: 27.37 | K11: =IF(Q8=1,AVERAGE(F11:J11),J11) -> 27.37 | L11: €/dt | P11: =+((K11+K12)*0.5)*(1+$G$6) -> 29.45725 | Q11: Marktinfo LLH + LLH Marktdaten WJ 18/19
C12: B-Qualität | E12: 14.23 | F12: 14.65 | G12: 17.7457 | H12: 16.42 | I12: 18.91 | J12: 26.68 | K12: =IF($Q$8=1,AVERAGE(F12:J12),J12) -> 26.68 | L12: €/dt | O12: ^^^^^^^^^^^^^^^^^^ | P12: =+((K12+K13)*0.5)*(1+$G$6) -> 28.51985 | Q12: Marktinfo LLH + LLH Marktdaten WJ 18/19
B13: Futterweizen | C13: C-Qualität | E13: 13.84 | F13: 14.19 | G13: 17.47 | H13: 15.48 | I13: 18.41 | J13: 25.65 | K13: 25.65 | L13: €/dt | P13: =+K13*(1+$G$6) -> 27.9585 | Q13: Marktinfo LLH + LLH Marktdaten WJ 18/19
A14: Roggen | B14: Brotroggen | E14: 12.54 | F14: 13.15 | G14: 17.3247 | H14: 14.12 | I14: 15.14 | J14: 23.02 | K14: 23.02 | L14: €/dt | P14: =+((K14))*(1+G6) -> 25.0918 | Q14: Marktinfo LLH + LLH Marktdaten WJ 18/19
B15: Futterroggen | E15: 11.95 | F15: 12.45 | G15: 16.08 | H15: 13.49 | I15: 14.94 | J15: 21.98 | K15: 21.98 | L15: €/dt | P15: =+K15*(1+$G$6) -> 23.9582 | Q15: Marktinfo LLH + LLH Marktdaten WJ 18/19
B16: Grünroggen | E16: 7 | F16: 7.15 | G16: 4 | H16: 4 | I16: 7 | J16: 9 | K16: 9 | L16: €/dt | P16: =+((K16))*(1+G6) -> 9.81 | Q16: KTBL 18-19, Seite 493; Eigene Erhebung
A17: Triticale | E17: 12.52 | F17: 13.07 | G17: 16.81 | H17: 14.37 | I17: 16.97 | J17: 25.34 | K17: 25.34 | L17: €/dt | P17: 27.6206 | Q17: Marktinfo LLH + LLH Marktdaten WJ 18/19
A18: Dinkel | B18: bespelzte Ware | E18: 19 | F18: 21.15 | G18: 22.5 | H18: 22.8 | I18: 24.5 | J18: 24.5 | K18: 24.5 | L18: €/dt | P18: 26.705 | Q18: LfL Bayern DB 2017/18; LfL Bayern DB 2017/18, LfL DB Plus 2019
B19: entspelzte Ware | E19: 31 | F19: 32.25 | G19: 52 | H19: 50 | I19: 50 | J19: 48 | K19: 48 | L19: €/dt | P19: 52.32 | Q19: LfL Bayern DB 2017/18; LfL Bayern DB 2017/18, Preise VGMS angeschlossene Mühlen Durchschnitt 2018/ 2019; Recherche Internet 20-22
A20: Futtergerste | E20: 12.23 | F20: 13.5 | G20: 17.23 | H20: 14.1 | I20: 16.8 | J20: 25.37 | K20: 25.37 | L20: €/dt | P20: 27.6533 | Q20: Marktinfo LLH + LLH Marktdaten WJ 18/19
A21: Braugerste | E21: 16.37 | F21: 17.28 | G21: 19.72 | H21: 15.2 | I21: 17.67 | J21: 25.34 | K21: 25.34 | L21: €/dt | P21: 27.6206 | Q21: Marktinfo LLH + LLH Marktdaten WJ 18/19
A22: Futterhafer | E22: 12.48 | F22: 12.9 | G22: 15.03 | H22: 15.54 | I22: 16.3 | J22: 18.97 | K22: 18.97 | L22: €/dt | P22: 20.6773 | Q22: Marktinfo LLH + LLH Marktdaten WJ 18/19
A23: Körnermais | E23: 15.47 | F23: 15.94 | G23: 17.29 | H23: 15.5 | I23: 16.07 | J23: 23.3 | K23: 23.3 | L23: €/dt | P23: 25.397 | Q23: Marktinfo LLH + LLH Marktdaten WJ 18/19
A24: Silomais | E24: 3.2 | F24: 3.3 | G24: 3.67 | H24: 3.1 | I24: 3.25 | J24: 3.8 | K24: 3.8 | L24: €/dt | P24: 4.142 | Q24: Marktdatenblatt Excel-Tabelle, KTBL 18/ 19 S. 540; KTBL 20/ 21 S. 246
A25: Raps | E25: 37.13 | F25: 33.71 | G25: 34.8 | H25: 36.13 | I25: 41.98 | J25: 70.11 | K25: 70.11 | L25: €/dt | P25: 76.4199 | Q25: Marktinfo LLH + LLH Marktdaten WJ 18/19
A26: Erbsen | E26: 16.56 | F26: 17.89 | G26: 18.83 | H26: 21 | I26: 19.63 | J26: 24.91 | K26: 24.91 | L26: €/dt | P26: 27.1519 | Q26: Marktinfo LLH + LLH Marktdaten WJ 18/19
A27: Ackerbohnen | E27: 15.64 | F27: 16.63 | G27: 15.43 | H27: 20.12 | I27: 20.09 | J27: 25.5 | K27: 25.5 | L27: €/dt | P27: 27.795 | Q27: Marktinfo LLH + LLH Marktdaten WJ 18/19
A28: Zuckerrüben | B28: Quotenrüben | E28: 3.7 | F28: 3.2 | G28: 2.9 | H28: 2.54 | I28: 3.06 | J28: 3.5 | K28: 3.5 | L28: €/dt | P28: 3.815 | Q28: KTBL 2013/2017 + LEL/LFL 2013/2018; LfL Bayern DB 2017 und Durchschnitt 2018-2020; 20/21 KTBL S. 394; Buchführungsergebnisse LLH 20/21; dzz-online.de; Auskunft Stahl
B29: Industrie-/Vertrags-/Energierüben | E29: 2.7 | F29: 2.2 | G29: 2.9 | H29: 2.54 | I29: 3.06 | J29: 3.5 | K29: 3.5 | L29: €/dt | P29: 3.815 | Q29: KTBL 2013/2017 + LEL/LFL 2013/2018; LfL Bayern DB 2017 und Durchschnitt 2018-2020; 20/21 KTBL S. 394; Auskunft Stahl
B30: Rübenmarkvergütung | E30: 0.3 | F30: 0.3 | G30: 0.3 | H30: 0.3 | I30: 0.3 | J30: 0.3 | K30: 0.3 | L30: €/dt | P30: 0.327 | Q30: Richtwert-Deckungsbeiträge 2017 LWK NDS
A31: Kartoffeln | B31: Speisekartoffen | C31: festkochend | E31: 24.85 | F31: 14.94 | G31: 28.13 | H31: 27.35 | I31: 18.75 | J31: 22.31 | K31: 22.31 | L31: €/dt | P31: 24.3179 | Q31: Marktinfo LLH + LLH Marktdaten WJ 18/19
B32: Speisekartoffen | C32: vorwieg. festkochend | E32: 22.43 | F32: 13.19 | G32: 26.14 | H32: 25.35 | I32: 14.82 | J32: 22.27 | K32: 22.27 | L32: €/dt | P32: 24.2743 | Q32: Marktinfo LLH + LLH Marktdaten WJ 18/19
B33: Speisekartoffen | C33: Direktverm. festkochend | E33: 68.55 | F33: 50 | G33: 77.85 | H33: 89.64 | I33: 78.63 | J33: 77 | K33: 77 | L33: €/dt | P33: 83.93 | Q33: Marktinfo LLH + LLH Marktdaten WJ 18/19
B34: Frühkartoffeln | C34: (1.7. bis 10.8. lose) | E34: 44.3 | F34: 39.7 | G34: 37 | H34: 22 | I34: 16 | J34: 25 | K34: 25 | L34: €/dt | P34: 27.25 | Q34: KTBL 12/13 S. 238; KTBL 14/15 S. 233; KTBL 16/17 S.240, KTBL 2018-19 S.242; KTBL S. 242 20/21 agrarheute.com
B35: Stärkekartoffeln | E35: 8.59 | F35: 8.25 | G35: 8.617886179 | H35: 8.72 | I35: 8.5 | J35: 9 | K35: 9 | L35: €/dt | P35: 9.81 | Q35: LfL Bayern DB 2017 Durchschnitt und 2018-19; LFL DB 2022
A37: Tierproduktion
A38: Milch | B38: 4 % Fett-; 3,4 % Eiweißgehalt | E38: 0.2911 | F38: 0.3468 | G38: 0.3349 | H38: 0.3295 | I38: 0.3313 | J38: 0.3971 | K38: =IF($Q$8=1,AVERAGE(F38:J38),J38) -> 0.3971 | L38: €/kg | P38: =+K38*(1+$G$6) -> 0.432839 | Q38: Marktdatenblatt Excel-Tabelle; DB-Plus lfl
B39: Zuschlag je 0,1 % höheren Fettgehalt | E39: 0 | F39: 0 | K39: =IF($Q$8=1,AVERAGE(E39:I39),I39) -> 0 | L39: €/kg | P39: 0
A40: Schlachtkühe | B40: O 3 Hdkl. | E40: 2.75 | F40: 3.08 | G40: 2.78 | H40: 2.65 | I40: 2.73 | J40: 3.43 | K40: =IF($Q$8=1,AVERAGE(F40:J40),J40) -> 3.43 | L40: €/kg SG | P40: 3.7387 | Q40: Marktdatenblatt Excel-Tabelle; DB-Plus lfl
A41: Schlachtfärsen | B41: O 3 Hdkl. | E41: 2.83 | F41: 3.16 | G41: 2.91 | H41: 2.87 | I41: 2.95 | J41: 4.3 | K41: 4.3 | L41: €/kg SG | P41: 4.687 | Q41: Marktinfo LLH + LLH Marktdaten WJ 18/19; LWK Rheinland Pfalz
A42: Jungbullen | B42: R 3 Hdkl. | E42: 3.71 | F42: 3.95 | G42: 3.7 | H42: 3.51 | I42: 3.72 | J42: 4.6 | K42: 4.6 | L42: €/kg SG | P42: 5.014 | Q42: Marktdatenblatt Excel-Tabelle; Lwk Rheinland Pfalz
A43: Mastochsen | B43: R 3 Hdkl. | E43: 3.4 | F43: 3.4 | G43: 3.37 | H43: 2.89 | I43: 3 | J43: 4.52 | K43: 4.52 | L43: €/kg SG | N43: x | P43: 4.9268 | Q43: Kalkulationsdaten Rindermast LEL 2016 und 17-20
A44: Schlachtkälber | E44: 2.74 | F44: 2.74 | G44: 3.170731707 | H44: 2.89 | I44: 4.13 | J44: 5.13 | K44: 5.13 | L44: €/kg SG | N44: x | P44: 5.5917 | Q44: Marktdatenblatt Excel-Tabelle und DB Lfl. 17-20; Marktdaten LLH Kälber
A45: Färse | B45: schwarzbunt | E45: 1370 | F45: 1410 | G45: 1258 | H45: 1594 | I45: 1633 | J45: 1490.5 | K45: 1490.5 | L45: €/Stück | P45: 1624.645 | Q45: ZBH Alsfeld; Richtwert Deckungsbeiträge 2017 LWK NDS, Qnetics 2019; DB-Plus LFL 21/ 22
A46: Kälber | B46: schwarzbunt | C46: männlich | E46: 88.49 | F46: 90.4 | G46: 77.54 | H46: 48.78 | I46: 47.05 | J46: 74.94 | K46: 74.94 | L46: €/Stück | P46: 81.6846 | Q46: Marktdatenblatt Excel-Tabelle
B47: schwarzbunt | C47: weiblich | E47: 22.55 | F47: 24.8 | G47: 20.09 | H47: 15.62 | I47: 11.77 | J47: 22.75 | K47: 22.75 | L47: €/Stück | P47: 24.7975 | Q47: Marktinfo LLH + LLH Marktdaten WJ 18/19
A48: Färse | B48: Fleischrind | E48: 1457 | F48: 1523 | G48: 1499 | H48: 1300 | I48: 1350 | J48: 2000 | K48: 2000 | L48: €/Stück | P48: 2180 | Q48: Vorjahre ZBH, 2019 Qnetics Hessen Durchschnitt durch alle Rassen Herr Daum
A49: Absetzer | B49: Fleischrind/Limousin | C49: männlich | E49: 2.88 | F49: 2.75 | G49: 2.84 | H49: 2.73 | I49: 2.6 | J49: 2.95 | K49: =IF($Q$8=1,AVERAGE(E49:J49),J49) -> 2.95 | L49: €/kg LG | P49: 3.2155 | Q49: Marktdatenblatt Excel-Tabelle
B50: Fleischrind/Limousin | C50: weiblich | E50: 2.13 | F50: 2.21 | G50: 2.06 | H50: 2 | I50: 2.06 | J50: 2.35 | K50: =IF($Q$8=1,AVERAGE(F50:J50),J50) -> 2.35 | L50: €/kg LG | P50: 2.5615 | Q50: Marktdatenblatt Excel-Tabelle
A51: Ferkel | B51: 28 kg LG Qualitätsferkel | E51: 61.8 | F51: 55.8 | G51: 50.1 | H51: 72.52 | I51: 45.49 | J51: 40.99 | K51: 40.99 | L51: €/Stück | N51: =SUM(K51/28) -> 1.463928571 | O51: €/kg | P51: 44.6791 | Q51: Marktdatenblatt Excel-Tabelle
B52: Zuschlag je kg, 28-30 kg LG | E52: 1.3 | F52: 1.3 | G52: 1.3 | H52: 1.3 | I52: 1.3 | J52: 1.3 | K52: 1.3 | L52: €/kg | P52: 1.417 | Q52: Marktinfo LLH | R52: Hessenbauer
A53: Systemferkel | B53: 7 - 8 kg LG | E53: 25.5 | F53: 25.5 | G53: 31.04 | H53: 42.43 | I53: 24.22 | J53: 21.2 | K53: 21.2 | L53: €/Stück | N53: x | P53: 23.108 | Q53: Richtwert-Deckungsbeiträge 2016 LWK NDS, AMI Kammerprogramm, Erzeugergemeinschaft für Qualitätsvieh Hümmelingen e.G. 18-19; Viehmarkt Rheinland
A54: Jungsauen | B54: nicht tragend | E54: 362 | F54: 362 | G54: 360.6 | H54: 346.4 | I54: 300.11 | J54: 291.4 | K54: 291.4 | L54: €/Stück | N54: x | P54: 317.626 | Q54: Richtwert-Deckungsbeiträge 2016 LWK NDS, Lfl DB 17-20; LFL DBPlus 21 22
A55: Altsauen | B55: M1 | E55: 1.27 | F55: 1.27 | G55: 1.12 | H55: 1.51 | I55: 1.01 | J55: 0.9 | K55: 0.9 | L55: €/kg SG | N55: x | P55: 0.981 | Q55: Marktdatenblatt Excel-Tabelle, Lfl. DB 2017-2020; DBPLUS 2122
A56: Mastschweine | B56: MFA 55 -59,9% | E56: 1.64 | F56: 1.49 | G56: 1.51 | H56: 1.84 | I56: 1.36 | J56: 1.47 | K56: 1.47 | L56: €/kg SG | P56: 1.6023 | Q56: Marktdatenblatt Excel-Tabelle; DB-Plus lfl
A57: Eier | B57: Kl. L Kleingruppenhaltung ab Erzeugerp. | E57: 0.1346 | F57: 0.1346 | G57: 0.1884 | H57: 0.1625 | I57: 0.1512 | J57: 0.1554 | K57: 0.1554 | L57: €/Stück | N57: x | P57: =+K57*(1+$G$6) -> 0.169386 | Q57: Marktinfo LLH + LLH Marktdaten WJ 18/19
B58: Kl. M Kleingruppenhaltung ab Erzeugerp. | E58: 0.1212 | F58: 0.1212 | G58: 0.15 | H58: 0.1594 | I58: 0.1498 | J58: 0.1512 | K58: 0.1512 | L58: €/Stück | N58: x | P58: =+K58*(1+$G$6) -> 0.164808 | Q58: Marktinfo LLH + LLH Marktdaten WJ 18/19
B59: Kl. L Bodenhaltung ab Erzeugerpackstelle | E59: 0.1346 | F59: 0.1346 | G59: 0.1507 | H59: 0.1563 | I59: 0.1582 | J59: 0.1723 | K59: 0.1723 | L59: €/Stück | N59: x | P59: =+K59*(1+$G$6) -> 0.187807 | Q59: Marktinfo LLH + LLH Marktdaten WJ 18/19
B60: Kl. M Bodenhaltung ab Erzeugerpackstelle | E60: 0.1227 | F60: 0.1227 | G60: 0.136 | H60: 0.1398 | I60: 0.1356 | J60: 0.1524 | K60: 0.1524 | L60: €/Stück | N60: x | P60: 0.166116 | Q60: Marktinfo LLH + LLH Marktdaten WJ 18/19
B61: Kl. L Bodenhaltung Direktvermarktung | E61: 0.2088 | F61: 0.2088 | G61: 0.221 | H61: 0.223 | I61: 0.2278 | J61: 0.246 | K61: 0.246 | L61: €/Stück | N61: x | P61: 0.26814 | Q61: Marktinfo LLH + LLH Marktdaten WJ 18/19
B62: Kl. M Bodenhaltung Direktvermarktung | E62: 0.1833 | F62: 0.1833 | G62: 0.1897 | H62: 0.1945 | I62: 0.1985 | J62: 0.214 | K62: 0.214 | L62: €/Stück | N62: x | P62: 0.23326 | Q62: Marktinfo LLH + LLH Marktdaten WJ 18/19
B63: Kl. L Freilandhaltung ab Erzeugerpackstelle | E63: 0.1727 | F63: 0.1727 | G63: 0.1787 | H63: 0.1814 | I63: 0.2135 | J63: 0.2452 | K63: 0.2452 | L63: €/Stück | N63: x | P63: 0.267268 | Q63: Marktinfo LLH + LLH Marktdaten WJ 18/19
B64: Kl. M Freilandhaltung ab Erzeugerpackstelle | E64: 0.1592 | F64: 0.1592 | G64: 0.172 | H64: 0.1734 | I64: 0.1926 | J64: 0.2272 | K64: 0.2272 | L64: €/Stück | N64: x | P64: 0.247648 | Q64: Marktinfo LLH + LLH Marktdaten WJ 18/19
B65: Kl. L Freilandhaltung Direktvermarktung | E65: 0.2319 | F65: 0.2319 | G65: 0.2871 | H65: 0.2548 | I65: 0.2825 | J65: 0.3022 | K65: 0.3022 | L65: €/Stück | N65: x | P65: 0.329398 | Q65: Marktinfo LLH + LLH Marktdaten WJ 18/19
B66: Kl. M Freilandhaltung Direktvermarktung | E66: 0.2107 | F66: 0.2107 | G66: 0.2217 | H66: 0.2341 | I66: 0.2624 | J66: 0.2863 | K66: 0.2863 | L66: €/Stück | N66: x | P66: 0.312067 | Q66: Marktinfo LLH + LLH Marktdaten WJ 18/19
A67: Küken | E67: 0.35 | F67: 0.35 | G67: 0.35 | H67: 0.35 | I67: 0.35 | J67: 0.35 | K67: 0.35 | L67: €/Stück | N67: x | P67: 0.3815 | Q67: KTBL 18/19 S. 707; Rassegeflügelzucht-Leinenkamp.de; KTBL S. 684 20/21
A68: Junghenne | E68: 4.5 | F68: 4.5 | G68: 4.51 | H68: 4.9 | I68: 4.9 | J68: 5 | K68: 5 | L68: €/Stück | N68: x | P68: 5.45 | Q68: KTBL 18/19 S. 691; KTBL S. 666 20/21
A69: Masthähnchen | E69: 0.88 | F69: 0.88 | G69: 1.06 | H69: 0.75 | I69: 0.75 | J69: 0.9 | K69: 0.9 | L69: €/kg | N69: x | P69: 0.981 | Q69: DB Plus Lfl. Bayern; KTBL S. 684 20/21
A70: Schlachthuhn | B70: Direktvermarktung | E70: 1.2 | F70: 1.2 | G70: 1.67 | H70: 1.6 | I70: 1.6 | J70: 1.6 | K70: 1.6 | L70: €/kg SG | N70: x | P70: 1.744 | Q70: Eigene Ermittlung in Anlehnung an akt. KTBL-Sätze/ Indexmundi 2019 https://www.indexmundi.com/de/rohstoffpreise/?ware=huhn&wahrung=eur
B71: Abgabe an den Großhandel | E71: 0.17 | F71: 0.17 | G71: 0.25 | H71: 0.28 | I71: 0.28 | J71: 0.3 | K71: 0.3 | L71: €/kg SG | N71: x | P71: 0.327 | Q71: KTBL 18/19 S. 691; KTBL S. 666 20/21
A72: Lämmer | E72: =5.6*0.46 -> 2.576 | F72: 2.576 | G72: 2.5 | H72: 2.27 | I72: 2.89 | J72: 3.1 | K72: 3.1 | L72: €/kg LG | N72: x | P72: 3.379 | Q72: Marktinfo LLH + LLH Marktdaten WJ 18/19; LFL DB 2022
A73: Altschaf | E73: 48 | F73: 48 | G73: 51.6 | H73: 40 | I73: 50.5 | J73: 29 | K73: 29 | L73: €/Stück | N73: x | P73: 31.61 | Q73: Eigene Ermittlung nach Grundlage DB Plus Lfl. Bayern; LFL DB 2022
A74: Wolle | E74: 0.85 | F74: 0.85 | G74: 0.85 | H74: 0.25 | I74: 0.2 | J74: 1.55 | K74: 1.55 | L74: €/kg | N74: x | P74: 1.6895 | Q74: KTBL "Fleischschafhaltung"; Richtwert-Deckungsbeiträge 2015 LWK NDS, Ankauf von Rohwolle auf Landtreff und Internetrecherche 2019; LFL DB 2022
A76: Einkaufspreise für Saat-und Pflanzgut
C77: Umsatzsteuer für Saat- und Pflanzgut beträgt: | D77: =IF(Hauptmenü!$F$21="Regelbesteuerung","0%",E77) -> 0.07 | E77: 0.07
A78: Winterweizen | E78: 55 | F78: 55 | G78: 56 | H78: 55 | I78: 55 | J78: 67 | K78: =IF($Q$8=1,AVERAGE(F78:J78),J78) -> 67 | L78: €/dt | P78: =+K78*(1+$D$77) -> 71.69 | Q78: KTBL 18/19 S. 247; KTBL 20/21; LFL DB 2022
A79: Sommerweizen | E79: 59 | F79: 59 | G79: 59 | H79: 55 | I79: 55 | J79: 79 | K79: 79 | L79: €/dt | P79: =+K79*(1+$D$77) -> 84.53 | Q79: KTBL 18/19 S. 247; KTBL 20/21; LFL DB 2022
A80: Winterroggen | E80: 52 | F80: 52 | G80: 55 | H80: 53 | I80: 53 | J80: 66 | K80: 66 | L80: €/dt | P80: 70.62 | Q80: KTBL 18/19 S. 247; KTBL 20/21; LFL DB 2022
A81: Hybridroggen | E81: 55 | F81: 55 | G81: 57 | H81: 57 | I81: 57 | J81: 73.5 | K81: 73.5 | L81: €/dt | P81: 78.645 | Q81: KTBL 18/19 S. 247; KTBL 20/21; LFL DB 2022
A82: Triticale | E82: 56 | F82: 56 | G82: 54 | H82: 54 | I82: 54 | J82: 68.5 | K82: 68.5 | L82: €/dt | P82: 73.295 | Q82: KTBL 18/19 S. 247; KTBL 20/21; LFL DB 2022
A83: Dinkel | E83: 99 | F83: 99 | G83: 99 | H83: 105 | I83: 115 | J83: 120 | K83: 120 | L83: €/dt | P83: 128.4 | Q83: NDS von 18/19 bis 2021; Eigene Annahme für 2022
A84: Wintergerste | E84: 56 | F84: 56 | G84: 60 | H84: 56 | I84: 56 | J84: 64.5 | K84: =IF($Q$8=1,AVERAGE(F84:J84),J84) -> 64.5 | L84: €/dt | P84: 69.015 | Q84: KTBL 18/19 S. 247; KTBL 20/21; LFL DB 2022
A85: Sommergerste (Brau) | E85: 57 | F85: 57 | G85: 58 | H85: 60 | I85: 60 | J85: 85 | K85: 85 | L85: €/dt | P85: 90.95 | Q85: KTBL 18/19 S. 247; KTBL 20/21; LFL DB 2022
A86: Hafer | E86: 54 | F86: 54 | G86: 55 | H86: 58 | I86: 58 | J86: 79.5 | K86: 79.5 | L86: €/dt | P86: 85.065 | Q86: KTBL 18/19 S. 247; KTBL 20/21; LFL DB 2022
A87: Winterraps | B87: 00 - Sorten | E87: 15 | F87: 15 | G87: 15.8 | H87: 17 | I87: 17 | J87: 20 | K87: 20 | L87: €/kg | P87: 21.4 | Q87: KTBL 18/19 S. 247; KTBL 20/21; LFL DB 2022
A88: Erbsen | E88: 84 | F88: 84 | G88: 74 | H88: 61 | I88: 61 | J88: 63 | K88: 63 | L88: €/dt | P88: 67.41 | Q88: KTBL 18/19 S. 247; KTBL 20/21; LFL DB 2022
A89: Ackerbohnen | E89: 91 | F89: 91 | G89: 77 | H89: 63 | I89: 63 | J89: 66 | K89: 66 | L89: €/dt | P89: 70.62 | Q89: KTBL 18/19 S. 247; KTBL 20/21; LFL DB 2022
A90: Mais (Hybridsaatgut) | E90: 106 | F90: 106 | G90: 108 | H90: 110 | I90: 110 | J90: 123 | K90: 123 | L90: €/E. | P90: 131.61 | Q90: KTBL 18/19 S. 247; KTBL 20/21; LFL DB 2022
A91: Zuckerrüben | B91: genetisch monogerm (niedrige Beizausstattung) | E91: 186.1 | F91: 187.2 | G91: 175 | H91: 180 | I91: 180 | J91: 198.5 | K91: 198.5 | L91: €/E. | P91: 212.395 | Q91: KTBL 18/19 S. 247; KTBL 20/21; LFL DB 2022
B92: Tolerante Sorten (niedrige Beizausstattung) | E92: 212.65 | F92: 214.5 | G92: 230 | H92: 257 | I92: 257 | J92: 257 | K92: 257 | L92: €/E. | P92: 274.99 | Q92: Richtwert-Deckungsbeiträge 2017 LWK NDS, KWS 2020; KTBL 20/21 S. 247; LFL DB nach Aufrundung
A93: Kartoffeln | B93: zertifiziertes Pflanzgut
B94: Speisesorten | E94: 41 | F94: 41 | G94: 47 | H94: 49 | I94: 49 | J94: 74 | K94: =IF($Q$8=1,AVERAGE(F94:J94),J94) -> 74 | L94: €/dt | P94: =+K94*(1+$D$77) -> 79.18 | Q94: KTBL 18/19 S. 247; KTBL 20/21 S.247; LFL DB 2022
B95: Frühe Speisesorten | E95: 41 | F95: 41 | G95: 47 | H95: 49 | I95: 49 | J95: 74 | K95: =IF($Q$8=1,AVERAGE(F95:J95),J95) -> 74 | L95: €/dt | P95: =+K95*(1+$D$77) -> 79.18 | Q95: KTBL 12/13 S. 240; KTBL 14/15 S.235; KTBL S.243, KTBL S. 247; LFL DB 2022
B96: Stärkesorten | E96: 31.9 | F96: 31.9 | G96: 34.22 | H96: 44 | I96: 44 | J96: 50.5 | K96: 50.5 | L96: €/dt | P96: 54.035 | Q96: KTBL 12/13 S. 240; KTBL 14/15 S.235; KTBL S.243, Lfl DB Plus 2020; KTBL S.247 20/21; LFL DB 2022
A97: Dauergrünlandansaatmischung | E97: 3.6 | F97: 3.55 | G97: 5.67 | H97: 3 | I97: 6.93 | J97: 6.93 | K97: 6.93 | L97: €/kg | P97: 7.4151 | Q97: Richtwert-Deckungsbeiträge je WJ 13/14 bis 17/18, LWK NDS, BayWa 05/ 2020; KTBL S. 247 und folgende 20/21
A98: Einjähriges Weidelgras | E98: 3.35 | F98: 3.3 | G98: 3.26 | H98: 3.03 | I98: 3.03 | J98: 3.03 | K98: 3.03 | L98: €/kg | P98: 3.2421 | Q98: LLH-WRRL-Beratung, Chr. Schmidt, 07/2017 + BayWa 03/2018 und BayWa 05/ 2020; KTBL S. 247 und folgende 20/21
A99: Welsches Weidelgras | E99: 2.75 | F99: 2.7 | G99: 3.53 | H99: 3.1 | I99: 3.1 | J99: 3.1 | K99: 3.1 | L99: €/kg | P99: 3.317 | Q99: LLH-WRRL-Beratung, Chr. Schmidt, 07/2017 + BayWa 03/2018 und BayWa 05/ 2020; KTBL S. 247 und folgende 20/21
A100: Sommerraps | E100: 3.2 | F100: 3.15 | G100: 3.05 | H100: 13.6 | I100: 13.6 | J100: 13.6 | K100: 13.6 | L100: €/kg | P100: 14.552 | Q100: LLH-WRRL-Beratung, Chr. Schmidt, 07/2017 + BayWa 03/2018 und BayWa 05/ 2020; KTBL S. 247 und folgende 20/21
A101: Kleegrasmischung | C101: kleebetont | E101: 4 | F101: 4 | G101: 4.07 | H101: 6.77 | I101: 6.77 | J101: 6.77 | K101: 6.77 | L101: €/kg | P101: 7.2439 | Q101: LLH-WRRL-Beratung, Chr. Schmidt, 07/2017 + BayWa 03/2018 und BayWa 05/ 2020; KTBL S. 247 und folgende 20/21
A102: Kleegrasmischung | C102: grasbetont | E102: 3 | F102: 3 | G102: 3.21 | H102: 6.77 | I102: 6.77 | J102: 6.77 | K102: 6.77 | L102: €/kg | P102: 7.2439 | Q102: LLH-WRRL-Beratung, Chr. Schmidt, 07/2017 + BayWa 03/2018, BayWa 05/ 2020; KTBL S. 247 und folgende 20/21
A103: Phacelia | E103: 8.5 | F103: 8.2 | G103: 5.3 | H103: 3.98 | I103: 7.15 | J103: 7.15 | K103: 7.15 | L103: €/kg | P103: 7.6505 | Q103: LLH-WRRL-Beratung, Chr. Schmidt, 07/2017 + BayWa 03/2018; KTBL S. 247 und folgende 20/21
A104: Senf | E104: 2.75 | F104: 2.45 | G104: 2.46 | H104: 2.85 | I104: 2.8 | J104: 2.8 | K104: 2.8 | L104: €/kg | P104: 2.996 | Q104: LLH-WRRL-Beratung, Chr. Schmidt, 07/2017 + BayWa 03/2018 und BayWa 05/ 2020; KTBL S. 247 und folgende 20/21
A105: Ölrettich | E105: 3.65 | F105: 3.3 | G105: 2.47 | H105: 3.57 | I105: 3.57 | J105: 3.57 | K105: 3.57 | L105: €/kg | P105: 3.8199 | Q105: LLH-WRRL-Beratung, Chr. Schmidt, 07/2017 + BayWa 03/2018 und BayWa 05/ 2020; KTBL S. 247 und folgende 20/21
A106: Winterraps | E106: 3.3 | F106: 3 | G106: 1.82 | H106: 4.16 | I106: 4.16 | J106: 4.16 | K106: 4.16 | L106: €/kg | P106: 4.4512 | Q106: LLH-WRRL-Beratung, Chr. Schmidt, 07/2017 + BayWa 03/2018 DSV Lippstadt 05/ 2020; KTBL S. 247 und folgende 20/21
A107: Grünroggen | E107: 0.95 | F107: 0.93 | G107: 0.7 | H107: 0.8 | I107: 0.8 | J107: 0.8 | K107: 0.8 | L107: €/kg | P107: 0.856 | Q107: LLH-WRRL-Beratung, Chr. Schmidt, 07/2017 + BayWa 03/2018/ DSV Lippstadt 05/ 2020; KTBL S. 247 und folgende 20/21
A108: Mischung Beta Maxx | E108: 1.99 | F108: 1.98 | G108: 2.16 | H108: 2.97 | I108: 2.97 | J108: 2.97 | K108: 2.97 | L108: €/kg | P108: 3.1779 | Q108: DSV Lippstadt, Sept. 16 (über Hr. Sünder, FG 31) DSV Lippstadt 05 2020; Eigene Annahme
A109: Landsberger Gemenge | E109: 3.3 | F109: 3.15 | G109: 3.32 | H109: 3.36 | I109: 3.36 | J109: 3.36 | K109: 3.36 | L109: €/kg | P109: 3.5952 | Q109: LLH-WRRL-Beratung, Chr. Schmidt, 07/2017 + BayWa 03/2018 und BayWa 05/ 2020; KTBL S. 247 und folgende 20/21
A111: Einkaufspreise für Düngemittel
C112: Umsatzsteuer für Düngemittel beträgt: | D112: =IF(Hauptmenü!$F$21="Regelbesteuerung","0%",E112) -> 0.19 | E112: 0.19
A114: Kalkamonsalpeter (KAS) | C114: 0.27 | D114: N | E114: 19.91 | F114: 20.72 | G114: 22.27 | H114: 19.48 | I114: 21.61 | J114: 59.08 | K114: =IF($Q$8=1,AVERAGE(F114:J114),J114) -> 59.08 | L114: €/dt | O114: KAS | P114: =+K114*(1+$D$112) -> 70.3052 | Q114: Marktinfo LLH + LLH Marktdaten WJ 18/19
A115: Ammonnitrat-Harnstoff-Lösung (AHL) | C115: 0.28 | D115: N | E115: 16.24 | F115: 17.35 | G115: 19.83 | H115: 18.8 | I115: 19.08 | J115: 57.9 | K115: =IF($Q$8=1,AVERAGE(F115:J115),J115) -> 57.9 | L115: €/dt | O115: AHL | P115: 68.901 | Q115: Marktinfo LLH + LLH Marktdaten WJ 18/19
A116: Harnstoff (HST) | C116: 0.46 | D116: N | E116: 26.868 | F116: 26.75 | G116: 31.13 | H116: 32.51 | I116: 35.35 | J116: 56.79 | K116: 56.79 | L116: €/dt | O116: HST | P116: 67.5801 | Q116: Marktinfo LLH + LLH Marktdaten WJ 18/19
A117: Ammonsulfatsalpeter (ASS) 26 N + 13 S | C117: 0.26 | D117: N | E117: 22.23 | F117: 23.56 | G117: 25.64 | H117: 24.53 | I117: 23.94 | J117: 50.08 | K117: 50.08 | L117: €/dt | O117: ASS | P117: 59.5952 | Q117: Marktinfo LLH + LLH Marktdaten WJ 18/19
C118: 0.13 | D118: S | K118: 0 | L118: €/dt
A119: Kornkali 40-er | C119: 0.4 | D119: K2O | E119: 23.17 | F119: 23.55 | G119: 25.04 | H119: 25.4 | I119: 24.28 | J119: 34.17 | K119: 34.17 | L119: €/dt | O119: K 40 | P119: 40.6623 | Q119: Marktinfo LLH + LLH Marktdaten WJ 18/19
C120: 0.06 | D120: Mg | K120: 0 | L120: €/dt
A121: Triple Phosphat | C121: 0.45 | D121: P2O5 | E121: 41.5 | F121: 41.15 | G121: 38.57 | H121: 36.81 | I121: 36.19 | J121: 55.28 | K121: 55.28 | L121: €/dt | O121: TSP | P121: 65.7832 | Q121: Marktinfo LLH + LLH Marktdaten WJ 18/19
A122: Diammonphosphat | C122: 0.18 | D122: N | E122: 38.2 | F122: 38.22 | G122: 45.39 | H122: 37.67 | I122: 41.33 | J122: 60.87 | K122: 60.87 | L122: €/dt | O122: DAP | P122: 72.4353 | Q122: Marktinfo LLH + LLH Marktdaten WJ 18/19
C123: 0.46 | D123: P2O5 | K123: 0 | L123: €/dt
A124: Kohlensaurer Kalk | C124: 0.9 | D124: CaCO | E124: 6.55 | F124: 6.72 | G124: 4.07 | H124: 2.44 | I124: 1.92 | J124: 3.59 | K124: 3.59 | L124: €/dt | O124: KSK | P124: =+K124*(1+$D$112) -> 4.2721 | Q124: KTBL 18/19 S. 248
A125: Carbo-Kalk | C125: 0.27 | D125: CaCO | E125: 1.6 | F125: 1.7 | G125: 1.8 | H125: 1.8 | I125: 1.8 | J125: 1.8 | K125: 1.8 | L125: €/dt | O125: CaK | P125: =+K125*(1+$D$112) -> 2.142 | Q125: https://bisz.suedzucker.de/wp-content/uploads/2018/04/2018_Bestellung_von_Carbokalk_ab_Fr%C3%BChjahr-2018_OHNE_SEPA_Bankeinzug-1.pdf
A128: Preise je kg Reinnährstoff
A129: Bruttopreise bei: | B129: =IF(Hauptmenü!$F$21="Regelbesteuerung","0%",C129) -> 0.19 | C129: 0.19
A130: Stickstoff | B130: (75% KAS + 25% Harnstoff) | E130: 0.9 | F130: 0.92 | G130: =0.82*0.75+0.68*0.25 -> 0.785 | H130: 0.76 | I130: 0.8025 | J130: =J114/27*0.75+J116/46*0.25 -> 1.949752415 | K130: =+(K114/C114/100*0.75+K116/C116/100*0.25) -> 1.949752415 | L130: €/kg | O130: N | P130: =K130*(1+B129) -> 2.320205374 | Q130: Marktdatenblatt Excel-Tabelle
A131: Phosphor | B131: (100% Diammonphosphat) | E131: 0.6 | F131: 0.57 | G131: 0.69 | H131: 0.8 | I131: 0.93 | J131: =J122/48 -> 1.268125 | K131: =((K122/C123/100)-(C122*K130))*0.75+0.25*(K121/C121/100) -> 1.036340187 | L131: €/kg | O131: P | P131: =K131*1+B129 -> 1.226340187 | Q131: Marktdatenblatt Excel-Tabelle
A132: Kali | E132: 0.59 | F132: 0.59 | G132: 0.63 | H132: 0.63 | I132: 0.61 | J132: =J119/40 -> 0.85425 | K132: =+($K$119/$C$119/100) -> 0.85425 | L132: €/kg | O132: K | P132: =K132*(1+B129) -> 1.0165575 | Q132: Marktdatenblatt Excel-Tabelle
A133: Kalk | E133: 0.06 | F133: 0.06 | G133: 0.06 | H133: =H124/90 -> 0.02711111111 | I133: =I124/90 -> 0.02133333333 | J133: =J124/90 -> 0.03988888889 | K133: =+($K$124/$C$124/100) -> 0.03988888889 | L133: €/kg | O133: Ca | P133: =K133*(1+B129) -> 0.04746777778 | Q133: Marktdatenblatt Excel-Tabelle
A134: Magnesium | E134: 1.45 | F134: 1.43 | G134: 1.43 | H134: 1.39 | I134: 1.398 | J134: 2.2 | K134: =AVERAGE(E134:J134) -> 1.549666667 | L134: €/kg | O134: Mg | P134: =K134*(1+B129) -> 1.844103333 | Q134: LEL Kalkulationsdaten Marktfrüchte 2017; Richtwerte DB LWK N; Recherche Internet
A135: Schwefel | E135: 0.65 | F135: 0.55 | G135: 0.55 | H135: 0.587 | I135: 0.588 | J135: 0.898 | K135: =AVERAGE(E135:J135) -> 0.6371666667 | L135: €/kg | O135: S | P135: =K135*(1+B129) -> 0.7582283333 | Q135: LEL Kalkulationsdaten Marktfrüchte 2017; Richtwerte DB LWK N; Recherche Internet
Q136: (abgeglichen 11/2017 mit B. Blackert, FG 11)
A139: Einkaufspreise für Futtermittel
C140: Umsatzsteuer für Futtermittel beträgt: | D140: =IF(Hauptmenü!$F$21="Regelbesteuerung","0%",E140) -> 0.07 | E140: 0.07
A142: Weizen | E142: 13.84 | F142: 14.19 | G142: 17.47 | H142: =H13 -> 15.48 | I142: =I13 -> 18.41 | J142: =J13 -> 25.65 | K142: =K13 -> 25.65 | L142: €/dt | P142: =+K142*(1+$D$140) -> 27.4455 | Q142: Bezug zu Verkaufspreisen
A143: Gerste | E143: 12.23 | F143: 13.5 | G143: 17.23 | H143: =H20 -> 14.1 | I143: =I20 -> 16.8 | J143: =J20 -> 25.37 | K143: =K20 -> 25.37 | L143: €/dt | P143: =+K143*(1+$D$140) -> 27.1459 | Q143: Bezug zu Verkaufspreisen
A144: Roggen | E144: 11.95 | F144: 12.45 | G144: 16.08 | H144: =H15 -> 13.49 | I144: =I15 -> 14.94 | J144: =J15 -> 21.98 | K144: =IF($Q$8=1,AVERAGE(F144:J144),J144) -> 21.98 | L144: €/dt | P144: =+K144*(1+$D$140) -> 23.5186 | Q144: Bezug zu Verkaufspreisen
A145: Triticale | E145: 12.52 | F145: 13.07 | G145: 16.81 | H145: =H17 -> 14.37 | I145: =I17 -> 16.97 | J145: =J17 -> 25.34 | K145: =K17 -> 25.34 | L145: €/dt | P145: =+K145*(1+$D$140) -> 27.1138 | Q145: Bezug zu Verkaufspreisen
A146: Hafer | E146: 12.48 | F146: 12.9 | G146: 15.03 | H146: =H22 -> 15.54 | I146: =I22 -> 16.3 | J146: =J22 -> 18.97 | K146: =K22 -> 18.97 | L146: €/dt | P146: =+K146*(1+$D$140) -> 20.2979 | Q146: Bezug zu Verkaufspreisen
K147: Mischverhältnis: | M147: Getreide | N147: Soja | P147: Inkl. Lohnmischer
A148: Kraftfutter für Aufzuchtfärse/Kälber | K148: =(M148/2)*$K$142+(M148/2)*$K$143+N148*$K$168 -> 27.856 | L148: €/dt | M148: 0.9 | N148: 0.1 | P148: =K148*(1+$D$140)+$P$152 -> 32.42392
A149: Kraftfutter für Mutterkühe | K149: =(M149/2)*$K$142+(M149/2)*$K$143+N149*$K$168 -> 27.856 | L149: €/dt | M149: 0.9 | N149: 0.1 | P149: =K149*(1+$D$140)+$P$152 -> 32.42392
A150: Kraftfutter für Mastbullen/Ochsen | K150: =(M150/2)*$K$142+(M150/2)*$K$143+N150*$K$168 -> 27.856 | L150: €/dt | M150: 0.9 | N150: 0.1 | P150: =K150*(1+$D$140)+$P$152 -> 32.42392
A151: Mahl- und Mischkosten (eigen) | K151: 1.6 | L151: €/dt | P151: =K151*(1+$B$129) -> 1.904 | Q151: Richtpreise für wirtschaftseigenes Kraftfutter - Hollmichel
A152: Lohnmischer | K152: 2.2 | L152: €/dt | P152: =K152*(1+$B$129) -> 2.618 | Q152: Richtpreise für wirtschaftseigenes Kraftfutter - Hollmichel
A153: Milchleistungsfutter | C153: 18 % Protein, III | E153: 22.39 | F153: 22.91 | G153: 25.68 | H153: 24.5 | I153: 26.24 | J153: 32.52 | K153: =IF($Q$8=1,AVERAGE(F153:J153),J153) -> 32.52 | L153: €/dt | P153: =+K153*(1+$D$140) -> 34.7964 | Q153: Marktdatenblatt Excel-Tabelle
A154: Milchaustauscher | C154: 50 % Magermilch- pulver, gesackt | E154: 185.43 | F154: 179.85 | G154: 189.3 | H154: 212.94 | I154: 218.66 | J154: 270.11 | K154: 270.11 | L154: €/dt | P154: 289.0177 | Q154: Marktinfo LLH + LLH Marktdaten WJ 18/19
A155: Ergänzungsfutter für Aufzuchtkälber | E155: 29.54 | F155: 29.11 | G155: 31.73 | H155: 32.48 | I155: 33.57 | J155: 41.63 | K155: 41.63 | L155: €/dt | P155: 44.5441 | Q155: Marktinfo LLH
A156: Mineralstoffmischung für Rinder | E156: 65 | F156: 65 | G156: 81 | H156: 81 | I156: 91 | J156: 91 | K156: 91 | L156: €/dt | P156: 97.37 | Q156: KTBL 16/17 S.545, KTBL 18/ 19 S. 540; KTBL S.547 20/21
A157: Ferkelaufzuchtfutter II | C157: 13-14 MJ/kg | E157: 33.38 | F157: 34.13 | G157: 34.73 | H157: 32.05 | I157: 36.38 | J157: 46.05 | K157: 46.05 | L157: €/dt | P157: =+K157*(1+$D$140) -> 49.2735 | Q157: Marktinfo LLH + LLH Marktdaten WJ 18/19
A158: Sauenfutter | B158: säugende Sauen | C158: 13 MJ/kg | E158: 30.27 | F158: 30.27 | G158: 32.59 | H158: 30.52 | I158: 32.4 | J158: 41.99 | K158: 41.99 | L158: €/dt | P158: =+K158*(1+$D$140) -> 44.9293 | Q158: Marktinfo LLH + LLH Marktdaten WJ 18/19
B159: tragende Sauen | C159: 11 MJ/kg | E159: 27.18 | F159: 27.2 | G159: 28.7 | H159: 28.16 | I159: 29.6 | J159: 37.38 | K159: 37.38 | L159: €/dt | P159: 39.9966 | Q159: Marktinfo LLH + LLH Marktdaten WJ 18/19
A160: Schweinemastfutter | K160: 0
A161: Vormast | B161: 1,0-1,15 % Lysin | C161: > 13,2 MJ/kg | E161: 27.5 | F161: 28.05 | G161: 28.89 | H161: 32.05 | I161: 36.38 | J161: 38.95 | K161: 38.95 | L161: €/dt | P161: =+K161*(1+$D$140) -> 41.6765 | Q161: Marktinfo LLH + LLH Marktdaten WJ 18/19
A162: Endmast | B162: 0,9-1,0 % Lysin | C162: > 12,6 MJ/kg | E162: 25.2 | F162: 25.78 | G162: 28.21 | H162: 27.12 | I162: 29.76 | J162: 35.34 | K162: 35.34 | L162: €/dt | P162: 37.8138 | Q162: Marktinfo LLH + LLH Marktdaten WJ 18/19
A163: Legehennen- alleinfutter | B163: 0,38 % Methionin | C163: > 11,4 MJ/kg | E163: 31.36 | F163: 30.66 | G163: 31.72 | H163: 31.72 | I163: 33.88 | J163: 41.6 | K163: 41.6 | L163: €/dt | P163: 44.512 | Q163: Marktinfo LLH + LLH Marktdaten WJ 18/19
A164: Broilerkükenalleinfutter | E164: 28.95 | F164: 28.95 | G164: 35.1 | H164: 32.88 | I164: 32.76 | J164: 38.98 | K164: 38.98 | L164: €/dt | N164: x | P164: 41.7086 | Q164: Eigene Ermittlung / APH FuMi/ Erhebung der Landwirtschaftskammer Niedersachsen für 2018 - 19
A165: Broileralleinfutter | E165: 32.19 | F165: 34.81 | G165: 34.85 | H165: 32.88 | I165: 32.76 | J165: 38.98 | K165: 38.98 | L165: €/dt | P165: 41.7086 | Q165: Marktinfo LLH + LLH Marktdaten WJ 18/19;NDS Richtwert DB 20/ 21 S.10
A166: Melasseschnitzel, pelliert | E166: 19.2 | F166: 23.5 | G166: 21.25 | H166: 20.42 | I166: 22.38 | J166: 28 | K166: 28 | L166: €/dt | P166: 29.96 | Q166: Marktinfo B LWK NDS, WB Qualitätsfutterwerke GmbH 2020; Richtwert DB NDS 20/ 21 S.10; Internetrecherche
A167: Weizenkleie, pelliert | E167: 14 | F167: 21.25 | G167: 16 | H167: 17.12 | I167: 20.24 | J167: 27 | K167: 27 | L167: €/dt | P167: 28.89 | Q167: Marktinfo B LWK NDS, Proplanta Preis 2019; NDS Richtwert DB 20/ 21 S.10; Internetrecherche
A168: Sojaschrot | C168: 44 % Protein, lose | E168: 36.6 | F168: 35.52 | G168: 35.03 | H168: 34.87 | I168: 42.24 | J168: 48.97 | K168: 48.97 | L168: €/dt | P168: 52.3979 | Q168: Marktinfo LLH + LLH Marktdaten WJ 18/19;NDS Richtwert DB 20/ 21 S.10
A169: Stroh (Rundballen) | E169: 9.1 | F169: 11.5 | G169: 12.08 | H169: 13 | I169: 11.97 | J169: 19.33 | K169: 19.33 | L169: €/dt | P169: =+K169*(1+$D$140) -> 20.6831 | Q169: Marktinfo LLH + LLH Marktdaten WJ 18/19;NDS Richtwert DB 20/ 21 S.10; LFL DB Plus Weizenstroh
A170: Heu (Rundballen) | E170: 12.5 | F170: 14 | G170: 18.64 | H170: 16.72 | I170: 18.23 | J170: 25 | K170: 25 | L170: €/dt | P170: 26.75 | Q170: Marktinfo LLH + LLH Marktdaten WJ 18/19;NDS Richtwert DB 20/ 21 S.10; Eigenen Erhebung nach DB Plus LFL
A171: Silage (Mais) | E171: 3.2 | F171: 3.3 | G171: 3.66 | H171: 3.7 | I171: 3.1 | J171: 4.26 | K171: 4.26 | L171: €/dt | P171: 4.5582 | Q171: Marktinfo LLH + LLH Marktdaten WJ 18/19;NDS Richtwert DB 20/ 21 S.10; LFL DB Plus Maissilage
A172: Silage (Gras) | E172: 3 | F172: 3.1 | G172: 4.24 | H172: 3.63 | I172: 3.34 | J172: 5.44 | K172: 5.44 | L172: €/dt | P172: 5.8208 | Q172: Richtwert-Deckungsbeiträge 2017 LWK NDS, https://www.dap.rlp.de/Internet/global/themen.nsf/0828f2bf8acbd78cc125814d00365f31/0659715059a7fcf3c12574e1003dd9f3/$FILE/GRASKAUF.pdf; NDS Richtwert DB 20/ 21; LFL DB Plus
A174: Flächenzahlungen für das Wirtschaftsjahr 2017/2018
B177: pro ha Landwirtschaftliche Nutzfläche | K177: 255 | L177: €/ha | Q177: Nicht enthalten in den berechneten DB-Verfahren!
B178: Flächenzahlung HALM - ext. Grünland konv. | K178: 190 | L178: €/ha | Q178: Enthalten in den extensiven Grünland-DB-Verfahren!
B179: Flächenzahlung HALM - Öko, Grünland | K179: 190 | L179: €/ha | Q179: Ökologischer Landbau - Beibehalter
B180: Flächenzahlung HALM - Öko, Ackerland | K180: 260 | L180: €/ha | Q180: Ökologischer Landbau - Beibehalter
A182: Einstreu: | C182: Bitte Auswahl treffen!
A183: Stroh | B183: MwSt: | C183: =IF(Hauptmenü!$F$21="Regelbesteuerung","0%",D183) -> 9 % | D183: =IF($D$182="Abgabe an Landw. 7,0 %","7,0 %","9 %") -> 9 % | K183: =$K$169 -> 19.33 | L183: €/dt | P183: =K183*(1+$C$183) -> 21.0697 | Q183: Marktinfo LLH
A186: Saatgutpreis Eigen: | C186: Getreidepreis | D186: + Reinigungs- und Aufbereitungskosten inkl. Lizenzgebühr | K186: 7.21 | L186: €/dt | P186: =K186*(1+$C$183) -> 7.8589 | Q186: KTBL 18-19 S.221 und S. 240
A189: Versicherungsbeitrag:
C190: Wintergetreide | E190: 5.99 | F190: 5.99 | G190: 5.99 | H190: 5.98 | I190: 5.98 | J190: 5.98 | K190: =IF($Q$8=1,AVERAGE(F190:J190),J190) -> 5.98 | L190: €/1000€ Versicherungssumme | P190: =+K190*(1+$C$221) -> 7.1162 | Q190: KTBL18/19 S. 242, 20/21 S. 241
C191: Sommergetreide | E191: 5.99 | F191: 5.99 | G191: 5.99 | H191: 5.98 | I191: 5.98 | J191: 5.98 | K191: 5.98 | L191: €/1000€ Versicherungssumme | P191: 7.1162 | Q191: KTBL18/19 S. 242, 20/21 S. 241
C192: Winterraps | E192: 17.96 | F192: 17.96 | G192: 17.96 | H192: 10.92 | I192: 10.92 | J192: 10.92 | K192: 10.92 | L192: €/1000€ Versicherungssumme | P192: 12.9948 | Q192: KTBL18/19 S. 242, 20/21 S. 241
C193: Erbsen | E193: 13.47 | F193: 13.47 | G193: 13.47 | H193: 13.45 | I193: 13.45 | J193: 13.45 | K193: 13.45 | L193: €/1000€ Versicherungssumme | P193: 16.0055 | Q193: KTBL18/19 S. 242, 20/21 S. 241
C194: Ackerbohnen | E194: 13.47 | F194: 13.47 | G194: 13.47 | H194: 13.45 | I194: 13.45 | J194: 13.45 | K194: 13.45 | L194: €/1000€ Versicherungssumme | P194: 16.0055 | Q194: KTBL18/19 S. 242, 20/21 S. 241
C195: Zuckerrüben | E195: 5.99 | F195: 5.99 | G195: 5.99 | H195: 5.98 | I195: 5.98 | J195: 5.98 | K195: 5.98 | L195: €/1000€ Versicherungssumme | P195: 7.1162 | Q195: KTBL18/19 S. 242, 20/21 S. 241
C196: Kartoffeln | E196: 5.99 | F196: 5.99 | G196: 5.99 | H196: 5.98 | I196: 5.98 | J196: 5.98 | K196: 5.98 | L196: €/1000€ Versicherungssumme | P196: 7.1162 | Q196: KTBL18/19 S. 242, 20/21 S. 241
C197: Körnermais | E197: 5.39 | F197: 5.39 | G197: 5.39 | H197: 5.98 | I197: 5.38 | J197: 5.38 | K197: 5.38 | L197: €/1000€ Versicherungssumme | P197: 6.4022 | Q197: KTBL18/19 S. 242, 20/21 S. 241
C198: Silomais | E198: 5.39 | F198: 5.39 | G198: 5.39 | H198: 5.98 | I198: 5.38 | J198: 5.38 | K198: 5.38 | L198: €/1000€ Versicherungssumme | P198: 6.4022 | Q198: KTBL18/19 S. 242, 20/21 S. 241
A201: Lohntrocknung: | B201: Getreide: | C201: Grundbetrag | E201: 1 | F201: 1.2 | G201: 1.73 | H201: 1.73 | I201: 1.73 | J201: 1.73 | K201: =IF($Q$8=1,AVERAGE(F201:J201),J201) -> 1.73 | L201: €/dt | M201: Trockengut | P201: =K201*(1+C$221) -> 2.0587 | Q201: LfL Bayern DB 2015; LLH FG11 Ruch 2017, KTBL 18-19 S. 224, 20/21 S.223
B202: für jedes weitere % Wasserentzug | E202: 0.46 | F202: 0.46 | G202: 0.27 | H202: 0.27 | I202: 0.27 | J202: 0.27 | K202: 0.27 | L202: €/dt | M202: Trockengut | P202: 0.3213 | Q202: LfL Bayern DB 2015; LLH FG11 Ruch 2017, KTBL 18-19 S. 224, 20/21 S.223
B203: Wasserentzug von 18% auf 14% Kornfeuchte | E203: 4 | F203: 4 | G203: 4 | H203: 4 | I203: 4 | J203: 4 | K203: 4 | L203: % Wasserentzug | Q203: LfL Bayern DB 2015; LLH FG11 Ruch 2017
B204: Häufigkeit der Trocknung | E204: 3 | F204: 3 | G204: 3 | H204: 3 | I204: 3 | J204: 3 | K204: 3 | L204: Jahre | Q204: LfL Bayern DB 2015; LLH FG11 Ruch 2017
B206: Raps: | C206: Grundbetrag | E206: 1.1 | F206: 1.25 | G206: 1.14 | H206: 1.14 | I206: 1.14 | J206: 1.14 | K206: 1.14 | L206: €/dt | M206: Trockengut | P206: 1.3566 | Q206: LfL Bayern DB 2015; LLH FG11 Ruch 2017, KTBL 18-19 S. 224, 20/21 S. 223
B207: für jedes weitere % Wasserentzug | E207: 0.47 | F207: 0.47 | G207: 0.22 | H207: 0.22 | I207: 0.22 | J207: 0.22 | K207: 0.22 | L207: €/dt | M207: Trockengut | P207: 0.2618 | Q207: LfL Bayern DB 2015; LLH FG11 Ruch 2017, KTBL 18-19 S. 224, 20/21 S. 223
B208: Wasserentzug von 12% auf 9% Kornfeuchte | E208: 3 | F208: 3 | G208: 3 | H208: 3 | I208: 3 | J208: 3 | K208: 3 | L208: % Wasserentzug | Q208: LfL Bayern DB 2015; LLH FG11 Ruch 2017
B209: Häufigkeit der Trocknung | E209: 3 | F209: 3 | G209: 3 | H209: 3 | I209: 3 | J209: 3 | K209: 3 | L209: Jahre | Q209: LfL Bayern DB 2015; LLH FG11 Ruch 2017,
B211: Erbsen/Ackerbohnen: Grundbetrag | E211: 0.75 | F211: 0.8 | G211: 1.73 | H211: 1.73 | I211: 1.73 | J211: 1.73 | K211: 1.73 | L211: €/dt | M211: Trockengut | P211: 2.0587 | Q211: LWK Niedersachsen 2016, DB Öko, KTBL 18-19 S. 224, 20/21 S.223
B212: Je dt Trockengut für die Trocknung von | E212: 20 | F212: 20 | G212: 0.27 | H212: 0.27 | I212: 0.27 | J212: 0.27 | K212: 0.27 | L212: % | M212: auf 14 | N212: % Kornfeuchte | Q212: LWK Niedersachsen 2016, DB Öko, KTBL 18-19 S. 224, 20/21 S.223
B213: Verbrauch | E213: 1.1 | F213: 1.1 | G213: 1.1 | H213: 1.1 | I213: 1.1 | J213: 1.1 | K213: 1.1 | L213: Liter/dt | Q213: LWK Niedersachsen 2016, DB Öko
B214: Häufigkeit der Trocknung | E214: 1.75 | F214: 1.75 | G214: 1.75 | H214: 1.75 | I214: 1.75 | J214: 1.75 | K214: 1.75 | L214: Jahre | Q214: LWK Niedersachsen 2016, DB Öko
B216: Körnermais: | E216: 3.55 | F216: 3.75 | G216: 3.75 | H216: 1.5 | I216: 1.5 | J216: 1.5 | K216: 1.5 | L216: €/dt | M216: feuchte Ware | P216: =K216*(1+C$221) -> 1.785 | Q216: Trocknungstabelle RWZ 2013 bis 2018; KTBL 20/21 S. 223
B217: Umrechnungsfaktor auf feuchte Ware | E217: 0.081 | F217: 0.081 | G217: 0.081 | H217: 0.081 | I217: 0.081 | J217: 0.08 | K217: 0.08 | Q217: Trocknungstabelle RWZ 2013 bis 2018; KTBL 20/21 S. 223
A219: Entspelzen / Reinigen: | E219: 12 | F219: 13 | G219: 13 | H219: 13 | I219: 13 | J219: 13 | K219: =IF($Q$8=1,AVERAGE(F219:J219),J219) -> 13 | L219: €/dt | P219: =K219*(1+C$221) -> 15.47 | Q219: KTBL 16/17; Eigene Ermittlung 2017/18 übernommen aus Vorjahr
B221: Umsatzsteuer: | C221: =IF(Hauptmenü!$F$21="Regelbesteuerung","0%",D221) -> 0.19 | D221: 0.19
A223: Betriebsstoffe: | B223: Heizwert: 9,88 kWh/l | C223: Heizöl | E223: 0.54 | F223: 0.57 | G223: 0.68 | H223: 0.53 | I223: 0.68 | J223: 0.94 | K223: =IF($Q$8=1,AVERAGE(F223:J223),J223) -> 0.94 | L223: €/Liter | P223: =K223*(1+$C$221) -> 1.1186 | Q223: CASH-Preise 2013 bis 2018, https://www.tanke-guenstig.de/Heizoelpreise; Marktdaten und Eigene Annahme
C224: Diesel | E224: 0.89 | F224: 0.94 | G224: 1.04 | H224: 0.93 | I224: 0.91 | J224: 1.6 | K224: 1.6 | L224: €/l | M224: ./. GÖV | N224: 0.22 | O224: =K224-N224 -> 1.38 | P224: =O224*(1+$C$221) -> 1.6422 | Q224: CASH-Preise 2013 bis 2018; Eigenen Annahme; nach Statistica 21/22; Marktdaten
C225: Betriebsöl | E225: 3 | F225: 3 | G225: 3 | H225: 3 | I225: 3 | J225: 3.4 | K225: 3.4 | L225: €/l | P225: =K225*(1+$C$221) -> 4.046 | Q225: KTBL 13/14; KTBL 15/16; KTBL 17/18
C226: Strom | E226: 0.28 | F226: 0.29 | G226: 0.29 | H226: 0.29 | I226: 0.29 | J226: 0.31 | K226: 0.31 | L226: €/kwh | P226: =K226*(1+$C$221) -> 0.3689 | Q226: KTBL 16/17; Eigene Ermittlung 2017/18, https://www.finanztip.de/stromvergleich/strompreis/ 18-19
C227: Wasser, öffentl. Leitung | E227: 2.9 | F227: 3 | G227: 3.2 | H227: 3.2 | I227: 3.2 | J227: 3.2 | K227: 3.2 | L227: €/m³ | P227: =K227*(1+$C$221) -> 3.808 | Q227: KTBL 16/17; Eigene Ermittlung 2017/18, 18-19 https://www.statistik-bw.de/Umwelt/Wasser/Trink-Abwasserpreise.jsp
C228: Wasser, eigener Brunnen | E228: 0.75 | F228: 0.8 | G228: 0.8 | H228: 0.8 | I228: 0.8 | J228: 0.8 | K228: 0.8 | L228: €/m³ | P228: =K228*(1+$C$221) -> 0.952 | Q228: KTBL 16/17; Eigene Ermittlung 2017/18 für 2018-19 übernommen
... 8 more rows

Sheet Wirtschaftsdünger
B3: Landesbetrieb Landwirtschaft Hessen
A4: Wert des organischen Düngers | N4: =IF(Stammdatenblatt!Q8=2,Stammdatenblatt!S3,Stammdatenblatt!S2) -> Letztes (aktuelles) WJ.
A6: Gülleanfall | B6: TS % | C6: Gülleanfall | D6: Gülle/E. | E6: Nährstoffgehalt kg / m³ | I6: Nährstoffgehalt in kg / E. | M6: Wert des organischen Düngers
A7: je Einheit bzw. Tierplatz | C7: m³/Monat | D7: m³ u. TP | E7: N | F7: P2O5 | G7: K2O | H7: CaO | I7: N* | J7: P2O5 | K7: K2O | L7: CaO | M7: N* | N7: P2O5 | O7: K2O | P7: CaO | Q7: Summe
A8: Rinder
A9: Milchkuh | B9: 7.5 | C9: 1.67 | D9: =+C9*12 -> 20.04 | E9: 5 | F9: 2 | G9: 6 | H9: 2 | I9: =+D9*E9*$E$28 -> 50.1 | J9: =+D9*F9 -> 40.08 | K9: =+G9*D9 -> 120.24 | L9: =+H9*D9 -> 40.08 | M9: =+I9*Stammdatenblatt!$P$130 -> 116.2422893 | N9: =+J9*Stammdatenblatt!$P$131 -> 49.1517147 | O9: 85.2 | P9: =+L9*Stammdatenblatt!$P$133 -> 1.902508533 | Q9: =SUM(M9:P9) -> 252.4965125
A10: Mutterkuh | B10: 7.5 | C10: 1.5 | D10: =C10*12 -> 18 | E10: 5 | F10: 2 | G10: 6 | H10: 2 | I10: 45 | J10: 36 | K10: 108 | L10: 36 | M10: =+I10*Stammdatenblatt!$P$130 -> 104.4092418 | N10: =+J10*Stammdatenblatt!$P$131 -> 44.14824674 | O10: 76.5 | P10: =+L10*Stammdatenblatt!$P$133 -> 1.70884 | Q10: =SUM(M10:P10) -> 226.7663286
A11: Aufzuchtkalb (4 Monate) | B11: 7.5 | C11: 0.25 | D11: =+C11*'Aufzuchtfärse, Kalb'!$D$7 -> 1 | E11: 5 | F11: 2 | G11: 6 | H11: 2 | I11: 2.5 | J11: 2 | K11: 6 | L11: 2 | M11: =+I11*Stammdatenblatt!$P$130 -> 5.800513436 | N11: =+J11*Stammdatenblatt!$P$131 -> 2.452680374 | O11: 4.3 | P11: =+L11*Stammdatenblatt!$P$133 -> 0.09493555556 | Q11: =SUM(M11:P11) -> 12.64812937
A12: Zuchtfärsen 27 Mo | B12: 7.5 | C12: 0.78 | D12: =+C12*'Aufzuchtfärse, Kalb'!$J$6 -> 21.06 | E12: 5 | F12: 2 | G12: 6 | H12: 2 | I12: 52.65 | J12: 42.12 | K12: 126.36 | L12: 42.12 | M12: =+I12*Stammdatenblatt!$P$130 -> 122.158813 | N12: =+J12*Stammdatenblatt!$P$131 -> 51.65344868 | O12: 89.5 | P12: =+L12*Stammdatenblatt!$P$133 -> 1.9993428 | Q12: =SUM(M12:P12) -> 265.3116044
A13: Zuchtfärsen 30 Mo | B13: 7.5 | C13: 0.78 | D13: =+C13*'Aufzuchtfärse, Kalb'!$H$6 -> 23.4 | E13: 5 | F13: 2 | G13: 6 | H13: 2 | I13: 58.5 | J13: 46.8 | K13: =+G13*D13 -> 140.4 | L13: 46.8 | M13: =+I13*Stammdatenblatt!$P$130 -> 135.7320144 | N13: =+J13*Stammdatenblatt!$P$131 -> 57.39272076 | O13: 99.5 | P13: =+L13*Stammdatenblatt!$P$133 -> 2.221492 | Q13: =SUM(M13:P13) -> 294.8462272
A14: Mastfärse | B14: 7.5 | C14: 0.78 | D14: =+C14*'Mutterkühe, Mastfärse'!$F$8 -> 16.38 | E14: 5 | F14: 2 | G14: 6 | H14: 2 | I14: 40.95 | J14: 32.76 | K14: 98.28 | L14: 32.76 | M14: =+I14*Stammdatenblatt!$P$130 -> 95.01241008 | N14: =+J14*Stammdatenblatt!$P$131 -> 40.17490453 | O14: 69.6 | P14: =+L14*Stammdatenblatt!$P$133 -> 1.5550444 | Q14: 206.342359
A15: Mastbullen (1300 g tägl. Zun.) | B15: 7.5 | C15: 0.56 | D15: =+C15*'Bullen- und Ochsenmast'!$E$9 -> 10.30060606 | E15: 5 | F15: 2 | G15: 6 | H15: 2 | I15: 25.75151515 | J15: 20.60121212 | K15: 61.80363636 | L15: 20.60121212 | M15: =+I15*Stammdatenblatt!$P$130 -> 59.74880385 | N15: =+J15*Stammdatenblatt!$P$131 -> 25.26409433 | O15: 43.8 | P15: =+L15*Stammdatenblatt!$P$133 -> 0.9778937589 | Q15: 129.7907919
A16: Mastbullen (1000 g tägl. Zun.) | B16: 7.5 | C16: 0.56 | D16: =+C16*'Bullen- und Ochsenmast'!$D$9 -> 11.10666667 | E16: 5 | F16: 2 | G16: 6 | H16: 2 | I16: 27.76666667 | J16: 22.21333333 | K16: 66.64 | L16: 22.21333333 | M16: =+I16*Stammdatenblatt!$P$130 -> 64.42436923 | N16: =+J16*Stammdatenblatt!$P$131 -> 27.24110336 | O16: 47.2 | P16: =+L16*Stammdatenblatt!$P$133 -> 1.05441757 | Q16: 139.9198902
A17: Ochsen (23 Monate) | B17: 7.5 | C17: 0.78 | D17: =+C17*'Bullen- und Ochsenmast'!$G$9 -> 19.5325 | E17: 5 | F17: 2 | G17: 6 | H17: 2 | I17: 48.83125 | J17: 39.065 | K17: 117.195 | L17: 39.065 | M17: =+I17*Stammdatenblatt!$P$130 -> 113.2985287 | N17: =+J17*Stammdatenblatt!$P$131 -> 47.90697941 | O17: 83 | P17: =+L17*Stammdatenblatt!$P$133 -> 1.854328739 | Q17: 246.0598368
A18: Schweine
A19: Zuchtsau mit Ferkeln | B19: 7.5 | C19: 0.5 | D19: =+C19*12 -> 6 | E19: 6 | F19: 3.5 | G19: 3.5 | H19: 3 | I19: =+D19*E19*$E$28 -> 18 | J19: =+D19*F19 -> 21 | K19: =+G19*D19 -> 21 | L19: =+H19*D19 -> 18 | M19: =+I19*Stammdatenblatt!$P$130 -> 41.76369674 | N19: =+J19*Stammdatenblatt!$P$131 -> 25.75314393 | O19: 14.9 | P19: =+L19*Stammdatenblatt!$P$133 -> 0.85442 | Q19: =SUM(M19:P19) -> 83.27126067
A20: Zuchtsau ohne Ferkel | B20: 7.5 | C20: =D20/12 -> 0.4166666667 | D20: 5 | E20: 6 | F20: 3.5 | G20: 3.5 | H20: 3 | I20: =+D20*E20*$E$28 -> 15 | J20: =+D20*F20 -> 17.5 | K20: =+G20*D20 -> 17.5 | L20: =+H20*D20 -> 15 | M20: =+I20*Stammdatenblatt!$P$130 -> 34.80308062 | N20: =+J20*Stammdatenblatt!$P$131 -> 21.46095328 | O20: 12.4 | P20: =+L20*Stammdatenblatt!$P$133 -> 0.7120166667 | Q20: =SUM(M20:P20) -> 69.37605056
A21: sep. Ferkelaufzucht | B21: 7.5 | C21: 0.05 | D21: =C21*2 -> 0.1 | E21: 6 | F21: 3.5 | G21: 3.5 | H21: 3 | I21: =+D21*E21*$E$28 -> 0.3 | J21: =+D21*F21 -> 0.35 | K21: =+G21*D21 -> 0.35 | L21: =+H21*D21 -> 0.3 | M21: =+I21*Stammdatenblatt!$P$130 -> 0.6960616123 | N21: =+J21*Stammdatenblatt!$P$131 -> 0.4292190655 | O21: =+K21*Stammdatenblatt!$P$132 -> 0.355795125 | P21: =+L21*Stammdatenblatt!$P$133 -> 0.01424033333 | Q21: =SUM(M21:P21) -> 1.495316136
A22: Mastschwein | B22: 7.5 | C22: 0.125 | D22: =+C22*3.8 -> 0.475 | E22: 6 | F22: 3.5 | G22: 3.5 | H22: 3 | I22: =+D22*E22*$E$28 -> 1.425 | J22: =+D22*F22 -> 1.6625 | K22: =+G22*D22 -> 1.6625 | L22: =+H22*D22 -> 1.425 | M22: =+I22*Stammdatenblatt!$P$130 -> 3.306292659 | N22: =+J22*Stammdatenblatt!$P$131 -> 2.038790561 | O22: 1.18 | P22: =+L22*Stammdatenblatt!$P$133 -> 0.06764158333 | Q22: 6.592724803
A23: Mutterschafe | I23: 6.3 | J23: 2.9 | K23: 8.4 | L23: =+H23*D23 -> 0 | M23: =+I23*Stammdatenblatt!$P$130 -> 14.61729386 | N23: =+J23*Stammdatenblatt!$P$131 -> 3.556386543 | O23: 5.95 | P23: =+L23*Stammdatenblatt!$P$133 -> 0 | Q23: 24.1236804
A24: Pferde | I24: 68 | J24: 32 | K24: 61 | L24: 0 | M24: =+I24*Stammdatenblatt!$P$130 -> 157.7739655 | N24: =+J24*Stammdatenblatt!$P$131 -> 39.24288599 | O24: 43.2 | P24: =+L24*Stammdatenblatt!$P$133 -> 0 | Q24: 240.2168514
A26: Masthähnchen | B26: 75 | C26: 2.08 | D26: 11.796 | E26: 2.5 | F26: 1.6 | G26: 2.3 | H26: 8 | I26: =+D26*E26*$E$28/588 -> 0.02507653061 | J26: =+D26*F26/588 -> 0.03209795918 | K26: =+G26*D26/588 -> 0.04614081633 | L26: =+H26*D26/588 -> 0.1604897959 | M26: =+I26*Stammdatenblatt!$P$130 -> 0.0581827011 | N26: =+J26*Stammdatenblatt!$P$131 -> 0.03936301727 | O26: 0.35 | P26: =+L26*Stammdatenblatt!$P$133 -> 0.007618093968 | Q26: =SUM(M26:P26) -> 0.4551638123
A27: Legehennen | B27: 45 | C27: =D27/12 -> 1.833 | D27: 21.996 | E27: 3.6 | F27: 3.7 | G27: 2.8 | H27: 8 | I27: =+D27*E27*$E$28/294 -> 0.1346693878 | J27: =+D27*F27/294 -> 0.2768204082 | K27: =+G27*D27/294 -> 0.2094857143 | L27: =+H27*D27/294 -> 0.5985306122 | M27: =+I27*Stammdatenblatt!$P$130 -> 0.3124606372 | N27: =+J27*Stammdatenblatt!$P$131 -> 0.3394759912 | O27: 0.35 | P27: =+L27*Stammdatenblatt!$P$133 -> 0.0284109181 | Q27: 1.030347546
D28: * Beim Stickstoff wird eine Ausnutzung von: | E28: 0.5 | F28: berücksichtigt.

Sheet Lagerung (hidden)
A5: Ernteertrag | B5: =[1]Strohbergeverfahren!D9 -> 30 | C5: dt/ha
A6: Pressgewicht | B6: 0.168
A7: Rohstoffkosten | B7: =[1]Strohbergeverfahren!D22/[1]Strohbergeverfahren!D9 -> 2.293034433 | I7: 0.04
A9: Lagerungskosten | F9: Nutzung | G9: Festkosten | I9: v. Kosten | K9: Gesamtk. | L9: €/dt | M9: Verlust | P9: Gesamtk | Q9: Ernteertrag pro dt/ha
B10: € | C10: €/m² | D10: Nutzvolumen m³ | E10: Nutzv. in dt | F10: Jahre | G10: €/Jahr | H10: €/m³ | I10: €/J | N10: Jahr | O10: dt | Q10: =[1]Strohbergeverfahren!D9 -> 30 | R10: =[1]Strohbergeverfahren!E9 -> 42 | S10: =[1]Strohbergeverfahren!F9 -> 49.5
A11: Feldmiete | B11: 0 | M11: 0.15 | N11: =SUM($B$5*M11)*$B$7 -> 10.31865495 | O11: =SUM(N11)/($B$5-($B$5*M11*M11)) -> 0.3518722915 | P11: =SUM(L11+O11) -> 0.3518722915 | Q11: =SUM(P11*$B$5) -> 10.55616875 | R11: =Q23 -> 14.86518356 | S11: =Q35 -> 17.55831782
A12: Altgeb. 200m² | B12: 30000 | C12: =SUM(B12/200) -> 150 | D12: =20*10*5 -> 1000 | E12: =SUM(D12*$B$6)*10 -> 1680 | F12: 22 | G12: =SUM(B12/F12) -> 1363.636364 | H12: =SUM(G12/D12) -> 1.363636364 | I12: =SUM(B12*$I$7) -> 1200 | J12: =SUM(I12/F12) -> 54.54545455 | K12: =SUM(G12+I12) -> 2563.636364 | L12: =SUM(K12/E12) -> 1.525974026 | M12: 0.03 | N12: =SUM($B$5*M12)*$B$7 -> 2.06373099 | O12: =SUM(N12)/($B$5-($B$5*M12*M12)) -> 0.06885300069 | P12: =SUM(L12+O12) -> 1.594827027 | Q12: =SUM(P12*$B$5) -> 47.8448108 | R12: =Q24 -> 66.99967036 | S12: =Q36 -> 78.94393782
A13: Halle 450m² | B13: 110000 | C13: =SUM(B13/450) -> 244.4444444 | D13: =30*15*5 -> 2250 | E13: =SUM(D13*$B$6)*10 -> 3780 | F13: 35 | G13: =SUM(B13/F13) -> 3142.857143 | H13: =SUM(G13/D13) -> 1.396825397 | I13: =SUM(B13*$I$7) -> 4400 | J13: =SUM(I13/F13) -> 125.7142857 | K13: =SUM(G13+I13) -> 7542.857143 | L13: =SUM(K13/E13) -> 1.995464853 | M13: 0.03 | N13: =SUM($B$5*M13)*$B$7 -> 2.06373099 | O13: =SUM(N13)/($B$5-($B$5*M13*M13)) -> 0.06885300069 | P13: =SUM(L13+O13) -> 2.064317853 | Q13: =SUM(P13*$B$5) -> 61.9295356 | R13: =Q25 -> 86.71828508 | S13: =Q37 -> 102.1837337
A14: Halle 840m² | B14: 230000 | C14: =SUM(B14/840) -> 273.8095238 | D14: =42*20*5 -> 4200 | E14: =SUM(D14*$B$6)*10 -> 7056 | F14: 35 | G14: =SUM(B14/F14) -> 6571.428571 | H14: =SUM(G14/D14) -> 1.56462585 | I14: =SUM(B14*$I$7) -> 9200 | J14: =SUM(I14/F14) -> 262.8571429 | K14: =SUM(G14+I14) -> 15771.42857 | L14: =SUM(K14/E14) -> 2.235179786 | M14: 0.03 | N14: =SUM($B$5*M14)*$B$7 -> 2.06373099 | O14: =SUM(N14)/($B$5-($B$5*M14*M14)) -> 0.06885300069 | P14: =SUM(L14+O14) -> 2.304032787 | Q14: =SUM(P14*$B$5) -> 69.12098361 | R14: =Q26 -> 96.78631229 | S14: =Q38 -> 114.049623
A17: Ernteertrag | B17: =[1]Strohbergeverfahren!E9 -> 42 | C17: dt/ha
A18: Pressgewicht | B18: 0.168
A19: Rohstoffkosten | B19: =SUM([1]Strohbergeverfahren!E22/[1]Strohbergeverfahren!E9) -> 2.306463004 | I19: 0.04
A21: Lagerungskosten | F21: Nutzung | G21: Festkosten | I21: v. Kosten | K21: Gesamtk. | L21: €/dt | M21: Verlust | P21: Gesamtk | Q21: pro ha
B22: € | C22: €/m² | D22: Nutzvolumen m³ | E22: Nutzv. in dt | F22: Jahre | G22: €/Jahr | H22: €/m³ | I22: €/J | N22: Jahr | O22: dt
A23: Feldmiete | B23: 0 | M23: 0.15 | N23: =SUM($B$17*M23)*$B$19 -> 14.53071693 | O23: =SUM(N23)/($B$17-($B$17*M23*M23)) -> 0.3539329419 | P23: =SUM(L23+O23) -> 0.3539329419 | Q23: =SUM(P23*$B$17) -> 14.86518356
A24: Altgeb. 200m² | B24: 30000 | C24: =SUM(B24/200) -> 150 | D24: =20*10*5 -> 1000 | E24: =SUM(D24*$B$6)*10 -> 1680 | F24: 22 | G24: =SUM(B24/F24) -> 1363.636364 | H24: =SUM(G24/D24) -> 1.363636364 | I24: =SUM(B24*$I$7) -> 1200 | J24: =SUM(I24/F24) -> 54.54545455 | K24: =SUM(G24+I24) -> 2563.636364 | L24: =SUM(K24/E24) -> 1.525974026 | M24: 0.03 | N24: =SUM($B$17*M24)*$B$19 -> 2.906143386 | O24: =SUM(N24)/($B$17-($B$17*M24*M24)) -> 0.06925622073 | P24: =SUM(L24+O24) -> 1.595230247 | Q24: =SUM(P24*$B$17) -> 66.99967036
A25: Halle 450m² | B25: 110000 | C25: =SUM(B25/450) -> 244.4444444 | D25: =30*15*5 -> 2250 | E25: =SUM(D25*$B$6)*10 -> 3780 | F25: 35 | G25: =SUM(B25/F25) -> 3142.857143 | H25: =SUM(G25/D25) -> 1.396825397 | I25: =SUM(B25*$I$7) -> 4400 | J25: =SUM(I25/F25) -> 125.7142857 | K25: =SUM(G25+I25) -> 7542.857143 | L25: =SUM(K25/E25) -> 1.995464853 | M25: 0.03 | N25: =SUM($B$17*M25)*$B$19 -> 2.906143386 | O25: =SUM(N25)/($B$17-($B$17*M25*M25)) -> 0.06925622073 | P25: =SUM(L25+O25) -> 2.064721073 | Q25: =SUM(P25*$B$17) -> 86.71828508
A26: Halle 840m² | B26: 230000 | C26: =SUM(B26/840) -> 273.8095238 | D26: =42*20*5 -> 4200 | E26: =SUM(D26*$B$6)*10 -> 7056 | F26: 35 | G26: =SUM(B26/F26) -> 6571.428571 | H26: =SUM(G26/D26) -> 1.56462585 | I26: =SUM(B26*$I$7) -> 9200 | J26: =SUM(I26/F26) -> 262.8571429 | K26: =SUM(G26+I26) -> 15771.42857 | L26: =SUM(K26/E26) -> 2.235179786 | M26: 0.03 | N26: =SUM($B$17*M26)*$B$19 -> 2.906143386 | O26: =SUM(N26)/($B$17-($B$17*M26*M26)) -> 0.06925622073 | P26: =SUM(L26+O26) -> 2.304436007 | Q26: =SUM(P26*$B$17) -> 96.78631229
A29: Ernteertrag | B29: =[1]Strohbergeverfahren!F9 -> 49.5 | C29: dt/ha
A30: Pressgewicht | B30: 0.168
A31: Rohstoffkosten | B31: =[1]Strohbergeverfahren!F22/[1]Strohbergeverfahren!F9 -> 2.311549584 | I31: 0.04
A33: Lagerungskosten | F33: Nutzung | G33: Festkosten | I33: v. Kosten | K33: Gesamtk. | L33: €/dt | M33: Verlust | P33: Gesamtk | Q33: pro ha
B34: € | C34: €/m² | D34: Nutzvolumen m³ | E34: Nutzv. in dt | F34: Jahre | G34: €/Jahr | H34: €/m³ | I34: €/J | N34: Jahr | O34: dt
A35: Feldmiete | B35: 0 | M35: 0.15 | N35: =SUM($B$29*M35)*$B$31 -> 17.16325566 | O35: =SUM(N35)/($B$29-($B$29*M35*M35)) -> 0.3547134912 | P35: =SUM(L35+O35) -> 0.3547134912 | Q35: =SUM(P35*$B$29) -> 17.55831782
A36: Altgebäude 200m² | B36: 30000 | C36: =SUM(B36/200) -> 150 | D36: =20*10*5 -> 1000 | E36: =SUM(D36*$B$6)*10 -> 1680 | F36: 22 | G36: =SUM(B36/F36) -> 1363.636364 | H36: =SUM(G36/D36) -> 1.363636364 | I36: =SUM(B36*$I$7) -> 1200 | J36: =SUM(I36/F36) -> 54.54545455 | K36: =SUM(G36+I36) -> 2563.636364 | L36: =SUM(K36/E36) -> 1.525974026 | M36: 0.03 | N36: =SUM($B$29*M36)*$B$7 -> 3.405156133 | O36: =SUM(N36)/($B$29-($B$29*M36*M36)) -> 0.06885300069 | P36: =SUM(L36+O36) -> 1.594827027 | Q36: =SUM(P36*$B$29) -> 78.94393782
A37: Halle 450m² | B37: 110000 | C37: =SUM(B37/450) -> 244.4444444 | D37: =30*15*5 -> 2250 | E37: =SUM(D37*$B$6)*10 -> 3780 | F37: 35 | G37: =SUM(B37/F37) -> 3142.857143 | H37: =SUM(G37/D37) -> 1.396825397 | I37: =SUM(B37*$I$7) -> 4400 | J37: =SUM(I37/F37) -> 125.7142857 | K37: =SUM(G37+I37) -> 7542.857143 | L37: =SUM(K37/E37) -> 1.995464853 | M37: 0.03 | N37: =SUM($B$5*M37)*$B$7 -> 2.06373099 | O37: =SUM(N37)/($B$5-($B$5*M37*M37)) -> 0.06885300069 | P37: =SUM(L37+O37) -> 2.064317853 | Q37: =SUM(P37*$B$29) -> 102.1837337
A38: Halle 840m² | B38: 230000 | C38: =SUM(B38/840) -> 273.8095238 | D38: =42*20*5 -> 4200 | E38: =SUM(D38*$B$6)*10 -> 7056 | F38: 35 | G38: =SUM(B38/F38) -> 6571.428571 | H38: =SUM(G38/D38) -> 1.56462585 | I38: =SUM(B38*$I$7) -> 9200 | J38: =SUM(I38/F38) -> 262.8571429 | K38: =SUM(G38+I38) -> 15771.42857 | L38: =SUM(K38/E38) -> 2.235179786 | M38: 0.03 | N38: =SUM($B$5*M38)*$B$7 -> 2.06373099 | O38: =SUM(N38)/($B$5-($B$5*M38*M38)) -> 0.06885300069 | P38: =SUM(L38+O38) -> 2.304032787 | Q38: =SUM(P38*$B$29) -> 114.049623

Sheet Daten (hidden)
B8: Ø | C8: Volumen | D8: Gewicht | E8: Raumgew.
A9: RB Ø 1,2m | B9: 1.2 | C9: =SUM(B9*B9*0.785)*1.2 -> 1.35648 | D9: 180 | E9: =SUM(D9/C9/1000) -> 0.1326963907
A10: RB Ø 1,2m mit Schneideinr. | B10: 1.2 | C10: 1.35648 | D10: 190 | E10: 0.1400684124
A11: RB Ø 1,5m | B11: 1.5 | C11: 2.1195 | D11: 240 | E11: 0.1132342534
A12: RB Ø 1,5m mit Schneideinr. | B12: 1.5 | C12: 2.1195 | D12: 255 | E12: 0.1203113942
A13: RB Ø 1,8m | B13: 1.8 | C13: 3.05208 | D13: 300 | E13: 0.09829362271
A14: RB Ø 1,8m mit Schneideinr. | B14: 1.8 | C14: 3.05208 | D14: 320 | E14: 0.1048465309
A16: GP 0,8 x 0,8 m | B16: 1 | C16: =SUM(0.8*0.8*B16) -> 0.64 | D16: 100 | E16: =SUM(D16/C16)/1000 -> 0.15625
A17: - mit Schneideinr. | B17: 1 | C17: =SUM(0.8*0.8*B17) -> 0.64 | D17: 105 | E17: =SUM(D17/C17)/1000 -> 0.1640625
A18: GP 1,2 x 0,7 m | B18: 1 | C18: =SUM(1.2*0.7*B18) -> 0.84 | D18: 140 | E18: 0.1666666667
A19: - mit Schneideinr. | B19: 1 | C19: =SUM(1.2*0.7*B19) -> 0.84 | D19: 150 | E19: 0.1785714286
A20: GP 1,2 x 0,9 m | B20: 1 | C20: =SUM(1.2*0.9*B20) -> 1.08 | D20: 180 | E20: 0.1666666667
A21: - mit Schneideinr. | B21: 1 | C21: =SUM(1.2*0.9*B21) -> 1.08 | D21: 190 | E21: 0.1759259259
D22: Ø | E22: =SUM(E16:E21)/6 -> 0.1680238646
A23: GP 1,2 x 0,7 m - Fine Cut - | B23: 1 | C23: =SUM(1.2*0.7*B23) -> 0.84 | D23: 200 | E23: 0.2380952381
E25: RB - KTBL: | F25: 0,10 - 0,12 t/m³
A26: Rundballenpresse | B26: Ø | C26: Breite | E26: Volumen | F26: Raumgewicht | H26: Ballengewicht | J26: Info Raumgewicht
A27: RB Ø 1,2m | B27: 1.2 | C27: 1.2 | E27: =SUM(B27*B27*0.785*C27) -> 1.35648 | F27: 0.115 | H27: =SUM(E27*F27)*1000 -> 155.9952 | J27: 0,129 - 0,154 möglich | S27: 4.5
A28: RB Ø 1,2m mit Schneideinr. | B28: 1.2 | C28: 1.2 | E28: 1.35648 | F28: 0.125 | H28: 169.56 | S28: 5.3
A29: RB Ø 1,5m | B29: 1.5 | C29: 1.2 | E29: 2.1195 | F29: 0.115 | H29: 243.7425 | S29: 5.6
A30: RB Ø 1,5m mit Schneideinr. | B30: 1.5 | C30: 1.2 | E30: 2.1195 | F30: 0.125 | H30: 264.9375 | S30: 6.5
A31: RB Ø 1,8m | B31: 1.8 | C31: 1.2 | E31: 3.05208 | F31: 0.115 | H31: 350.9892 | S31: 7
A32: RB Ø 1,8m mit Schneideinr. | B32: 1.8 | C32: 1.2 | E32: 3.05208 | F32: 0.125 | H32: 381.51 | S32: 8.3
A33: Großpackenpresse | B33: Breite | C33: Höhe | D33: Länge | E33: Volumen | F33: Raumgewicht | H33: Ballengewicht | J33: Info:
A34: GP 0,8 x 0,8 m | B34: 0.8 | C34: 0.8 | D34: =[1]Strohbergeverfahren!$B$12 -> 2.44 | E34: =SUM(B34*C34*D34) -> 1.5616 | F34: 0.163 | H34: =SUM(E34*F34)*1000 -> 254.5408 | J34: Länge bis 3,2 m | R34: 2.4 | S34: =SUM(R34*D34) -> 5.856
A35: GP 0,8 x 0,8 m - mit Schneideinr. | B35: 0.8 | C35: 0.8 | D35: =[1]Strohbergeverfahren!$B$12 -> 2.44 | E35: =SUM(B35*C35*D35) -> 1.5616 | F35: 0.173 | H35: 270.1568 | R35: 2.6 | S35: 6.344
A36: GP 1,2 x 0,7 m | B36: 1.2 | C36: 0.7 | D36: =[1]Strohbergeverfahren!$B$12 -> 2.44 | E36: 2.0496 | F36: 0.163 | H36: 334.0848 | R36: 3.5 | S36: 8.54
A37: GP 1,2 x 0,7 m - mit Schneideinr. | B37: 1.2 | C37: 0.7 | D37: =[1]Strohbergeverfahren!$B$12 -> 2.44 | E37: 2.0496 | F37: 0.173 | H37: 354.5808 | R37: 3.7 | S37: 9.028
A38: GP 1,2 x 0,9 m | B38: 1.2 | C38: 0.9 | D38: =[1]Strohbergeverfahren!$B$12 -> 2.44 | E38: 2.6352 | F38: 0.163 | H38: 429.5376 | R38: 4.3 | S38: 10.492
A39: GP 1,2 x 0,9 m - mit Schneideinr. | B39: 1.2 | C39: 0.9 | D39: =[1]Strohbergeverfahren!$B$12 -> 2.44 | E39: 2.6352 | F39: 0.173 | H39: 455.8896 | R39: 4.7 | S39: 11.468
A40: GP 1,2 x 0,7 m - Fine Cut / 49 Messer- | B40: 1.2 | C40: 0.7 | D40: =[1]Strohbergeverfahren!$B$12 -> 2.44 | E40: 2.0496 | F40: 0.238 | H40: 487.8048 | R40: 5.7 | S40: 13.908
E41: GP - KTBL: | F41: 0,12 - 0,14 t/m³
D44: Transportkosten über Ballengewicht und Transportentfernung
D45: Schlepper | E45: Diesel | F45: Fahrer
A46: Ballen laden mit Schlepper u. Zange | B46: 0.5 | C46: h/ha | D46: 19 | E46: =12*1.2 -> 14.4 | F46: 20 | G46: =SUM(D46:F46) -> 53.4 | H46: =SUM(G46*B46) -> 26.7 | I46: €/ha
A47: Ballen abladen mit Schlepper u. Zange | B47: 0.5 | C47: h/ha | D47: 19 | E47: =12*1.2 -> 14.4 | F47: 20 | G47: =SUM(D47:F47) -> 53.4 | H47: =SUM(G47*B47) -> 26.7 | I47: €/ha
A48: Laden und Abladen | H48: =SUM(H46:H47) -> 53.4 | I48: €/ha | J48: =SUM(H48/40) -> 1.335 | K48: €/dt
C49: B.wagen | D49: Schlepper | E49: Diesel | F49: Fahrer
A50: Transport | C50: 19 | D50: 26 | E50: =1.4*18 -> 25.2 | F50: 20 | G50: =SUM(C50:F50) -> 90.2
A51: Nutzlast | B51: 10 | C51: t | G51: =SUM(G50/B51) -> 9.02 | H51: €/h u. t
A52: Entfernung | B52: =[1]Strohbergeverfahren!B27 -> 5 | C52: km | G52: =SUM(G51/B53) -> 0.6013333333 | H52: €/km u t
A53: Ø Geschwindigkeit | B53: =[1]Strohbergeverfahren!B28 -> 15 | C53: km/h | G53: =SUM(G52*B52) -> 3.006666667 | H53: €/t
G54: =G53/10 -> 0.3006666667 | H54: €/dt | J54: =SUM(G54+J48) -> 1.635666667 | K54: €/dt

Sheet Strohbergung-GP
B3: Landesbetrieb Landwirtschaft Hessen
A4: =IF([2]Stammdatenblatt!G6+[2]Stammdatenblatt!D77+[2]Stammdatenblatt!D112+[2]Stammdatenblatt!B129+[2]Stammdatenblatt!D140+[2]Stammdatenblatt!C183+[2]Stammdatenblatt!C221+[2]Stammdatenblatt!C239=0,"Produktionsverfahren wurden netto gerechnet", "Produktionsverfahren wurden brutto gerechnet") -> Produktionsverfahren wurden netto gerechnet | F4: =Wirtschaftsdünger!N4 -> Letztes (aktuelles) WJ.
G5: eigene
A6: Strohbergung | G6: Werte
A7: Menge Korn (Ernteprodukt) | C7: dt/ha | D7: 55 | E7: 70 | F7: 90 | G7: 0
A8: Korn-Stroh-Verhältnis 1: | D8: =IF(D7<75,0.8,0.75) -> 0.8 | E8: =IF(E7<75,0.8,0.75) -> 0.8 | F8: =IF(F7<75,0.8,0.75) -> 0.75 | G8: 0
A9: Menge Stroh abzüglich | B9: 0.2 | C9: dt/ha | D9: =+D7*(D8-$B$9) -> 33 | E9: =+E7*(E8-$B$9) -> 42 | F9: =+F7*(F8-$B$9) -> 49.5 | G9: =+G7*(G8-$B$9) -> 0
A10: Auswahl - Strohernteverfahren | B10: Ballengewicht
A11: GP Presse 0,8 m x 0,8 m | B11: =0.8*0.8*B12*0.163*1000 -> 250.368 | C11: Ballen/ha | D11: =SUM(D9/$B$11)*100 -> 13.18059816 | E11: =SUM(E9/$B$11)*100 -> 16.77530675 | F11: =SUM(F9/$B$11)*100 -> 19.77089724 | G11: =SUM(G9/$B$11)*100 -> 0
A12: -Ballenlänge nur GP - | B12: 2.4
A13: Preis Stroh (Marktinfo APH Feldfrüchte) | C13: €/dt | D13: =Stammdatenblatt!P169 -> 20.6831 | E13: =Stammdatenblatt!P169 -> 20.6831 | F13: =Stammdatenblatt!P169 -> 20.6831 | G13: 0
A14: Erlös Stroh | C14: €/ha | D14: =SUM(D9*D13) -> 682.5423 | E14: =E9*E13 -> 868.6902 | F14: =F9*F13 -> 1023.81345 | G14: =G9*G13 -> 0
A15: Marktleistung | C15: €/ha | D15: =SUM(D14:D14) -> 682.5423 | E15: =SUM(E14:E14) -> 868.6902 | F15: =SUM(F14:F14) -> 1023.81345 | G15: =SUM(G14:G14) -> 0
A17: Nährstoffkosten*
A18: S Nährstoffwert | C18: €/ha | D18: =D9*(D37*$B$37+D38*$B$38+D39*$B$39+D40*$B$40+D41*$B$41+D42*$B$42) -> 112.2668143 | E18: =E9*(E37*$B$37+E38*$B$38+E39*$B$39+E40*$B$40+E41*$B$41+E42*$B$42) -> 142.8850364 | F18: =F9*(F37*$B$37+F38*$B$38+F39*$B$39+F40*$B$40+F41*$B$41+F42*$B$42) -> 168.4002215 | G18: =G9*(G37*$B$37+G38*$B$38+G39*$B$39+G40*$B$40+G41*$B$41+G42*$B$42) -> 0
A19: Humuswert | B19: 10 | C19: €/ha | D19: =+$B$19*D9/10 -> 33 | E19: =+$B$19*E9/10 -> 42 | F19: =+$B$19*F9/10 -> 49.5 | G19: =+$B$19*G9/10 -> 0
A20: Mineraldüngerausbringungskosten | B20: 1.5 | C20: €/ha | D20: =+D37*D9/$B$21*$B$20 -> 6.1875 | E20: =+E37*E9/$B$21*$B$20 -> 7.875 | F20: =+F37*F9/$B$21*$B$20 -> 9.28125 | G20: =+G37*G9/$B$21*$B$20 -> 0
A21: Strohhäcksler | B21: 4 | C21: €/ha | D21: -10 | E21: =D21 -> -10 | F21: =E21 -> -10 | G21: =F21 -> -10
A22: Wert ab Feld | C22: €/ha | D22: =SUM(D18:D21) -> 141.4543143 | E22: =SUM(E18:E21) -> 182.7600364 | F22: =SUM(F18:F21) -> 217.1814715 | G22: =SUM(G18:G21) -> -10
C23: €/Ballen | D23: =+D22/D11 -> 10.73201023 | E23: =+E22/E11 -> 10.89458686 | F23: =+F22/F11 -> 10.9849072 | G23: =+G22/G11 -> 
C24: €/dt | D24: =+D22/D9 -> 4.286494374 | E24: =+E22/E9 -> 4.351429439 | F24: =+F22/F9 -> 4.387504475 | G24: =+G22/G9 -> 
A26: Presskosten (Lohnunternehmer) | B26: 2.4 | C26: €/ha | D26: =$B$26*$B$12*D11 -> 75.9202454 | E26: =$B$26*$B$12*E11 -> 96.62576687 | F26: =$B$26*$B$12*F11 -> 113.8803681 | G26: =$B$26*$B$12*G11 -> 0
A27: Transportkosten dt/Km | B27: 10 | C27: 90 | D27: =90/10/$B$28 -> 0.6 | E27: =90/10/$B$28 -> 0.6 | F27: =90/10/$B$28 -> 0.6 | G27: =$C$27/10/$B$28 -> 0.6
A28: Ø Geschwindigkeit Km/ h | B28: 15 | C28: €/Ballen | D28: =$D$27*D9*$B$27/10/13 -> 1.523076923 | E28: =$D$27*E9*$B$27/10/13 -> 1.938461538 | F28: =$D$27*F9*$B$27/10/13 -> 2.284615385 | G28: =$D$27*G9*$B$27/10/13 -> 0
A29: Transportkosten, Laden, Abladen | B29: =1.34*D19/D11+D28 -> 4.878008123 | C29: €/ha | D29: =+$B$29*D11 -> 64.29506489 | E29: =+$B$29*E11 -> 81.83008259 | F29: =+$B$29*F11 -> 96.44259733 | G29: =+$B$29*G11 -> 0
A30: Lagerung Altgebäude 200m² | B30: 1.6 | C30: €/ha | D30: =$B$30*D9 -> 52.8 | E30: =$B$30*E9 -> 67.2 | F30: =$B$30*F9 -> 79.2 | G30: =$B$30*G9 -> 0
A31: Risikozuschlag (20% der Press-und Transportkosten) | C31: €/ha | D31: =+(D26+D29+D30)*0.2 -> 38.60306206 | E31: =+(E26+E29+E30)*0.2 -> 49.13116989 | F31: =+(F26+F29+F30)*0.2 -> 57.90459309 | G31: =+(G26+G29+G30)*0.2 -> 0
A32: Wert ab Hof | C32: €/ha | D32: =+D22+D26+D29+D30+D31 -> 373.0726867 | E32: =+E22+E26+E29+E30+E31 -> 477.5470558 | F32: =+F22+F26+F29+F30+F31 -> 564.60903 | G32: =+G22+G26+G29+G30+G31 -> -10
C33: €/Ballen | D33: =+D32/D11 -> 28.30468558 | E33: =+E32/E11 -> 28.4672622 | F33: =+F32/F11 -> 28.55758255 | G33: =+G32/G11 -> 
A34: unterstellt, dass die Kosten mind. als Leistung realisiert werden müssen. | C34: €/dt | D34: =+D32/D9 -> 11.30523293 | E34: =+E32/E9 -> 11.37016799 | F34: =+F32/F9 -> 11.40624303 | G34: =+G32/G9 -> 
A36: Nährstoffwert: | B36: €/kg: | C36: Entzogene Nährstoffe:
A37: Stickstoff | B37: =Stammdatenblatt!P130 -> 2.320205374 | C37: kg/dt Stroh | D37: 0.5 | E37: =D37 -> 0.5 | F37: 0.5 | G37: 0.5
A38: Phosphor | B38: =Stammdatenblatt!P131 -> 1.226340187 | C38: kg/dt Stroh | D38: 0.3 | E38: 0.3 | F38: 0.3 | G38: 0.3
A39: Kali | B39: =Stammdatenblatt!P132 -> 1.0165575 | C39: kg/dt Stroh | D39: 1.4 | E39: 1.4 | F39: 1.4 | G39: 1.4
A40: Kalk | B40: =Stammdatenblatt!P133 -> 0.04746777778 | C40: kg/dt Stroh | D40: 0.45 | E40: 0.45 | F40: 0.45 | G40: 0.45
A41: Magnesium | B41: =Stammdatenblatt!P134 -> 1.844103333 | C41: kg/dt Stroh | D41: 0.2 | E41: 0.2 | F41: 0.2 | G41: 0.2
A42: Schwefel | B42: =Stammdatenblatt!P135 -> 0.7582283333 | C42: kg/dt Stroh | D42: 0.08 | E42: 0.08 | F42: 0.08 | G42: 0.08
A43: * Verrechnung des Düngewertes durch Strohabfuhr inkl. Ausbringung nach ÜMV-Verrechnungssätzen

Sheet Strohbergung alt (hidden)
B3: Landesbetrieb Landwirtschaft Hessen
A4: =IF(Stammdatenblatt!G6+Stammdatenblatt!D77+Stammdatenblatt!D112+Stammdatenblatt!B129+Stammdatenblatt!D140+Stammdatenblatt!C183+Stammdatenblatt!C221+Stammdatenblatt!C239=0,"Produktionsverfahren wurden netto gerechnet", "Produktionsverfahren wurden brutto gerechnet") -> Produktionsverfahren wurden brutto gerechnet
G5: eigene
A6: Strohbergung | G6: Werte
A7: Menge Korn (Ernteprodukt) | C7: dt/ha | D7: 50 | E7: 70 | F7: 90 | G7: 0
A8: Korn-Stroh-Verhältnis 1: | D8: 0.8 | E8: 0.8 | F8: 0.7 | G8: 0
A9: Menge Stroh | C9: dt/ha | D9: =+D7*D8 -> 40 | E9: =+E7*E8 -> 56 | F9: =+F7*F8 -> 63 | G9: =+G7*G8 -> 0
A10: Anzahl Quaderballen | B10: =+Stammdatenblatt!K240*Stammdatenblatt!C240 -> 270 | C10: Stück | D10: =+D9*100/$B$10 -> 14.81481481 | E10: =+E9*100/$B$10 -> 20.74074074 | F10: =+F9*100/$B$10 -> 23.33333333 | G10: =+G9*100/$B$10 -> 0
A11: Preis Stroh | C11: €/dt | D11: =Stammdatenblatt!P183 -> 21.0697 | E11: =D11 -> 21.0697 | F11: =E11 -> 21.0697 | G11: 0
A12: Erlös Stroh | C12: €/ha | D12: =D9*D11 -> 842.788 | E12: =E7*E11 -> 1474.879 | F12: =F7*F11 -> 1896.273 | G12: =G7*G11 -> 0
A13: Marktleistung | C13: €/ha | D13: =SUM(D12:D12) -> 842.788 | E13: =SUM(E12:E12) -> 1474.879 | F13: =SUM(F12:F12) -> 1896.273 | G13: =SUM(G12:G12) -> 0
A15: Nährstoffkosten
A16: Nährstoffwert | C16: €/ha | D16: =D9*(D32*0*$B$32+D33*$B$33+D34*$B$34+D35*$B$35+D36*$B$36+D37*$B$37) -> 89.67687958 | E16: =E9*(E32*0*$B$32+E33*$B$33+E34*$B$34+E35*$B$35+E36*$B$36+E37*$B$37) -> 125.5476314 | F16: =F9*(F32*0*$B$32+F33*$B$33+F34*$B$34+F35*$B$35+F36*$B$36+F37*$B$37) -> 141.2410853 | G16: =G9*(G32*0*$B$32+G33*$B$33+G34*$B$34+G35*$B$35+G36*$B$36+G37*$B$37) -> 0
A17: Humuswert | B17: 10 | C17: €/ha | D17: =+$B$17*D9/10 -> 40 | E17: =+$B$17*E9/10 -> 56 | F17: =+$B$17*F9/10 -> 63 | G17: =+$B$17*G9/10 -> 0
A18: Mineraldüngerausbringungskosten | C18: €/ha | D18: =3.59*(1+Stammdatenblatt!$B$129) -> 4.2721 | E18: =3.59*(1+Stammdatenblatt!$B$129) -> 4.2721 | F18: =3.59*(1+Stammdatenblatt!$B$129) -> 4.2721 | G18: =0*(1+Stammdatenblatt!$B$129) -> 0
A19: Strohhäcksler | C19: €/ha | D19: -5 | E19: =D19 -> -5 | F19: =E19 -> -5 | G19: 0
A20: Wert ab Feld | C20: €/ha | D20: =SUM(D16:D19) -> 128.9489796 | E20: =SUM(E16:E19) -> 180.8197314 | F20: =SUM(F16:F19) -> 203.5131853 | G20: =SUM(G16:G19) -> 0
C21: €/Ballen | D21: =+D20/D10 -> 8.704056122 | E21: =+E20/E10 -> 8.718094193 | F21: =+F20/F10 -> 8.721993657 | G21: =+G20/G10 -> 
C22: €/dt | D22: =+D20/D9 -> 3.223724489 | E22: =+E20/E9 -> 3.228923775 | F22: =+F20/F9 -> 3.230368021 | G22: =+G20/G9 -> 
A24: Presskosten (Lohnunternehmer) | B24: =Stammdatenblatt!$P$240 -> 6.867 | C24: €/ha | D24: =+$B$24*D10 -> 101.7333333 | E24: =+$B$24*E10 -> 142.4266667 | F24: =+$B$24*F10 -> 160.23 | G24: =+$B$24*G10 -> 0
A25: Transportkosten | B25: =Stammdatenblatt!$P$241 -> 9.81 | C25: €/ha | D25: =+$B$25*D10 -> 145.3333333 | E25: =+$B$25*E10 -> 203.4666667 | F25: =+$B$25*F10 -> 228.9 | G25: =+$B$25*G10 -> 0
A26: Risikozuschlag (15% der Press-und Transportkosten) | C26: €/ha | D26: =+(D24+D25)*0.15 -> 37.06 | E26: =+(E24+E25)*0.15 -> 51.884 | F26: =+(F24+F25)*0.15 -> 58.3695 | G26: =+(G24+G25)*0.15 -> 0
A27: Wert ab Hof | C27: €/ha | D27: =+D20+D24+D25+D26 -> 413.0756462 | E27: =+E20+E24+E25+E26 -> 578.5970647 | F27: =+F20+F24+F25+F26 -> 651.0126853 | G27: =+G20+G24+G25+G26 -> 0
C28: €/Ballen | D28: =+D27/D10 -> 27.88260612 | E28: =+E27/E10 -> 27.89664419 | F28: =+F27/F10 -> 27.90054366 | G28: =+G27/G10 -> 
C29: €/dt | D29: =+D27/D9 -> 10.32689116 | E29: =+E27/E9 -> 10.33209044 | F29: =+F27/F9 -> 10.33353469 | G29: =+G27/G9 -> 
A30: Nährstoffwert
B31: €/kg: | C31: Entzogener Nährstoff:
A32: Stickstoff | B32: =Stammdatenblatt!P130 -> 2.320205374 | C32: kg/dt Stroh | D32: 0.5 | E32: =D32 -> 0.5 | F32: 0.5 | G32: 0
A33: Phosphor | B33: =Stammdatenblatt!P131 -> 1.226340187 | C33: kg/dt Stroh | D33: 0.3 | E33: 0.3 | F33: 0.3 | G33: 0
A34: Kali | B34: =Stammdatenblatt!P132 -> 1.0165575 | C34: kg/dt Stroh | D34: 1.4 | E34: 1.4 | F34: 1.4 | G34: 0
A35: Kalk | B35: =Stammdatenblatt!P133 -> 0.04746777778 | C35: kg/dt Stroh | D35: 0.45 | E35: 0.45 | F35: 0.45 | G35: 0
A36: Magnesium | B36: =Stammdatenblatt!P134 -> 1.844103333 | C36: kg/dt Stroh | D36: 0.2 | E36: 0.2 | F36: 0.2 | G36: 0
A37: Schwefel | B37: =Stammdatenblatt!P135 -> 0.7582283333 | C37: kg/dt Stroh | D37: 0.08 | E37: 0.08 | F37: 0.08 | G37: 0

Sheet Strohbergung-RB
B3: Landesbetrieb Landwirtschaft Hessen
A4: =IF([2]Stammdatenblatt!G6+[2]Stammdatenblatt!D77+[2]Stammdatenblatt!D112+[2]Stammdatenblatt!B129+[2]Stammdatenblatt!D140+[2]Stammdatenblatt!C183+[2]Stammdatenblatt!C221+[2]Stammdatenblatt!C239=0,"Produktionsverfahren wurden netto gerechnet", "Produktionsverfahren wurden brutto gerechnet") -> Produktionsverfahren wurden netto gerechnet | F4: =Wirtschaftsdünger!N4 -> Letztes (aktuelles) WJ.
G5: eigene
A6: Strohbergung | G6: Werte
A7: Menge Korn (Ernteprodukt) | C7: dt/ha | D7: 55 | E7: 70 | F7: 90 | G7: 0
A8: Korn-Stroh-Verhältnis 1: | D8: =IF(D7<75,0.8,0.75) -> 0.8 | E8: =IF(E7<75,0.8,0.75) -> 0.8 | F8: =IF(F7<75,0.8,0.75) -> 0.75 | G8: 0
A9: Menge Stroh abzüglich | B9: 0.2 | C9: dt/ha | D9: =+D7*(D8-$B$9) -> 33 | E9: =+E7*(E8-$B$9) -> 42 | F9: =+F7*(F8-$B$9) -> 49.5 | G9: =+G7*(G8-$B$9) -> 0
A10: Auswahl - Strohernteverfahren | B10: Ballengewicht
A11: RB Presse Ø 1,5m mit Schneidwerk | B11: =1.5*1.5*0.785*1.2*B12*1000 -> 264.9375 | C11: Ballen/ha | D11: =SUM(D9/$B$11)*100 -> 12.45576787 | E11: =SUM(E9/$B$11)*100 -> 15.85279547 | F11: =SUM(F9/$B$11)*100 -> 18.6836518 | G11: =SUM(G9/$B$11)*100 -> 0
A12: -Raumgewicht RB - | B12: 0.125
A13: Preis Stroh (Marktinfo APH Feldfrüchte) | C13: €/dt | D13: =Stammdatenblatt!P169 -> 20.6831 | E13: =Stammdatenblatt!P169 -> 20.6831 | F13: =Stammdatenblatt!P169 -> 20.6831 | G13: 11
A14: Erlös Stroh | C14: €/ha | D14: =SUM(D9*D13) -> 682.5423 | E14: =E9*E13 -> 868.6902 | F14: =F9*F13 -> 1023.81345 | G14: =G9*G13 -> 0
A15: Marktleistung | C15: €/ha | D15: =SUM(D14:D14) -> 682.5423 | E15: =SUM(E14:E14) -> 868.6902 | F15: =SUM(F14:F14) -> 1023.81345 | G15: =SUM(G14:G14) -> 0
A17: Nährstoffkosten*
A18: S Nährstoffwert | C18: €/ha | D18: =D9*(D37*$B$37+D38*$B$38+D39*$B$39+D40*$B$40+D41*$B$41+D42*$B$42) -> 112.2668143 | E18: =E9*(E37*$B$37+E38*$B$38+E39*$B$39+E40*$B$40+E41*$B$41+E42*$B$42) -> 142.8850364 | F18: =F9*(F37*$B$37+F38*$B$38+F39*$B$39+F40*$B$40+F41*$B$41+F42*$B$42) -> 168.4002215 | G18: 0
A19: Humuswert | B19: 10 | C19: €/ha | D19: =+$B$19*D9/10 -> 33 | E19: =+$B$19*E9/10 -> 42 | F19: =+$B$19*F9/10 -> 49.5 | G19: 0
A20: Mineraldüngerausbringungskosten | B20: 1.5 | C20: €/ha | D20: =+D37*D9/$B$21*$B$20 -> 6.1875 | E20: =+E37*E9/$B$21*$B$20 -> 7.875 | F20: =+F37*F9/$B$21*$B$20 -> 9.28125 | G20: =+G37*G9/$B$21*$B$20 -> 0
A21: Strohhäcksler | B21: 4 | C21: €/ha | D21: -10 | E21: =D21 -> -10 | F21: =E21 -> -10 | G21: =F21 -> -10
A22: Wert ab Feld | C22: €/ha | D22: =SUM(D18:D21) -> 141.4543143 | E22: =SUM(E18:E21) -> 182.7600364 | F22: =SUM(F18:F21) -> 217.1814715 | G22: =SUM(G18:G21) -> -10
C23: €/Ballen | D23: =+D22/D11 -> 11.35653103 | E23: =+E22/E11 -> 11.52856837 | F23: =+F22/F11 -> 11.62414467 | G23: =+G22/G11 -> 
C24: €/dt | D24: =+D22/D9 -> 4.286494374 | E24: =+E22/E9 -> 4.351429439 | F24: =+F22/F9 -> 4.387504475 | G24: =+G22/G9 -> 
A26: Presskosten (Lohnunternehmer) | B26: 6.5 | C26: €/ha | D26: =$B$26*D11 -> 80.96249115 | E26: =$B$26*E11 -> 103.0431706 | F26: =$B$26*F11 -> 121.4437367 | G26: =$B$26*G11 -> 0
A27: Transportkosten dt/Km | B27: 10 | C27: 90 | D27: =$C$27/10/$B$28 -> 0.6 | E27: =$C$27/10/$B$28 -> 0.6 | F27: =$C$27/10/$B$28 -> 0.6 | G27: =$C$27/10/$B$28 -> 0.6
A28: Ø Geschwindigkeit in Km/ h | B28: 15 | C28: €/Ballen | D28: =$D$27*D9*$B$27/10/13 -> 1.523076923 | E28: =$D$27*E9*$B$27/10/13 -> 1.938461538 | F28: =$D$27*F9*$B$27/10/13 -> 2.284615385 | G28: =$D$27*G9*$B$27/10/12 -> 0
A29: Transportkosten, Laden, Abladen | B29: =1.34*D19/D11+D28 -> 5.073239423 | C29: €/ha | D29: =+$B$29*D11 -> 63.1910926 | E29: =+$B$29*E11 -> 80.42502695 | F29: =+$B$29*F11 -> 94.7866389 | G29: =+$B$29*G11 -> 0
A30: Lagerung Altgebäude 200m² | B30: 1.6 | C30: €/ha | D30: =$B$30*D9 -> 52.8 | E30: =$B$30*E9 -> 67.2 | F30: =$B$30*F9 -> 79.2 | G30: =$B$30*G9 -> 0
A31: Risikozuschlag (20% der Press-und Transportkosten) | C31: €/ha | D31: =+(D26+D29+D30)*0.2 -> 39.39071675 | E31: =+(E26+E29+E30)*0.2 -> 50.1336395 | F31: =+(F26+F29+F30)*0.2 -> 59.08607513 | G31: =+(G26+G29+G30)*0.2 -> 0
A32: Wert ab Hof | C32: €/ha | D32: =+D22+D26+D29+D30+D31 -> 377.7986148 | E32: =+E22+E26+E29+E30+E31 -> 483.5618734 | F32: =+F22+F26+F29+F30+F31 -> 571.6979223 | G32: =+G22+G26+G29+G30+G31 -> -10
C33: €/Ballen | D33: =+D32/D11 -> 30.33121834 | E33: =+E32/E11 -> 30.50325568 | F33: =+F32/F11 -> 30.59883198 | G33: =+G32/G11 -> 
A34: (Unterstellt, dass die Kosten mind. als Leistung realisiert werden müssen.) | C34: €/dt | D34: =+D32/D9 -> 11.44844287 | E34: =+E32/E9 -> 11.51337794 | F34: =+F32/F9 -> 11.54945297 | G34: =+G32/G9 -> 
A36: Nährstoffwert: | B36: €/kg: | C36: Entzogene Nährstoffe:
A37: Stickstoff | B37: =Stammdatenblatt!P130 -> 2.320205374 | C37: kg/dt Stroh | D37: 0.5 | E37: =D37 -> 0.5 | F37: 0.5 | G37: 0.5
A38: Phosphor | B38: =Stammdatenblatt!P131 -> 1.226340187 | C38: kg/dt Stroh | D38: 0.3 | E38: 0.3 | F38: 0.3 | G38: 0.3
A39: Kali | B39: =Stammdatenblatt!P132 -> 1.0165575 | C39: kg/dt Stroh | D39: 1.4 | E39: 1.4 | F39: 1.4 | G39: 1.4
A40: Kalk | B40: =Stammdatenblatt!P133 -> 0.04746777778 | C40: kg/dt Stroh | D40: 0.45 | E40: 0.45 | F40: 0.45 | G40: 0.45
A41: Magnesium | B41: =Stammdatenblatt!P134 -> 1.844103333 | C41: kg/dt Stroh | D41: 0.2 | E41: 0.2 | F41: 0.2 | G41: 0.2
A42: Schwefel | B42: =Stammdatenblatt!P135 -> 0.7582283333 | C42: kg/dt Stroh | D42: 0.08 | E42: 0.08 | F42: 0.08 | G42: 0.08
A43: * Verrechnung des Düngewertes durch Strohabfuhr inkl. Ausbringung nach ÜMV-Verrechnungssätzen

Sheet Qualitätsweizen
B3: Landesbetrieb Landwirtschaft Hessen
A4: =IF(Stammdatenblatt!G6+Stammdatenblatt!D77+Stammdatenblatt!D112+Stammdatenblatt!B129+Stammdatenblatt!D140+Stammdatenblatt!C183+Stammdatenblatt!C221+Stammdatenblatt!C239=0,"Produktionsverfahren wurden netto gerechnet", "Produktionsverfahren wurden brutto gerechnet") -> Produktionsverfahren wurden brutto gerechnet | I4: =Wirtschaftsdünger!N4 -> Letztes (aktuelles) WJ.
K5: eigene
A6: Qualitätsweizen | E6: 2 ha | G6: 5 ha | I6: 20 ha | K6: Werte
A7: Leistung: Menge Hauptprodukt | C7: dt/ha | D7: 65 | E7: 80 | F7: 100 | G7: 80 | H7: 100 | I7: 80 | J7: 100 | K7: 0
A8: Preis Hauptprodukt | C8: € | D8: =+Stammdatenblatt!P11 -> 29.45725 | E8: =D8 -> 29.45725 | F8: =E8 -> 29.45725 | G8: =+F8 -> 29.45725 | H8: =G8 -> 29.45725 | I8: =+H8 -> 29.45725 | J8: =I8 -> 29.45725 | K8: 0
A9: Erlös Hauptprodukt | C9: €/ha | D9: =D7*D8 -> 1914.72125 | E9: 2356.58 | F9: 2945.725 | G9: 2356.58 | H9: 2945.725 | I9: 2356.58 | J9: 2945.725 | K9: 0
A10: Erlös Nebenprodukt(e) | C10: €/ha | D10: 0 | E10: =D10 -> 0 | F10: =E10 -> 0 | G10: 0 | H10: =G10 -> 0 | I10: 0 | J10: =I10 -> 0 | K10: 0
A11: Leistungen | C11: €/ha | D11: =SUM(D9:D10) -> 1914.72125 | E11: =SUM(E9:E10) -> 2356.58 | F11: 2945.725 | G11: 2356.58 | H11: 2945.725 | I11: 2356.58 | J11: 2945.725 | K11: 0
A12: Saatgutkosten | C12: €/ha | D12: =D43 -> 120.96544 | E12: 120.96544 | F12: 120.96544 | G12: 120.96544 | H12: 120.96544 | I12: 120.96544 | J12: 120.96544 | K12: =K43 -> 0
A13: Mineraldüngerkosten | C13: €/ha | D13: =D51 -> 649.6252182 | E13: 756.6628892 | F13: 868.9154056 | G13: 756.6628892 | H13: 868.9154056 | I13: 756.6628892 | J13: 868.9154056 | K13: =K51 -> 0
A14: Pflanzenbehandlungskosten | C14: €/ha | D14: =D56*(1+Stammdatenblatt!D112) -> 114.24 | E14: =E56*(1+Stammdatenblatt!D112) -> 164.22 | F14: =F56*(1+Stammdatenblatt!D112) -> 217.77 | G14: =G56*(1+Stammdatenblatt!D112) -> 164.22 | H14: =H56*(1+Stammdatenblatt!D112) -> 217.77 | I14: =I56*(1+Stammdatenblatt!D112) -> 164.22 | J14: =J56*(1+Stammdatenblatt!D112) -> 217.77 | K14: =K56 -> 0
A15: Versicherung | C15: €/ha | D15: =(D11/1000)*Stammdatenblatt!$P$190 -> 13.62553936 | E15: =(E11/1000)*Stammdatenblatt!$P$190 -> 16.7698946 | F15: =(F11/1000)*Stammdatenblatt!$P$190 -> 20.96236825 | G15: =(G11/1000)*Stammdatenblatt!$P$190 -> 16.7698946 | H15: =(H11/1000)*Stammdatenblatt!$P$190 -> 20.96236825 | I15: =(I11/1000)*Stammdatenblatt!$P$190 -> 16.7698946 | J15: =(J11/1000)*Stammdatenblatt!$P$190 -> 20.96236825 | K15: =(K11/1000)*Stammdatenblatt!$E$190 -> 0
A16: Trocknungs- und Konservierungskosten | C16: €/ha | D16: =(D7*Stammdatenblatt!$P$201+D7*(Stammdatenblatt!$P$202*4))/3 -> 72.45116667 | E16: =(E7*Stammdatenblatt!$P$201+E7*(Stammdatenblatt!$P$202*4))/3 -> 89.17066667 | F16: =(F7*Stammdatenblatt!$P$201+F7*(Stammdatenblatt!$P$202*4))/3 -> 111.4633333 | G16: =E16 -> 89.17066667 | H16: =F16 -> 111.4633333 | I16: =G16 -> 89.17066667 | J16: =H16 -> 111.4633333 | K16: 0
A17: Summe Direktkosten | C17: €/ha | D17: =SUM(D12:D16) -> 970.9073642 | E17: =SUM(E12:E16) -> 1147.78889 | F17: 1340.076547 | G17: 1147.78889 | H17: 1340.076547 | I17: 1147.78889 | J17: 1340.076547 | K17: =SUM(K12:K16) -> 0
A18: Direktkostenfreie Leistung | C18: €/ha | D18: =D11-D17 -> 943.8138858 | E18: =E11-E17 -> 1208.79111 | F18: 1605.648453 | G18: 1208.79111 | H18: 1605.648453 | I18: 1208.79111 | J18: 1605.648453 | K18: 0
A19: Maschinenkosten eigen ** | C19: €/ha | D19: ='Arbeitsvorgänge-KTBL'!T76 -> 209.9095177 | E19: ='Arbeitsvorgänge-KTBL'!T156 -> 255.8287467 | F19: ='Arbeitsvorgänge-KTBL'!T245 -> 275.7911355 | G19: ='Arbeitsvorgänge-KTBL'!T328 -> 239.4360192 | H19: ='Arbeitsvorgänge-KTBL'!T420 -> 256.8033115 | I19: ='Arbeitsvorgänge-KTBL'!T511 -> 220.6858707 | J19: ='Arbeitsvorgänge-KTBL'!T611 -> 237.6086255 | K19: 0
A20: Maschinenkosten fremd | C20: €/ha | D20: ='Arbeitsvorgänge-KTBL'!U76*(1+Stammdatenblatt!C239) -> 125.35 | E20: ='Arbeitsvorgänge-KTBL'!U156*(1+Stammdatenblatt!C239) -> 125.35 | F20: ='Arbeitsvorgänge-KTBL'!U245*(1+Stammdatenblatt!C239) -> 125.35 | G20: ='Arbeitsvorgänge-KTBL'!U328*(1+Stammdatenblatt!C239) -> 125.35 | H20: ='Arbeitsvorgänge-KTBL'!U420*(1+Stammdatenblatt!C239) -> 125.35 | I20: ='Arbeitsvorgänge-KTBL'!U511*(1+Stammdatenblatt!C239) -> 114.45 | J20: ='Arbeitsvorgänge-KTBL'!U611*(1+Stammdatenblatt!C239) -> 114.45 | K20: 0
A21: Lohnkosten | C21: €/ha | D21: 0 | E21: =D21 -> 0 | F21: =E21 -> 0 | G21: 0 | H21: =G21 -> 0 | I21: 0 | J21: =I21 -> 0 | K21: 0
A22: xxx | C22: €/ha | D22: 0 | E22: =D22 -> 0 | F22: =E22 -> 0 | G22: 0 | H22: =G22 -> 0 | I22: 0 | J22: =I22 -> 0 | K22: 0
A23: variable Kosten | C23: €/ha | D23: =SUM(D17,D19:D22) -> 1306.166882 | E23: =SUM(E17,E19:E22) -> 1528.967637 | F23: 1741.217683 | G23: 1512.57491 | H23: 1722.229859 | I23: 1482.924761 | J23: 1692.135173 | K23: 0
A24: Deckungsbeitrag (DB) | C24: €/ha | D24: =D11-D23 -> 608.554368 | E24: 827.6123628 | F24: 1204.507317 | G24: 844.0050903 | H24: 1223.495141 | I24: 873.6552388 | J24: 1253.589827 | K24: 0
A25: Zeit-Spanne | B25: AK-Bedarf
A26: FEB | C26: Akh/ha | D26: =SUMIF('Arbeitsvorgänge-KTBL'!$B$9:$B$73,Qualitätsweizen!A26,'Arbeitsvorgänge-KTBL'!$G$9:$G$73) -> 0.33 | E26: =SUMIF('Arbeitsvorgänge-KTBL'!$B$88:$B$153,Qualitätsweizen!A26,'Arbeitsvorgänge-KTBL'!$G$88:$G$153) -> 0.37 | F26: =SUMIF('Arbeitsvorgänge-KTBL'!$B$168:$B$242,Qualitätsweizen!A26,'Arbeitsvorgänge-KTBL'!$G$168:$G$242) -> 0.39 | G26: =SUMIF('Arbeitsvorgänge-KTBL'!$B$257:$B$325,Qualitätsweizen!A26,'Arbeitsvorgänge-KTBL'!$G$257:$G$325) -> 0.32 | H26: =SUMIF('Arbeitsvorgänge-KTBL'!$B$340:$B$417,Qualitätsweizen!A26,'Arbeitsvorgänge-KTBL'!$G$340:$G$417) -> 0.35 | I26: =SUMIF('Arbeitsvorgänge-KTBL'!$B$432:$B$508,Qualitätsweizen!A26,'Arbeitsvorgänge-KTBL'!$G$432:$G$508) -> 0.2 | J26: =SUMIF('Arbeitsvorgänge-KTBL'!$B$523:$B$608,Qualitätsweizen!A26,'Arbeitsvorgänge-KTBL'!$G$523:$G$608) -> 0.21 | K26: 0
A27: MRZ | C27: Akh/ha | D27: =SUMIF('Arbeitsvorgänge-KTBL'!$B$9:$B$73,Qualitätsweizen!A27,'Arbeitsvorgänge-KTBL'!$G$9:$G$73) -> 0.13 | E27: =SUMIF('Arbeitsvorgänge-KTBL'!$B$88:$B$153,Qualitätsweizen!A27,'Arbeitsvorgänge-KTBL'!$G$88:$G$153) -> 0.13 | F27: =SUMIF('Arbeitsvorgänge-KTBL'!$B$168:$B$242,Qualitätsweizen!A27,'Arbeitsvorgänge-KTBL'!$G$168:$G$242) -> 0.13 | G27: =SUMIF('Arbeitsvorgänge-KTBL'!$B$257:$B$325,Qualitätsweizen!A27,'Arbeitsvorgänge-KTBL'!$G$257:$G$325) -> 0.11 | H27: =SUMIF('Arbeitsvorgänge-KTBL'!$B$340:$B$417,Qualitätsweizen!A27,'Arbeitsvorgänge-KTBL'!$G$340:$G$417) -> 0.11 | I27: =SUMIF('Arbeitsvorgänge-KTBL'!$B$432:$B$508,Qualitätsweizen!A27,'Arbeitsvorgänge-KTBL'!$G$432:$G$508) -> 0.1 | J27: =SUMIF('Arbeitsvorgänge-KTBL'!$B$523:$B$608,Qualitätsweizen!A27,'Arbeitsvorgänge-KTBL'!$G$523:$G$608) -> 0.1 | K27: 0
A28: APR | C28: Akh/ha | D28: =SUMIF('Arbeitsvorgänge-KTBL'!$B$9:$B$73,Qualitätsweizen!A28,'Arbeitsvorgänge-KTBL'!$G$9:$G$73) -> 0.74 | E28: =SUMIF('Arbeitsvorgänge-KTBL'!$B$88:$B$153,Qualitätsweizen!A28,'Arbeitsvorgänge-KTBL'!$G$88:$G$153) -> 0.74 | F28: =SUMIF('Arbeitsvorgänge-KTBL'!$B$168:$B$242,Qualitätsweizen!A28,'Arbeitsvorgänge-KTBL'!$G$168:$G$242) -> 0.9 | G28: =SUMIF('Arbeitsvorgänge-KTBL'!$B$257:$B$325,Qualitätsweizen!A28,'Arbeitsvorgänge-KTBL'!$G$257:$G$325) -> 0.52 | H28: =SUMIF('Arbeitsvorgänge-KTBL'!$B$340:$B$417,Qualitätsweizen!A28,'Arbeitsvorgänge-KTBL'!$G$340:$G$417) -> 0.65 | I28: =SUMIF('Arbeitsvorgänge-KTBL'!$B$432:$B$508,Qualitätsweizen!A28,'Arbeitsvorgänge-KTBL'!$G$432:$G$508) -> 0.37 | J28: =SUMIF('Arbeitsvorgänge-KTBL'!$B$523:$B$608,Qualitätsweizen!A28,'Arbeitsvorgänge-KTBL'!$G$523:$G$608) -> 0.43 | K28: 0
A29: MAI | C29: Akh/ha | D29: =SUMIF('Arbeitsvorgänge-KTBL'!$B$9:$B$73,Qualitätsweizen!A29,'Arbeitsvorgänge-KTBL'!$G$9:$G$73) -> 0.13 | E29: =SUMIF('Arbeitsvorgänge-KTBL'!$B$88:$B$153,Qualitätsweizen!A29,'Arbeitsvorgänge-KTBL'!$G$88:$G$153) -> 0.13 | F29: =SUMIF('Arbeitsvorgänge-KTBL'!$B$168:$B$242,Qualitätsweizen!A29,'Arbeitsvorgänge-KTBL'!$G$168:$G$242) -> 0.42 | G29: =SUMIF('Arbeitsvorgänge-KTBL'!$B$257:$B$325,Qualitätsweizen!A29,'Arbeitsvorgänge-KTBL'!$G$257:$G$325) -> 0.11 | H29: =SUMIF('Arbeitsvorgänge-KTBL'!$B$340:$B$417,Qualitätsweizen!A29,'Arbeitsvorgänge-KTBL'!$G$340:$G$417) -> 0.35 | I29: =SUMIF('Arbeitsvorgänge-KTBL'!$B$432:$B$508,Qualitätsweizen!A29,'Arbeitsvorgänge-KTBL'!$G$432:$G$508) -> 0.1 | J29: =SUMIF('Arbeitsvorgänge-KTBL'!$B$523:$B$608,Qualitätsweizen!A29,'Arbeitsvorgänge-KTBL'!$G$523:$G$608) -> 0.26 | K29: 0
A30: JUN | C30: Akh/ha | D30: =SUMIF('Arbeitsvorgänge-KTBL'!$B$9:$B$73,Qualitätsweizen!A30,'Arbeitsvorgänge-KTBL'!$G$9:$G$73) -> 0.46 | E30: =SUMIF('Arbeitsvorgänge-KTBL'!$B$88:$B$153,Qualitätsweizen!A30,'Arbeitsvorgänge-KTBL'!$G$88:$G$153) -> 0.46 | F30: =SUMIF('Arbeitsvorgänge-KTBL'!$B$168:$B$242,Qualitätsweizen!A30,'Arbeitsvorgänge-KTBL'!$G$168:$G$242) -> 0.44 | G30: =SUMIF('Arbeitsvorgänge-KTBL'!$B$257:$B$325,Qualitätsweizen!A30,'Arbeitsvorgänge-KTBL'!$G$257:$G$325) -> 0.33 | H30: =SUMIF('Arbeitsvorgänge-KTBL'!$B$340:$B$417,Qualitätsweizen!A30,'Arbeitsvorgänge-KTBL'!$G$340:$G$417) -> 0.32 | I30: =SUMIF('Arbeitsvorgänge-KTBL'!$B$432:$B$508,Qualitätsweizen!A30,'Arbeitsvorgänge-KTBL'!$G$432:$G$508) -> 0.22 | J30: =SUMIF('Arbeitsvorgänge-KTBL'!$B$523:$B$608,Qualitätsweizen!A30,'Arbeitsvorgänge-KTBL'!$G$523:$G$608) -> 0.21 | K30: 0
A31: JUL | C31: Akh/ha | D31: =SUMIF('Arbeitsvorgänge-KTBL'!$B$9:$B$73,Qualitätsweizen!A31,'Arbeitsvorgänge-KTBL'!$G$9:$G$73) -> 0 | E31: =SUMIF('Arbeitsvorgänge-KTBL'!$B$88:$B$153,Qualitätsweizen!A31,'Arbeitsvorgänge-KTBL'!$G$88:$G$153) -> 0 | F31: =SUMIF('Arbeitsvorgänge-KTBL'!$B$168:$B$242,Qualitätsweizen!A31,'Arbeitsvorgänge-KTBL'!$G$168:$G$242) -> 0 | G31: =SUMIF('Arbeitsvorgänge-KTBL'!$B$257:$B$325,Qualitätsweizen!A31,'Arbeitsvorgänge-KTBL'!$G$257:$G$325) -> 0 | H31: =SUMIF('Arbeitsvorgänge-KTBL'!$B$340:$B$417,Qualitätsweizen!A31,'Arbeitsvorgänge-KTBL'!$G$340:$G$417) -> 0 | I31: =SUMIF('Arbeitsvorgänge-KTBL'!$B$432:$B$508,Qualitätsweizen!A31,'Arbeitsvorgänge-KTBL'!$G$432:$G$508) -> 0 | J31: =SUMIF('Arbeitsvorgänge-KTBL'!$B$523:$B$608,Qualitätsweizen!A31,'Arbeitsvorgänge-KTBL'!$G$523:$G$608) -> 0 | K31: 0
A32: AUG | C32: Akh/ha | D32: =SUMIF('Arbeitsvorgänge-KTBL'!$B$9:$B$73,Qualitätsweizen!A32,'Arbeitsvorgänge-KTBL'!$G$9:$G$73) -> 1.9 | E32: =SUMIF('Arbeitsvorgänge-KTBL'!$B$88:$B$153,Qualitätsweizen!A32,'Arbeitsvorgänge-KTBL'!$G$88:$G$153) -> 2.27 | F32: =SUMIF('Arbeitsvorgänge-KTBL'!$B$168:$B$242,Qualitätsweizen!A32,'Arbeitsvorgänge-KTBL'!$G$168:$G$242) -> 2.51 | G32: =SUMIF('Arbeitsvorgänge-KTBL'!$B$257:$B$325,Qualitätsweizen!A32,'Arbeitsvorgänge-KTBL'!$G$257:$G$325) -> 1.85 | H32: =SUMIF('Arbeitsvorgänge-KTBL'!$B$340:$B$417,Qualitätsweizen!A32,'Arbeitsvorgänge-KTBL'!$G$340:$G$417) -> 2.16 | I32: =SUMIF('Arbeitsvorgänge-KTBL'!$B$432:$B$508,Qualitätsweizen!A32,'Arbeitsvorgänge-KTBL'!$G$432:$G$508) -> 1.2 | J32: =SUMIF('Arbeitsvorgänge-KTBL'!$B$523:$B$608,Qualitätsweizen!A32,'Arbeitsvorgänge-KTBL'!$G$523:$G$608) -> 1.4 | K32: 0
A33: SEP | C33: Akh/ha | D33: =SUMIF('Arbeitsvorgänge-KTBL'!$B$9:$B$73,Qualitätsweizen!A33,'Arbeitsvorgänge-KTBL'!$G$9:$G$73) -> 3.07 | E33: =SUMIF('Arbeitsvorgänge-KTBL'!$B$88:$B$153,Qualitätsweizen!A33,'Arbeitsvorgänge-KTBL'!$G$88:$G$153) -> 3.11 | F33: =SUMIF('Arbeitsvorgänge-KTBL'!$B$168:$B$242,Qualitätsweizen!A33,'Arbeitsvorgänge-KTBL'!$G$168:$G$242) -> 3.14 | G33: =SUMIF('Arbeitsvorgänge-KTBL'!$B$257:$B$325,Qualitätsweizen!A33,'Arbeitsvorgänge-KTBL'!$G$257:$G$325) -> 2.32 | H33: =SUMIF('Arbeitsvorgänge-KTBL'!$B$340:$B$417,Qualitätsweizen!A33,'Arbeitsvorgänge-KTBL'!$G$340:$G$417) -> 2.35 | I33: =SUMIF('Arbeitsvorgänge-KTBL'!$B$432:$B$508,Qualitätsweizen!A33,'Arbeitsvorgänge-KTBL'!$G$432:$G$508) -> 1.57 | J33: =SUMIF('Arbeitsvorgänge-KTBL'!$B$523:$B$608,Qualitätsweizen!A33,'Arbeitsvorgänge-KTBL'!$G$523:$G$608) -> 1.58 | K33: 0
A34: OKT | C34: Akh/ha | D34: =SUMIF('Arbeitsvorgänge-KTBL'!$B$9:$B$73,Qualitätsweizen!A34,'Arbeitsvorgänge-KTBL'!$G$9:$G$73) -> 1.83 | E34: =SUMIF('Arbeitsvorgänge-KTBL'!$B$88:$B$153,Qualitätsweizen!A34,'Arbeitsvorgänge-KTBL'!$G$88:$G$153) -> 1.83 | F34: =SUMIF('Arbeitsvorgänge-KTBL'!$B$168:$B$242,Qualitätsweizen!A34,'Arbeitsvorgänge-KTBL'!$G$168:$G$242) -> 1.83 | G34: =SUMIF('Arbeitsvorgänge-KTBL'!$B$257:$B$325,Qualitätsweizen!A34,'Arbeitsvorgänge-KTBL'!$G$257:$G$325) -> 1.31 | H34: =SUMIF('Arbeitsvorgänge-KTBL'!$B$340:$B$417,Qualitätsweizen!A34,'Arbeitsvorgänge-KTBL'!$G$340:$G$417) -> 1.31 | I34: =SUMIF('Arbeitsvorgänge-KTBL'!$B$432:$B$508,Qualitätsweizen!A34,'Arbeitsvorgänge-KTBL'!$G$432:$G$508) -> 0.85 | J34: =SUMIF('Arbeitsvorgänge-KTBL'!$B$523:$B$608,Qualitätsweizen!A34,'Arbeitsvorgänge-KTBL'!$G$523:$G$608) -> 0.85 | K34: 0
A35: NOV | C35: Akh/ha | D35: =SUMIF('Arbeitsvorgänge-KTBL'!$B$9:$B$73,Qualitätsweizen!A35,'Arbeitsvorgänge-KTBL'!$G$9:$G$73) -> 0 | E35: =SUMIF('Arbeitsvorgänge-KTBL'!$B$88:$B$153,Qualitätsweizen!A35,'Arbeitsvorgänge-KTBL'!$G$88:$G$153) -> 0 | F35: =SUMIF('Arbeitsvorgänge-KTBL'!$B$168:$B$242,Qualitätsweizen!A35,'Arbeitsvorgänge-KTBL'!$G$168:$G$242) -> 0 | G35: =SUMIF('Arbeitsvorgänge-KTBL'!$B$257:$B$325,Qualitätsweizen!A35,'Arbeitsvorgänge-KTBL'!$G$257:$G$325) -> 0 | H35: =SUMIF('Arbeitsvorgänge-KTBL'!$B$340:$B$417,Qualitätsweizen!A35,'Arbeitsvorgänge-KTBL'!$G$340:$G$417) -> 0 | I35: =SUMIF('Arbeitsvorgänge-KTBL'!$B$432:$B$508,Qualitätsweizen!A35,'Arbeitsvorgänge-KTBL'!$G$432:$G$508) -> 0 | J35: =SUMIF('Arbeitsvorgänge-KTBL'!$B$523:$B$608,Qualitätsweizen!A35,'Arbeitsvorgänge-KTBL'!$G$523:$G$608) -> 0 | K35: 0
A36: REST | C36: Akh/ha | D36: =SUMIF('Arbeitsvorgänge-KTBL'!$B$9:$B$73,Qualitätsweizen!A36,'Arbeitsvorgänge-KTBL'!$G$9:$G$73) -> 0 | E36: =SUMIF('Arbeitsvorgänge-KTBL'!$B$88:$B$153,Qualitätsweizen!A36,'Arbeitsvorgänge-KTBL'!$G$88:$G$153) -> 0 | F36: =SUMIF('Arbeitsvorgänge-KTBL'!$B$168:$B$242,Qualitätsweizen!A36,'Arbeitsvorgänge-KTBL'!$G$168:$G$242) -> 0 | G36: =SUMIF('Arbeitsvorgänge-KTBL'!$B$257:$B$325,Qualitätsweizen!A36,'Arbeitsvorgänge-KTBL'!$G$257:$G$325) -> 0 | H36: =SUMIF('Arbeitsvorgänge-KTBL'!$B$340:$B$417,Qualitätsweizen!A36,'Arbeitsvorgänge-KTBL'!$G$340:$G$417) -> 0 | I36: =SUMIF('Arbeitsvorgänge-KTBL'!$B$432:$B$508,Qualitätsweizen!A36,'Arbeitsvorgänge-KTBL'!$G$432:$G$508) -> 0 | J36: =SUMIF('Arbeitsvorgänge-KTBL'!$B$523:$B$608,Qualitätsweizen!A36,'Arbeitsvorgänge-KTBL'!$G$523:$G$608) -> 0 | K36: 0
A37: Arbeitskraftstunden | C37: AKh/ha | D37: =SUM(D26:D36) -> 8.59 | E37: 9.04 | F37: 9.76 | G37: 6.87 | H37: 7.6 | I37: 4.61 | J37: 5.04 | K37: 0
A38: DB (je Akh) | C38: €/AKh | D38: =IF(D24>0,D24/D37,0) -> 70.84451316 | E38: =IF(E24>0,E24/E37,0) -> 91.55004013 | F38: 123.412635 | G38: 122.8537249 | H38: 160.9862028 | I38: 189.513067 | J38: 248.7281403 | K38: 0
A39: Aussaatmenge | C39: kg/ha | D39: 200 | E39: =D39 -> 200 | F39: 200 | G39: 200 | H39: =G39 -> 200 | I39: 200 | J39: 200 | K39: 0
A40: davon Zukaufsaatgut | C40: % | D40: 68 | E40: 68 | F40: 68 | G40: 68 | H40: =G40 -> 68 | I40: 68 | J40: =I40 -> 68 | K40: 0
A41: Saatgutpreis Eigen | C41: €/dt | D41: =D8+Stammdatenblatt!$K$186 -> 36.66725 | E41: =E8+Stammdatenblatt!$K$186 -> 36.66725 | F41: =F8+Stammdatenblatt!$K$186 -> 36.66725 | G41: =G8+Stammdatenblatt!$K$186 -> 36.66725 | H41: =H8+Stammdatenblatt!$K$186 -> 36.66725 | I41: =I8+Stammdatenblatt!$K$186 -> 36.66725 | J41: =J8+Stammdatenblatt!$K$186 -> 36.66725 | K41: 0
A42: Zukauf | C42: €/dt | D42: =+Stammdatenblatt!P78 -> 71.69 | E42: 71.69 | F42: 71.69 | G42: =+F42 -> 71.69 | H42: =G42 -> 71.69 | I42: =+H42 -> 71.69 | J42: =I42 -> 71.69 | K42: 0
A43: Saatgutkosten | C43: €/ha | D43: =D40/100*(D39*D42)/100+((100-D40)/100*D39*D41/100) -> 120.96544 | E43: =E40/100*(E39*E42)/100+((100-E40)/100*E39*E41/100) -> 120.96544 | F43: 120.96544 | G43: 120.96544 | H43: 120.96544 | I43: 120.96544 | J43: 120.96544 | K43: 0
A44: Dünger: | B44: €/kg | D44: Düngerbedarf/ha (in kg Reinnährstoff) Nach Rechentabelle DÜV; N-min Durchschnittswerte LLH; Bodenart II
A45: =+Stammdatenblatt!A130 -> Stickstoff | B45: =+Stammdatenblatt!P130 -> 2.320205374 | C45: Aufw./ha | D45: 157 | E45: 179 | F45: 199 | G45: 179 | H45: 199 | I45: 179 | J45: 199 | K45: 0
A46: =+Stammdatenblatt!A131 -> Phosphor | B46: =+Stammdatenblatt!P131 -> 1.226340187 | C46: Aufw./ha | D46: 68 | E46: 83 | F46: 104 | G46: 83 | H46: 104 | I46: 83 | J46: 104 | K46: 0
A47: =+Stammdatenblatt!A132 -> Kali | B47: =+Stammdatenblatt!P132 -> 1.0165575 | C47: Aufw./ha | D47: 112 | E47: 138 | F47: 172 | G47: =E47 -> 138 | H47: =F47 -> 172 | I47: =G47 -> 138 | J47: =H47 -> 172 | K47: 0
A48: =+Stammdatenblatt!A133 -> Kalk | B48: =+Stammdatenblatt!P133 -> 0.04746777778 | C48: Aufw./ha | D48: 300 | E48: =D48 -> 300 | F48: =E48 -> 300 | G48: 300 | H48: =G48 -> 300 | I48: 300 | J48: =I48 -> 300 | K48: 0
A49: =+Stammdatenblatt!A134 -> Magnesium | B49: =+Stammdatenblatt!P134 -> 1.844103333 | C49: Aufw./ha | D49: 38 | E49: 42 | F49: 45 | G49: 42 | H49: 45 | I49: 42 | J49: 45 | K49: 0
A50: =+Stammdatenblatt!A135 -> Schwefel | B50: =+Stammdatenblatt!P135 -> 0.7582283333 | C50: Aufw./ha | D50: 5 | E50: 10 | F50: 10 | G50: 10 | H50: 10 | I50: 10 | J50: 10 | K50: 0
A51: Mineraldüngerkosten | C51: €/ha | D51: =D45*$B$45+D46*$B$46+D47*$B$47+D48*$B$48+D49*$B$49+D50*$B$50 -> 649.6252182 | E51: =E45*$B$45+E46*$B$46+E47*$B$47+E48*$B$48+E49*$B$49+E50*$B$50 -> 756.6628892 | F51: 868.9154056 | G51: 756.6628892 | H51: 868.9154056 | I51: 756.6628892 | J51: 868.9154056 | K51: 0
A52: Herbizide | C52: €/ha | D52: 40 | E52: 50 | F52: 50 | G52: 50 | H52: 50 | I52: 50 | J52: 50 | K52: 0
A53: Fungizide | C53: €/ha | D53: 50 | E53: 70 | F53: 96 | G53: 70 | H53: 96 | I53: 70 | J53: 96 | K53: 0
A54: Insektizide | C54: €/ha | D54: 0 | E54: 7 | F54: 22 | G54: 7 | H54: 22 | I54: 7 | J54: 22 | K54: 0
A55: Wachstumsregler | C55: €/ha | D55: 6 | E55: 11 | F55: 15 | G55: 11 | H55: 15 | I55: 11 | J55: 15 | K55: 0
A56: Pflanzenbehandlungskosten* | C56: €/ha | D56: =SUM(D52:D55) -> 96 | E56: 138 | F56: 183 | G56: 138 | H56: 183 | I56: 138 | J56: 183 | K56: 0
A57: *bei stärkeren Ackerfuchsschwanzbesatz ist mit Mehrausgaben von 35 €/ha zu rechnen.
A58: **variable Kosten in Anlehnung an KTBL-Richtwerte für Arbeitsgänge incl. Zinsanspruch für 3 Monate

Sheet Futterweizen
B3: Landesbetrieb Landwirtschaft Hessen
A4: =IF(Stammdatenblatt!G6+Stammdatenblatt!D77+Stammdatenblatt!D112+Stammdatenblatt!B129+Stammdatenblatt!D140+Stammdatenblatt!C183+Stammdatenblatt!C221+Stammdatenblatt!C239=0,"Produktionsverfahren wurden netto gerechnet", "Produktionsverfahren wurden brutto gerechnet") -> Produktionsverfahren wurden brutto gerechnet | I4: =Wirtschaftsdünger!N4 -> Letztes (aktuelles) WJ.
K5: eigene
A6: Futterweizen | E6: 2 ha | G6: 5 ha | I6: 20 ha | K6: Werte
A7: Leistung: Menge Hauptprodukt | C7: dt/ha | D7: 60 | E7: 80 | F7: 100 | G7: 80 | H7: 100 | I7: 80 | J7: 100 | K7: 0
A8: Preis Hauptprodukt | C8: €/dt | D8: =+Stammdatenblatt!P13 -> 27.9585 | E8: =+D8 -> 27.9585 | F8: =E8 -> 27.9585 | G8: =+F8 -> 27.9585 | H8: =G8 -> 27.9585 | I8: =+H8 -> 27.9585 | J8: =I8 -> 27.9585 | K8: 0
A9: Erlös Hauptprodukt | C9: €/ha | D9: =D7*D8 -> 1677.51 | E9: 2236.68 | F9: 2795.85 | G9: 2236.68 | H9: 2795.85 | I9: 2236.68 | J9: 2795.85 | K9: 0
A10: Erlös Nebenprodukt(e) | C10: €/ha | D10: 0 | E10: =D10 -> 0 | F10: =E10 -> 0 | G10: 0 | H10: =G10 -> 0 | I10: 0 | J10: =I10 -> 0 | K10: 0
A11: Leistungen | C11: €/ha | D11: =D9+D10 -> 1677.51 | E11: =E10+E9 -> 2236.68 | F11: 2795.85 | G11: 2236.68 | H11: 2795.85 | I11: 2236.68 | J11: 2795.85 | K11: 0
A12: Saatgutkosten | C12: €/ha | D12: =D43 -> 120.00624 | E12: 120.00624 | F12: 120.00624 | G12: 120.00624 | H12: 120.00624 | I12: 120.00624 | J12: 120.00624 | K12: =K43 -> 0
A13: Mineraldüngerkosten | C13: €/ha | D13: =D51 -> 568.1524091 | E13: 710.2587817 | F13: 822.5112982 | G13: 710.2587817 | H13: 822.5112982 | I13: 710.2587817 | J13: 822.5112982 | K13: =K51 -> 0
A14: Pflanzenbehandlungskosten | C14: €/ha | D14: =D56*(1+Stammdatenblatt!D112) -> 114.24 | E14: =E56*(1+Stammdatenblatt!D112) -> 164.22 | F14: =F56*(1+Stammdatenblatt!D112) -> 217.77 | G14: =G56*(1+Stammdatenblatt!D112) -> 164.22 | H14: =H56*(1+Stammdatenblatt!D112) -> 217.77 | I14: =I56*(1+Stammdatenblatt!D112) -> 164.22 | J14: =J56*(1+Stammdatenblatt!D112) -> 217.77 | K14: =K56 -> 0
A15: Versicherung | C15: €/ha | D15: =(D11/1000)*Stammdatenblatt!$P$190 -> 11.93749666 | E15: =(E11/1000)*Stammdatenblatt!$P$190 -> 15.91666222 | F15: =(F11/1000)*Stammdatenblatt!$P$190 -> 19.89582777 | G15: =(G11/1000)*Stammdatenblatt!$P$190 -> 15.91666222 | H15: =(H11/1000)*Stammdatenblatt!$P$190 -> 19.89582777 | I15: =(I11/1000)*Stammdatenblatt!$P$190 -> 15.91666222 | J15: =(J11/1000)*Stammdatenblatt!$P$190 -> 19.89582777 | K15: =(K11/1000)*Stammdatenblatt!$E$190 -> 0
A16: Trocknungskosten | C16: €/ha | D16: =(D7*Stammdatenblatt!$P$201+D7*(Stammdatenblatt!$P$202*4))/3 -> 66.878 | E16: =(E7*Stammdatenblatt!$P$201+E7*(Stammdatenblatt!$P$202*4))/3 -> 89.17066667 | F16: =(F7*Stammdatenblatt!$P$201+F7*(Stammdatenblatt!$P$202*4))/3 -> 111.4633333 | G16: =E16 -> 89.17066667 | H16: =F16 -> 111.4633333 | I16: =G16 -> 89.17066667 | J16: =H16 -> 111.4633333 | K16: =K7/Stammdatenblatt!$E$204*Stammdatenblatt!$E$201+(Stammdatenblatt!$E$203*Stammdatenblatt!$E$202) -> 1.84
A17: Summe Direktkosten | C17: €/ha | D17: =SUM(D12:D16) -> 881.2141457 | E17: =SUM(E12:E16) -> 1099.572351 | F17: 1291.646699 | G17: 1099.572351 | H17: 1291.646699 | I17: 1099.572351 | J17: 1291.646699 | K17: 1.84
A18: Direktkostenfreie Leistung | C18: €/ha | D18: =D11-D17 -> 796.2958543 | E18: 1137.107649 | F18: 1504.203301 | G18: 1137.107649 | H18: 1504.203301 | I18: 1137.107649 | J18: 1504.203301 | K18: -1.84
A19: Maschinenkosten eigen * | C19: €/ha | D19: ='Arbeitsvorgänge-KTBL'!T76 -> 209.9095177 | E19: ='Arbeitsvorgänge-KTBL'!T156 -> 255.8287467 | F19: ='Arbeitsvorgänge-KTBL'!T245 -> 275.7911355 | G19: ='Arbeitsvorgänge-KTBL'!T328 -> 239.4360192 | H19: ='Arbeitsvorgänge-KTBL'!T420 -> 256.8033115 | I19: ='Arbeitsvorgänge-KTBL'!T511 -> 220.6858707 | J19: ='Arbeitsvorgänge-KTBL'!T611 -> 237.6086255 | K19: 0
A20: Maschinenkosten fremd | C20: €/ha | D20: ='Arbeitsvorgänge-KTBL'!U76*(1+Stammdatenblatt!C239) -> 125.35 | E20: ='Arbeitsvorgänge-KTBL'!U156*(1+Stammdatenblatt!C239) -> 125.35 | F20: ='Arbeitsvorgänge-KTBL'!U245*(1+Stammdatenblatt!C239) -> 125.35 | G20: ='Arbeitsvorgänge-KTBL'!U328*(1+Stammdatenblatt!C239) -> 125.35 | H20: ='Arbeitsvorgänge-KTBL'!U420*(1+Stammdatenblatt!C239) -> 125.35 | I20: ='Arbeitsvorgänge-KTBL'!U511*(1+Stammdatenblatt!C239) -> 114.45 | J20: ='Arbeitsvorgänge-KTBL'!U611*(1+Stammdatenblatt!C239) -> 114.45 | K20: 0
A21: Lohnkosten | C21: €/ha | D21: 0 | E21: =D21 -> 0 | F21: =E21 -> 0 | G21: 0 | H21: =G21 -> 0 | I21: 0 | J21: =I21 -> 0 | K21: 0
A22: xxx | C22: €/ha | D22: 0 | E22: =D22 -> 0 | F22: =E22 -> 0 | G22: 0 | H22: =G22 -> 0 | I22: 0 | J22: =I22 -> 0 | K22: 0
A23: variable Kosten | C23: €/ha | D23: =SUM(D19:D22,D17) -> 1216.473663 | E23: =SUM(E19:E22,E17) -> 1480.751097 | F23: 1692.787835 | G23: 1464.35837 | H23: 1673.800011 | I23: 1434.708221 | J23: 1643.705325 | K23: 1.84
A24: Deckungsbeitrag (DB) | C24: €/ha | D24: =D11-D23 -> 461.0363365 | E24: 755.9289026 | F24: 1103.062165 | G24: 772.3216301 | H24: 1122.049989 | I24: 801.9717786 | J24: 1152.144675 | K24: -1.84
A25: Zeit-Spanne | B25: AK-Bedarf
A26: FEB | C26: Akh/ha | D26: =SUMIF('Arbeitsvorgänge-KTBL'!$B$9:$B$73,Qualitätsweizen!A26,'Arbeitsvorgänge-KTBL'!$G$9:$G$73) -> 0.33 | E26: =SUMIF('Arbeitsvorgänge-KTBL'!$B$88:$B$153,Qualitätsweizen!A26,'Arbeitsvorgänge-KTBL'!$G$88:$G$153) -> 0.37 | F26: =SUMIF('Arbeitsvorgänge-KTBL'!$B$168:$B$242,Qualitätsweizen!A26,'Arbeitsvorgänge-KTBL'!$G$168:$G$242) -> 0.39 | G26: =SUMIF('Arbeitsvorgänge-KTBL'!$B$257:$B$325,Qualitätsweizen!A26,'Arbeitsvorgänge-KTBL'!$G$257:$G$325) -> 0.32 | H26: =SUMIF('Arbeitsvorgänge-KTBL'!$B$340:$B$417,Qualitätsweizen!A26,'Arbeitsvorgänge-KTBL'!$G$340:$G$417) -> 0.35 | I26: =SUMIF('Arbeitsvorgänge-KTBL'!$B$432:$B$508,Qualitätsweizen!A26,'Arbeitsvorgänge-KTBL'!$G$432:$G$508) -> 0.2 | J26: =SUMIF('Arbeitsvorgänge-KTBL'!$B$523:$B$608,Qualitätsweizen!A26,'Arbeitsvorgänge-KTBL'!$G$523:$G$608) -> 0.21 | K26: 0
A27: MRZ | C27: Akh/ha | D27: =SUMIF('Arbeitsvorgänge-KTBL'!$B$9:$B$73,Qualitätsweizen!A27,'Arbeitsvorgänge-KTBL'!$G$9:$G$73) -> 0.13 | E27: =SUMIF('Arbeitsvorgänge-KTBL'!$B$88:$B$153,Qualitätsweizen!A27,'Arbeitsvorgänge-KTBL'!$G$88:$G$153) -> 0.13 | F27: =SUMIF('Arbeitsvorgänge-KTBL'!$B$168:$B$242,Qualitätsweizen!A27,'Arbeitsvorgänge-KTBL'!$G$168:$G$242) -> 0.13 | G27: =SUMIF('Arbeitsvorgänge-KTBL'!$B$257:$B$325,Qualitätsweizen!A27,'Arbeitsvorgänge-KTBL'!$G$257:$G$325) -> 0.11 | H27: =SUMIF('Arbeitsvorgänge-KTBL'!$B$340:$B$417,Qualitätsweizen!A27,'Arbeitsvorgänge-KTBL'!$G$340:$G$417) -> 0.11 | I27: =SUMIF('Arbeitsvorgänge-KTBL'!$B$432:$B$508,Qualitätsweizen!A27,'Arbeitsvorgänge-KTBL'!$G$432:$G$508) -> 0.1 | J27: =SUMIF('Arbeitsvorgänge-KTBL'!$B$523:$B$608,Qualitätsweizen!A27,'Arbeitsvorgänge-KTBL'!$G$523:$G$608) -> 0.1 | K27: 0
A28: APR | C28: Akh/ha | D28: =SUMIF('Arbeitsvorgänge-KTBL'!$B$9:$B$73,Qualitätsweizen!A28,'Arbeitsvorgänge-KTBL'!$G$9:$G$73) -> 0.74 | E28: =SUMIF('Arbeitsvorgänge-KTBL'!$B$88:$B$153,Qualitätsweizen!A28,'Arbeitsvorgänge-KTBL'!$G$88:$G$153) -> 0.74 | F28: =SUMIF('Arbeitsvorgänge-KTBL'!$B$168:$B$242,Qualitätsweizen!A28,'Arbeitsvorgänge-KTBL'!$G$168:$G$242) -> 0.9 | G28: =SUMIF('Arbeitsvorgänge-KTBL'!$B$257:$B$325,Qualitätsweizen!A28,'Arbeitsvorgänge-KTBL'!$G$257:$G$325) -> 0.52 | H28: =SUMIF('Arbeitsvorgänge-KTBL'!$B$340:$B$417,Qualitätsweizen!A28,'Arbeitsvorgänge-KTBL'!$G$340:$G$417) -> 0.65 | I28: =SUMIF('Arbeitsvorgänge-KTBL'!$B$432:$B$508,Qualitätsweizen!A28,'Arbeitsvorgänge-KTBL'!$G$432:$G$508) -> 0.37 | J28: =SUMIF('Arbeitsvorgänge-KTBL'!$B$523:$B$608,Qualitätsweizen!A28,'Arbeitsvorgänge-KTBL'!$G$523:$G$608) -> 0.43 | K28: 0
A29: MAI | C29: Akh/ha | D29: =SUMIF('Arbeitsvorgänge-KTBL'!$B$9:$B$73,Qualitätsweizen!A29,'Arbeitsvorgänge-KTBL'!$G$9:$G$73) -> 0.13 | E29: =SUMIF('Arbeitsvorgänge-KTBL'!$B$88:$B$153,Qualitätsweizen!A29,'Arbeitsvorgänge-KTBL'!$G$88:$G$153) -> 0.13 | F29: =SUMIF('Arbeitsvorgänge-KTBL'!$B$168:$B$242,Qualitätsweizen!A29,'Arbeitsvorgänge-KTBL'!$G$168:$G$242) -> 0.42 | G29: =SUMIF('Arbeitsvorgänge-KTBL'!$B$257:$B$325,Qualitätsweizen!A29,'Arbeitsvorgänge-KTBL'!$G$257:$G$325) -> 0.11 | H29: =SUMIF('Arbeitsvorgänge-KTBL'!$B$340:$B$417,Qualitätsweizen!A29,'Arbeitsvorgänge-KTBL'!$G$340:$G$417) -> 0.35 | I29: =SUMIF('Arbeitsvorgänge-KTBL'!$B$432:$B$508,Qualitätsweizen!A29,'Arbeitsvorgänge-KTBL'!$G$432:$G$508) -> 0.1 | J29: =SUMIF('Arbeitsvorgänge-KTBL'!$B$523:$B$608,Qualitätsweizen!A29,'Arbeitsvorgänge-KTBL'!$G$523:$G$608) -> 0.26 | K29: 0
A30: JUN | C30: Akh/ha | D30: =SUMIF('Arbeitsvorgänge-KTBL'!$B$9:$B$73,Qualitätsweizen!A30,'Arbeitsvorgänge-KTBL'!$G$9:$G$73) -> 0.46 | E30: =SUMIF('Arbeitsvorgänge-KTBL'!$B$88:$B$153,Qualitätsweizen!A30,'Arbeitsvorgänge-KTBL'!$G$88:$G$153) -> 0.46 | F30: =SUMIF('Arbeitsvorgänge-KTBL'!$B$168:$B$242,Qualitätsweizen!A30,'Arbeitsvorgänge-KTBL'!$G$168:$G$242) -> 0.44 | G30: =SUMIF('Arbeitsvorgänge-KTBL'!$B$257:$B$325,Qualitätsweizen!A30,'Arbeitsvorgänge-KTBL'!$G$257:$G$325) -> 0.33 | H30: =SUMIF('Arbeitsvorgänge-KTBL'!$B$340:$B$417,Qualitätsweizen!A30,'Arbeitsvorgänge-KTBL'!$G$340:$G$417) -> 0.32 | I30: =SUMIF('Arbeitsvorgänge-KTBL'!$B$432:$B$508,Qualitätsweizen!A30,'Arbeitsvorgänge-KTBL'!$G$432:$G$508) -> 0.22 | J30: =SUMIF('Arbeitsvorgänge-KTBL'!$B$523:$B$608,Qualitätsweizen!A30,'Arbeitsvorgänge-KTBL'!$G$523:$G$608) -> 0.21 | K30: 0
A31: JUL | C31: Akh/ha | D31: =SUMIF('Arbeitsvorgänge-KTBL'!$B$9:$B$73,Qualitätsweizen!A31,'Arbeitsvorgänge-KTBL'!$G$9:$G$73) -> 0 | E31: =SUMIF('Arbeitsvorgänge-KTBL'!$B$88:$B$153,Qualitätsweizen!A31,'Arbeitsvorgänge-KTBL'!$G$88:$G$153) -> 0 | F31: =SUMIF('Arbeitsvorgänge-KTBL'!$B$168:$B$242,Qualitätsweizen!A31,'Arbeitsvorgänge-KTBL'!$G$168:$G$242) -> 0 | G31: =SUMIF('Arbeitsvorgänge-KTBL'!$B$257:$B$325,Qualitätsweizen!A31,'Arbeitsvorgänge-KTBL'!$G$257:$G$325) -> 0 | H31: =SUMIF('Arbeitsvorgänge-KTBL'!$B$340:$B$417,Qualitätsweizen!A31,'Arbeitsvorgänge-KTBL'!$G$340:$G$417) -> 0 | I31: =SUMIF('Arbeitsvorgänge-KTBL'!$B$432:$B$508,Qualitätsweizen!A31,'Arbeitsvorgänge-KTBL'!$G$432:$G$508) -> 0 | J31: =SUMIF('Arbeitsvorgänge-KTBL'!$B$523:$B$608,Qualitätsweizen!A31,'Arbeitsvorgänge-KTBL'!$G$523:$G$608) -> 0 | K31: 0
A32: AUG | C32: Akh/ha | D32: =SUMIF('Arbeitsvorgänge-KTBL'!$B$9:$B$73,Qualitätsweizen!A32,'Arbeitsvorgänge-KTBL'!$G$9:$G$73) -> 1.9 | E32: =SUMIF('Arbeitsvorgänge-KTBL'!$B$88:$B$153,Qualitätsweizen!A32,'Arbeitsvorgänge-KTBL'!$G$88:$G$153) -> 2.27 | F32: =SUMIF('Arbeitsvorgänge-KTBL'!$B$168:$B$242,Qualitätsweizen!A32,'Arbeitsvorgänge-KTBL'!$G$168:$G$242) -> 2.51 | G32: =SUMIF('Arbeitsvorgänge-KTBL'!$B$257:$B$325,Qualitätsweizen!A32,'Arbeitsvorgänge-KTBL'!$G$257:$G$325) -> 1.85 | H32: =SUMIF('Arbeitsvorgänge-KTBL'!$B$340:$B$417,Qualitätsweizen!A32,'Arbeitsvorgänge-KTBL'!$G$340:$G$417) -> 2.16 | I32: =SUMIF('Arbeitsvorgänge-KTBL'!$B$432:$B$508,Qualitätsweizen!A32,'Arbeitsvorgänge-KTBL'!$G$432:$G$508) -> 1.2 | J32: =SUMIF('Arbeitsvorgänge-KTBL'!$B$523:$B$608,Qualitätsweizen!A32,'Arbeitsvorgänge-KTBL'!$G$523:$G$608) -> 1.4 | K32: 0
A33: SEP | C33: Akh/ha | D33: =SUMIF('Arbeitsvorgänge-KTBL'!$B$9:$B$73,Qualitätsweizen!A33,'Arbeitsvorgänge-KTBL'!$G$9:$G$73) -> 3.07 | E33: =SUMIF('Arbeitsvorgänge-KTBL'!$B$88:$B$153,Qualitätsweizen!A33,'Arbeitsvorgänge-KTBL'!$G$88:$G$153) -> 3.11 | F33: =SUMIF('Arbeitsvorgänge-KTBL'!$B$168:$B$242,Qualitätsweizen!A33,'Arbeitsvorgänge-KTBL'!$G$168:$G$242) -> 3.14 | G33: =SUMIF('Arbeitsvorgänge-KTBL'!$B$257:$B$325,Qualitätsweizen!A33,'Arbeitsvorgänge-KTBL'!$G$257:$G$325) -> 2.32 | H33: =SUMIF('Arbeitsvorgänge-KTBL'!$B$340:$B$417,Qualitätsweizen!A33,'Arbeitsvorgänge-KTBL'!$G$340:$G$417) -> 2.35 | I33: =SUMIF('Arbeitsvorgänge-KTBL'!$B$432:$B$508,Qualitätsweizen!A33,'Arbeitsvorgänge-KTBL'!$G$432:$G$508) -> 1.57 | J33: =SUMIF('Arbeitsvorgänge-KTBL'!$B$523:$B$608,Qualitätsweizen!A33,'Arbeitsvorgänge-KTBL'!$G$523:$G$608) -> 1.58 | K33: 0
A34: OKT | C34: Akh/ha | D34: =SUMIF('Arbeitsvorgänge-KTBL'!$B$9:$B$73,Qualitätsweizen!A34,'Arbeitsvorgänge-KTBL'!$G$9:$G$73) -> 1.83 | E34: =SUMIF('Arbeitsvorgänge-KTBL'!$B$88:$B$153,Qualitätsweizen!A34,'Arbeitsvorgänge-KTBL'!$G$88:$G$153) -> 1.83 | F34: =SUMIF('Arbeitsvorgänge-KTBL'!$B$168:$B$242,Qualitätsweizen!A34,'Arbeitsvorgänge-KTBL'!$G$168:$G$242) -> 1.83 | G34: =SUMIF('Arbeitsvorgänge-KTBL'!$B$257:$B$325,Qualitätsweizen!A34,'Arbeitsvorgänge-KTBL'!$G$257:$G$325) -> 1.31 | H34: =SUMIF('Arbeitsvorgänge-KTBL'!$B$340:$B$417,Qualitätsweizen!A34,'Arbeitsvorgänge-KTBL'!$G$340:$G$417) -> 1.31 | I34: =SUMIF('Arbeitsvorgänge-KTBL'!$B$432:$B$508,Qualitätsweizen!A34,'Arbeitsvorgänge-KTBL'!$G$432:$G$508) -> 0.85 | J34: =SUMIF('Arbeitsvorgänge-KTBL'!$B$523:$B$608,Qualitätsweizen!A34,'Arbeitsvorgänge-KTBL'!$G$523:$G$608) -> 0.85 | K34: 0
A35: NOV | C35: Akh/ha | D35: =SUMIF('Arbeitsvorgänge-KTBL'!$B$9:$B$73,Qualitätsweizen!A35,'Arbeitsvorgänge-KTBL'!$G$9:$G$73) -> 0 | E35: =SUMIF('Arbeitsvorgänge-KTBL'!$B$88:$B$153,Qualitätsweizen!A35,'Arbeitsvorgänge-KTBL'!$G$88:$G$153) -> 0 | F35: =SUMIF('Arbeitsvorgänge-KTBL'!$B$168:$B$242,Qualitätsweizen!A35,'Arbeitsvorgänge-KTBL'!$G$168:$G$242) -> 0 | G35: =SUMIF('Arbeitsvorgänge-KTBL'!$B$257:$B$325,Qualitätsweizen!A35,'Arbeitsvorgänge-KTBL'!$G$257:$G$325) -> 0 | H35: =SUMIF('Arbeitsvorgänge-KTBL'!$B$340:$B$417,Qualitätsweizen!A35,'Arbeitsvorgänge-KTBL'!$G$340:$G$417) -> 0 | I35: =SUMIF('Arbeitsvorgänge-KTBL'!$B$432:$B$508,Qualitätsweizen!A35,'Arbeitsvorgänge-KTBL'!$G$432:$G$508) -> 0 | J35: =SUMIF('Arbeitsvorgänge-KTBL'!$B$523:$B$608,Qualitätsweizen!A35,'Arbeitsvorgänge-KTBL'!$G$523:$G$608) -> 0 | K35: 0
A36: Rest | C36: Akh/ha | D36: =SUMIF('Arbeitsvorgänge-KTBL'!$B$9:$B$73,Qualitätsweizen!A36,'Arbeitsvorgänge-KTBL'!$G$9:$G$73) -> 0 | E36: =SUMIF('Arbeitsvorgänge-KTBL'!$B$88:$B$153,Qualitätsweizen!A36,'Arbeitsvorgänge-KTBL'!$G$88:$G$153) -> 0 | F36: =SUMIF('Arbeitsvorgänge-KTBL'!$B$168:$B$242,Qualitätsweizen!A36,'Arbeitsvorgänge-KTBL'!$G$168:$G$242) -> 0 | G36: =SUMIF('Arbeitsvorgänge-KTBL'!$B$257:$B$325,Qualitätsweizen!A36,'Arbeitsvorgänge-KTBL'!$G$257:$G$325) -> 0 | H36: =SUMIF('Arbeitsvorgänge-KTBL'!$B$340:$B$417,Qualitätsweizen!A36,'Arbeitsvorgänge-KTBL'!$G$340:$G$417) -> 0 | I36: =SUMIF('Arbeitsvorgänge-KTBL'!$B$432:$B$508,Qualitätsweizen!A36,'Arbeitsvorgänge-KTBL'!$G$432:$G$508) -> 0 | J36: =SUMIF('Arbeitsvorgänge-KTBL'!$B$523:$B$608,Qualitätsweizen!A36,'Arbeitsvorgänge-KTBL'!$G$523:$G$608) -> 0 | K36: 0
A37: Arbeitskraftstunden | C37: AKh/ha | D37: =SUM(D26:D36) -> 8.59 | E37: =SUM(E26:E36) -> 9.04 | F37: 9.76 | G37: 6.87 | H37: 7.6 | I37: 4.61 | J37: 5.04 | K37: 0
A38: DB (je Akh) | C38: €/Akh | D38: =IF(D24>0,D24/D37,0) -> 53.67128481 | E38: 83.62045383 | F38: 113.0186645 | G38: 112.4194513 | H38: 147.6381565 | I38: 173.9635095 | J38: 228.600134 | K38: 0
A39: Aussaatmenge | C39: kg/ha | D39: 200 | E39: =D39 -> 200 | F39: 200 | G39: 200 | H39: 200 | I39: 200 | J39: 200 | K39: 0
A40: davon Zukaufsaatgut | C40: % | D40: 68 | E40: 68 | F40: 68 | G40: 68 | H40: 68 | I40: 68 | J40: 68 | K40: 0
A41: Saatgutpreis Eigen | C41: €/dt | D41: =D8+Stammdatenblatt!$K$186 -> 35.1685 | E41: =E8+Stammdatenblatt!$K$186 -> 35.1685 | F41: =F8+Stammdatenblatt!$K$186 -> 35.1685 | G41: =G8+Stammdatenblatt!$K$186 -> 35.1685 | H41: =H8+Stammdatenblatt!$K$186 -> 35.1685 | I41: =I8+Stammdatenblatt!$K$186 -> 35.1685 | J41: =J8+Stammdatenblatt!$K$186 -> 35.1685 | K41: 0
A42: Zukauf | C42: €/dt | D42: =+Stammdatenblatt!P78 -> 71.69 | E42: 71.69 | F42: 71.69 | G42: 71.69 | H42: 71.69 | I42: 71.69 | J42: 71.69 | K42: 0
A43: Saatgutkosten | C43: €/ha | D43: =D40/100*(D39*D42)/100+((100-D40)/100*D39*D41/100) -> 120.00624 | E43: 120.00624 | F43: 120.00624 | G43: 120.00624 | H43: 120.00624 | I43: 120.00624 | J43: 120.00624 | K43: 0
A44: Dünger: | B44: €/kg | D44: Düngerbedarf/ha (in kg Reinnährstoff) Nach Rechentabelle DÜV; N-min Durchschnittswerte LLH; Bodenart II
A45: =+Stammdatenblatt!A130 -> Stickstoff | B45: =+Stammdatenblatt!P130 -> 2.320205374 | C45: Aufw./ha | D45: 129 | E45: 159 | F45: 179 | G45: 159 | H45: 179 | I45: 159 | J45: 179 | K45: 0
A46: =+Stammdatenblatt!A131 -> Phosphor | B46: =+Stammdatenblatt!P131 -> 1.226340187 | C46: Aufw./ha | D46: 62 | E46: 83 | F46: 104 | G46: 83 | H46: 104 | I46: 83 | J46: 104 | K46: 0
A47: =+Stammdatenblatt!A132 -> Kali | B47: =+Stammdatenblatt!P132 -> 1.0165575 | C47: Aufw./ha | D47: 103 | E47: 138 | F47: 172 | G47: 138 | H47: 172 | I47: 138 | J47: 172 | K47: 0
A48: =+Stammdatenblatt!A133 -> Kalk | B48: =+Stammdatenblatt!P133 -> 0.04746777778 | C48: Aufw./ha | D48: 300 | E48: =D48 -> 300 | F48: 300 | G48: 300 | H48: 300 | I48: 300 | J48: 300 | K48: 0
A49: =+Stammdatenblatt!A134 -> Magnesium | B49: =+Stammdatenblatt!P134 -> 1.844103333 | C49: Aufw./ha | D49: 38 | E49: 42 | F49: 45 | G49: 42 | H49: 45 | I49: 42 | J49: 45 | K49: 0
A50: =+Stammdatenblatt!A135 -> Schwefel | B50: =+Stammdatenblatt!P135 -> 0.7582283333 | C50: Aufw./ha | D50: 5 | E50: 10 | F50: 10 | G50: 10 | H50: 10 | I50: 10 | J50: 10 | K50: 0
A51: Mineraldüngerkosten | C51: €/ha | D51: =D45*$B$45+D46*$B$46+D47*$B$47+D48*$B$48+D49*$B$49+D50*$B$50 -> 568.1524091 | E51: =E45*$B$45+E46*$B$46+E47*$B$47+E48*$B$48+E49*$B$49+E50*$B$50 -> 710.2587817 | F51: 822.5112982 | G51: 710.2587817 | H51: 822.5112982 | I51: 710.2587817 | J51: 822.5112982 | K51: 0
A52: Herbizide | C52: €/ha | D52: 40 | E52: 50 | F52: 50 | G52: 50 | H52: 50 | I52: 50 | J52: 50 | K52: 0
A53: Fungizide | C53: €/ha | D53: 50 | E53: 70 | F53: 96 | G53: 70 | H53: 96 | I53: 70 | J53: 96 | K53: 0
A54: Insektizide | C54: €/ha | D54: 0 | E54: 7 | F54: 22 | G54: 7 | H54: 22 | I54: 7 | J54: 22 | K54: 0
A55: Wachstumsregler | C55: €/ha | D55: 6 | E55: 11 | F55: 15 | G55: 11 | H55: 15 | I55: 11 | J55: 15 | K55: 0
A56: Pflanzenbehandlungskosten** | C56: €/ha | D56: =SUM(D52:D55) -> 96 | E56: 138 | F56: 183 | G56: 138 | H56: 183 | I56: 138 | J56: 183 | K56: 0
A57: ** bei stärkeren Ackerfuchsschwanzbesatz ist mit Mehrausgaben von 35 €/ha zu rechnen.
A58: *variable Kosten in Anlehnung an KTBL-Richtwerte für Arbeitsgänge incl. Zinsanspruch für 3 Monate

Sheet Sommerweizen
B3: Landesbetrieb Landwirtschaft Hessen
A4: =IF(Stammdatenblatt!G6+Stammdatenblatt!D77+Stammdatenblatt!D112+Stammdatenblatt!B129+Stammdatenblatt!D140+Stammdatenblatt!C183+Stammdatenblatt!C221+Stammdatenblatt!C239=0,"Produktionsverfahren wurden netto gerechnet", "Produktionsverfahren wurden brutto gerechnet") -> Produktionsverfahren wurden brutto gerechnet | I4: =Wirtschaftsdünger!N4 -> Letztes (aktuelles) WJ.
K5: eigene
A6: Sommerweizen | E6: 2 ha | G6: 5 ha | I6: 20 ha | K6: Werte
A7: Leistung: Menge Hauptprodukt | C7: dt/ha | D7: 55 | E7: 70 | F7: 90 | G7: 70 | H7: 90 | I7: 70 | J7: 90 | K7: 0
A8: Preis Hauptprodukt | C8: € | D8: =+Stammdatenblatt!P12 -> 28.51985 | E8: =D8 -> 28.51985 | F8: =E8 -> 28.51985 | G8: =+F8 -> 28.51985 | H8: =G8 -> 28.51985 | I8: =+H8 -> 28.51985 | J8: =I8 -> 28.51985 | K8: 0
A9: Erlös Hauptprodukt | C9: €/ha | D9: =D7*D8 -> 1568.59175 | E9: 1996.3895 | F9: 2566.7865 | G9: 1996.3895 | H9: 2566.7865 | I9: 1996.3895 | J9: 2566.7865 | K9: 0
A10: Erlös Nebenprodukt(e) | C10: €/ha | D10: 0 | E10: =D10 -> 0 | F10: =E10 -> 0 | G10: 0 | H10: =G10 -> 0 | I10: 0 | J10: =I10 -> 0 | K10: 0
A11: Leistungen | C11: €/ha | D11: =D9+D10 -> 1568.59175 | E11: =E10+E9 -> 1996.3895 | F11: 2566.7865 | G11: 1996.3895 | H11: 2566.7865 | I11: 1996.3895 | J11: 2566.7865 | K11: 0
A12: Saatgutkosten | C12: €/ha | D12: =D43 -> 122.3074212 | E12: 122.3074212 | F12: 122.3074212 | G12: 122.3074212 | H12: 122.3074212 | I12: 122.3074212 | J12: 122.3074212 | K12: =K43 -> 0
A13: Mineraldüngerkosten | C13: €/ha | D13: =D51 -> 566.4414791 | E13: 657.4474952 | F13: 772.5606725 | G13: 657.4474952 | H13: 772.5606725 | I13: 657.4474952 | J13: 772.5606725 | K13: =K51 -> 0
A14: Pflanzenbehandlungskosten | C14: €/ha | D14: =D56*(1+Stammdatenblatt!D112) -> 97.58 | E14: =E56*(1+Stammdatenblatt!D112) -> 128.52 | F14: =F56*(1+Stammdatenblatt!D112) -> 174.93 | G14: =G56*(1+Stammdatenblatt!D112) -> 128.52 | H14: =H56*(1+Stammdatenblatt!D112) -> 174.93 | I14: =I56*(1+Stammdatenblatt!D112) -> 128.52 | J14: =J56*(1+Stammdatenblatt!D112) -> 174.93 | K14: =K56 -> 0
A15: Versicherung | C15: €/ha | D15: =+D11/1000*Stammdatenblatt!$P$191 -> 11.16241261 | E15: =+E11/1000*Stammdatenblatt!$P$191 -> 14.20670696 | F15: =+F11/1000*Stammdatenblatt!$P$191 -> 18.26576609 | G15: =+G11/1000*Stammdatenblatt!$P$191 -> 14.20670696 | H15: =+H11/1000*Stammdatenblatt!$P$191 -> 18.26576609 | I15: =+I11/1000*Stammdatenblatt!$P$191 -> 14.20670696 | J15: =+J11/1000*Stammdatenblatt!$P$191 -> 18.26576609 | K15: =+K11/1000*Stammdatenblatt!$E$191 -> 0
A16: Trocknungskosten | C16: €/ha | D16: =(D7*Stammdatenblatt!$P$201+D7*(Stammdatenblatt!$P$202*4))/3 -> 61.30483333 | E16: =(E7*Stammdatenblatt!$P$201+E7*(Stammdatenblatt!$P$202*4))/3 -> 78.02433333 | F16: =(F7*Stammdatenblatt!$P$201+F7*(Stammdatenblatt!$P$202*4))/3 -> 100.317 | G16: =E16 -> 78.02433333 | H16: =F16 -> 100.317 | I16: =G16 -> 78.02433333 | J16: =H16 -> 100.317 | K16: =K7/Stammdatenblatt!$E$204*Stammdatenblatt!$E$201+(Stammdatenblatt!$E$203*Stammdatenblatt!$E$202) -> 1.84
A17: Summe Direktkosten | C17: €/ha | D17: =SUM(D12:D16) -> 858.7961463 | E17: =SUM(E12:E16) -> 1000.505957 | F17: 1188.38086 | G17: 1000.505957 | H17: 1188.38086 | I17: 1000.505957 | J17: 1188.38086 | K17: 1.84
A18: Direktkostenfreie Leistung | C18: €/ha | D18: =D11-D17 -> 709.7956037 | E18: =E11-E17 -> 995.8835433 | F18: 1378.40564 | G18: 995.8835433 | H18: 1378.40564 | I18: 995.8835433 | J18: 1378.40564 | K18: -1.84
A19: Maschinenkosten eigen ** | C19: €/ha | D19: ='Arbeitsvorgänge-KTBL'!T2192 -> 185.7809783 | E19: ='Arbeitsvorgänge-KTBL'!T2253 -> 231.2445095 | F19: ='Arbeitsvorgänge-KTBL'!T2253 -> 231.2445095 | G19: ='Arbeitsvorgänge-KTBL'!T2379 -> 217.493522 | H19: ='Arbeitsvorgänge-KTBL'!T2379 -> 217.493522 | I19: ='Arbeitsvorgänge-KTBL'!T2513 -> 195.2576768 | J19: ='Arbeitsvorgänge-KTBL'!T2513 -> 195.2576768 | K19: 0
A20: Maschinenkosten fremd | C20: €/ha | D20: ='Arbeitsvorgänge-KTBL'!U76*(1+Stammdatenblatt!C239) -> 125.35 | E20: ='Arbeitsvorgänge-KTBL'!U156*(1+Stammdatenblatt!C239) -> 125.35 | F20: ='Arbeitsvorgänge-KTBL'!U245*(1+Stammdatenblatt!C239) -> 125.35 | G20: ='Arbeitsvorgänge-KTBL'!U328*(1+Stammdatenblatt!C239) -> 125.35 | H20: ='Arbeitsvorgänge-KTBL'!U420*(1+Stammdatenblatt!C239) -> 125.35 | I20: ='Arbeitsvorgänge-KTBL'!U511*(1+Stammdatenblatt!C239) -> 114.45 | J20: ='Arbeitsvorgänge-KTBL'!U611*(1+Stammdatenblatt!C239) -> 114.45 | K20: 0
A21: Lohnkosten | C21: €/ha | D21: 0 | E21: =D21 -> 0 | F21: =E21 -> 0 | G21: 0 | H21: =G21 -> 0 | I21: 0 | J21: =I21 -> 0 | K21: 0
A22: xxx | C22: €/ha | D22: 0 | E22: =D22 -> 0 | F22: =E22 -> 0 | G22: 0 | H22: =G22 -> 0 | I22: 0 | J22: =I22 -> 0 | K22: 0
A23: variable Kosten | C23: €/ha | D23: =SUM(D19:D22,D17) -> 1169.927125 | E23: =SUM(E19:E22,E17) -> 1357.100466 | F23: 1544.975369 | G23: 1343.349479 | H23: 1531.224382 | I23: 1310.213633 | J23: 1498.088537 | K23: 1.84
A24: Deckungsbeitrag (DB) | C24: €/ha | D24: =D11-D23 -> 398.6646255 | E24: 639.2890338 | F24: 1021.811131 | G24: 653.0400213 | H24: 1035.562118 | I24: 686.1758665 | J24: 1068.697963 | K24: -1.84
A25: Zeit-Spanne | B25: AK-Bedarf
A26: FEB | C26: Akh/ha | D26: =SUMIF('Arbeitsvorgänge-KTBL'!$B$2526:$B$2565,Hafer!A26,'Arbeitsvorgänge-KTBL'!$G$2526:$G$2565) -> 0 | E26: =SUMIF('Arbeitsvorgänge-KTBL'!$B$2580:$B$2623,Hafer!A26,'Arbeitsvorgänge-KTBL'!$G$2580:$G$2623) -> 0 | F26: =SUMIF('Arbeitsvorgänge-KTBL'!$B$2580:$B$2623,Sommerweizen!A26,'Arbeitsvorgänge-KTBL'!$G$2580:$G$2623) -> 0 | G26: =SUMIF('Arbeitsvorgänge-KTBL'!$B$2638:$B$2680,A26,'Arbeitsvorgänge-KTBL'!$G$2638:$G$2680) -> 0 | H26: =SUMIF('Arbeitsvorgänge-KTBL'!$B$2695:$B$2741,A26,'Arbeitsvorgänge-KTBL'!$G$2695:$G$2741) -> 0 | I26: =SUMIF('Arbeitsvorgänge-KTBL'!$B$2756:$B$2800,A26,'Arbeitsvorgänge-KTBL'!$G$2756:$G$2800) -> 0 | J26: =SUMIF('Arbeitsvorgänge-KTBL'!$B$2815:$B$2865,A26,'Arbeitsvorgänge-KTBL'!$G$2815:$G$2865) -> 0 | K26: 0
A27: MRZ | C27: Akh/ha | D27: =SUMIF('Arbeitsvorgänge-KTBL'!$B$2526:$B$2565,Hafer!A27,'Arbeitsvorgänge-KTBL'!$G$2526:$G$2565) -> 2.02 | E27: =SUMIF('Arbeitsvorgänge-KTBL'!$B$2580:$B$2623,Hafer!A27,'Arbeitsvorgänge-KTBL'!$G$2580:$G$2623) -> 2.05 | F27: =SUMIF('Arbeitsvorgänge-KTBL'!$B$2580:$B$2623,Sommerweizen!A27,'Arbeitsvorgänge-KTBL'!$G$2580:$G$2623) -> 2.05 | G27: =SUMIF('Arbeitsvorgänge-KTBL'!$B$2638:$B$2680,A27,'Arbeitsvorgänge-KTBL'!$G$2638:$G$2680) -> 1.45 | H27: =SUMIF('Arbeitsvorgänge-KTBL'!$B$2695:$B$2741,A27,'Arbeitsvorgänge-KTBL'!$G$2695:$G$2741) -> 1.49 | I27: =SUMIF('Arbeitsvorgänge-KTBL'!$B$2756:$B$2800,A27,'Arbeitsvorgänge-KTBL'!$G$2756:$G$2800) -> 0.89 | J27: =SUMIF('Arbeitsvorgänge-KTBL'!$B$2815:$B$2865,A27,'Arbeitsvorgänge-KTBL'!$G$2815:$G$2865) -> 0.89 | K27: 0
A28: APR | C28: Akh/ha | D28: =SUMIF('Arbeitsvorgänge-KTBL'!$B$2526:$B$2565,Hafer!A28,'Arbeitsvorgänge-KTBL'!$G$2526:$G$2565) -> 0 | E28: =SUMIF('Arbeitsvorgänge-KTBL'!$B$2580:$B$2623,Hafer!A28,'Arbeitsvorgänge-KTBL'!$G$2580:$G$2623) -> 0 | F28: =SUMIF('Arbeitsvorgänge-KTBL'!$B$2580:$B$2623,Sommerweizen!A28,'Arbeitsvorgänge-KTBL'!$G$2580:$G$2623) -> 0 | G28: =SUMIF('Arbeitsvorgänge-KTBL'!$B$2638:$B$2680,A28,'Arbeitsvorgänge-KTBL'!$G$2638:$G$2680) -> 0 | H28: =SUMIF('Arbeitsvorgänge-KTBL'!$B$2695:$B$2741,A28,'Arbeitsvorgänge-KTBL'!$G$2695:$G$2741) -> 0 | I28: =SUMIF('Arbeitsvorgänge-KTBL'!$B$2756:$B$2800,A28,'Arbeitsvorgänge-KTBL'!$G$2756:$G$2800) -> 0 | J28: =SUMIF('Arbeitsvorgänge-KTBL'!$B$2815:$B$2865,A28,'Arbeitsvorgänge-KTBL'!$G$2815:$G$2865) -> 0 | K28: 0
A29: MAI | C29: Akh/ha | D29: =SUMIF('Arbeitsvorgänge-KTBL'!$B$2526:$B$2565,Hafer!A29,'Arbeitsvorgänge-KTBL'!$G$2526:$G$2565) -> 0.13 | E29: =SUMIF('Arbeitsvorgänge-KTBL'!$B$2580:$B$2623,Hafer!A29,'Arbeitsvorgänge-KTBL'!$G$2580:$G$2623) -> 0.41 | F29: =SUMIF('Arbeitsvorgänge-KTBL'!$B$2580:$B$2623,Sommerweizen!A29,'Arbeitsvorgänge-KTBL'!$G$2580:$G$2623) -> 0.41 | G29: =SUMIF('Arbeitsvorgänge-KTBL'!$B$2638:$B$2680,A29,'Arbeitsvorgänge-KTBL'!$G$2638:$G$2680) -> 0.11 | H29: =SUMIF('Arbeitsvorgänge-KTBL'!$B$2695:$B$2741,A29,'Arbeitsvorgänge-KTBL'!$G$2695:$G$2741) -> 0.3 | I29: =SUMIF('Arbeitsvorgänge-KTBL'!$B$2756:$B$2800,A29,'Arbeitsvorgänge-KTBL'!$G$2756:$G$2800) -> 0.09 | J29: =SUMIF('Arbeitsvorgänge-KTBL'!$B$2815:$B$2865,A29,'Arbeitsvorgänge-KTBL'!$G$2815:$G$2865) -> 0.23 | K29: 0
A30: JUN | C30: Akh/ha | D30: =SUMIF('Arbeitsvorgänge-KTBL'!$B$2526:$B$2565,Hafer!A30,'Arbeitsvorgänge-KTBL'!$G$2526:$G$2565) -> 0 | E30: =SUMIF('Arbeitsvorgänge-KTBL'!$B$2580:$B$2623,Hafer!A30,'Arbeitsvorgänge-KTBL'!$G$2580:$G$2623) -> 0 | F30: =SUMIF('Arbeitsvorgänge-KTBL'!$B$2580:$B$2623,Sommerweizen!A30,'Arbeitsvorgänge-KTBL'!$G$2580:$G$2623) -> 0 | G30: =SUMIF('Arbeitsvorgänge-KTBL'!$B$2638:$B$2680,A30,'Arbeitsvorgänge-KTBL'!$G$2638:$G$2680) -> 0 | H30: =SUMIF('Arbeitsvorgänge-KTBL'!$B$2695:$B$2741,A30,'Arbeitsvorgänge-KTBL'!$G$2695:$G$2741) -> 0 | I30: =SUMIF('Arbeitsvorgänge-KTBL'!$B$2756:$B$2800,A30,'Arbeitsvorgänge-KTBL'!$G$2756:$G$2800) -> 0 | J30: =SUMIF('Arbeitsvorgänge-KTBL'!$B$2815:$B$2865,A30,'Arbeitsvorgänge-KTBL'!$G$2815:$G$2865) -> 0 | K30: 0
A31: JUL | C31: Akh/ha | D31: =SUMIF('Arbeitsvorgänge-KTBL'!$B$2526:$B$2565,Hafer!A31,'Arbeitsvorgänge-KTBL'!$G$2526:$G$2565) -> 0.76 | E31: =SUMIF('Arbeitsvorgänge-KTBL'!$B$2580:$B$2623,Hafer!A31,'Arbeitsvorgänge-KTBL'!$G$2580:$G$2623) -> 1.09 | F31: =SUMIF('Arbeitsvorgänge-KTBL'!$B$2580:$B$2623,Sommerweizen!A31,'Arbeitsvorgänge-KTBL'!$G$2580:$G$2623) -> 1.09 | G31: =SUMIF('Arbeitsvorgänge-KTBL'!$B$2638:$B$2680,A31,'Arbeitsvorgänge-KTBL'!$G$2638:$G$2680) -> 0.71 | H31: =SUMIF('Arbeitsvorgänge-KTBL'!$B$2695:$B$2741,A31,'Arbeitsvorgänge-KTBL'!$G$2695:$G$2741) -> 1.08 | I31: =SUMIF('Arbeitsvorgänge-KTBL'!$B$2756:$B$2800,A31,'Arbeitsvorgänge-KTBL'!$G$2756:$G$2800) -> 0.44 | J31: =SUMIF('Arbeitsvorgänge-KTBL'!$B$2815:$B$2865,A31,'Arbeitsvorgänge-KTBL'!$G$2815:$G$2865) -> 0.65 | K31: 0
A32: AUG | C32: Akh/ha | D32: =SUMIF('Arbeitsvorgänge-KTBL'!$B$2526:$B$2565,Hafer!A32,'Arbeitsvorgänge-KTBL'!$G$2526:$G$2565) -> 1 | E32: =SUMIF('Arbeitsvorgänge-KTBL'!$B$2580:$B$2623,Hafer!A32,'Arbeitsvorgänge-KTBL'!$G$2580:$G$2623) -> 1 | F32: =SUMIF('Arbeitsvorgänge-KTBL'!$B$2580:$B$2623,Sommerweizen!A32,'Arbeitsvorgänge-KTBL'!$G$2580:$G$2623) -> 1 | G32: =SUMIF('Arbeitsvorgänge-KTBL'!$B$2638:$B$2680,A32,'Arbeitsvorgänge-KTBL'!$G$2638:$G$2680) -> 0.63 | H32: =SUMIF('Arbeitsvorgänge-KTBL'!$B$2695:$B$2741,A32,'Arbeitsvorgänge-KTBL'!$G$2695:$G$2741) -> 0.63 | I32: =SUMIF('Arbeitsvorgänge-KTBL'!$B$2756:$B$2800,A32,'Arbeitsvorgänge-KTBL'!$G$2756:$G$2800) -> 0.4 | J32: =SUMIF('Arbeitsvorgänge-KTBL'!$B$2815:$B$2865,A32,'Arbeitsvorgänge-KTBL'!$G$2815:$G$2865) -> 0.4 | K32: 0
A33: SEP | C33: Akh/ha | D33: =SUMIF('Arbeitsvorgänge-KTBL'!$B$2526:$B$2565,Hafer!A33,'Arbeitsvorgänge-KTBL'!$G$2526:$G$2565) -> 0.96 | E33: =SUMIF('Arbeitsvorgänge-KTBL'!$B$2580:$B$2623,Hafer!A33,'Arbeitsvorgänge-KTBL'!$G$2580:$G$2623) -> 0.96 | F33: =SUMIF('Arbeitsvorgänge-KTBL'!$B$2580:$B$2623,Sommerweizen!A33,'Arbeitsvorgänge-KTBL'!$G$2580:$G$2623) -> 0.96 | G33: =SUMIF('Arbeitsvorgänge-KTBL'!$B$2638:$B$2680,A33,'Arbeitsvorgänge-KTBL'!$G$2638:$G$2680) -> 0.66 | H33: =SUMIF('Arbeitsvorgänge-KTBL'!$B$2695:$B$2741,A33,'Arbeitsvorgänge-KTBL'!$G$2695:$G$2741) -> 0.66 | I33: =SUMIF('Arbeitsvorgänge-KTBL'!$B$2756:$B$2800,A33,'Arbeitsvorgänge-KTBL'!$G$2756:$G$2800) -> 0.45 | J33: =SUMIF('Arbeitsvorgänge-KTBL'!$B$2815:$B$2865,A33,'Arbeitsvorgänge-KTBL'!$G$2815:$G$2865) -> 0.45 | K33: 0
A34: OKT | C34: Akh/ha | D34: =SUMIF('Arbeitsvorgänge-KTBL'!$B$2526:$B$2565,Hafer!A34,'Arbeitsvorgänge-KTBL'!$G$2526:$G$2565) -> 2.06 | E34: =SUMIF('Arbeitsvorgänge-KTBL'!$B$2580:$B$2623,Hafer!A34,'Arbeitsvorgänge-KTBL'!$G$2580:$G$2623) -> 2.12 | F34: =SUMIF('Arbeitsvorgänge-KTBL'!$B$2580:$B$2623,Sommerweizen!A34,'Arbeitsvorgänge-KTBL'!$G$2580:$G$2623) -> 2.12 | G34: =SUMIF('Arbeitsvorgänge-KTBL'!$B$2638:$B$2680,A34,'Arbeitsvorgänge-KTBL'!$G$2638:$G$2680) -> 1.56 | H34: =SUMIF('Arbeitsvorgänge-KTBL'!$B$2695:$B$2741,A34,'Arbeitsvorgänge-KTBL'!$G$2695:$G$2741) -> 1.61 | I34: =SUMIF('Arbeitsvorgänge-KTBL'!$B$2756:$B$2800,A34,'Arbeitsvorgänge-KTBL'!$G$2756:$G$2800) -> 1 | J34: =SUMIF('Arbeitsvorgänge-KTBL'!$B$2815:$B$2865,A34,'Arbeitsvorgänge-KTBL'!$G$2815:$G$2865) -> 1.01 | K34: 0
A35: NOV | C35: Akh/ha | D35: =SUMIF('Arbeitsvorgänge-KTBL'!$B$2526:$B$2565,Hafer!A35,'Arbeitsvorgänge-KTBL'!$G$2526:$G$2565) -> 0 | E35: =SUMIF('Arbeitsvorgänge-KTBL'!$B$2580:$B$2623,Hafer!A35,'Arbeitsvorgänge-KTBL'!$G$2580:$G$2623) -> 0 | F35: =SUMIF('Arbeitsvorgänge-KTBL'!$B$2580:$B$2623,Sommerweizen!A35,'Arbeitsvorgänge-KTBL'!$G$2580:$G$2623) -> 0 | G35: =SUMIF('Arbeitsvorgänge-KTBL'!$B$2638:$B$2680,A35,'Arbeitsvorgänge-KTBL'!$G$2638:$G$2680) -> 0 | H35: =SUMIF('Arbeitsvorgänge-KTBL'!$B$2695:$B$2741,A35,'Arbeitsvorgänge-KTBL'!$G$2695:$G$2741) -> 0 | I35: =SUMIF('Arbeitsvorgänge-KTBL'!$B$2756:$B$2800,A35,'Arbeitsvorgänge-KTBL'!$G$2756:$G$2800) -> 0 | J35: =SUMIF('Arbeitsvorgänge-KTBL'!$B$2815:$B$2865,A35,'Arbeitsvorgänge-KTBL'!$G$2815:$G$2865) -> 0 | K35: 0
A36: Rest | C36: Akh/ha | D36: =SUMIF('Arbeitsvorgänge-KTBL'!$B$2526:$B$2565,Hafer!A36,'Arbeitsvorgänge-KTBL'!$G$2526:$G$2565) -> 0 | E36: =SUMIF('Arbeitsvorgänge-KTBL'!$B$2580:$B$2623,Hafer!A36,'Arbeitsvorgänge-KTBL'!$G$2580:$G$2623) -> 0 | F36: =SUMIF('Arbeitsvorgänge-KTBL'!$B$2580:$B$2623,Sommerweizen!A36,'Arbeitsvorgänge-KTBL'!$G$2580:$G$2623) -> 0 | G36: =SUMIF('Arbeitsvorgänge-KTBL'!$B$2638:$B$2680,A36,'Arbeitsvorgänge-KTBL'!$G$2638:$G$2680) -> 0 | H36: =SUMIF('Arbeitsvorgänge-KTBL'!$B$2695:$B$2741,A36,'Arbeitsvorgänge-KTBL'!$G$2695:$G$2741) -> 0 | I36: =SUMIF('Arbeitsvorgänge-KTBL'!$B$2756:$B$2800,A36,'Arbeitsvorgänge-KTBL'!$G$2756:$G$2800) -> 0 | J36: =SUMIF('Arbeitsvorgänge-KTBL'!$B$2815:$B$2865,A36,'Arbeitsvorgänge-KTBL'!$G$2815:$G$2865) -> 0 | K36: 0
A37: Arbeitskraftstunden | C37: AKh/ha | D37: =SUM(D26:D36) -> 6.93 | E37: =SUM(E26:E36) -> 7.63 | F37: 7.63 | G37: 5.12 | H37: 5.77 | I37: 3.27 | J37: 3.63 | K37: 0
A38: DB (je Akh) | C38: €/Akh | D38: =IF(D24>0,D24/D37,0) -> 57.52736298 | E38: 83.78624296 | F38: 133.9202006 | G38: 127.5468792 | H38: 179.473504 | I38: 209.8397145 | J38: 294.4071525 | K38: 0
A39: Aussaatmenge | C39: kg/ha | D39: 175 | E39: =D39 -> 175 | F39: 175 | G39: 175 | H39: =G39 -> 175 | I39: 175 | J39: =I39 -> 175 | K39: 0
A40: davon Zukaufsaatgut | C40: % | D40: 70 | E40: 70 | F40: 70 | G40: 70 | H40: =G40 -> 70 | I40: 70 | J40: =I40 -> 70 | K40: 0
A41: Saatgutpreis Eigen | C41: €/dt | D41: =D8+Stammdatenblatt!$K$186 -> 35.72985 | E41: =E8+Stammdatenblatt!$K$186 -> 35.72985 | F41: =F8+Stammdatenblatt!$K$186 -> 35.72985 | G41: =G8+Stammdatenblatt!$K$186 -> 35.72985 | H41: =H8+Stammdatenblatt!$K$186 -> 35.72985 | I41: =I8+Stammdatenblatt!$K$186 -> 35.72985 | J41: =J8+Stammdatenblatt!$K$186 -> 35.72985 | K41: 0
A42: Zukauf | C42: €/dt | D42: =+Stammdatenblatt!P79 -> 84.53 | E42: 84.53 | F42: 84.53 | G42: =+F42 -> 84.53 | H42: =G42 -> 84.53 | I42: =+H42 -> 84.53 | J42: =I42 -> 84.53 | K42: 0
A43: Saatgutkosten | C43: €/ha | D43: =D40/100*(D39*D42)/100+((100-D40)/100*D39*D41/100) -> 122.3074212 | E43: 122.3074212 | F43: 122.3074212 | G43: 122.3074212 | H43: 122.3074212 | I43: 122.3074212 | J43: 122.3074212 | K43: 0
A44: Dünger: | B44: €/kg | D44: Düngerbedarf/ha (in kg Reinnährstoff) Nach Rechentabelle DÜV; N-min Durchschnittswerte LLH; Bodenart II
A45: =+Stammdatenblatt!A130 -> Stickstoff | B45: =+Stammdatenblatt!P130 -> 2.320205374 | C45: Aufw./ha | D45: 136 | E45: 151 | F45: 171 | G45: 151 | H45: 171 | I45: 151 | J45: 171 | K45: 0
A46: =+Stammdatenblatt!A131 -> Phosphor | B46: =+Stammdatenblatt!P131 -> 1.226340187 | C46: Aufw./ha | D46: 57 | E46: 73 | F46: 94 | G46: 73 | H46: 94 | I46: 73 | J46: 94 | K46: 0
A47: =+Stammdatenblatt!A132 -> Kali | B47: =+Stammdatenblatt!P132 -> 1.0165575 | C47: Aufw./ha | D47: 95 | E47: 120 | F47: 155 | G47: 120 | H47: 155 | I47: 120 | J47: 155 | K47: 0
A48: =+Stammdatenblatt!A133 -> Kalk | B48: =+Stammdatenblatt!P133 -> 0.04746777778 | C48: Aufw./ha | D48: 300 | E48: =D48 -> 300 | F48: 300 | G48: 300 | H48: 300 | I48: 300 | J48: 300 | K48: 0
A49: =+Stammdatenblatt!A134 -> Magnesium | B49: =+Stammdatenblatt!P134 -> 1.844103333 | C49: Aufw./ha | D49: 36 | E49: 40 | F49: 44 | G49: 40 | H49: 44 | I49: 40 | J49: 44 | K49: 0
A50: =+Stammdatenblatt!A135 -> Schwefel | B50: =+Stammdatenblatt!P135 -> 0.7582283333 | C50: Aufw./ha | D50: 5 | E50: 10 | F50: 10 | G50: 10 | H50: 10 | I50: 10 | J50: 10 | K50: 0
A51: Mineraldüngerkosten | C51: €/ha | D51: =+$B45*D45+$B46*D46+$B47*D47+$B48*D48+$B49*D49+$B50*D50 -> 566.4414791 | E51: 657.4474952 | F51: 772.5606725 | G51: 657.4474952 | H51: =+$B45*H45+$B46*H46+$B47*H47+$B48*H48+$B49*H49+$B50*H50 -> 772.5606725 | I51: 657.4474952 | J51: 772.5606725 | K51: 0
A52: Herbizide | C52: €/ha | D52: 35 | E52: 50 | F52: 50 | G52: 50 | H52: 50 | I52: 50 | J52: 50 | K52: 0
A53: Fungizide | C53: €/ha | D53: 44 | E53: 53 | F53: 73 | G53: 53 | H53: 73 | I53: 53 | J53: 73 | K53: 0
A54: Insektizide | C54: €/ha | D54: 0 | E54: 0 | F54: 15 | G54: 0 | H54: 15 | I54: 0 | J54: 15 | K54: 0
A55: Wachstumsregler | C55: €/ha | D55: 3 | E55: 5 | F55: 9 | G55: 5 | H55: 9 | I55: 5 | J55: 9 | K55: 0
A56: Pflanzenbehandlungskosten* | C56: €/ha | D56: =SUM(D52:D55) -> 82 | E56: 108 | F56: 147 | G56: 108 | H56: 147 | I56: 108 | J56: 147 | K56: 0
A57: *bei stärkeren Ackerfuchsschwanzbesatz ist mit Mehrausgaben von 35 €/ha zu rechnen.
A58: **variable Kosten in Anlehnung an KTBL-Richtwerte für Arbeitsgänge incl. Zinsanspruch für 3 Monate

Sheet Roggen
B3: Landesbetrieb Landwirtschaft Hessen
A4: =IF(Stammdatenblatt!G6+Stammdatenblatt!D77+Stammdatenblatt!D112+Stammdatenblatt!B129+Stammdatenblatt!D140+Stammdatenblatt!C183+Stammdatenblatt!C221+Stammdatenblatt!C239=0,"Produktionsverfahren wurden netto gerechnet", "Produktionsverfahren wurden brutto gerechnet") -> Produktionsverfahren wurden brutto gerechnet | I4: =Wirtschaftsdünger!N4 -> Letztes (aktuelles) WJ.
K5: eigene
A6: Roggen | E6: 2 ha | G6: 5 ha | I6: 20 ha | K6: Werte
A7: Leistung: Menge Hauptprodukt | C7: dt/ha | D7: 60 | E7: 80 | F7: 100 | G7: 80 | H7: 100 | I7: 80 | J7: 100 | K7: 0
A8: Preis Hauptprodukt | C8: € | D8: =+Stammdatenblatt!P14 -> 25.0918 | E8: =D8 -> 25.0918 | F8: =E8 -> 25.0918 | G8: =+D8 -> 25.0918 | H8: =G8 -> 25.0918 | I8: =+H8 -> 25.0918 | J8: =I8 -> 25.0918 | K8: 0
A9: Erlös Hauptprodukt | C9: €/ha | D9: =D7*D8 -> 1505.508 | E9: 2007.344 | F9: 2509.18 | G9: 2007.344 | H9: 2509.18 | I9: 2007.344 | J9: 2509.18 | K9: 0
A10: Erlös Nebenprodukt(e) | C10: €/ha | D10: 0 | E10: =D10 -> 0 | F10: =E10 -> 0 | G10: 0 | H10: =G10 -> 0 | I10: 0 | J10: =I10 -> 0 | K10: 0
A11: Leistungen | C11: €/ha | D11: =D9+D10 -> 1505.508 | E11: =E10+E9 -> 2007.344 | F11: 2509.18 | G11: 2007.344 | H11: 2509.18 | I11: 2007.344 | J11: 2509.18 | K11: 0
A12: Saatgutkosten | C12: €/ha | D12: =D43 -> 78.645 | E12: 78.645 | F12: 78.645 | G12: 78.645 | H12: 78.645 | I12: 78.645 | J12: 78.645 | K12: =K43 -> 0
A13: Mineraldüngerkosten | C13: €/ha | D13: =D51 -> 607.6435362 | E13: 752.5904697 | F13: 879.0747911 | G13: 752.5904697 | H13: 879.0747911 | I13: 752.5904697 | J13: 879.0747911 | K13: =K51 -> 0
A14: Pflanzenbehandlungsk. | C14: €/ha | D14: =D56*(1+Stammdatenblatt!D112) -> 109.48 | E14: =E56*(1+Stammdatenblatt!D112) -> 140.42 | F14: =F56*(1+Stammdatenblatt!D112) -> 195.16 | G14: =G56*(1+Stammdatenblatt!D112) -> 140.42 | H14: =H56*(1+Stammdatenblatt!D112) -> 195.16 | I14: =I56*(1+Stammdatenblatt!D112) -> 140.42 | J14: =J56*(1+Stammdatenblatt!D112) -> 195.16 | K14: =K56 -> 0
A15: Versicherung | C15: €/ha | D15: =(D11/1000)*Stammdatenblatt!$P$190 -> 10.71349603 | E15: =(E11/1000)*Stammdatenblatt!$P$190 -> 14.28466137 | F15: =(F11/1000)*Stammdatenblatt!$P$190 -> 17.85582672 | G15: =(G11/1000)*Stammdatenblatt!$P$190 -> 14.28466137 | H15: =(H11/1000)*Stammdatenblatt!$P$190 -> 17.85582672 | I15: =(I11/1000)*Stammdatenblatt!$P$190 -> 14.28466137 | J15: =(J11/1000)*Stammdatenblatt!$P$190 -> 17.85582672 | K15: =(K11/1000)*Stammdatenblatt!$E$190 -> 0
A16: Trocknungskosten | C16: €/ha | D16: =(D7*Stammdatenblatt!$P$201+D7*(Stammdatenblatt!$P$202*4))/3 -> 66.878 | E16: =(E7*Stammdatenblatt!$P$201+E7*(Stammdatenblatt!$P$202*4))/3 -> 89.17066667 | F16: =(F7*Stammdatenblatt!$P$201+F7*(Stammdatenblatt!$P$202*4))/3 -> 111.4633333 | G16: =E16 -> 89.17066667 | H16: =F16 -> 111.4633333 | I16: =G16 -> 89.17066667 | J16: =H16 -> 111.4633333 | K16: 0
A17: Summe Direktkosten | C17: €/ha | D17: =SUM(D12:D16) -> 873.3600322 | E17: =SUM(E12:E16) -> 1075.110798 | F17: 1282.198951 | G17: 1075.110798 | H17: 1282.198951 | I17: 1075.110798 | J17: 1282.198951 | K17: 0
A18: Direktkostenfreie Leistung | C18: €/ha | D18: =D11-D17 -> 632.1479678 | E18: =E11-E17 -> 932.2332023 | F18: 1226.981049 | G18: 932.2332023 | H18: 1226.981049 | I18: 932.2332023 | J18: 1226.981049 | K18: 0
A19: Maschinenkosten eigen ** | C19: €/ha | D19: ='Arbeitsvorgänge-KTBL'!T677 -> 187.8471355 | E19: ='Arbeitsvorgänge-KTBL'!T742 -> 232.8260597 | F19: ='Arbeitsvorgänge-KTBL'!T807 -> 305.3198322 | G19: ='Arbeitsvorgänge-KTBL'!T875 -> 218.462276 | H19: ='Arbeitsvorgänge-KTBL'!T943 -> 284.6805155 | I19: ='Arbeitsvorgänge-KTBL'!T1015 -> 195.8298765 | J19: ='Arbeitsvorgänge-KTBL'!T1087 -> 253.5827313 | K19: 0
A20: Maschinenkosten fremd | C20: €/ha | D20: ='Arbeitsvorgänge-KTBL'!U677*(1+Stammdatenblatt!C239) -> 125.35 | E20: ='Arbeitsvorgänge-KTBL'!U742*(1+Stammdatenblatt!C239) -> 125.35 | F20: ='Arbeitsvorgänge-KTBL'!U807*(1+Stammdatenblatt!C239) -> 125.35 | G20: ='Arbeitsvorgänge-KTBL'!U875*(1+Stammdatenblatt!C239) -> 125.35 | H20: ='Arbeitsvorgänge-KTBL'!U943*(1+Stammdatenblatt!C239) -> 125.35 | I20: ='Arbeitsvorgänge-KTBL'!U1015*(1+Stammdatenblatt!C239) -> 114.45 | J20: ='Arbeitsvorgänge-KTBL'!U1087*(1+Stammdatenblatt!C239) -> 114.45 | K20: 0
A21: Lohnkosten | C21: €/ha | D21: 0 | E21: =D21 -> 0 | F21: =E21 -> 0 | G21: 0 | H21: =G21 -> 0 | I21: 0 | J21: =I21 -> 0 | K21: 0
A22: xxx | C22: €/ha | D22: 0 | E22: =D22 -> 0 | F22: =E22 -> 0 | G22: 0 | H22: =G22 -> 0 | I22: 0 | J22: =I22 -> 0 | K22: 0
A23: variable Kosten | C23: €/ha | D23: =SUM(D19:D22,D17) -> 1186.557168 | E23: =SUM(E19:E22,E17) -> 1433.286857 | F23: 1712.868783 | G23: 1418.923074 | H23: 1692.229467 | I23: 1385.390674 | J23: 1650.231682 | K23: 0
A24: Deckungsbeitrag (DB) | C24: €/ha | D24: =D11-D23 -> 318.9508323 | E24: 574.0571425 | F24: 796.3112166 | G24: 588.4209263 | H24: 816.9505334 | I24: 621.9533258 | J24: 858.9483176 | K24: 0
A25: Zeit-Spanne | B25: AK-Bedarf
A26: FEB | C26: Akh/ha | D26: =SUMIF('Arbeitsvorgänge-KTBL'!$B$624:$B$674,Roggen!A26,'Arbeitsvorgänge-KTBL'!$G$624:$G$674) -> 0.31 | E26: =SUMIF('Arbeitsvorgänge-KTBL'!$B$689:$B$739,Roggen!A26,'Arbeitsvorgänge-KTBL'!$G$689:$G$739) -> 0.33 | F26: =SUMIF('Arbeitsvorgänge-KTBL'!$B$754:$B$804,Roggen!A26,'Arbeitsvorgänge-KTBL'!$G$754:$G$804) -> 0.33 | G26: =SUMIF('Arbeitsvorgänge-KTBL'!$B$819:$B$872,A26,'Arbeitsvorgänge-KTBL'!$G$819:$G$872) -> 0.27 | H26: =SUMIF('Arbeitsvorgänge-KTBL'!$B$887:$B$940,Roggen!A26,'Arbeitsvorgänge-KTBL'!$G$887:$G$940) -> 0.27 | I26: =SUMIF('Arbeitsvorgänge-KTBL'!$B$955:$B$1012,Roggen!A26,'Arbeitsvorgänge-KTBL'!$G$955:$G$1012) -> 0.16 | J26: =SUMIF('Arbeitsvorgänge-KTBL'!$B$1027:$B$1084,Roggen!A26,'Arbeitsvorgänge-KTBL'!$G$1027:$G$1084) -> 0.16 | K26: 0
A27: MRZ | C27: Akh/ha | D27: =SUMIF('Arbeitsvorgänge-KTBL'!$B$624:$B$674,Roggen!A27,'Arbeitsvorgänge-KTBL'!$G$624:$G$674) -> 0.13 | E27: =SUMIF('Arbeitsvorgänge-KTBL'!$B$689:$B$739,Roggen!A27,'Arbeitsvorgänge-KTBL'!$G$689:$G$739) -> 0.13 | F27: =SUMIF('Arbeitsvorgänge-KTBL'!$B$754:$B$804,Roggen!A27,'Arbeitsvorgänge-KTBL'!$G$754:$G$804) -> 0.13 | G27: =SUMIF('Arbeitsvorgänge-KTBL'!$B$819:$B$872,A27,'Arbeitsvorgänge-KTBL'!$G$819:$G$872) -> 0.11 | H27: =SUMIF('Arbeitsvorgänge-KTBL'!$B$887:$B$940,Roggen!A27,'Arbeitsvorgänge-KTBL'!$G$887:$G$940) -> 0.11 | I27: =SUMIF('Arbeitsvorgänge-KTBL'!$B$955:$B$1012,Roggen!A27,'Arbeitsvorgänge-KTBL'!$G$955:$G$1012) -> 0.09 | J27: =SUMIF('Arbeitsvorgänge-KTBL'!$B$1027:$B$1084,Roggen!A27,'Arbeitsvorgänge-KTBL'!$G$1027:$G$1084) -> 0.09 | K27: 0
A28: APR | C28: Akh/ha | D28: =SUMIF('Arbeitsvorgänge-KTBL'!$B$624:$B$674,Roggen!A28,'Arbeitsvorgänge-KTBL'!$G$624:$G$674) -> 0.44 | E28: =SUMIF('Arbeitsvorgänge-KTBL'!$B$689:$B$739,Roggen!A28,'Arbeitsvorgänge-KTBL'!$G$689:$G$739) -> 0.45 | F28: =SUMIF('Arbeitsvorgänge-KTBL'!$B$754:$B$804,Roggen!A28,'Arbeitsvorgänge-KTBL'!$G$754:$G$804) -> 0.45 | G28: =SUMIF('Arbeitsvorgänge-KTBL'!$B$819:$B$872,A28,'Arbeitsvorgänge-KTBL'!$G$819:$G$872) -> 0.32 | H28: =SUMIF('Arbeitsvorgänge-KTBL'!$B$887:$B$940,Roggen!A28,'Arbeitsvorgänge-KTBL'!$G$887:$G$940) -> 0.32 | I28: =SUMIF('Arbeitsvorgänge-KTBL'!$B$955:$B$1012,Roggen!A28,'Arbeitsvorgänge-KTBL'!$G$955:$G$1012) -> 0.2 | J28: =SUMIF('Arbeitsvorgänge-KTBL'!$B$1027:$B$1084,Roggen!A28,'Arbeitsvorgänge-KTBL'!$G$1027:$G$1084) -> 0.2 | K28: 0
A29: MAI | C29: Akh/ha | D29: =SUMIF('Arbeitsvorgänge-KTBL'!$B$624:$B$674,Roggen!A29,'Arbeitsvorgänge-KTBL'!$G$624:$G$674) -> 0 | E29: =SUMIF('Arbeitsvorgänge-KTBL'!$B$689:$B$739,Roggen!A29,'Arbeitsvorgänge-KTBL'!$G$689:$G$739) -> 0 | F29: =SUMIF('Arbeitsvorgänge-KTBL'!$B$754:$B$804,Roggen!A29,'Arbeitsvorgänge-KTBL'!$G$754:$G$804) -> 0 | G29: =SUMIF('Arbeitsvorgänge-KTBL'!$B$819:$B$872,A29,'Arbeitsvorgänge-KTBL'!$G$819:$G$872) -> 0 | H29: =SUMIF('Arbeitsvorgänge-KTBL'!$B$887:$B$940,Roggen!A29,'Arbeitsvorgänge-KTBL'!$G$887:$G$940) -> 0 | I29: =SUMIF('Arbeitsvorgänge-KTBL'!$B$955:$B$1012,Roggen!A29,'Arbeitsvorgänge-KTBL'!$G$955:$G$1012) -> 0 | J29: =SUMIF('Arbeitsvorgänge-KTBL'!$B$1027:$B$1084,Roggen!A29,'Arbeitsvorgänge-KTBL'!$G$1027:$G$1084) -> 0 | K29: 0
A30: JUN | C30: Akh/ha | D30: =SUMIF('Arbeitsvorgänge-KTBL'!$B$624:$B$674,Roggen!A30,'Arbeitsvorgänge-KTBL'!$G$624:$G$674) -> 0 | E30: =SUMIF('Arbeitsvorgänge-KTBL'!$B$689:$B$739,Roggen!A30,'Arbeitsvorgänge-KTBL'!$G$689:$G$739) -> 0 | F30: =SUMIF('Arbeitsvorgänge-KTBL'!$B$754:$B$804,Roggen!A30,'Arbeitsvorgänge-KTBL'!$G$754:$G$804) -> 0 | G30: =SUMIF('Arbeitsvorgänge-KTBL'!$B$819:$B$872,A30,'Arbeitsvorgänge-KTBL'!$G$819:$G$872) -> 0 | H30: =SUMIF('Arbeitsvorgänge-KTBL'!$B$887:$B$940,Roggen!A30,'Arbeitsvorgänge-KTBL'!$G$887:$G$940) -> 0 | I30: =SUMIF('Arbeitsvorgänge-KTBL'!$B$955:$B$1012,Roggen!A30,'Arbeitsvorgänge-KTBL'!$G$955:$G$1012) -> 0 | J30: =SUMIF('Arbeitsvorgänge-KTBL'!$B$1027:$B$1084,Roggen!A30,'Arbeitsvorgänge-KTBL'!$G$1027:$G$1084) -> 0 | K30: 0
A31: JUL | C31: Akh/ha | D31: =SUMIF('Arbeitsvorgänge-KTBL'!$B$624:$B$674,Roggen!A31,'Arbeitsvorgänge-KTBL'!$G$624:$G$674) -> 0 | E31: =SUMIF('Arbeitsvorgänge-KTBL'!$B$689:$B$739,Roggen!A31,'Arbeitsvorgänge-KTBL'!$G$689:$G$739) -> 0 | F31: =SUMIF('Arbeitsvorgänge-KTBL'!$B$754:$B$804,Roggen!A31,'Arbeitsvorgänge-KTBL'!$G$754:$G$804) -> 0 | G31: =SUMIF('Arbeitsvorgänge-KTBL'!$B$819:$B$872,A31,'Arbeitsvorgänge-KTBL'!$G$819:$G$872) -> 0 | H31: =SUMIF('Arbeitsvorgänge-KTBL'!$B$887:$B$940,Roggen!A31,'Arbeitsvorgänge-KTBL'!$G$887:$G$940) -> 0 | I31: =SUMIF('Arbeitsvorgänge-KTBL'!$B$955:$B$1012,Roggen!A31,'Arbeitsvorgänge-KTBL'!$G$955:$G$1012) -> 0 | J31: =SUMIF('Arbeitsvorgänge-KTBL'!$B$1027:$B$1084,Roggen!A31,'Arbeitsvorgänge-KTBL'!$G$1027:$G$1084) -> 0 | K31: 0
A32: AUG | C32: Akh/ha | D32: =SUMIF('Arbeitsvorgänge-KTBL'!$B$624:$B$674,Roggen!A32,'Arbeitsvorgänge-KTBL'!$G$624:$G$674) -> 1.67 | E32: =SUMIF('Arbeitsvorgänge-KTBL'!$B$689:$B$739,Roggen!A32,'Arbeitsvorgänge-KTBL'!$G$689:$G$739) -> 1.95 | F32: =SUMIF('Arbeitsvorgänge-KTBL'!$B$754:$B$804,Roggen!A32,'Arbeitsvorgänge-KTBL'!$G$754:$G$804) -> 1.95 | G32: =SUMIF('Arbeitsvorgänge-KTBL'!$B$819:$B$872,A32,'Arbeitsvorgänge-KTBL'!$G$819:$G$872) -> 1.6 | H32: =SUMIF('Arbeitsvorgänge-KTBL'!$B$887:$B$940,Roggen!A32,'Arbeitsvorgänge-KTBL'!$G$887:$G$940) -> 1.61 | I32: =SUMIF('Arbeitsvorgänge-KTBL'!$B$955:$B$1012,Roggen!A32,'Arbeitsvorgänge-KTBL'!$G$955:$G$1012) -> 0.97 | J32: =SUMIF('Arbeitsvorgänge-KTBL'!$B$1027:$B$1084,Roggen!A32,'Arbeitsvorgänge-KTBL'!$G$1027:$G$1084) -> 0.97 | K32: 0
A33: SEP | C33: Akh/ha | D33: =SUMIF('Arbeitsvorgänge-KTBL'!$B$624:$B$674,Roggen!A33,'Arbeitsvorgänge-KTBL'!$G$624:$G$674) -> 4.42 | E33: =SUMIF('Arbeitsvorgänge-KTBL'!$B$689:$B$739,Roggen!A33,'Arbeitsvorgänge-KTBL'!$G$689:$G$739) -> 4.46 | F33: =SUMIF('Arbeitsvorgänge-KTBL'!$B$754:$B$804,Roggen!A33,'Arbeitsvorgänge-KTBL'!$G$754:$G$804) -> 4.46 | G33: =SUMIF('Arbeitsvorgänge-KTBL'!$B$819:$B$872,A33,'Arbeitsvorgänge-KTBL'!$G$819:$G$872) -> 3.27 | H33: =SUMIF('Arbeitsvorgänge-KTBL'!$B$887:$B$940,Roggen!A33,'Arbeitsvorgänge-KTBL'!$G$887:$G$940) -> 3.27 | I33: =SUMIF('Arbeitsvorgänge-KTBL'!$B$955:$B$1012,Roggen!A33,'Arbeitsvorgänge-KTBL'!$G$955:$G$1012) -> 2.03 | J33: =SUMIF('Arbeitsvorgänge-KTBL'!$B$1027:$B$1084,Roggen!A33,'Arbeitsvorgänge-KTBL'!$G$1027:$G$1084) -> 2.04 | K33: 0
A34: OKT | C34: Akh/ha | D34: =SUMIF('Arbeitsvorgänge-KTBL'!$B$624:$B$674,Roggen!A34,'Arbeitsvorgänge-KTBL'!$G$624:$G$674) -> 0.44 | E34: =SUMIF('Arbeitsvorgänge-KTBL'!$B$689:$B$739,Roggen!A34,'Arbeitsvorgänge-KTBL'!$G$689:$G$739) -> 0.44 | F34: =SUMIF('Arbeitsvorgänge-KTBL'!$B$754:$B$804,Roggen!A34,'Arbeitsvorgänge-KTBL'!$G$754:$G$804) -> 0.44 | G34: =SUMIF('Arbeitsvorgänge-KTBL'!$B$819:$B$872,A34,'Arbeitsvorgänge-KTBL'!$G$819:$G$872) -> 0.31 | H34: =SUMIF('Arbeitsvorgänge-KTBL'!$B$887:$B$940,Roggen!A34,'Arbeitsvorgänge-KTBL'!$G$887:$G$940) -> 0.31 | I34: =SUMIF('Arbeitsvorgänge-KTBL'!$B$955:$B$1012,Roggen!A34,'Arbeitsvorgänge-KTBL'!$G$955:$G$1012) -> 0.24 | J34: =SUMIF('Arbeitsvorgänge-KTBL'!$B$1027:$B$1084,Roggen!A34,'Arbeitsvorgänge-KTBL'!$G$1027:$G$1084) -> 0.24 | K34: 0
A35: NOV | C35: Akh/ha | D35: =SUMIF('Arbeitsvorgänge-KTBL'!$B$624:$B$674,Roggen!A35,'Arbeitsvorgänge-KTBL'!$G$624:$G$674) -> 0 | E35: =SUMIF('Arbeitsvorgänge-KTBL'!$B$689:$B$739,Roggen!A35,'Arbeitsvorgänge-KTBL'!$G$689:$G$739) -> 0 | F35: =SUMIF('Arbeitsvorgänge-KTBL'!$B$754:$B$804,Roggen!A35,'Arbeitsvorgänge-KTBL'!$G$754:$G$804) -> 0 | G35: =SUMIF('Arbeitsvorgänge-KTBL'!$B$819:$B$872,A35,'Arbeitsvorgänge-KTBL'!$G$819:$G$872) -> 0 | H35: =SUMIF('Arbeitsvorgänge-KTBL'!$B$887:$B$940,Roggen!A35,'Arbeitsvorgänge-KTBL'!$G$887:$G$940) -> 0 | I35: =SUMIF('Arbeitsvorgänge-KTBL'!$B$955:$B$1012,Roggen!A35,'Arbeitsvorgänge-KTBL'!$G$955:$G$1012) -> 0 | J35: =SUMIF('Arbeitsvorgänge-KTBL'!$B$1027:$B$1084,Roggen!A35,'Arbeitsvorgänge-KTBL'!$G$1027:$G$1084) -> 0 | K35: 0
A36: Rest | C36: Akh/ha | D36: =SUMIF('Arbeitsvorgänge-KTBL'!$B$624:$B$674,Roggen!A36,'Arbeitsvorgänge-KTBL'!$G$624:$G$674) -> 0 | E36: =SUMIF('Arbeitsvorgänge-KTBL'!$B$689:$B$739,Roggen!A36,'Arbeitsvorgänge-KTBL'!$G$689:$G$739) -> 0 | F36: =SUMIF('Arbeitsvorgänge-KTBL'!$B$754:$B$804,Roggen!A36,'Arbeitsvorgänge-KTBL'!$G$754:$G$804) -> 0 | G36: =SUMIF('Arbeitsvorgänge-KTBL'!$B$819:$B$872,A36,'Arbeitsvorgänge-KTBL'!$G$819:$G$872) -> 0 | H36: =SUMIF('Arbeitsvorgänge-KTBL'!$B$887:$B$940,Roggen!A36,'Arbeitsvorgänge-KTBL'!$G$887:$G$940) -> 0 | I36: =SUMIF('Arbeitsvorgänge-KTBL'!$B$955:$B$1012,Roggen!A36,'Arbeitsvorgänge-KTBL'!$G$955:$G$1012) -> 0 | J36: =SUMIF('Arbeitsvorgänge-KTBL'!$B$1027:$B$1084,Roggen!A36,'Arbeitsvorgänge-KTBL'!$G$1027:$G$1084) -> 0 | K36: 0
A37: Arbeitskraftstunden | C37: AKh/ha | D37: =SUM(D26:D36) -> 7.41 | E37: =SUM(E26:E36) -> 7.76 | F37: =SUM(F26:F36) -> 7.76 | G37: 5.88 | H37: 5.89 | I37: 3.69 | J37: 3.7 | K37: 0
A38: DB (je Akh) | C38: €/Akh | D38: =IF(D24>0,D24/D37,0) -> 43.0432972 | E38: 73.97643589 | F38: 102.6174248 | G38: 100.0715861 | H38: 138.701279 | I38: 168.5510368 | J38: 232.1481939 | K38: 0
A39: Aussaatmenge | C39: kg/ha | D39: 100 | E39: =D39 -> 100 | F39: =E39 -> 100 | G39: 100 | H39: =G39 -> 100 | I39: 100 | J39: =I39 -> 100 | K39: 0
A40: davon Zukaufsaatgut | C40: % | D40: 100 | E40: 100 | F40: =E40 -> 100 | G40: 100 | H40: =G40 -> 100 | I40: 100 | J40: =I40 -> 100 | K40: 0
A41: Saatgutpreis Eigen | C41: €/dt | D41: 0 | E41: =D41 -> 0 | F41: =E41 -> 0 | G41: 0 | H41: =G41 -> 0 | I41: 0 | J41: =I41 -> 0 | K41: 0
A42: Zukauf (Hybridroggen)* | C42: €/dt | D42: =Stammdatenblatt!P81 -> 78.645 | E42: =D42 -> 78.645 | F42: =E42 -> 78.645 | G42: =+F42 -> 78.645 | H42: =G42 -> 78.645 | I42: =+H42 -> 78.645 | J42: =I42 -> 78.645 | K42: 0
A43: Saatgutkosten | C43: €/ha | D43: =D40/100*(D39*D42)/100+((100-D40)/100*D39*D41/100) -> 78.645 | E43: 78.645 | F43: 78.645 | G43: 78.645 | H43: 78.645 | I43: 78.645 | J43: 78.645 | K43: 0
A44: Dünger: | B44: €/kg | C44: Düngerbedarf/ha (in kg Reinnährstoff) Nach Rechentabelle DÜV; N-min Durchschnittswerte LLH; Bodenart II
A45: =+Stammdatenblatt!A130 -> Stickstoff | B45: =+Stammdatenblatt!P130 -> 2.320205374 | C45: Aufw./ha | D45: 127 | E45: 152 | F45: 172 | G45: 152 | H45: 172 | I45: 152 | J45: 172 | K45: 0
A46: =+Stammdatenblatt!A131 -> Phosphor | B46: =+Stammdatenblatt!P131 -> 1.226340187 | C46: Aufw./ha | D46: 64 | E46: 86 | F46: 107 | G46: 86 | H46: 107 | I46: 86 | J46: 107 | K46: 0
A47: =+Stammdatenblatt!A132 -> Kali | B47: =+Stammdatenblatt!P132 -> 1.0165575 | C47: Aufw./ha | D47: 144 | E47: 192 | F47: 240 | G47: 192 | H47: 240 | I47: 192 | J47: 240 | K47: 0
A48: =+Stammdatenblatt!A133 -> Kalk | B48: =+Stammdatenblatt!P133 -> 0.04746777778 | C48: Aufw./ha | D48: 300 | E48: =D48 -> 300 | F48: 300 | G48: 300 | H48: 300 | I48: 300 | J48: 300 | K48: 0
A49: =+Stammdatenblatt!A134 -> Magnesium | B49: =+Stammdatenblatt!P134 -> 1.844103333 | C49: Aufw./ha | D49: 38 | E49: 42 | F49: 45 | G49: 42 | H49: 45 | I49: 42 | J49: 45 | K49: 0
A50: =+Stammdatenblatt!A135 -> Schwefel | B50: =+Stammdatenblatt!P135 -> 0.7582283333 | C50: Aufw./ha | D50: 5 | E50: 10 | F50: 10 | G50: 10 | H50: 10 | I50: 10 | J50: 10 | K50: 0
A51: Mineraldüngerkosten | C51: €/ha | D51: =D45*$B$45+D46*$B$46+D47*$B$47+D48*$B$48+D49*$B$49+D50*$B$50 -> 607.6435362 | E51: 752.5904697 | F51: 879.0747911 | G51: 752.5904697 | H51: 879.0747911 | I51: 752.5904697 | J51: 879.0747911 | K51: 0
A52: Herbizide | C52: €/ha | D52: 40 | E52: 44 | F52: 44 | G52: 44 | H52: 44 | I52: 44 | J52: 44 | K52: 0
A53: Fungizide | C53: €/ha | D53: 35 | E53: 49 | F53: 67 | G53: 49 | H53: 67 | I53: 49 | J53: 67 | K53: 0
A54: Insektizide | C54: €/ha | D54: 0 | E54: 0 | F54: 2 | G54: 0 | H54: 2 | I54: 0 | J54: 2 | K54: 0
A55: Wachstumsregler | C55: €/ha | D55: 17 | E55: 25 | F55: 51 | G55: 25 | H55: 51 | I55: 25 | J55: 51 | K55: 0
A56: Pflanzenbehandlungskosten | C56: €/ha | D56: =SUM(D52:D55) -> 92 | E56: 118 | F56: 164 | G56: 118 | H56: 164 | I56: 118 | J56: 164 | K56: 0
A57: * normale Sorten incl. USt: | C57: =+Stammdatenblatt!P80 -> 70.62 | D57: €/dt
A58: **variable Kosten in Anlehnung an KTBL-Richtwerte für Arbeitsgänge incl. Zinsanspruch für 3 Monate

Sheet Brotroggen (hidden)
L2: Erntejahr
B3: Landesbetrieb Landwirtschaft Hessen | H3: 2012 | K3: 2011 | L3: 2010 | M3: 2009 | N3: 2008
A6: Roggen | B6: Brot- / Mahlroggen | D6: 2 ha | G6: 5 ha | H6: 5 ha | I6: 20 ha | K6: 5 ha | L6: 5 ha | M6: 5 ha | N6: 5 ha
A7: Leistung: Menge Hauptprod. | C7: dt/ha | D7: 50 | E7: 70 | F7: 90 | G7: 70 | H7: 90 | I7: 70 | J7: 90 | K7: 90 | L7: 90 | M7: 90 | N7: 90
A8: Preis Hauptprod. | B8: (Angaben inkl. MwSt.) | C8: € | D8: =+Stammdatenblatt!P14 -> 25.0918 | E8: =D8 -> 25.0918 | F8: =E8 -> 25.0918 | G8: =+D8 -> 25.0918 | H8: =G8 -> 25.0918 | I8: =+H8 -> 25.0918 | J8: =I8 -> 25.0918 | K8: 22.35 | L8: 17.05 | M8: 9.59 | N8: 12.5
A9: Erlös Hauptprodukt | C9: €/ha | D9: =D7*D8 -> 1254.59 | E9: 1756.426 | F9: 2258.262 | G9: 1756.426 | H9: 2258.262 | I9: 1756.426 | J9: 2258.262 | K9: 2011.5 | L9: 1534.5 | M9: 863.1 | N9: 1125
A10: Erlös Nebenprodukt(e) | C10: €/ha | D10: 0 | E10: =D10 -> 0 | F10: =E10 -> 0 | G10: 0 | H10: =G10 -> 0 | I10: 0 | J10: =I10 -> 0 | K10: =J10 -> 0 | L10: =K10 -> 0 | M10: =L10 -> 0 | N10: =M10 -> 0
A11: Leistungen | C11: €/ha | D11: =D9+D10 -> 1254.59 | E11: =E10+E9 -> 1756.426 | F11: 2258.262 | G11: 1756.426 | H11: 2258.262 | I11: 1756.426 | J11: 2258.262 | K11: 2011.5 | L11: 1534.5 | M11: 863.1 | N11: 1125
A12: Saatgutkosten | C12: €/ha | D12: =D41 -> 78.645 | E12: 78.645 | F12: 78.645 | G12: 78.645 | H12: 78.645 | I12: 78.645 | J12: 78.645 | K12: 64 | L12: 48 | M12: 50 | N12: 61
A13: Mineraldüngerkosten | C13: €/ha | D13: =D49 -> 516.4792654 | E13: 656.9915175 | F13: 718.3535373 | G13: 656.9915175 | H13: 746.6604087 | I13: 660.7826591 | J13: 718.3535373 | K13: 465 | L13: 450 | M13: 350 | N13: 480
A14: Pflanzenbehandlungsk. | C14: €/ha | D14: =D54 -> 65 | E14: 105 | F14: 140 | G14: 105 | H14: 155 | I14: 109 | J14: 133 | K14: 152 | L14: 150 | M14: 133 | N14: 130
A15: Versicherung | C15: €/ha | D15: =(D11/1000)*Stammdatenblatt!$E$190 -> 7.5149941 | E15: =(E11/1000)*Stammdatenblatt!$E$190 -> 10.52099174 | F15: =(F11/1000)*Stammdatenblatt!$E$190 -> 13.52698938 | G15: =(G11/1000)*Stammdatenblatt!$E$190 -> 10.52099174 | H15: =(H11/1000)*Stammdatenblatt!$E$190 -> 13.52698938 | I15: =(I11/1000)*Stammdatenblatt!$E$190 -> 10.52099174 | J15: =(J11/1000)*Stammdatenblatt!$E$190 -> 13.52698938 | K15: 13 | L15: 13 | M15: 12 | N15: 11
A16: Trocknungskosten | C16: €/ha | D16: =D7/Stammdatenblatt!$E$204*Stammdatenblatt!$E$201+(Stammdatenblatt!$E$203*Stammdatenblatt!$E$202) -> 18.50666667 | E16: =E7/Stammdatenblatt!$E$204*Stammdatenblatt!$E$201+(Stammdatenblatt!$E$203*Stammdatenblatt!$E$202) -> 25.17333333 | F16: =F7/Stammdatenblatt!$E$204*Stammdatenblatt!$E$201+(Stammdatenblatt!$E$203*Stammdatenblatt!$E$202) -> 31.84 | G16: =G7/Stammdatenblatt!$E$204*Stammdatenblatt!$E$201+(Stammdatenblatt!$E$203*Stammdatenblatt!$E$202) -> 25.17333333 | H16: =H7/Stammdatenblatt!$E$204*Stammdatenblatt!$E$201+(Stammdatenblatt!$E$203*Stammdatenblatt!$E$202) -> 31.84 | I16: =I7/Stammdatenblatt!$E$204*Stammdatenblatt!$E$201+(Stammdatenblatt!$E$203*Stammdatenblatt!$E$202) -> 25.17333333 | J16: =J7/Stammdatenblatt!$E$204*Stammdatenblatt!$E$201+(Stammdatenblatt!$E$203*Stammdatenblatt!$E$202) -> 31.84 | K16: 19 | L16: 18 | M16: 17 | N16: 16
A17: Summe Direktkosten | C17: €/ha | D17: =SUM(D12:D16) -> 686.1459262 | E17: =SUM(E12:E16) -> 876.3308426 | F17: 982.3655266 | G17: 876.3308426 | H17: 1025.672398 | I17: 884.1219842 | J17: 975.3655266 | K17: 713 | L17: 679 | M17: 562 | N17: 698
A18: Direktkostenfreie Leistung | C18: €/ha | D18: =D11-D17 -> 568.4440738 | E18: =E11-E17 -> 880.0951574 | F18: 1275.896473 | G18: 880.0951574 | H18: 1232.589602 | I18: 872.3040158 | J18: 1282.896473 | K18: 1298.5 | L18: 855.5 | M18: 301.1 | N18: 427
A19: Maschinenkosten eigen | C19: €/ha | D19: =Arbeitsgänge!J523 -> 112.66 | E19: =Arbeitsgänge!J543 -> 117.48 | F19: =Arbeitsgänge!J564 -> 120.51 | G19: =Arbeitsgänge!J586 -> 110.79 | H19: =Arbeitsgänge!J609 -> 113.77 | I19: =Arbeitsgänge!J640 -> 109.09 | J19: =Arbeitsgänge!J673 -> 111.67 | K19: 114 | L19: 112 | M19: 111 | N19: 110
A20: Maschinenkosten fremd | C20: €/ha | D20: =Arbeitsgänge!K523 -> 125 | E20: =Arbeitsgänge!K543 -> 125 | F20: =Arbeitsgänge!K564 -> 125 | G20: =Arbeitsgänge!K586 -> 110 | H20: =Arbeitsgänge!K609 -> 110 | I20: =Arbeitsgänge!K640 -> 110 | J20: =Arbeitsgänge!K673 -> 110 | K20: 110 | L20: 110 | M20: 110 | N20: 110
A21: Lohnkosten / Lohntrocknung | C21: €/ha | D21: 0 | E21: =D21 -> 0 | F21: =E21 -> 0 | G21: 0 | H21: =G21 -> 0 | I21: 0 | J21: =I21 -> 0 | K21: 0 | L21: 0 | M21: 0 | N21: 0
A22: zusätzl. Kosten (Aufbereitung etc.) | C22: €/ha | D22: 0 | E22: =D22 -> 0 | F22: =E22 -> 0 | G22: 0 | H22: =G22 -> 0 | I22: 0 | J22: 0 | K22: 0 | L22: 0 | M22: 0 | N22: 0
A23: variable Kosten | C23: €/ha | D23: =SUM(D19:D22,D17) -> 923.8059262 | E23: =SUM(E19:E22,E17) -> 1118.810843 | F23: 1227.875527 | G23: 1097.120843 | H23: 1249.442398 | I23: 1103.211984 | J23: 1197.035527 | K23: 937 | L23: 901 | M23: 783 | N23: 918
A24: Deckungsbeitrag (DB) | C24: €/ha | D24: =D11-D23 -> 330.7840738 | E24: 637.6151574 | F24: 1030.386473 | G24: 659.3051574 | H24: 1008.819602 | I24: 653.2140158 | J24: 1061.226473 | K24: 1074.5 | L24: 633.5 | M24: 80.1 | N24: 207
A25: Zeit-Spanne | B25: AK-Bedarf
A26: MAE | C26: Akh/ha | D26: =SUMIF(Arbeitsgänge!D$508:D$522,A26,Arbeitsgänge!G$508:G$522) -> 0.24 | E26: =SUMIF(Arbeitsgänge!D$526:D$542,Brotroggen!A26,Arbeitsgänge!G$526:G$542) -> 0.24 | F26: =SUMIF(Arbeitsgänge!D$546:D$563,A26,Arbeitsgänge!G$546:G$563) -> 0.24 | G26: =SUMIF(Arbeitsgänge!D$567:D$585,Brotroggen!A26,Arbeitsgänge!G$567:G$585) -> 0.23 | H26: =SUMIF(Arbeitsgänge!D$589:D$608,Brotroggen!A26,Arbeitsgänge!G$589:G$608) -> 0.23 | I26: =SUMIF(Arbeitsgänge!D$612:D$639,Brotroggen!A26,Arbeitsgänge!G$612:G$639) -> 0.12 | J26: =SUMIF(Arbeitsgänge!D$643:D$672,Brotroggen!A26,Arbeitsgänge!G$643:G$672) -> 0.12 | K26: 0.2 | L26: 0.2 | M26: 0.2 | N26: 0.2
A27: APR | C27: Akh/ha | D27: =SUMIF(Arbeitsgänge!D$508:D$522,A27,Arbeitsgänge!G$508:G$522) -> 0.58 | E27: =SUMIF(Arbeitsgänge!D$526:D$542,Brotroggen!A27,Arbeitsgänge!G$526:G$542) -> 0.58 | F27: =SUMIF(Arbeitsgänge!D$546:D$563,A27,Arbeitsgänge!G$546:G$563) -> 0.58 | G27: =SUMIF(Arbeitsgänge!D$567:D$585,Brotroggen!A27,Arbeitsgänge!G$567:G$585) -> 0.49 | H27: =SUMIF(Arbeitsgänge!D$589:D$608,Brotroggen!A27,Arbeitsgänge!G$589:G$608) -> 0.49 | I27: =SUMIF(Arbeitsgänge!D$612:D$639,Brotroggen!A27,Arbeitsgänge!G$612:G$639) -> 0.29 | J27: =SUMIF(Arbeitsgänge!D$643:D$672,Brotroggen!A27,Arbeitsgänge!G$643:G$672) -> 0.29 | K27: 0.5 | L27: 0.5 | M27: 0.5 | N27: 0.5
A28: MAI | C28: Akh/ha | D28: =SUMIF(Arbeitsgänge!D$508:D$522,A28,Arbeitsgänge!G$508:G$522) -> 0 | E28: =SUMIF(Arbeitsgänge!D$526:D$542,Brotroggen!A28,Arbeitsgänge!G$526:G$542) -> 0.58 | F28: =SUMIF(Arbeitsgänge!D$546:D$563,A28,Arbeitsgänge!G$546:G$563) -> 0.58 | G28: =SUMIF(Arbeitsgänge!D$567:D$585,Brotroggen!A28,Arbeitsgänge!G$567:G$585) -> 0.49 | H28: =SUMIF(Arbeitsgänge!D$589:D$608,Brotroggen!A28,Arbeitsgänge!G$589:G$608) -> 0.49 | I28: =SUMIF(Arbeitsgänge!D$612:D$639,Brotroggen!A28,Arbeitsgänge!G$612:G$639) -> 0.29 | J28: =SUMIF(Arbeitsgänge!D$643:D$672,Brotroggen!A28,Arbeitsgänge!G$643:G$672) -> 0.29 | K28: 0.5 | L28: 0.5 | M28: 0.5 | N28: 0.5
A29: JUN | C29: Akh/ha | D29: =SUMIF(Arbeitsgänge!D$508:D$522,A29,Arbeitsgänge!G$508:G$522) -> 0 | E29: =SUMIF(Arbeitsgänge!D$526:D$542,Brotroggen!A29,Arbeitsgänge!G$526:G$542) -> 0 | F29: =SUMIF(Arbeitsgänge!D$546:D$563,A29,Arbeitsgänge!G$546:G$563) -> 0.34 | G29: =SUMIF(Arbeitsgänge!D$567:D$585,Brotroggen!A29,Arbeitsgänge!G$567:G$585) -> 0 | H29: =SUMIF(Arbeitsgänge!D$589:D$608,Brotroggen!A29,Arbeitsgänge!G$589:G$608) -> 0.26 | I29: =SUMIF(Arbeitsgänge!D$612:D$639,Brotroggen!A29,Arbeitsgänge!G$612:G$639) -> 0 | J29: =SUMIF(Arbeitsgänge!D$643:D$672,Brotroggen!A29,Arbeitsgänge!G$643:G$672) -> 0.17 | K29: 0.3 | L29: 0.3 | M29: 0.3 | N29: 0.3
A30: JUL | C30: Akh/ha | D30: =SUMIF(Arbeitsgänge!D$508:D$522,A30,Arbeitsgänge!G$508:G$522) -> 0 | E30: =SUMIF(Arbeitsgänge!D$526:D$542,Brotroggen!A30,Arbeitsgänge!G$526:G$542) -> 0 | F30: =SUMIF(Arbeitsgänge!D$546:D$563,A30,Arbeitsgänge!G$546:G$563) -> 0 | G30: =SUMIF(Arbeitsgänge!D$567:D$585,Brotroggen!A30,Arbeitsgänge!G$567:G$585) -> 0 | H30: =SUMIF(Arbeitsgänge!D$589:D$608,Brotroggen!A30,Arbeitsgänge!G$589:G$608) -> 0 | I30: =SUMIF(Arbeitsgänge!D$612:D$639,Brotroggen!A30,Arbeitsgänge!G$612:G$639) -> 0 | J30: =SUMIF(Arbeitsgänge!D$643:D$672,Brotroggen!A30,Arbeitsgänge!G$643:G$672) -> 0 | K30: 0 | L30: 0 | M30: 0 | N30: 0
A31: AUG | C31: Akh/ha | D31: =SUMIF(Arbeitsgänge!D$508:D$522,A31,Arbeitsgänge!G$508:G$522) -> 1.34 | E31: =SUMIF(Arbeitsgänge!D$526:D$542,Brotroggen!A31,Arbeitsgänge!G$526:G$542) -> 1.34 | F31: =SUMIF(Arbeitsgänge!D$546:D$563,A31,Arbeitsgänge!G$546:G$563) -> 1.34 | G31: =SUMIF(Arbeitsgänge!D$567:D$585,Brotroggen!A31,Arbeitsgänge!G$567:G$585) -> 1.04 | H31: =SUMIF(Arbeitsgänge!D$589:D$608,Brotroggen!A31,Arbeitsgänge!G$589:G$608) -> 1.04 | I31: =SUMIF(Arbeitsgänge!D$612:D$639,Brotroggen!A31,Arbeitsgänge!G$612:G$639) -> 0.78 | J31: =SUMIF(Arbeitsgänge!D$643:D$672,Brotroggen!A31,Arbeitsgänge!G$643:G$672) -> 0.78 | K31: 1 | L31: 1 | M31: 1 | N31: 1
A32: SEP | C32: Akh/ha | D32: =SUMIF(Arbeitsgänge!D$508:D$522,A32,Arbeitsgänge!G$508:G$522) -> 0.73 | E32: =SUMIF(Arbeitsgänge!D$526:D$542,Brotroggen!A32,Arbeitsgänge!G$526:G$542) -> 0.73 | F32: =SUMIF(Arbeitsgänge!D$546:D$563,A32,Arbeitsgänge!G$546:G$563) -> 0.73 | G32: =SUMIF(Arbeitsgänge!D$567:D$585,Brotroggen!A32,Arbeitsgänge!G$567:G$585) -> 0.55 | H32: =SUMIF(Arbeitsgänge!D$589:D$608,Brotroggen!A32,Arbeitsgänge!G$589:G$608) -> 0.55 | I32: =SUMIF(Arbeitsgänge!D$612:D$639,Brotroggen!A32,Arbeitsgänge!G$612:G$639) -> 0.43 | J32: =SUMIF(Arbeitsgänge!D$643:D$672,Brotroggen!A32,Arbeitsgänge!G$643:G$672) -> 0.43 | K32: 0.6 | L32: 0.6 | M32: 0.6 | N32: 0.6
A33: OKT | C33: Akh/ha | D33: =SUMIF(Arbeitsgänge!D$508:D$522,A33,Arbeitsgänge!G$508:G$522) -> 4.13 | E33: =SUMIF(Arbeitsgänge!D$526:D$542,Brotroggen!A33,Arbeitsgänge!G$526:G$542) -> 4.13 | F33: =SUMIF(Arbeitsgänge!D$546:D$563,A33,Arbeitsgänge!G$546:G$563) -> 4.13 | G33: =SUMIF(Arbeitsgänge!D$567:D$585,Brotroggen!A33,Arbeitsgänge!G$567:G$585) -> 3.14 | H33: =SUMIF(Arbeitsgänge!D$589:D$608,Brotroggen!A33,Arbeitsgänge!G$589:G$608) -> 3.14 | I33: =SUMIF(Arbeitsgänge!D$612:D$639,Brotroggen!A33,Arbeitsgänge!G$612:G$639) -> 2.19 | J33: =SUMIF(Arbeitsgänge!D$643:D$672,Brotroggen!A33,Arbeitsgänge!G$643:G$672) -> 2.19 | K33: 3.1 | L33: 3.1 | M33: 3.1 | N33: 3.1
A34: Rest | C34: Akh/ha | D34: =SUMIF(Arbeitsgänge!D$508:D$522,A34,Arbeitsgänge!G$508:G$522) -> 0 | E34: =SUMIF(Arbeitsgänge!D$526:D$542,Brotroggen!A34,Arbeitsgänge!G$526:G$542) -> 0 | F34: =SUMIF(Arbeitsgänge!D$546:D$563,A34,Arbeitsgänge!G$546:G$563) -> 0 | G34: =SUMIF(Arbeitsgänge!D$567:D$585,Brotroggen!A34,Arbeitsgänge!G$567:G$585) -> 0 | H34: =SUMIF(Arbeitsgänge!D$589:D$608,Brotroggen!A34,Arbeitsgänge!G$589:G$608) -> 0 | I34: =SUMIF(Arbeitsgänge!D$612:D$639,Brotroggen!A34,Arbeitsgänge!G$612:G$639) -> 0 | J34: =SUMIF(Arbeitsgänge!D$643:D$672,Brotroggen!A34,Arbeitsgänge!G$643:G$672) -> 0 | K34: 0 | L34: 0 | M34: 0 | N34: 0
A35: Arbeitskraftstunden | C35: AKh/ha | D35: =SUM(D26:D34) -> 7.02 | E35: 7.6 | F35: 7.94 | G35: 5.94 | H35: 6.2 | I35: 4.1 | J35: 4.27 | K35: 6.2 | L35: 6.2 | M35: 6.2 | N35: 6.2
A36: DB (je Akh) | C36: €/Akh | D36: =IF(D24>0,D24/D35,0) -> 47.12023843 | E36: 83.89673124 | F36: 129.7715961 | G36: 110.9941342 | H36: 162.712839 | I36: 159.3204917 | J36: 248.53079 | K36: 173.3064516 | L36: 102.1774194 | M36: 12.91935484 | N36: 33.38709677
A37: Aussaatmenge | C37: kg/ha | D37: 100 | E37: =D37 -> 100 | F37: =E37 -> 100 | G37: 100 | H37: =G37 -> 100 | I37: 100 | J37: =I37 -> 100 | K37: 100 | L37: 100 | M37: 100 | N37: 100
A38: davon Zukaufsaatgut | C38: % | D38: 100 | E38: 100 | F38: =E38 -> 100 | G38: 100 | H38: =G38 -> 100 | I38: 100 | J38: 100 | K38: 100 | L38: 100 | M38: 100 | N38: 100
A39: Saatgutpreis Eigen | C39: €/dt | D39: 0 | E39: =D39 -> 0 | F39: =E39 -> 0 | G39: 0 | H39: =G39 -> 0 | I39: 0 | J39: 0 | K39: 0 | L39: 0 | M39: 0 | N39: 0
A40: Zukauf (Hybridroggen)* | C40: €/dt | D40: =Stammdatenblatt!P81 -> 78.645 | E40: =D40 -> 78.645 | F40: =E40 -> 78.645 | G40: =+F40 -> 78.645 | H40: =G40 -> 78.645 | I40: =+H40 -> 78.645 | J40: =I40 -> 78.645 | K40: 64 | L40: 48 | M40: 50 | N40: 61
A41: Saatgutkosten | C41: €/ha | D41: =D38/100*(D37*D40)/100+((100-D38)/100*D37*D39/100) -> 78.645 | E41: 78.645 | F41: 78.645 | G41: 78.645 | H41: 78.645 | I41: 78.645 | J41: 78.645 | K41: 64 | L41: 48 | M41: 50 | N41: 61
A42: Dünger: | B42: €/kg | D42: Düngeraufwand/ha (in kg Reinnährst.)
A43: =+Stammdatenblatt!A130 -> Stickstoff | B43: =+Stammdatenblatt!P130 -> 2.320205374 | C43: Aufw./ha | D43: 130 | E43: 170 | F43: 170 | G43: 170 | H43: 170 | I43: 170 | J43: 170 | K43: 170 | L43: 170 | M43: 170 | N43: 170
A44: =+Stammdatenblatt!A131 -> Phosphor | B44: =+Stammdatenblatt!P131 -> 1.226340187 | C44: Aufw./ha | D44: 45 | E44: 65 | F44: 95 | G44: 65 | H44: 85 | I44: 65 | J44: 95 | K44: 85 | L44: 85 | M44: 85 | N44: 85
A45: =+Stammdatenblatt!A132 -> Kali | B45: =+Stammdatenblatt!P132 -> 1.0165575 | C45: Aufw./ha | D45: 110 | E45: 120 | F45: 135 | G45: 120 | H45: 135 | I45: 120 | J45: 135 | K45: 135 | L45: 135 | M45: 135 | N45: 135
A46: =+Stammdatenblatt!A133 -> Kalk | B46: =+Stammdatenblatt!P133 -> 0.04746777778 | C46: Aufw./ha | D46: 300 | E46: =D46 -> 300 | F46: 300 | G46: 300 | H46: 300 | I46: 300 | J46: 300 | K46: 300 | L46: 300 | M46: 300 | N46: 300
A47: =+Stammdatenblatt!A134 -> Magnesium | B47: =+Stammdatenblatt!P134 -> 1.844103333 | C47: Aufw./ha | D47: 10 | E47: 15 | F47: 18 | G47: 15 | H47: 40 | I47: 15 | J47: 18 | K47: 40 | L47: 40 | M47: 40 | N47: 40
A48: =+Stammdatenblatt!A135 -> Schwefel | B48: =+Stammdatenblatt!P135 -> 0.7582283333 | C48: Aufw./ha | D48: 20 | E48: 25 | F48: 30 | G48: 25 | H48: 30 | I48: =H48 -> 30 | J48: 30 | K48: 30 | L48: 30 | M48: 30 | N48: 30
A49: Mineraldüngerkosten | C49: €/ha | D49: =D43*$B$43+D44*$B$44+D45*$B$45+D46*$B$46+D47*$B$47+D48*$B$48 -> 516.4792654 | E49: 656.9915175 | F49: 718.3535373 | G49: 656.9915175 | H49: 746.6604087 | I49: 660.7826591 | J49: 718.3535373 | K49: 465 | L49: 450 | M49: 350 | N49: 480
A50: Herbizide | C50: €/ha | D50: 33 | E50: 45 | F50: 45 | G50: 45 | H50: 59 | I50: 43 | J50: 43 | K50: 58 | L50: 58 | M50: 54 | N50: 55
A51: Fungizide | C51: €/ha | D51: 18 | E51: 35 | F51: 70 | G51: 35 | H51: 54 | I51: 48 | J51: 67 | K51: 53 | L51: 52 | M51: 45 | N51: 46
A52: Insektizide | C52: €/ha | D52: 0 | E52: 0 | F52: 0 | G52: 0 | H52: 10 | I52: 0 | J52: 0 | K52: 11 | L52: 11 | M52: 6 | N52: 2
A53: Wachstumsregler | C53: €/ha | D53: 14 | E53: 25 | F53: 25 | G53: 25 | H53: 32 | I53: 18 | J53: 23 | K53: 30 | L53: 29 | M53: 28 | N53: 27
A54: Pflanzenbehandlungskosten | C54: €/ha | D54: =SUM(D50:D53) -> 65 | E54: 105 | F54: 140 | G54: 105 | H54: 155 | I54: 109 | J54: 133 | K54: 152 | L54: 150 | M54: 133 | N54: 130
B55: * normale Sorten incl. USt: | C55: =+Stammdatenblatt!P80 -> 70.62 | D55: €/dt
A56: Wichtig: Die Arbeitszeiten beinhalten keine Rüstzeiten!

Sheet Saatgutprod.-Hybridroggen (hidden)
L2: Erntejahr
B3: Landesbetrieb Landwirtschaft Hessen | H3: 2012 | K3: 2011 | L3: 2010 | M3: 2009 | N3: 2008
A6: Roggen | B6: Saatgutvermehrung | D6: 2 ha | G6: 5 ha | H6: 5 ha | I6: 20 ha | K6: 5 ha | L6: 5 ha | M6: 5 ha | N6: 5 ha
A7: Leistung: Menge Hauptprod. | C7: dt/ha | D7: 50 | E7: 70 | F7: 90 | G7: 70 | H7: 90 | I7: 70 | J7: 90 | K7: 90 | L7: 90 | M7: 90 | N7: 90
A8: Preis Hauptprod. | B8: (Angaben inkl. MwSt.) | C8: € | D8: =+Stammdatenblatt!P14 -> 25.0918 | E8: =D8 -> 25.0918 | F8: =E8 -> 25.0918 | G8: =+D8 -> 25.0918 | H8: =G8 -> 25.0918 | I8: =+H8 -> 25.0918 | J8: =I8 -> 25.0918 | K8: 22.35 | L8: 17.05 | M8: 9.59 | N8: 12.5
A9: Erlös Hauptprodukt | C9: €/ha | D9: =D7*D8 -> 1254.59 | E9: 1756.426 | F9: 2258.262 | G9: 1756.426 | H9: 2258.262 | I9: 1756.426 | J9: 2258.262 | K9: 2011.5 | L9: 1534.5 | M9: 863.1 | N9: 1125
A10: Erlös Nebenprodukt(e) | B10: Vermehrer-Zuschlag | C10: €/ha | D10: =SUM(D7*O10) -> 277.5 | E10: =SUM(E7*O10) -> 388.5 | F10: =E10 -> 388.5 | G10: =G7*O10 -> 388.5 | H10: =H7*O10 -> 499.5 | I10: 0 | J10: =I10 -> 0 | K10: =H10 -> 499.5 | L10: =K10 -> 499.5 | M10: =L10 -> 499.5 | N10: =M10 -> 499.5 | O10: 5.55
A11: Leistungen | C11: €/ha | D11: =D9+D10 -> 1532.09 | E11: =E10+E9 -> 2144.926 | F11: 2646.762 | G11: 2144.926 | H11: 2757.762 | I11: 1756.426 | J11: 2258.262 | K11: 2511 | L11: 2034 | M11: 1362.6 | N11: 1624.5
A12: Saatgutkosten | C12: €/ha | D12: =D41 -> 78.645 | E12: 78.645 | F12: 78.645 | G12: 78.645 | H12: 78.645 | I12: 78.645 | J12: 78.645 | K12: 64 | L12: 48 | M12: 50 | N12: 61
A13: Mineraldüngerkosten | C13: €/ha | D13: =D49 -> 516.4792654 | E13: 656.9915175 | F13: 718.3535373 | G13: 656.9915175 | H13: 746.6604087 | I13: 660.7826591 | J13: 718.3535373 | K13: 465 | L13: 450 | M13: 350 | N13: 480
A14: Pflanzenbehandlungsk. | C14: €/ha | D14: =D54 -> 65 | E14: 105 | F14: 140 | G14: 105 | H14: 155 | I14: 109 | J14: 133 | K14: 152 | L14: 150 | M14: 133 | N14: 130
A15: Versicherung | C15: €/ha | D15: =(D11/1000)*Stammdatenblatt!$E$190 -> 9.1772191 | E15: =(E11/1000)*Stammdatenblatt!$E$190 -> 12.84810674 | F15: =(F11/1000)*Stammdatenblatt!$E$190 -> 15.85410438 | G15: =(G11/1000)*Stammdatenblatt!$E$190 -> 12.84810674 | H15: =(H11/1000)*Stammdatenblatt!$E$190 -> 16.51899438 | I15: =(I11/1000)*Stammdatenblatt!$E$190 -> 10.52099174 | J15: =(J11/1000)*Stammdatenblatt!$E$190 -> 13.52698938 | K15: 13 | L15: 13 | M15: 12 | N15: 11
A16: Trocknungskosten | C16: €/ha | D16: =D7/Stammdatenblatt!$E$204*Stammdatenblatt!$E$201+(Stammdatenblatt!$E$203*Stammdatenblatt!$E$202) -> 18.50666667 | E16: =E7/Stammdatenblatt!$E$204*Stammdatenblatt!$E$201+(Stammdatenblatt!$E$203*Stammdatenblatt!$E$202) -> 25.17333333 | F16: =F7/Stammdatenblatt!$E$204*Stammdatenblatt!$E$201+(Stammdatenblatt!$E$203*Stammdatenblatt!$E$202) -> 31.84 | G16: =G7/Stammdatenblatt!$E$204*Stammdatenblatt!$E$201+(Stammdatenblatt!$E$203*Stammdatenblatt!$E$202) -> 25.17333333 | H16: =H7/Stammdatenblatt!$E$204*Stammdatenblatt!$E$201+(Stammdatenblatt!$E$203*Stammdatenblatt!$E$202) -> 31.84 | I16: =I7/Stammdatenblatt!$E$204*Stammdatenblatt!$E$201+(Stammdatenblatt!$E$203*Stammdatenblatt!$E$202) -> 25.17333333 | J16: =J7/Stammdatenblatt!$E$204*Stammdatenblatt!$E$201+(Stammdatenblatt!$E$203*Stammdatenblatt!$E$202) -> 31.84 | K16: 19 | L16: 18 | M16: 17 | N16: 16
A17: Summe Direktkosten | C17: €/ha | D17: =SUM(D12:D16) -> 687.8081512 | E17: =SUM(E12:E16) -> 878.6579576 | F17: 984.6926416 | G17: 878.6579576 | H17: 1028.664403 | I17: 884.1219842 | J17: 975.3655266 | K17: 713 | L17: 679 | M17: 562 | N17: 698
A18: Direktkostenfreie Leistung | C18: €/ha | D18: =D11-D17 -> 844.2818488 | E18: =E11-E17 -> 1266.268042 | F18: 1662.069358 | G18: 1266.268042 | H18: 1729.097597 | I18: 872.3040158 | J18: 1282.896473 | K18: 1798 | L18: 1355 | M18: 800.6 | N18: 926.5
A19: Maschinenkosten eigen | C19: €/ha | D19: =Arbeitsgänge!J523 -> 112.66 | E19: =Arbeitsgänge!J543 -> 117.48 | F19: =Arbeitsgänge!J564 -> 120.51 | G19: =Arbeitsgänge!J586 -> 110.79 | H19: =Arbeitsgänge!J609 -> 113.77 | I19: =Arbeitsgänge!J640 -> 109.09 | J19: =Arbeitsgänge!J673 -> 111.67 | K19: 114 | L19: 112 | M19: 111 | N19: 110
A20: Maschinenkosten fremd | C20: €/ha | D20: =Arbeitsgänge!K523 -> 125 | E20: =Arbeitsgänge!K543 -> 125 | F20: =Arbeitsgänge!K564 -> 125 | G20: =Arbeitsgänge!K586 -> 110 | H20: =Arbeitsgänge!K609 -> 110 | I20: =Arbeitsgänge!K640 -> 110 | J20: =Arbeitsgänge!K673 -> 110 | K20: 110 | L20: 110 | M20: 110 | N20: 110
A21: Lohnkosten / Lohntrocknung | C21: €/ha | D21: 0 | E21: =D21 -> 0 | F21: =E21 -> 0 | G21: 0 | H21: =G21 -> 0 | I21: 0 | J21: =I21 -> 0 | K21: 0 | L21: 0 | M21: 0 | N21: 0
A22: zusätzl. Kosten (Aufbereitung etc.) | C22: €/ha | D22: 30 | E22: 45 | F22: =E22 -> 45 | G22: 45 | H22: 65 | I22: 0 | J22: 0 | K22: 65 | L22: 65 | M22: 65 | N22: 65
A23: variable Kosten | C23: €/ha | D23: =SUM(D19:D22,D17) -> 955.4681512 | E23: =SUM(E19:E22,E17) -> 1166.137958 | F23: 1275.202642 | G23: 1144.447958 | H23: 1317.434403 | I23: 1103.211984 | J23: 1197.035527 | K23: 1002 | L23: 966 | M23: 848 | N23: 983
A24: Deckungsbeitrag (DB) | C24: €/ha | D24: =D11-D23 -> 576.6218488 | E24: 978.7880424 | F24: 1371.559358 | G24: 1000.478042 | H24: 1440.327597 | I24: 653.2140158 | J24: 1061.226473 | K24: 1509 | L24: 1068 | M24: 514.6 | N24: 641.5
A25: Zeit-Spanne | B25: AK-Bedarf
A26: MAE | C26: Akh/ha | D26: =SUMIF(Arbeitsgänge!D$508:D$522,A26,Arbeitsgänge!G$508:G$522) -> 0.24 | E26: =SUMIF(Arbeitsgänge!D$526:D$542,'Saatgutprod.-Hybridroggen'!A26,Arbeitsgänge!G$526:G$542) -> 0.24 | F26: =SUMIF(Arbeitsgänge!D$546:D$563,A26,Arbeitsgänge!G$546:G$563) -> 0.24 | G26: =SUMIF(Arbeitsgänge!D$567:D$585,'Saatgutprod.-Hybridroggen'!A26,Arbeitsgänge!G$567:G$585) -> 0.23 | H26: =SUMIF(Arbeitsgänge!D$589:D$608,'Saatgutprod.-Hybridroggen'!A26,Arbeitsgänge!G$589:G$608) -> 0.23 | I26: =SUMIF(Arbeitsgänge!D$612:D$639,'Saatgutprod.-Hybridroggen'!A26,Arbeitsgänge!G$612:G$639) -> 0.12 | J26: =SUMIF(Arbeitsgänge!D$643:D$672,'Saatgutprod.-Hybridroggen'!A26,Arbeitsgänge!G$643:G$672) -> 0.12 | K26: 0.2 | L26: 0.2 | M26: 0.2 | N26: 0.2
A27: APR | C27: Akh/ha | D27: =SUMIF(Arbeitsgänge!D$508:D$522,A27,Arbeitsgänge!G$508:G$522) -> 0.58 | E27: =SUMIF(Arbeitsgänge!D$526:D$542,'Saatgutprod.-Hybridroggen'!A27,Arbeitsgänge!G$526:G$542) -> 0.58 | F27: =SUMIF(Arbeitsgänge!D$546:D$563,A27,Arbeitsgänge!G$546:G$563) -> 0.58 | G27: =SUMIF(Arbeitsgänge!D$567:D$585,'Saatgutprod.-Hybridroggen'!A27,Arbeitsgänge!G$567:G$585) -> 0.49 | H27: =SUMIF(Arbeitsgänge!D$589:D$608,'Saatgutprod.-Hybridroggen'!A27,Arbeitsgänge!G$589:G$608) -> 0.49 | I27: =SUMIF(Arbeitsgänge!D$612:D$639,'Saatgutprod.-Hybridroggen'!A27,Arbeitsgänge!G$612:G$639) -> 0.29 | J27: =SUMIF(Arbeitsgänge!D$643:D$672,'Saatgutprod.-Hybridroggen'!A27,Arbeitsgänge!G$643:G$672) -> 0.29 | K27: 0.5 | L27: 0.5 | M27: 0.5 | N27: 0.5
A28: MAI | C28: Akh/ha | D28: =SUMIF(Arbeitsgänge!D$508:D$522,A28,Arbeitsgänge!G$508:G$522) -> 0 | E28: =SUMIF(Arbeitsgänge!D$526:D$542,'Saatgutprod.-Hybridroggen'!A28,Arbeitsgänge!G$526:G$542) -> 0.58 | F28: =SUMIF(Arbeitsgänge!D$546:D$563,A28,Arbeitsgänge!G$546:G$563) -> 0.58 | G28: =SUMIF(Arbeitsgänge!D$567:D$585,'Saatgutprod.-Hybridroggen'!A28,Arbeitsgänge!G$567:G$585) -> 0.49 | H28: =SUMIF(Arbeitsgänge!D$589:D$608,'Saatgutprod.-Hybridroggen'!A28,Arbeitsgänge!G$589:G$608) -> 0.49 | I28: =SUMIF(Arbeitsgänge!D$612:D$639,'Saatgutprod.-Hybridroggen'!A28,Arbeitsgänge!G$612:G$639) -> 0.29 | J28: =SUMIF(Arbeitsgänge!D$643:D$672,'Saatgutprod.-Hybridroggen'!A28,Arbeitsgänge!G$643:G$672) -> 0.29 | K28: 0.5 | L28: 0.5 | M28: 0.5 | N28: 0.5
A29: JUN | C29: Akh/ha | D29: =SUMIF(Arbeitsgänge!D$508:D$522,A29,Arbeitsgänge!G$508:G$522) -> 0 | E29: =SUMIF(Arbeitsgänge!D$526:D$542,'Saatgutprod.-Hybridroggen'!A29,Arbeitsgänge!G$526:G$542) -> 0 | F29: =SUMIF(Arbeitsgänge!D$546:D$563,A29,Arbeitsgänge!G$546:G$563) -> 0.34 | G29: =SUMIF(Arbeitsgänge!D$567:D$585,'Saatgutprod.-Hybridroggen'!A29,Arbeitsgänge!G$567:G$585) -> 0 | H29: =SUMIF(Arbeitsgänge!D$589:D$608,'Saatgutprod.-Hybridroggen'!A29,Arbeitsgänge!G$589:G$608) -> 0.26 | I29: =SUMIF(Arbeitsgänge!D$612:D$639,'Saatgutprod.-Hybridroggen'!A29,Arbeitsgänge!G$612:G$639) -> 0 | J29: =SUMIF(Arbeitsgänge!D$643:D$672,'Saatgutprod.-Hybridroggen'!A29,Arbeitsgänge!G$643:G$672) -> 0.17 | K29: 0.3 | L29: 0.3 | M29: 0.3 | N29: 0.3
A30: JUL | C30: Akh/ha | D30: =SUMIF(Arbeitsgänge!D$508:D$522,A30,Arbeitsgänge!G$508:G$522) -> 0 | E30: =SUMIF(Arbeitsgänge!D$526:D$542,'Saatgutprod.-Hybridroggen'!A30,Arbeitsgänge!G$526:G$542) -> 0 | F30: =SUMIF(Arbeitsgänge!D$546:D$563,A30,Arbeitsgänge!G$546:G$563) -> 0 | G30: =SUMIF(Arbeitsgänge!D$567:D$585,'Saatgutprod.-Hybridroggen'!A30,Arbeitsgänge!G$567:G$585) -> 0 | H30: =SUMIF(Arbeitsgänge!D$589:D$608,'Saatgutprod.-Hybridroggen'!A30,Arbeitsgänge!G$589:G$608) -> 0 | I30: =SUMIF(Arbeitsgänge!D$612:D$639,'Saatgutprod.-Hybridroggen'!A30,Arbeitsgänge!G$612:G$639) -> 0 | J30: =SUMIF(Arbeitsgänge!D$643:D$672,'Saatgutprod.-Hybridroggen'!A30,Arbeitsgänge!G$643:G$672) -> 0 | K30: 0 | L30: 0 | M30: 0 | N30: 0
A31: AUG | C31: Akh/ha | D31: =SUMIF(Arbeitsgänge!D$508:D$522,A31,Arbeitsgänge!G$508:G$522) -> 1.34 | E31: =SUMIF(Arbeitsgänge!D$526:D$542,'Saatgutprod.-Hybridroggen'!A31,Arbeitsgänge!G$526:G$542) -> 1.34 | F31: =SUMIF(Arbeitsgänge!D$546:D$563,A31,Arbeitsgänge!G$546:G$563) -> 1.34 | G31: =SUMIF(Arbeitsgänge!D$567:D$585,'Saatgutprod.-Hybridroggen'!A31,Arbeitsgänge!G$567:G$585) -> 1.04 | H31: =SUMIF(Arbeitsgänge!D$589:D$608,'Saatgutprod.-Hybridroggen'!A31,Arbeitsgänge!G$589:G$608) -> 1.04 | I31: =SUMIF(Arbeitsgänge!D$612:D$639,'Saatgutprod.-Hybridroggen'!A31,Arbeitsgänge!G$612:G$639) -> 0.78 | J31: =SUMIF(Arbeitsgänge!D$643:D$672,'Saatgutprod.-Hybridroggen'!A31,Arbeitsgänge!G$643:G$672) -> 0.78 | K31: 1 | L31: 1 | M31: 1 | N31: 1
A32: SEP | C32: Akh/ha | D32: =SUMIF(Arbeitsgänge!D$508:D$522,A32,Arbeitsgänge!G$508:G$522) -> 0.73 | E32: =SUMIF(Arbeitsgänge!D$526:D$542,'Saatgutprod.-Hybridroggen'!A32,Arbeitsgänge!G$526:G$542) -> 0.73 | F32: =SUMIF(Arbeitsgänge!D$546:D$563,A32,Arbeitsgänge!G$546:G$563) -> 0.73 | G32: =SUMIF(Arbeitsgänge!D$567:D$585,'Saatgutprod.-Hybridroggen'!A32,Arbeitsgänge!G$567:G$585) -> 0.55 | H32: =SUMIF(Arbeitsgänge!D$589:D$608,'Saatgutprod.-Hybridroggen'!A32,Arbeitsgänge!G$589:G$608) -> 0.55 | I32: =SUMIF(Arbeitsgänge!D$612:D$639,'Saatgutprod.-Hybridroggen'!A32,Arbeitsgänge!G$612:G$639) -> 0.43 | J32: =SUMIF(Arbeitsgänge!D$643:D$672,'Saatgutprod.-Hybridroggen'!A32,Arbeitsgänge!G$643:G$672) -> 0.43 | K32: 0.6 | L32: 0.6 | M32: 0.6 | N32: 0.6
A33: OKT | C33: Akh/ha | D33: =SUMIF(Arbeitsgänge!D$508:D$522,A33,Arbeitsgänge!G$508:G$522) -> 4.13 | E33: =SUMIF(Arbeitsgänge!D$526:D$542,'Saatgutprod.-Hybridroggen'!A33,Arbeitsgänge!G$526:G$542) -> 4.13 | F33: =SUMIF(Arbeitsgänge!D$546:D$563,A33,Arbeitsgänge!G$546:G$563) -> 4.13 | G33: =SUMIF(Arbeitsgänge!D$567:D$585,'Saatgutprod.-Hybridroggen'!A33,Arbeitsgänge!G$567:G$585) -> 3.14 | H33: =SUMIF(Arbeitsgänge!D$589:D$608,'Saatgutprod.-Hybridroggen'!A33,Arbeitsgänge!G$589:G$608) -> 3.14 | I33: =SUMIF(Arbeitsgänge!D$612:D$639,'Saatgutprod.-Hybridroggen'!A33,Arbeitsgänge!G$612:G$639) -> 2.19 | J33: =SUMIF(Arbeitsgänge!D$643:D$672,'Saatgutprod.-Hybridroggen'!A33,Arbeitsgänge!G$643:G$672) -> 2.19 | K33: 3.1 | L33: 3.1 | M33: 3.1 | N33: 3.1
A34: Rest | C34: Akh/ha | D34: =SUMIF(Arbeitsgänge!D$508:D$522,A34,Arbeitsgänge!G$508:G$522) -> 0 | E34: =SUMIF(Arbeitsgänge!D$526:D$542,'Saatgutprod.-Hybridroggen'!A34,Arbeitsgänge!G$526:G$542) -> 0 | F34: =SUMIF(Arbeitsgänge!D$546:D$563,A34,Arbeitsgänge!G$546:G$563) -> 0 | G34: =SUMIF(Arbeitsgänge!D$567:D$585,'Saatgutprod.-Hybridroggen'!A34,Arbeitsgänge!G$567:G$585) -> 0 | H34: =SUMIF(Arbeitsgänge!D$589:D$608,'Saatgutprod.-Hybridroggen'!A34,Arbeitsgänge!G$589:G$608) -> 0 | I34: =SUMIF(Arbeitsgänge!D$612:D$639,'Saatgutprod.-Hybridroggen'!A34,Arbeitsgänge!G$612:G$639) -> 0 | J34: =SUMIF(Arbeitsgänge!D$643:D$672,'Saatgutprod.-Hybridroggen'!A34,Arbeitsgänge!G$643:G$672) -> 0 | K34: 0 | L34: 0 | M34: 0 | N34: 0 | O34: +
A35: Arbeitskraftstunden | C35: AKh/ha | D35: =SUM(D26:D34)+O35 -> 10.02 | E35: =SUM(E26:E34)+O35 -> 10.6 | F35: =SUM(F26:F34) -> 7.94 | G35: =SUM(G26:G34)+O35 -> 8.94 | H35: =SUM(H26:H34)+O35 -> 9.2 | I35: =SUM(I26:I34) -> 4.1 | J35: =SUM(J26:J34) -> 4.27 | K35: =SUM(K26:K34)+O35 -> 9.2 | L35: =SUM(L26:L34)+O35 -> 9.2 | M35: =SUM(M26:M34)+O35 -> 9.2 | N35: =SUM(N26:N34)+O35 -> 9.2 | O35: 3
A36: DB (je Akh) | C36: €/Akh | D36: =IF(D24>0,D24/D35,0) -> 57.5470907 | E36: 92.33849457 | F36: 172.7404733 | G36: 111.9102956 | H36: 156.5573475 | I36: 159.3204917 | J36: 248.53079 | K36: 164.0217391 | L36: 116.0869565 | M36: 55.93478261 | N36: 69.72826087
A37: Aussaatmenge | C37: kg/ha | D37: 100 | E37: =D37 -> 100 | F37: =E37 -> 100 | G37: 100 | H37: =G37 -> 100 | I37: 100 | J37: =I37 -> 100 | K37: 100 | L37: 100 | M37: 100 | N37: 100
A38: davon Zukaufsaatgut | C38: % | D38: 100 | E38: 100 | F38: =E38 -> 100 | G38: 100 | H38: =G38 -> 100 | I38: 100 | J38: 100 | K38: 100 | L38: 100 | M38: 100 | N38: 100
A39: Saatgutpreis Eigen | C39: €/dt | D39: 0 | E39: =D39 -> 0 | F39: =E39 -> 0 | G39: 0 | H39: =G39 -> 0 | I39: 0 | J39: 0 | K39: 0 | L39: 0 | M39: 0 | N39: 0
A40: Zukauf (Hybridroggen)* | C40: €/dt | D40: =Stammdatenblatt!P81 -> 78.645 | E40: =D40 -> 78.645 | F40: =E40 -> 78.645 | G40: =+F40 -> 78.645 | H40: =G40 -> 78.645 | I40: =+H40 -> 78.645 | J40: =I40 -> 78.645 | K40: 64 | L40: 48 | M40: 50 | N40: 61
A41: Saatgutkosten | C41: €/ha | D41: =D38/100*(D37*D40)/100+((100-D38)/100*D37*D39/100) -> 78.645 | E41: 78.645 | F41: 78.645 | G41: 78.645 | H41: 78.645 | I41: 78.645 | J41: 78.645 | K41: 64 | L41: 48 | M41: 50 | N41: 61
A42: Dünger: | B42: €/kg | D42: Düngeraufwand/ha (in kg Reinnährst.)
A43: =+Stammdatenblatt!A130 -> Stickstoff | B43: =+Stammdatenblatt!P130 -> 2.320205374 | C43: Aufw./ha | D43: 130 | E43: 170 | F43: 170 | G43: 170 | H43: 170 | I43: 170 | J43: 170 | K43: 170 | L43: 170 | M43: 170 | N43: 170
A44: =+Stammdatenblatt!A131 -> Phosphor | B44: =+Stammdatenblatt!P131 -> 1.226340187 | C44: Aufw./ha | D44: 45 | E44: 65 | F44: 95 | G44: 65 | H44: 85 | I44: 65 | J44: 95 | K44: 85 | L44: 85 | M44: 85 | N44: 85
A45: =+Stammdatenblatt!A132 -> Kali | B45: =+Stammdatenblatt!P132 -> 1.0165575 | C45: Aufw./ha | D45: 110 | E45: 120 | F45: 135 | G45: 120 | H45: 135 | I45: 120 | J45: 135 | K45: 135 | L45: 135 | M45: 135 | N45: 135
A46: =+Stammdatenblatt!A133 -> Kalk | B46: =+Stammdatenblatt!P133 -> 0.04746777778 | C46: Aufw./ha | D46: 300 | E46: =D46 -> 300 | F46: 300 | G46: 300 | H46: 300 | I46: 300 | J46: 300 | K46: 300 | L46: 300 | M46: 300 | N46: 300
A47: =+Stammdatenblatt!A134 -> Magnesium | B47: =+Stammdatenblatt!P134 -> 1.844103333 | C47: Aufw./ha | D47: 10 | E47: 15 | F47: 18 | G47: 15 | H47: 40 | I47: 15 | J47: 18 | K47: 40 | L47: 40 | M47: 40 | N47: 40
A48: =+Stammdatenblatt!A135 -> Schwefel | B48: =+Stammdatenblatt!P135 -> 0.7582283333 | C48: Aufw./ha | D48: 20 | E48: 25 | F48: 30 | G48: 25 | H48: 30 | I48: =H48 -> 30 | J48: 30 | K48: 30 | L48: 30 | M48: 30 | N48: 30
A49: Mineraldüngerkosten | C49: €/ha | D49: =D43*$B$43+D44*$B$44+D45*$B$45+D46*$B$46+D47*$B$47+D48*$B$48 -> 516.4792654 | E49: 656.9915175 | F49: 718.3535373 | G49: 656.9915175 | H49: 746.6604087 | I49: 660.7826591 | J49: 718.3535373 | K49: 465 | L49: 450 | M49: 350 | N49: 480
A50: Herbizide | C50: €/ha | D50: 33 | E50: 45 | F50: 45 | G50: 45 | H50: 59 | I50: 43 | J50: 43 | K50: 58 | L50: 58 | M50: 54 | N50: 55
A51: Fungizide | C51: €/ha | D51: 18 | E51: 35 | F51: 70 | G51: 35 | H51: 54 | I51: 48 | J51: 67 | K51: 53 | L51: 52 | M51: 45 | N51: 46
A52: Insektizide | C52: €/ha | D52: 0 | E52: 0 | F52: 0 | G52: 0 | H52: 10 | I52: 0 | J52: 0 | K52: 11 | L52: 11 | M52: 6 | N52: 2
A53: Wachstumsregler | C53: €/ha | D53: 14 | E53: 25 | F53: 25 | G53: 25 | H53: 32 | I53: 18 | J53: 23 | K53: 30 | L53: 29 | M53: 28 | N53: 27
A54: Pflanzenbehandlungskosten | C54: €/ha | D54: =SUM(D50:D53) -> 65 | E54: 105 | F54: 140 | G54: 105 | H54: 155 | I54: 109 | J54: 133 | K54: 152 | L54: 150 | M54: 133 | N54: 130
B55: * normale Sorten incl. USt: | C55: =+Stammdatenblatt!P80 -> 70.62 | D55: €/dt
A56: Wichtig: Die Arbeitszeiten beinhalten keine Rüstzeiten!

Sheet Sonstige Kosten (hidden)
C2: Sonstige Kosten
C4: Nachfolgende Spezialinformationen sind mit den Berechnungsgrundlagen nicht
C5: verknüpft und können für individuelle Kalkulationen verwendet werden.
C7: So setzt sich der Saatgutpreis zusammen, Bsp. Winterweizen, (A-Qualität)
E8: Quelle: BW-agrar, Nr.36/2011, S.61 | I8: je dt
C9: Vermehrungsgrundpreis | H9: 20,50 €
C10: Vermehreraufschlag | H10: 6,25 €
C11: (Mehrkosten Basissaatgut, Bereinigung, Aufbereitung
C12: Risikoausgleich)
C13: Beizung Fungizid | H13: 9,30 €
C14: (Mittelkosten, Beizanlage, Beizlohn)
C15: Verpackung | H15: 1,60 €
C16: Züchterlizenz | H16: 7,00 - 10,50 €
C17: Vo-Spanne | H17: 1,00 - 3,00 €
C18: Handelsspanne | H18: 1,00 - 5,00 €
C19: Lagerung u. Transport | H19: 1,00 - 7,00 €
C20: Verkaufspreis an Landwirte | H20: 48 - 63,50 €
C23: Saatgut
C24: Quelle: | D24: BayWa Saatgut Agrar 04/2011 u. eigene Erhebungen
C25: Kulturen | F25: Saat-/Pflanzgutpreis
F26: €/dt bzw. Einh. (o.Mwst.)
C27: Winterweizen | E27: Futterweizen; C | F27: 56
C28: Winterweizen | E28: Backweizen; B | F28: 57
C29: Winterweizen | E29: Qualitätsweizen; A | F29: 58
C30: Winterweizen | E30: Eliteweizen; E | F30: 60
C31: Winterroggen | E31: Populationssorten | F31: 54
C32: Winterroggen | E32: Hybridsorten | F32: 52
C33: Triticale | F33: 52
C34: Wintergerste | E34: Futtergerste | F34: 52
C35: Dinkel | F35: 83 | I35: Züchterlizenzgebühren | L35: €/dt
C36: Sommerweizen | E36: Backweizen; B | F36: 57 | I36: Getreide | L36: ca. 5 - 10
C37: Sommergerste | E37: Futtergerste | F37: 56 | I37: Ackerbohnen | L37: ca. 8 - 9
C38: Braugerste | F38: 61 | I38: Erbsen | L38: ca. 4 - 11
C39: Hafer | F39: 55 | I39: Lupinen | L39: 9.9
C40: Durum | F40: 93 | I40: Kartoffeln | L40: ca. 4 - 10
C41: Körnermais | E41: 50TK/Einheit | F41: 85 | G41: (je TKEh) | I41: Quelle: Saatgut-Treuhandverwaltungs GmbH www.stv-bonn.de/
C42: Winterraps | E42: Hybridsorten | F42: 244 | N42: Stand 11/2011
E43: Liniensorten | F43: 142
C44: Sommerraps | F44: 260 | G44: (je Eh[ha])
C45: Sonnenblumen | F45: 200 | G45: (0,25 ha)
C46: Sojabohnen | F46: 55 | G46: (je Eh[ha])
C47: Öllein | F47: 74 | I47: Berechnungsbeispiel | L47: Winterroggen
C48: Futtererbsen | F48: 85
C49: Ackerbohnen | F49: 85 | I49: Saatmenge: | K49: 130 | L49: kg/ha
C50: Lupinen | E50: bitterstoffarm | F50: 115 | I50: Anteil Zukauf: | K50: 30 | L50: %
C51: Zuckerrüben
C52: Speisekartoffeln | F52: 66 | I52: =K50% -> 0.3 | J52: =K49*K50%/100 -> 0.39 | K52: Zukauf * | L52: =F32 -> 52 | M52: €/dt = | N52: =J52*L52 -> 20.28 | O52: €/ha
C53: Speisefrühkartoffeln | F53: 70 | I53: =1-I52 -> 0.7 | J53: =K49*I53% -> 0.91 | K53: Eigen * | L53: 17.712 | M53: €/dt = | N53: =J53*L53 -> 16.11792 | O53: €/ha
C54: Hanf (Stroh) ohne Lagerung | J54: Reinigen+Beizen | L54: 15 | M54: €/dt = | N54: =J53*L54 -> 13.65 | O54: €/ha
C55: Hanf (Stroh) nach Lagerung | J55: + Nachbaulizenz | L55: 4 | M55: €/dt = | N55: =J53*L55 -> 3.64 | O55: €/ha
C56: Blühmischung (Brachebegrünung) | F56: 400 | I56: Summe | N56: =SUM(N52:N55) -> 53.68792 | O56: €/ha
C63: Kosten der Feuchtgetreidelagerung
C64: Quelle: in Anlehnung an DLZ 7/2001, S72 ff.; aktualisiert über Preisindizes des Stat. Bundesamtes (11/2011)
C65: Getreidefläche | E65: ha | F65: 20 | G65: 30 | H65: 50 | J65: 100
C66: Getreidemenge | E66: t | F66: 120 | G66: 180 | H66: 300 | J66: 600
C69: Lagerraum | D69: 0.75 | E69: m³ | F69: =F66/$D$69 -> 160 | G69: =G66/$D$69 -> 240 | H69: =H66/$D$69 -> 400 | J69: =J66/$D$69 -> 800
C70: Kosten je m³ | E70: € | F70: 170 | G70: 160 | H70: 120 | J70: 100
C71: Investitionssumme | E71: € | F71: =F69*F70 -> 27200 | G71: =G69*G70 -> 38400 | H71: =H69*H70 -> 48000 | J71: =J69*J70 -> 80000
C72: Abschreibung | D72: 0.04 | E72: € | F72: =F71*$D$72 -> 1088 | G72: =G71*$D$72 -> 1536 | H72: =H71*$D$72 -> 1920 | J72: =J71*$D$72 -> 3200
C73: Zinssatz | D73: 0.02 | E73: € | F73: =F71*$D$73 -> 544 | G73: =G71*$D$73 -> 768 | H73: =H71*$D$73 -> 960 | J73: =J71*$D$73 -> 1600
C74: Festkosten/Jahr | E74: € | F74: =SUM(F72:F73) -> 1632 | G74: =SUM(G72:G73) -> 2304 | H74: =SUM(H72:H73) -> 2880 | J74: =SUM(J72:J73) -> 4800
E75: €/t | F75: =F74/F66 -> 13.6 | G75: =G74/G66 -> 12.8 | H75: =H74/H66 -> 9.6 | J75: =J74/J66 -> 8
C77: Variable Kosten
C78: Einlagerungskosten bei 17 t Stundenleistung mit Zellenradgebläse 7,87 kW-E-Motor 1,12 €/h.
E79: €/t | F79: 0.15 | G79: 0.15 | H79: 0.15 | J79: 0.15
C80: Auslagerungskosten mittels Folge- und Transportschnecke
C81: 2,35 kW-E-Motor | E81: €/t | F81: 0.05 | G81: 0.05 | H81: 0.05 | J81: 0.05
C82: Servicekosten der Anlage
C83: pro Jahr | D83: 250 | E83: €/t | F83: =$D$83/F66 -> 2.083333333 | G83: =$D$83/G66 -> 1.388888889 | H83: =$D$83/H66 -> 0.8333333333 | J83: =$D$83/J66 -> 0.4166666667
C84: Reparaturkosten bei
C85: Gesamtsummen | E85: €/Jahr | F85: 500 | G85: 700 | H85: 1000 | J85: 1000
E86: €/t | F86: =F85/F66 -> 4.166666667 | G86: =G85/G66 -> 3.888888889 | H86: =H85/H66 -> 3.333333333 | J86: =J85/J66 -> 1.666666667
C87: S variable Kosten | E87: €/t | F87: =SUM(F79,F81,F83,F86) -> 6.45 | G87: =SUM(G79,G81,G83,G86) -> 5.477777778 | H87: =SUM(H79,H81,H83,H86) -> 4.366666667 | J87: =SUM(J79,J81,J83,J86) -> 2.283333333
C89: Kosten insgesamt | E89: €/t | F89: =F75+F87 -> 20.05 | G89: =G75+G87 -> 18.27777778 | H89: =H75+H87 -> 13.96666667 | J89: =J75+J87 -> 10.28333333
C91: Kosten der Lagerhaltung
C94: Lagergröße | D94: 600 | E94: t | I94: Getreidepreis | L94: €/dt
C95: Lagerdauer | D95: 5 | E95: Monate | I95: vor Einlagerung | K95: 1 | L95: 14
C97: Festkosten | D97: Anschaff- | E97: Nutzungs- | F97: AfA | G97: Zinsansatz | H97: Vers.
D98: ungskosten | E98: dauer | G98: 0.02 | H98: 0.0025 | I98: gesamt | J98: je t | K98: je dt | X98: Datensammlung: Konservierung -und Lagerung von Druschfrüchten, 2010
D99: € | E99: Jahre | F99: € | G99: € | H99: € | I99: € | J99: € | K99: € | AB99: Modell1a | AD99: Modell1b | AF99: Modell1c | AH99: Modell1d
C100: Anlagetechnik | D100: 30000 | E100: 10 | F100: =D100/E100 -> 3000 | G100: =D100*G98 -> 600 | H100: =D100*H98 -> 75 | I100: =SUM(F100:H100) -> 3675 | X100: Ergenisse von KTBL-Modellanlagen: | AB100: Belegung | AD100: Belegung | AF100: Belegung | AH100: Belegung
C101: Gebäude | D101: 70000 | E101: 40 | F101: =D101/E101 -> 1750 | G101: =D101*G98 -> 1400 | H101: =D101*H98 -> 175 | I101: =SUM(F101:H101) -> 3325 | AB101: 100 %Weizen | AD101: 67,5 % Weizen | AF101: 77,5 % Weizen | AH101: 77,5 % Weizen
C102: S Festkosten | D102: =SUM(D100:D101) -> 100000 | F102: =SUM(F100:F101) -> 4750 | G102: =SUM(G100:G101) -> 2000 | H102: =SUM(H100:H101) -> 250 | I102: =SUM(F102:H102) -> 7000 | J102: =IF(D94=0,0,I102/D94) -> 11.66666667 | K102: =J102/10 -> 1.166666667 | AD102: 32,5% Gerste | AF102: 22,5% Körnermais | AH102: 22,5% Winterraps
C104: Variable Kosten | H104: Erntemenge | J104: je t | K104: je dt | X104: Anschaffungspreis | AB104: 202765 | AD104: 202765 | AF104: 202765 | AH104: 202765
C105: Art | F105: €/t | H105: % | J105: € | K105: € | X105: Fixkosten | AB105: 19284 | AD105: 19284 | AF105: 19284 | AH105: 19284
C106: Strom, Reperaturen | F106: 3 | H106: 100 | J106: =F106*H106% -> 3 | Y106: Abschreibungen | AB106: 12143 | AD106: 12143 | AF106: 12143 | AH106: 12143
C107: Sonstiges | J107: =F107*H107% -> 0 | Y107: Zinsansatz | AB107: 6085 | AD107: 6085 | AF107: 6085 | AH107: 6085
C108: S Variable Kosten | J108: =SUM(J106:J107) -> 3 | K108: =J108/10 -> 0.3 | Y108: Wartung | AB108: 1056 | AD108: 1056 | AF108: 1056 | AH108: 1056
C109: Schwund- und Zinskosten | J109: je Monat | X109: Variable Kosten | AB109: 8133 | AD109: 8108 | AF109: 15526 | AH109: 8294
F110: % | J110: €/dt | K110: € | Y110: Betriebsstoffe u- Reparaturen | AB110: 4456 | AD110: 4342 | AF110: 10424 | AH110: 4624
C111: Lagerverlust pro Monat | F111: 0.2 | J111: =L95*F111% -> 0.028 | Y111: AKh-bedarf | AB111: 245.1 | AD111: 251.1 | AF111: 340.1 | AH111: 244.7
C112: Zinsentgang/Monat | F112: 4 | J112: =L95*F112%/12 -> 0.04666666667 | Y112: Lohnansatz | AB112: 3676 | AD112: 3766 | AF112: 5102 | AH112: 3670
C113: S Schwund- und Zinskosten | J113: =SUM(J111:J112) -> 0.07466666667 | K113: =J113*D95 -> 0.3733333333 | X113: Kosten pro Jahr (fix u. variabel) | AB113: 27417 | AD113: 27392 | AF113: 34810 | AH113: 27578
C114: Gesamtkosten für Lagerung | L114: =K102+K108+K113 -> 1.84 | X114: Masse Leergut | AB114: 2000 | AD114: 1865 | AF114: 1988 | AH114: 1980
X115: Kosten pro Tonne und Jahr | AB115: 13.71 | AD115: 14.69 | AF115: 17.51 | AH115: 13.93
C116: Getreidemindestpreis bei Auslagerung (€/dt) | L116: =L95+L114 -> 15.84
C118: Lagerung
C119: Quelle: | D119: BW agrar 25/2001, S. 42 | Y119: Außenhochsilolagerung | AB119: 125 | AC119: 160
C120: Variable Kosten für 6 Monate je dt: | F120: 1 | G120: € | Y120: Hallenflachlagerung | AB120: 180 | AC120: 230
C121: Feste Kosten je dt: | F121: 1 | G121: €
C123: Hagelversicherung
C124: Quelle: Vereinigte Hagelversicherung VVaG (2011); Bezirksdirektion Stuttgart
B125: =ROWS($B$125:$B125) -> 1 | C125: Kultur | E125: Baden | G125: Württemberg | J125: Kultur | L125: Baden | N125: Württemberg
B126: =ROWS($B$125:$B126) -> 2 | E126: je 1000 € Versicherungssumme | L126: je 1000 € Versicherungssumme
B127: =ROWS($B$125:$B127) -> 3 | C127: Wintergetreide | E127: 19.4 | G127: 19.2 | I127: =ROWS($B$125:$B127) -> 3 | J127: Hanf | L127: 32.1 | N127: 32.1
B128: =ROWS($B$125:$B128) -> 4 | C128: Sommergetreide | E128: 19.4 | G128: 19.2 | I128: =ROWS($B$125:$B128) -> 4 | J128: Grünschnittroggen | L128: 12.4 | N128: 14.3
B129: =ROWS($B$125:$B129) -> 5 | C129: Körnermais | E129: 15.6 | G129: 15.9 | I129: =ROWS($B$125:$B129) -> 5 | J129: Wintergetreide für GPS* | L129: 12.4 | N129: 12.4
B130: =ROWS($B$125:$B130) -> 6 | C130: Silomais | E130: 16.7 | G130: 17.1 | I130: =ROWS($B$125:$B130) -> 6 | J130: Sommergetreide für GPS* | L130: 12.4 | N130: 12.4
B131: =ROWS($B$125:$B131) -> 7 | C131: Raps | E131: 52 | G131: 54.1 | I131: =ROWS($B$125:$B131) -> 7 | J131: Zuckerhirse für GPS* | L131: 18.9 | N131: 19.1
B132: =ROWS($B$125:$B132) -> 8 | C132: Sonnenblumen | E132: 43.2 | G132: 41.4 | I132: =ROWS($B$125:$B132) -> 8 | J132: Sudangras für GPS* | L132: 15.2 | N132: 14.9
B133: =ROWS($B$125:$B133) -> 9 | C133: Öllein | E133: 45.6 | G133: 46.05 | I133: =ROWS($B$125:$B133) -> 9 | J133: Sonnenblumen für GPS* | L133: - | N133: -
B134: =ROWS($B$125:$B134) -> 10 | C134: Ackerbohnen | E134: 29.5 | G134: 22.4 | I134: =ROWS($B$125:$B134) -> 10 | J134: Kleegras / Ackergras | L134: 11.9 | N134: 11.2
B135: =ROWS($B$125:$B135) -> 11 | C135: Erbsen | E135: 29.5 | G135: 22.4 | I135: =ROWS($B$125:$B135) -> 11 | J135: Durchwachsene Silphie | L135: - | N135: -
B136: =ROWS($B$125:$B136) -> 12 | C136: Sojabohnen | E136: 27.9 | G136: 26.4 | I136: =ROWS($B$125:$B136) -> 12 | J136: Topinambur | L136: - | N136: -
B137: =ROWS($B$125:$B137) -> 13 | C137: Körnerhirse | E137: 25.1 | G137: 26.2 | I137: =ROWS($B$125:$B137) -> 13 | J137: Miscanthus | L137: 16.2 | N137: 15.1
B138: =ROWS($B$125:$B138) -> 14 | C138: Kartoffeln | E138: 17.6 | G138: 17.5 | I138: =ROWS($B$125:$B138) -> 14 | J138: Sonstige | L138: 1 | N138: 1
B139: =ROWS($B$125:$B139) -> 15 | C139: Zuckerrüben | E139: 12.8 | G139: 12.6 | I139: =ROWS($B$125:$B139) -> 15
J140: * Nutzung als Ganzpflanzensilage
C141: Saatgut: Begrünung, Zwischenfrucht
C142: Quelle: | D142: BayWa Saatgut Agrar; 04/2011
C143: Kultur | I143: Saatmenge | K143: Nutzung | M143: Saatgutkosten
I144: kg/ha | K144: G/F1) | M144: €/ha (o.MwSt.)
C145: Hülsenfrüchte | E145: Ackerbohnen | I145: 180-200 | K145: G | M145: 200
E146: Futtererbse | I146: 140-160 | K146: G+F | M146: 175
E147: Saatwicken | I147: 80-90 | K147: G | M147: 125
E148: Winterwicken | I148: 70 | K148: F | M148: 160
E149: Lupinen | I149: 150-200 | K149: G | M149: 275
E150: Gemenge (Erb/AB/Wi) | I150: 150 | K150: G+F | M150: 250
C151: Gräser | E151: Einj. Weidelgras | I151: 40-50 | K151: G+F | M151: 103
E152: Welsches Weidelgras | I152: 40-50 | K152: F | M152: 95
C153: Kleesaaten | E153: Perserklee | I153: 20 | K153: G+F | M153: 80
E154: Alexandrinerklee | I154: 35 | K154: G+F | M154: 75
E155: Inkarnatklee | I155: 30 | K155: F | M155: 90
C156: Ölsaaten | E156: Winterraps | I156: 15-25 | K156: G+F | M156: 45
E157: Sommerraps | I157: 15-25 | K157: G+F | M157: 45
E158: Winterrübsen | I158: 12-17 | K158: G+(F) | M158: 29
E159: Sommerrübsen | I159: 8-12 | K159: G | M159: 45
E160: Ölrettich | I160: 20-25 | K160: G+F | M160: 60
E161: Ölrettich (nematodenresistent) | I161: 20-25 | K161: G+F | M161: 70
E162: Gelbsenf | I162: 20-25 | K162: G+F | M162: 45
E163: Gelbsenf (nematodenresistent) | I163: 20-25 | K163: G+F | M163: 58
C164: Mischungen | E164: Landsberger Gemenge | I164: 80-90 | K164: F | M164: 245
E165: Alexandrinerklee/einj. Weidelgras | I165: 35 | K165: F+(G) | M165: 85
C166: Sonstige | E166: Sareptasenf | I166: 6-8 | K166: G | M166: 55
E167: Herbstrüben | I167: 0,6-2,5 | K167: G+F | M167: 15
E168: Phacelia | I168: 9-12 | K168: G | M168: 40
E169: Futterhirse | I169: 25 | K169: F | M169: 45
E170: Grünmais | I170: 45 | K170: F | M170: 75
E171: Winterroggen | I171: 120-150 | K171: F+(G) | M171: 140 | N171: (04/2011)
C172: 1) G = Gründüngung; F = Futternutzung
C173: Vorfruchtwert
C174: Quelle: | D174: in Anlehnung an Thüringer Landesanstalt für Landwirtschaft, Leitlinie Ackerbohne, 01/2001
C176: Beispiel: | D176: Ackerbohne
C178: Mehrerlös Nachfrucht | F178: Ertrag | G178: Mehrertrag | I178: Erzeuger-preis | J178: Mehrerlös
D179: Nachfrucht | F179: dt/ha | G179: % | H179: dt/ha | I179: €/dt | J179: €
C180: 1. | D180: W-Weizen | F180: 75 | G180: 15 | H180: =F180*G180% -> 11.25 | I180: 17 | J180: =H180*I180 -> 191.25
C181: 2. | D181: Braugerste | F181: 55 | G181: 6 | H181: =F181*G181% -> 3.3 | I181: 20 | J181: =H181*I181 -> 66
C182: 3. | H182: =F182*G182% -> 0 | J182: =H182*I182 -> 0
H184: kg/ha | I184: €/kg | J184: €
C185: Einsparung N-Dünger zur Folgefrucht | H185: 25 | I185: 1 | J185: =H185*I185 -> 25
C187: Verringerter Aufwand Bodenbearbeitung | G187: (15-25 €/ha)
C189: Einsparung Pflanzenschutz Folgefrucht | G189: (10-20 €/ha)
C190: Vorfruchtwert | J190: =SUM(J180:J189) -> 282.25
C192: Beregnung
C193: Quelle: | D193: DLZ 6/2001, S. 26
C194: Kosten insgesamt je mm: | E194: 2.5 | F194: €/mm
C196: Berufsgenossenschaft, Wasser- und Bodenverband
C197: Quelle:
C198: Berufsgenossenschaft | G198: €/ha bzw. | H198: 1.1 | I198: €/LVZ
C199: Wasser- u. Bodenverband | G199: €/ha

Sheet Triticale
B3: Landesbetrieb Landwirtschaft Hessen
A4: =IF(Stammdatenblatt!G6+Stammdatenblatt!D77+Stammdatenblatt!D112+Stammdatenblatt!B129+Stammdatenblatt!D140+Stammdatenblatt!C183+Stammdatenblatt!C221+Stammdatenblatt!C239=0,"Produktionsverfahren wurden netto gerechnet", "Produktionsverfahren wurden brutto gerechnet") -> Produktionsverfahren wurden brutto gerechnet | G4: =Wirtschaftsdünger!N4 -> Letztes (aktuelles) WJ.
I5: eigene
A6: Triticale | D6: 2 ha | G6: 5 ha | I6: Werte
A7: Leistung: Menge Hauptprodukt | C7: dt/ha | D7: 65 | E7: 80 | F7: 95 | G7: 80 | H7: 95 | I7: 0
A8: Preis Hauptprodukt | C8: € | D8: =+Stammdatenblatt!P17 -> 27.6206 | E8: =D8 -> 27.6206 | F8: =+D8 -> 27.6206 | G8: =+F8 -> 27.6206 | H8: =G8 -> 27.6206 | I8: 0
A9: Erlös Hauptprodukt | C9: €/ha | D9: =D7*D8 -> 1795.339 | E9: 2209.648 | F9: 2623.957 | G9: 2209.648 | H9: 2623.957 | I9: 0
A10: Erlös Nebenprodukt(e) | C10: €/ha | D10: 0 | E10: 0 | F10: 0 | G10: =+F10 -> 0 | H10: =G10 -> 0 | I10: 0
A11: Leistungen | C11: €/ha | D11: =D9+D10 -> 1795.339 | E11: =E10+E9 -> 2209.648 | F11: =F10+F9 -> 2623.957 | G11: =G10+G9 -> 2209.648 | H11: =H10+H9 -> 2623.957 | I11: =I10+I9 -> 0
A12: Saatgutkosten | C12: €/ha | D12: =D43 -> 91.842968 | E12: 91.842968 | F12: 91.842968 | G12: 91.842968 | H12: 91.842968 | I12: 0
A13: Mineraldüngerkosten | C13: €/ha | D13: =D51 -> 646.0255183 | E13: 748.7878477 | F13: 841.2745213 | G13: 748.7878477 | H13: 841.2745213 | I13: 0
A14: Pflanzenbehandlungskosten | C14: €/ha | D14: =D56*(1+Stammdatenblatt!D112) -> 109.48 | E14: =E56*(1+Stammdatenblatt!D112) -> 142.8 | F14: =F56*(1+Stammdatenblatt!D112) -> 177.31 | G14: =G56*(1+Stammdatenblatt!D112) -> 142.8 | H14: =H56*(1+Stammdatenblatt!D112) -> 177.31 | I14: =I56 -> 0
A15: Versicherung | C15: €/ha | D15: =(D11/1000)*Stammdatenblatt!$P$190 -> 12.77599139 | E15: =(E11/1000)*Stammdatenblatt!$P$190 -> 15.7242971 | F15: =(F11/1000)*Stammdatenblatt!$P$190 -> 18.6726028 | G15: =(G11/1000)*Stammdatenblatt!$P$190 -> 15.7242971 | H15: =(H11/1000)*Stammdatenblatt!$P$190 -> 18.6726028 | I15: =(I11/1000)*Stammdatenblatt!$E$190 -> 0
A16: Trocknungskosten | C16: €/ha | D16: =(D7*Stammdatenblatt!$P$201+D7*(Stammdatenblatt!$P$202*4))/3 -> 72.45116667 | E16: =(E7*Stammdatenblatt!$P$201+E7*(Stammdatenblatt!$P$202*4))/3 -> 89.17066667 | F16: =(F7*Stammdatenblatt!$P$201+F7*(Stammdatenblatt!$P$202*4))/3 -> 105.8901667 | G16: =E16 -> 89.17066667 | H16: =F16 -> 105.8901667 | I16: =I7/Stammdatenblatt!$E$204*Stammdatenblatt!$E$201+(Stammdatenblatt!$E$203*Stammdatenblatt!$E$202) -> 1.84
A17: Summe Direktkosten | D17: =SUM(D12:D16) -> 932.5756444 | E17: 1088.325779 | F17: 1234.990259 | G17: 1088.325779 | H17: 1234.990259 | I17: 1.84
A18: Direktkostenfreie Leistung | D18: =D11-D17 -> 862.7633556 | E18: 1121.322221 | F18: 1388.966741 | G18: 1121.322221 | H18: 1388.966741 | I18: -1.84
A19: Maschinenkosten eigen ** | C19: €/ha | D19: ='Arbeitsvorgänge-KTBL'!T1155 -> 187.859361 | E19: ='Arbeitsvorgänge-KTBL'!T1222 -> 232.720475 | F19: ='Arbeitsvorgänge-KTBL'!T1297 -> 251.5868257 | G19: ='Arbeitsvorgänge-KTBL'!T1367 -> 218.2876438 | H19: ='Arbeitsvorgänge-KTBL'!T1445 -> 235.4180655 | I19: 0
A20: Maschinenkosten fremd | C20: €/ha | D20: ='Arbeitsvorgänge-KTBL'!U1155*(1+Stammdatenblatt!C239) -> 125.35 | E20: ='Arbeitsvorgänge-KTBL'!U1222*(1+Stammdatenblatt!C239) -> 125.35 | F20: ='Arbeitsvorgänge-KTBL'!U1297*(1+Stammdatenblatt!C239) -> 125.35 | G20: ='Arbeitsvorgänge-KTBL'!U1367*(1+Stammdatenblatt!C239) -> 125.35 | H20: ='Arbeitsvorgänge-KTBL'!U1445*(1+Stammdatenblatt!C239) -> 125.35 | I20: 0
A21: Lohnkosten | C21: €/ha | D21: 0 | E21: =D21 -> 0 | F21: 0 | G21: 0 | H21: 0 | I21: 0
A22: xxx | C22: €/ha | D22: 0 | E22: 0 | F22: 0 | G22: 0 | H22: 0 | I22: 0
A23: variable Kosten | C23: €/ha | D23: =SUM(D19:D22,D17) -> 1245.785005 | E23: 1446.396254 | F23: 1611.927085 | G23: 1431.963423 | H23: 1595.758324 | I23: 1.84
A24: Deckungsbeitrag | C24: €/ha | D24: =D11-D23 -> 549.5539946 | E24: 763.2517456 | F24: 1012.029915 | G24: 777.6845768 | H24: 1028.198676 | I24: -1.84
A25: Zeit-Spanne | B25: AK-Bedarf
A26: FEB | C26: Akh/ha | D26: =SUMIF('Arbeitsvorgänge-KTBL'!$B$1100:$B$1152,Triticale!A26,'Arbeitsvorgänge-KTBL'!$G$1100:$G$1152) -> 0.31 | E26: =SUMIF('Arbeitsvorgänge-KTBL'!$B$1167:$B$1219,Triticale!A26,'Arbeitsvorgänge-KTBL'!$G$1167:$G$1219) -> 0.32 | F26: =SUMIF('Arbeitsvorgänge-KTBL'!$B$1234:$B$1294,Triticale!A26,'Arbeitsvorgänge-KTBL'!$G$1234:$G$1294) -> 0.33 | G26: =SUMIF('Arbeitsvorgänge-KTBL'!$B$1309:$B$1364,Triticale!A26,'Arbeitsvorgänge-KTBL'!$G$1309:$G$1364) -> 0.27 | H26: =SUMIF('Arbeitsvorgänge-KTBL'!$B$1379:$B$1442,Triticale!A26,'Arbeitsvorgänge-KTBL'!$G$1379:$G$1442) -> 0.27 | I26: 0
A27: MRZ | C27: Akh/ha | D27: =SUMIF('Arbeitsvorgänge-KTBL'!$B$1100:$B$1152,Triticale!A27,'Arbeitsvorgänge-KTBL'!$G$1100:$G$1152) -> 0.13 | E27: =SUMIF('Arbeitsvorgänge-KTBL'!$B$1167:$B$1219,Triticale!A27,'Arbeitsvorgänge-KTBL'!$G$1167:$G$1219) -> 0.13 | F27: =SUMIF('Arbeitsvorgänge-KTBL'!$B$1234:$B$1294,Triticale!A27,'Arbeitsvorgänge-KTBL'!$G$1234:$G$1294) -> 0.13 | G27: =SUMIF('Arbeitsvorgänge-KTBL'!$B$1309:$B$1364,Triticale!A27,'Arbeitsvorgänge-KTBL'!$G$1309:$G$1364) -> 0.11 | H27: =SUMIF('Arbeitsvorgänge-KTBL'!$B$1379:$B$1442,Triticale!A27,'Arbeitsvorgänge-KTBL'!$G$1379:$G$1442) -> 0.11 | I27: 0
A28: APR | C28: Akh/ha | D28: =SUMIF('Arbeitsvorgänge-KTBL'!$B$1100:$B$1152,Triticale!A28,'Arbeitsvorgänge-KTBL'!$G$1100:$G$1152) -> 0.44 | E28: =SUMIF('Arbeitsvorgänge-KTBL'!$B$1167:$B$1219,Triticale!A28,'Arbeitsvorgänge-KTBL'!$G$1167:$G$1219) -> 0.46 | F28: =SUMIF('Arbeitsvorgänge-KTBL'!$B$1234:$B$1294,Triticale!A28,'Arbeitsvorgänge-KTBL'!$G$1234:$G$1294) -> 0.46 | G28: =SUMIF('Arbeitsvorgänge-KTBL'!$B$1309:$B$1364,Triticale!A28,'Arbeitsvorgänge-KTBL'!$G$1309:$G$1364) -> 0.33 | H28: =SUMIF('Arbeitsvorgänge-KTBL'!$B$1379:$B$1442,Triticale!A28,'Arbeitsvorgänge-KTBL'!$G$1379:$G$1442) -> 0.33 | I28: 0
A29: MAI | C29: Akh/ha | D29: =SUMIF('Arbeitsvorgänge-KTBL'!$B$1100:$B$1152,Triticale!A29,'Arbeitsvorgänge-KTBL'!$G$1100:$G$1152) -> 0.13 | E29: =SUMIF('Arbeitsvorgänge-KTBL'!$B$1167:$B$1219,Triticale!A29,'Arbeitsvorgänge-KTBL'!$G$1167:$G$1219) -> 0.13 | F29: =SUMIF('Arbeitsvorgänge-KTBL'!$B$1234:$B$1294,Triticale!A29,'Arbeitsvorgänge-KTBL'!$G$1234:$G$1294) -> 0.57 | G29: =SUMIF('Arbeitsvorgänge-KTBL'!$B$1309:$B$1364,Triticale!A29,'Arbeitsvorgänge-KTBL'!$G$1309:$G$1364) -> 0.11 | H29: =SUMIF('Arbeitsvorgänge-KTBL'!$B$1379:$B$1442,Triticale!A29,'Arbeitsvorgänge-KTBL'!$G$1379:$G$1442) -> 0.43 | I29: 0
A30: JUN | C30: Akh/ha | D30: =SUMIF('Arbeitsvorgänge-KTBL'!$B$1100:$B$1152,Triticale!A30,'Arbeitsvorgänge-KTBL'!$G$1100:$G$1152) -> 0 | E30: =SUMIF('Arbeitsvorgänge-KTBL'!$B$1167:$B$1219,Triticale!A30,'Arbeitsvorgänge-KTBL'!$G$1167:$G$1219) -> 0 | F30: =SUMIF('Arbeitsvorgänge-KTBL'!$B$1234:$B$1294,Triticale!A30,'Arbeitsvorgänge-KTBL'!$G$1234:$G$1294) -> 0 | G30: =SUMIF('Arbeitsvorgänge-KTBL'!$B$1309:$B$1364,Triticale!A30,'Arbeitsvorgänge-KTBL'!$G$1309:$G$1364) -> 0 | H30: =SUMIF('Arbeitsvorgänge-KTBL'!$B$1379:$B$1442,Triticale!A30,'Arbeitsvorgänge-KTBL'!$G$1379:$G$1442) -> 0 | I30: 0
A31: JUL | C31: Akh/ha | D31: =SUMIF('Arbeitsvorgänge-KTBL'!$B$1100:$B$1152,Triticale!A31,'Arbeitsvorgänge-KTBL'!$G$1100:$G$1152) -> 0 | E31: =SUMIF('Arbeitsvorgänge-KTBL'!$B$1167:$B$1219,Triticale!A31,'Arbeitsvorgänge-KTBL'!$G$1167:$G$1219) -> 0 | F31: =SUMIF('Arbeitsvorgänge-KTBL'!$B$1234:$B$1294,Triticale!A31,'Arbeitsvorgänge-KTBL'!$G$1234:$G$1294) -> 0 | G31: =SUMIF('Arbeitsvorgänge-KTBL'!$B$1309:$B$1364,Triticale!A31,'Arbeitsvorgänge-KTBL'!$G$1309:$G$1364) -> 0 | H31: =SUMIF('Arbeitsvorgänge-KTBL'!$B$1379:$B$1442,Triticale!A31,'Arbeitsvorgänge-KTBL'!$G$1379:$G$1442) -> 0 | I31: 0
A32: AUG | C32: Akh/ha | D32: =SUMIF('Arbeitsvorgänge-KTBL'!$B$1100:$B$1152,Triticale!A32,'Arbeitsvorgänge-KTBL'!$G$1100:$G$1152) -> 1.66 | E32: =SUMIF('Arbeitsvorgänge-KTBL'!$B$1167:$B$1219,Triticale!A32,'Arbeitsvorgänge-KTBL'!$G$1167:$G$1219) -> 1.93 | F32: =SUMIF('Arbeitsvorgänge-KTBL'!$B$1234:$B$1294,Triticale!A32,'Arbeitsvorgänge-KTBL'!$G$1234:$G$1294) -> 2.24 | G32: =SUMIF('Arbeitsvorgänge-KTBL'!$B$1309:$B$1364,Triticale!A32,'Arbeitsvorgänge-KTBL'!$G$1309:$G$1364) -> 1.58 | H32: =SUMIF('Arbeitsvorgänge-KTBL'!$B$1379:$B$1442,Triticale!A32,'Arbeitsvorgänge-KTBL'!$G$1379:$G$1442) -> 1.89 | I32: 0
A33: SEP | C33: Akh/ha | D33: =SUMIF('Arbeitsvorgänge-KTBL'!$B$1100:$B$1152,Triticale!A33,'Arbeitsvorgänge-KTBL'!$G$1100:$G$1152) -> 3.03 | E33: =SUMIF('Arbeitsvorgänge-KTBL'!$B$1167:$B$1219,Triticale!A33,'Arbeitsvorgänge-KTBL'!$G$1167:$G$1219) -> 3.08 | F33: =SUMIF('Arbeitsvorgänge-KTBL'!$B$1234:$B$1294,Triticale!A33,'Arbeitsvorgänge-KTBL'!$G$1234:$G$1294) -> 3.08 | G33: =SUMIF('Arbeitsvorgänge-KTBL'!$B$1309:$B$1364,Triticale!A33,'Arbeitsvorgänge-KTBL'!$G$1309:$G$1364) -> 2.28 | H33: =SUMIF('Arbeitsvorgänge-KTBL'!$B$1379:$B$1442,Triticale!A33,'Arbeitsvorgänge-KTBL'!$G$1379:$G$1442) -> 2.28 | I33: 0
A34: OKT | C34: Akh/ha | D34: =SUMIF('Arbeitsvorgänge-KTBL'!$B$1100:$B$1152,Triticale!A34,'Arbeitsvorgänge-KTBL'!$G$1100:$G$1152) -> 1.83 | E34: =SUMIF('Arbeitsvorgänge-KTBL'!$B$1167:$B$1219,Triticale!A34,'Arbeitsvorgänge-KTBL'!$G$1167:$G$1219) -> 1.83 | F34: =SUMIF('Arbeitsvorgänge-KTBL'!$B$1234:$B$1294,Triticale!A34,'Arbeitsvorgänge-KTBL'!$G$1234:$G$1294) -> 1.83 | G34: =SUMIF('Arbeitsvorgänge-KTBL'!$B$1309:$B$1364,Triticale!A34,'Arbeitsvorgänge-KTBL'!$G$1309:$G$1364) -> 1.3 | H34: =SUMIF('Arbeitsvorgänge-KTBL'!$B$1379:$B$1442,Triticale!A34,'Arbeitsvorgänge-KTBL'!$G$1379:$G$1442) -> 1.3 | I34: 0
A35: NOV | C35: Akh/ha | D35: =SUMIF('Arbeitsvorgänge-KTBL'!$B$1100:$B$1152,Triticale!A35,'Arbeitsvorgänge-KTBL'!$G$1100:$G$1152) -> 0 | E35: =SUMIF('Arbeitsvorgänge-KTBL'!$B$1167:$B$1219,Triticale!A35,'Arbeitsvorgänge-KTBL'!$G$1167:$G$1219) -> 0 | F35: =SUMIF('Arbeitsvorgänge-KTBL'!$B$1234:$B$1294,Triticale!A35,'Arbeitsvorgänge-KTBL'!$G$1234:$G$1294) -> 0 | G35: =SUMIF('Arbeitsvorgänge-KTBL'!$B$1309:$B$1364,Triticale!A35,'Arbeitsvorgänge-KTBL'!$G$1309:$G$1364) -> 0 | H35: =SUMIF('Arbeitsvorgänge-KTBL'!$B$1379:$B$1442,Triticale!A35,'Arbeitsvorgänge-KTBL'!$G$1379:$G$1442) -> 0 | I35: 0
A36: Rest | C36: Akh/ha | D36: =SUMIF('Arbeitsvorgänge-KTBL'!$B$1100:$B$1152,Triticale!A36,'Arbeitsvorgänge-KTBL'!$G$1100:$G$1152) -> 0 | E36: =SUMIF('Arbeitsvorgänge-KTBL'!$B$1167:$B$1219,Triticale!A36,'Arbeitsvorgänge-KTBL'!$G$1167:$G$1219) -> 0 | F36: =SUMIF('Arbeitsvorgänge-KTBL'!$B$1234:$B$1294,Triticale!A36,'Arbeitsvorgänge-KTBL'!$G$1234:$G$1294) -> 0 | G36: =SUMIF('Arbeitsvorgänge-KTBL'!$B$1309:$B$1364,Triticale!A36,'Arbeitsvorgänge-KTBL'!$G$1309:$G$1364) -> 0 | H36: =SUMIF('Arbeitsvorgänge-KTBL'!$B$1379:$B$1442,Triticale!A36,'Arbeitsvorgänge-KTBL'!$G$1379:$G$1442) -> 0 | I36: 0
A37: Arbeitskraftstunden | C37: AKh/ha | D37: =SUM(D26:D36) -> 7.53 | E37: 7.88 | F37: 8.64 | G37: 5.98 | H37: 6.61 | I37: 0
A38: DB (je Akh) | C38: €/Akh | D38: =IF(D24>0,D24/D37,0) -> 72.9819382 | E38: 96.85935857 | F38: 117.1330921 | G38: 130.0475881 | H38: 155.5519933 | I38: 0
A39: Aussaatmenge | C39: kg/ha | D39: 140 | E39: =D39 -> 140 | F39: 140 | G39: =+F39 -> 140 | H39: =G39 -> 140 | I39: 0
A40: davon Zukaufsaatgut | C40: % | D40: 80 | E40: 80 | F40: 80 | G40: =+F40 -> 80 | H40: =+G40 -> 80 | I40: 0
A41: Saatgutpreis Eigen | C41: €/dt | D41: =D8+Stammdatenblatt!$K$186 -> 34.8306 | E41: 34.8306 | F41: 34.8306 | G41: =+F41 -> 34.8306 | H41: =G41 -> 34.8306 | I41: 0
A42: Zukauf | C42: €/dt | D42: =Stammdatenblatt!P82 -> 73.295 | E42: 73.295 | F42: 73.295 | G42: =+F42 -> 73.295 | H42: =G42 -> 73.295 | I42: 0
A43: Saatgutkosten | C43: €/ha | D43: =D40/100*(D39*D42)/100+((100-D40)/100*D39*D41/100) -> 91.842968 | E43: 91.842968 | F43: 91.842968 | G43: 91.842968 | H43: 91.842968 | I43: 0
A44: Dünger: | B44: €/kg | C44: Düngerbedarf/ha (in kg Reinnährstoff) Nach Rechentabelle DÜV; N-min Durchschnittswerte LLH; Bodenart II
A45: =Stammdatenblatt!A130 -> Stickstoff | B45: =Stammdatenblatt!P130 -> 2.320205374 | C45: Aufw./ha | D45: 143 | E45: 160 | F45: 175 | G45: 160 | H45: 175 | I45: 0
A46: =Stammdatenblatt!A131 -> Phosphor | B46: =Stammdatenblatt!P131 -> 1.226340187 | C46: Aufw./ha | D46: 70 | E46: 86 | F46: 102 | G46: 86 | H46: 102 | I46: 0
A47: =Stammdatenblatt!A132 -> Kali | B47: =Stammdatenblatt!P132 -> 1.0165575 | C47: Aufw./ha | D47: 138 | E47: 170 | F47: 202 | G47: 170 | H47: 202 | I47: 0
A48: =Stammdatenblatt!A133 -> Kalk | B48: =Stammdatenblatt!P133 -> 0.04746777778 | C48: Aufw./ha | D48: 300 | E48: =D48 -> 300 | F48: =E48 -> 300 | G48: =+F48 -> 300 | H48: =G48 -> 300 | I48: 0
A49: =Stammdatenblatt!A134 -> Magnesium | B49: =Stammdatenblatt!P134 -> 1.844103333 | C49: Aufw./ha | D49: 38 | E49: 42 | F49: 45 | G49: 42 | H49: 45 | I49: 0
A50: =Stammdatenblatt!A135 -> Schwefel | B50: =Stammdatenblatt!P135 -> 0.7582283333 | C50: Aufw./ha | D50: 5 | E50: 10 | F50: 10 | G50: 10 | H50: 10 | I50: 0
A51: Mineraldüngerkosten | C51: €/ha | D51: =D45*$B$45+D46*$B$46+D47*$B$47+D48*$B$48+D49*$B$49+D50*$B$50 -> 646.0255183 | E51: 748.7878477 | F51: 841.2745213 | G51: 748.7878477 | H51: 841.2745213 | I51: 0
A52: Herbizide | C52: €/ha | D52: 44 | E52: 55 | F52: 55 | G52: 55 | H52: 55 | I52: 0
A53: Fungizide | C53: €/ha | D53: 33 | E53: 45 | F53: 66 | G53: 45 | H53: 66 | I53: 0
A54: Insektizide | C54: €/ha | D54: 0 | E54: 0 | F54: 3 | G54: 0 | H54: 3 | I54: 0
A55: Wachstumsregler | C55: €/ha | D55: 15 | E55: 20 | F55: 25 | G55: 20 | H55: 25 | I55: 0
A56: Pflanzenbehandlungskosten* | C56: €/ha | D56: =SUM(D52:D55) -> 92 | E56: 120 | F56: 149 | G56: 120 | H56: 149 | I56: 0
A57: * ohne Beizung, bei stärkeren Ackerfuchsschwanzbesatz ist mit Mehrausgaben von 35 €/ha zu rechnen
A58: **variable Kosten in Anlehnung an KTBL-Richtwerte für Arbeitsgänge incl. Zinsanspruch für 3 Monate

Sheet Wintergerste
B3: Landesbetrieb Landwirtschaft Hessen
A4: =IF(Stammdatenblatt!G6+Stammdatenblatt!D77+Stammdatenblatt!D112+Stammdatenblatt!B129+Stammdatenblatt!D140+Stammdatenblatt!C183+Stammdatenblatt!C221+Stammdatenblatt!C239=0,"Produktionsverfahren wurden netto gerechnet", "Produktionsverfahren wurden brutto gerechnet") -> Produktionsverfahren wurden brutto gerechnet | I4: =Wirtschaftsdünger!N4 -> Letztes (aktuelles) WJ.
K5: eigene
A6: Wintergerste | E6: 2 ha | G6: 5 ha | I6: 20 ha | K6: Werte
A7: Leistung: Menge Hauptprodukt | C7: dt/ha | D7: 65 | E7: 80 | F7: 95 | G7: 75 | H7: 95 | I7: 75 | J7: 95 | K7: 0
A8: Preis Hauptprodukt | C8: € | D8: =+Stammdatenblatt!P20 -> 27.6533 | E8: =D8 -> 27.6533 | F8: =E8 -> 27.6533 | G8: =+F8 -> 27.6533 | H8: =G8 -> 27.6533 | I8: =+H8 -> 27.6533 | J8: =I8 -> 27.6533 | K8: 0
A9: Erlös Hauptprodukt | C9: €/ha | D9: =D7*D8 -> 1797.4645 | E9: 2212.264 | F9: 2627.0635 | G9: 2073.9975 | H9: 2627.0635 | I9: 2073.9975 | J9: 2627.0635 | K9: 0
A10: Erlös Nebenprodukt(e) | C10: €/ha | D10: 0 | E10: =D10 -> 0 | F10: =E10 -> 0 | G10: 0 | H10: =G10 -> 0 | I10: 0 | J10: =I10 -> 0 | K10: 0
A11: Leistungen | C11: €/ha | D11: =D9+D10 -> 1797.4645 | E11: =E10+E9 -> 2212.264 | F11: 2627.0635 | G11: 2073.9975 | H11: 2627.0635 | I11: 2073.9975 | J11: 2627.0635 | K11: 0
A12: Saatgutkosten | C12: €/ha | D12: =D43 -> 77.638368 | E12: 77.638368 | F12: 77.638368 | G12: 77.638368 | H12: 77.638368 | I12: 77.638368 | J12: 77.638368 | K12: =K43 -> 0
A13: Mineraldüngerkosten | C13: €/ha | D13: =D51 -> 603.3182036 | E13: 699.9494007 | F13: 787.4654079 | G13: 670.614975 | H13: 787.4654079 | I13: 670.614975 | J13: 787.4654079 | K13: =K51 -> 0
A14: Pflanzenbehandlungsk. | C14: €/ha | D14: =D56*(1+Stammdatenblatt!D112) -> 119 | E14: =E56*(1+Stammdatenblatt!D112) -> 159.46 | F14: =F56*(1+Stammdatenblatt!D112) -> 193.97 | G14: =G56*(1+Stammdatenblatt!D112) -> 159.46 | H14: =H56*(1+Stammdatenblatt!D112) -> 193.97 | I14: =I56*(1+Stammdatenblatt!D112) -> 159.46 | J14: =J56*(1+Stammdatenblatt!D112) -> 193.97 | K14: =K56 -> 0
A15: Versicherung | C15: €/ha | D15: =(D11/1000)*Stammdatenblatt!$P$190 -> 12.79111687 | E15: =(E11/1000)*Stammdatenblatt!$P$190 -> 15.74291308 | F15: =(F11/1000)*Stammdatenblatt!$P$190 -> 18.69470928 | G15: =(G11/1000)*Stammdatenblatt!$P$190 -> 14.75898101 | H15: =(H11/1000)*Stammdatenblatt!$P$190 -> 18.69470928 | I15: =(I11/1000)*Stammdatenblatt!$E$190 -> 12.42324502 | J15: =(J11/1000)*Stammdatenblatt!$P$190 -> 18.69470928 | K15: =(K11/1000)*Stammdatenblatt!$E$190 -> 0
A16: Trocknungskosten | C16: €/ha | D16: =(D7*Stammdatenblatt!$P$201+D7*(Stammdatenblatt!$P$202*4))/3 -> 72.45116667 | E16: =(E7*Stammdatenblatt!$P$201+E7*(Stammdatenblatt!$P$202*4))/3 -> 89.17066667 | F16: =(F7*Stammdatenblatt!$P$201+F7*(Stammdatenblatt!$P$202*4))/3 -> 105.8901667 | G16: =E16 -> 89.17066667 | H16: =F16 -> 105.8901667 | I16: =E16 -> 89.17066667 | J16: =F16 -> 105.8901667 | K16: =K7/Stammdatenblatt!$E$204*Stammdatenblatt!$E$201+(Stammdatenblatt!$E$203*Stammdatenblatt!$E$202) -> 1.84
A17: Summe Direktkosten | C17: €/ha | D17: =SUM(D12:D16) -> 885.1988552 | E17: =SUM(E12:E16) -> 1041.961348 | F17: 1183.658652 | G17: 1011.642991 | H17: 1183.658652 | I17: 1009.307255 | J17: 1183.658652 | K17: 1.84
A18: Direktkostenfreie Leistung | C18: €/ha | D18: =D11-D17 -> 912.2656448 | E18: =E11-E17 -> 1170.302652 | F18: 1443.404848 | G18: 1062.354509 | H18: 1443.404848 | I18: 1064.690245 | J18: 1443.404848 | K18: -1.84
A19: Maschinenkosten eigen * | C19: €/ha | D19: ='Arbeitsvorgänge-KTBL'!T1673 -> 201.737962 | E19: ='Arbeitsvorgänge-KTBL'!T1742 -> 244.0986902 | F19: ='Arbeitsvorgänge-KTBL'!T1818 -> 253.0634443 | G19: ='Arbeitsvorgänge-KTBL'!T1890 -> 229.2187962 | H19: ='Arbeitsvorgänge-KTBL'!T1969 -> 237.4936455 | I19: ='Arbeitsvorgänge-KTBL'!T2047 -> 206.0396633 | J19: ='Arbeitsvorgänge-KTBL'!T2132 -> 213.0159433 | K19: 0
A20: Maschinenkosten fremd | C20: €/ha | D20: ='Arbeitsvorgänge-KTBL'!U1673*(1+Stammdatenblatt!C239) -> 125.35 | E20: ='Arbeitsvorgänge-KTBL'!U1742*(1+Stammdatenblatt!C239) -> 125.35 | F20: ='Arbeitsvorgänge-KTBL'!U1818*(1+Stammdatenblatt!C239) -> 125.35 | G20: ='Arbeitsvorgänge-KTBL'!U1890*(1+Stammdatenblatt!C239) -> 125.35 | H20: ='Arbeitsvorgänge-KTBL'!U1969*(1+Stammdatenblatt!C239) -> 125.35 | I20: ='Arbeitsvorgänge-KTBL'!U2047*(1+Stammdatenblatt!C239) -> 114.45 | J20: ='Arbeitsvorgänge-KTBL'!U2132*(1+Stammdatenblatt!C239) -> 114.45 | K20: 0
A21: Lohnkosten | C21: €/ha | D21: 0 | E21: =D21 -> 0 | F21: =E21 -> 0 | G21: 0 | H21: =G21 -> 0 | I21: 0 | J21: =I21 -> 0 | K21: 0
A22: xxx | C22: €/ha | D22: 0 | E22: =D22 -> 0 | F22: =E22 -> 0 | G22: 0 | H22: =G22 -> 0 | I22: 0 | J22: =I22 -> 0 | K22: 0
A23: variable Kosten | C23: €/ha | D23: =SUM(D19:D22,D17) -> 1212.286817 | E23: =SUM(E19:E22,E17) -> 1411.410039 | F23: 1562.072096 | G23: 1366.211787 | H23: 1546.502297 | I23: 1329.796918 | J23: 1511.124595 | K23: 1.84
A24: Deckungsbeitrag (DB) | C24: €/ha | D24: =D11-D23 -> 585.1776828 | E24: 800.8539613 | F24: 1064.991404 | G24: 707.7857131 | H24: 1080.561203 | I24: 744.200582 | J24: 1115.938905 | K24: -1.84
A25: Zeit-Spanne | B25: AK-Bedarf
A26: FEB | C26: Akh/ha | D26: =SUMIF('Arbeitsvorgänge-KTBL'!$B$1616:$B$1670,Wintergerste!A26,'Arbeitsvorgänge-KTBL'!$G$1616:$G$1670) -> 0.34 | E26: =SUMIF('Arbeitsvorgänge-KTBL'!$B$1685:$B$1739,Wintergerste!A26,'Arbeitsvorgänge-KTBL'!$G$1685:$G$1739) -> 0.37 | F26: =SUMIF('Arbeitsvorgänge-KTBL'!$B$1754:$B$1815,Wintergerste!A26,'Arbeitsvorgänge-KTBL'!$G$1754:$G$1815) -> 0.37 | G26: =SUMIF('Arbeitsvorgänge-KTBL'!$B$1830:$B$1887,Wintergerste!A26,'Arbeitsvorgänge-KTBL'!$G$1830:$G$1887) -> 0.32 | H26: =SUMIF('Arbeitsvorgänge-KTBL'!$B$1902:$B$1966,Wintergerste!A26,'Arbeitsvorgänge-KTBL'!$G$1902:$G$1966) -> 0.32 | I26: =SUMIF('Arbeitsvorgänge-KTBL'!$B$1981:$B$2044,Wintergerste!A26,'Arbeitsvorgänge-KTBL'!$G$1981:$G$2044) -> 0.17 | J26: =SUMIF('Arbeitsvorgänge-KTBL'!$B$2059:$B$2129,Wintergerste!A26,'Arbeitsvorgänge-KTBL'!$G$2059:$G$2129) -> 0.17 | K26: 0
A27: MRZ | C27: Akh/ha | D27: =SUMIF('Arbeitsvorgänge-KTBL'!$B$1616:$B$1670,Wintergerste!A27,'Arbeitsvorgänge-KTBL'!$G$1616:$G$1670) -> 0.13 | E27: =SUMIF('Arbeitsvorgänge-KTBL'!$B$1685:$B$1739,Wintergerste!A27,'Arbeitsvorgänge-KTBL'!$G$1685:$G$1739) -> 0.13 | F27: =SUMIF('Arbeitsvorgänge-KTBL'!$B$1754:$B$1815,Wintergerste!A27,'Arbeitsvorgänge-KTBL'!$G$1754:$G$1815) -> 0.13 | G27: =SUMIF('Arbeitsvorgänge-KTBL'!$B$1830:$B$1887,Wintergerste!A27,'Arbeitsvorgänge-KTBL'!$G$1830:$G$1887) -> 0.11 | H27: =SUMIF('Arbeitsvorgänge-KTBL'!$B$1902:$B$1966,Wintergerste!A27,'Arbeitsvorgänge-KTBL'!$G$1902:$G$1966) -> 0.11 | I27: =SUMIF('Arbeitsvorgänge-KTBL'!$B$1981:$B$2044,Wintergerste!A27,'Arbeitsvorgänge-KTBL'!$G$1981:$G$2044) -> 0.09 | J27: =SUMIF('Arbeitsvorgänge-KTBL'!$B$2059:$B$2129,Wintergerste!A27,'Arbeitsvorgänge-KTBL'!$G$2059:$G$2129) -> 0.09 | K27: 0
A28: APR | C28: Akh/ha | D28: =SUMIF('Arbeitsvorgänge-KTBL'!$B$1616:$B$1670,Wintergerste!A28,'Arbeitsvorgänge-KTBL'!$G$1616:$G$1670) -> 0.73 | E28: =SUMIF('Arbeitsvorgänge-KTBL'!$B$1685:$B$1739,Wintergerste!A28,'Arbeitsvorgänge-KTBL'!$G$1685:$G$1739) -> 0.73 | F28: =SUMIF('Arbeitsvorgänge-KTBL'!$B$1754:$B$1815,Wintergerste!A28,'Arbeitsvorgänge-KTBL'!$G$1754:$G$1815) -> 0.73 | G28: =SUMIF('Arbeitsvorgänge-KTBL'!$B$1830:$B$1887,Wintergerste!A28,'Arbeitsvorgänge-KTBL'!$G$1830:$G$1887) -> 0.51 | H28: =SUMIF('Arbeitsvorgänge-KTBL'!$B$1902:$B$1966,Wintergerste!A28,'Arbeitsvorgänge-KTBL'!$G$1902:$G$1966) -> 0.51 | I28: =SUMIF('Arbeitsvorgänge-KTBL'!$B$1981:$B$2044,Wintergerste!A28,'Arbeitsvorgänge-KTBL'!$G$1981:$G$2044) -> 0.34 | J28: =SUMIF('Arbeitsvorgänge-KTBL'!$B$2059:$B$2129,Wintergerste!A28,'Arbeitsvorgänge-KTBL'!$G$2059:$G$2129) -> 0.34 | K28: 0
A29: MAI | C29: Akh/ha | D29: =SUMIF('Arbeitsvorgänge-KTBL'!$B$1616:$B$1670,Wintergerste!A29,'Arbeitsvorgänge-KTBL'!$G$1616:$G$1670) -> 0 | E29: =SUMIF('Arbeitsvorgänge-KTBL'!$B$1685:$B$1739,Wintergerste!A29,'Arbeitsvorgänge-KTBL'!$G$1685:$G$1739) -> 0 | F29: =SUMIF('Arbeitsvorgänge-KTBL'!$B$1754:$B$1815,Wintergerste!A29,'Arbeitsvorgänge-KTBL'!$G$1754:$G$1815) -> 0.29 | G29: =SUMIF('Arbeitsvorgänge-KTBL'!$B$1830:$B$1887,Wintergerste!A29,'Arbeitsvorgänge-KTBL'!$G$1830:$G$1887) -> 0 | H29: =SUMIF('Arbeitsvorgänge-KTBL'!$B$1902:$B$1966,Wintergerste!A29,'Arbeitsvorgänge-KTBL'!$G$1902:$G$1966) -> 0.24 | I29: =SUMIF('Arbeitsvorgänge-KTBL'!$B$1981:$B$2044,Wintergerste!A29,'Arbeitsvorgänge-KTBL'!$G$1981:$G$2044) -> 0 | J29: =SUMIF('Arbeitsvorgänge-KTBL'!$B$2059:$B$2129,Wintergerste!A29,'Arbeitsvorgänge-KTBL'!$G$2059:$G$2129) -> 0.15 | K29: 0
A30: JUN | C30: Akh/ha | D30: =SUMIF('Arbeitsvorgänge-KTBL'!$B$1616:$B$1670,Wintergerste!A30,'Arbeitsvorgänge-KTBL'!$G$1616:$G$1670) -> 0 | E30: =SUMIF('Arbeitsvorgänge-KTBL'!$B$1685:$B$1739,Wintergerste!A30,'Arbeitsvorgänge-KTBL'!$G$1685:$G$1739) -> 0 | F30: =SUMIF('Arbeitsvorgänge-KTBL'!$B$1754:$B$1815,Wintergerste!A30,'Arbeitsvorgänge-KTBL'!$G$1754:$G$1815) -> 0 | G30: =SUMIF('Arbeitsvorgänge-KTBL'!$B$1830:$B$1887,Wintergerste!A30,'Arbeitsvorgänge-KTBL'!$G$1830:$G$1887) -> 0 | H30: =SUMIF('Arbeitsvorgänge-KTBL'!$B$1902:$B$1966,Wintergerste!A30,'Arbeitsvorgänge-KTBL'!$G$1902:$G$1966) -> 0 | I30: =SUMIF('Arbeitsvorgänge-KTBL'!$B$1981:$B$2044,Wintergerste!A30,'Arbeitsvorgänge-KTBL'!$G$1981:$G$2044) -> 0 | J30: =SUMIF('Arbeitsvorgänge-KTBL'!$B$2059:$B$2129,Wintergerste!A30,'Arbeitsvorgänge-KTBL'!$G$2059:$G$2129) -> 0 | K30: 0
A31: JUL | C31: Akh/ha | D31: =SUMIF('Arbeitsvorgänge-KTBL'!$B$1616:$B$1670,Wintergerste!A31,'Arbeitsvorgänge-KTBL'!$G$1616:$G$1670) -> 1.85 | E31: =SUMIF('Arbeitsvorgänge-KTBL'!$B$1685:$B$1739,Wintergerste!A31,'Arbeitsvorgänge-KTBL'!$G$1685:$G$1739) -> 2.12 | F31: =SUMIF('Arbeitsvorgänge-KTBL'!$B$1754:$B$1815,Wintergerste!A31,'Arbeitsvorgänge-KTBL'!$G$1754:$G$1815) -> 2.31 | G31: =SUMIF('Arbeitsvorgänge-KTBL'!$B$1830:$B$1887,Wintergerste!A31,'Arbeitsvorgänge-KTBL'!$G$1830:$G$1887) -> 1.86 | H31: =SUMIF('Arbeitsvorgänge-KTBL'!$B$1902:$B$1966,Wintergerste!A31,'Arbeitsvorgänge-KTBL'!$G$1902:$G$1966) -> 2.05 | I31: =SUMIF('Arbeitsvorgänge-KTBL'!$B$1981:$B$2044,Wintergerste!A31,'Arbeitsvorgänge-KTBL'!$G$1981:$G$2044) -> 1.14 | J31: =SUMIF('Arbeitsvorgänge-KTBL'!$B$2059:$B$2129,Wintergerste!A31,'Arbeitsvorgänge-KTBL'!$G$2059:$G$2129) -> 1.25 | K31: 0
A32: AUG | C32: Akh/ha | D32: =SUMIF('Arbeitsvorgänge-KTBL'!$B$1616:$B$1670,Wintergerste!A32,'Arbeitsvorgänge-KTBL'!$G$1616:$G$1670) -> 1.07 | E32: =SUMIF('Arbeitsvorgänge-KTBL'!$B$1685:$B$1739,Wintergerste!A32,'Arbeitsvorgänge-KTBL'!$G$1685:$G$1739) -> 1.07 | F32: =SUMIF('Arbeitsvorgänge-KTBL'!$B$1754:$B$1815,Wintergerste!A32,'Arbeitsvorgänge-KTBL'!$G$1754:$G$1815) -> 1.07 | G32: =SUMIF('Arbeitsvorgänge-KTBL'!$B$1830:$B$1887,Wintergerste!A32,'Arbeitsvorgänge-KTBL'!$G$1830:$G$1887) -> 0.69 | H32: =SUMIF('Arbeitsvorgänge-KTBL'!$B$1902:$B$1966,Wintergerste!A32,'Arbeitsvorgänge-KTBL'!$G$1902:$G$1966) -> 0.69 | I32: =SUMIF('Arbeitsvorgänge-KTBL'!$B$1981:$B$2044,Wintergerste!A32,'Arbeitsvorgänge-KTBL'!$G$1981:$G$2044) -> 0.45 | J32: =SUMIF('Arbeitsvorgänge-KTBL'!$B$2059:$B$2129,Wintergerste!A32,'Arbeitsvorgänge-KTBL'!$G$2059:$G$2129) -> 0.45 | K32: 0
A33: SEP | C33: Akh/ha | D33: =SUMIF('Arbeitsvorgänge-KTBL'!$B$1616:$B$1670,Wintergerste!A33,'Arbeitsvorgänge-KTBL'!$G$1616:$G$1670) -> 3.54 | E33: =SUMIF('Arbeitsvorgänge-KTBL'!$B$1685:$B$1739,Wintergerste!A33,'Arbeitsvorgänge-KTBL'!$G$1685:$G$1739) -> 3.56 | F33: =SUMIF('Arbeitsvorgänge-KTBL'!$B$1754:$B$1815,Wintergerste!A33,'Arbeitsvorgänge-KTBL'!$G$1754:$G$1815) -> 3.57 | G33: =SUMIF('Arbeitsvorgänge-KTBL'!$B$1830:$B$1887,Wintergerste!A33,'Arbeitsvorgänge-KTBL'!$G$1830:$G$1887) -> 2.67 | H33: =SUMIF('Arbeitsvorgänge-KTBL'!$B$1902:$B$1966,Wintergerste!A33,'Arbeitsvorgänge-KTBL'!$G$1902:$G$1966) -> 2.67 | I33: =SUMIF('Arbeitsvorgänge-KTBL'!$B$1981:$B$2044,Wintergerste!A33,'Arbeitsvorgänge-KTBL'!$G$1981:$G$2044) -> 1.63 | J33: =SUMIF('Arbeitsvorgänge-KTBL'!$B$2059:$B$2129,Wintergerste!A33,'Arbeitsvorgänge-KTBL'!$G$2059:$G$2129) -> 1.63 | K33: 0
A34: OKT | C34: Akh/ha | D34: =SUMIF('Arbeitsvorgänge-KTBL'!$B$1616:$B$1670,Wintergerste!A34,'Arbeitsvorgänge-KTBL'!$G$1616:$G$1670) -> 0.44 | E34: =SUMIF('Arbeitsvorgänge-KTBL'!$B$1685:$B$1739,Wintergerste!A34,'Arbeitsvorgänge-KTBL'!$G$1685:$G$1739) -> 0.44 | F34: =SUMIF('Arbeitsvorgänge-KTBL'!$B$1754:$B$1815,Wintergerste!A34,'Arbeitsvorgänge-KTBL'!$G$1754:$G$1815) -> 0.44 | G34: =SUMIF('Arbeitsvorgänge-KTBL'!$B$1830:$B$1887,Wintergerste!A34,'Arbeitsvorgänge-KTBL'!$G$1830:$G$1887) -> 0.31 | H34: =SUMIF('Arbeitsvorgänge-KTBL'!$B$1902:$B$1966,Wintergerste!A34,'Arbeitsvorgänge-KTBL'!$G$1902:$G$1966) -> 0.31 | I34: =SUMIF('Arbeitsvorgänge-KTBL'!$B$1981:$B$2044,Wintergerste!A34,'Arbeitsvorgänge-KTBL'!$G$1981:$G$2044) -> 0.24 | J34: =SUMIF('Arbeitsvorgänge-KTBL'!$B$2059:$B$2129,Wintergerste!A34,'Arbeitsvorgänge-KTBL'!$G$2059:$G$2129) -> 0.24 | K34: 0
A35: NOV | C35: Akh/ha | D35: =SUMIF('Arbeitsvorgänge-KTBL'!$B$1616:$B$1670,Wintergerste!A35,'Arbeitsvorgänge-KTBL'!$G$1616:$G$1670) -> 0 | E35: =SUMIF('Arbeitsvorgänge-KTBL'!$B$1685:$B$1739,Wintergerste!A35,'Arbeitsvorgänge-KTBL'!$G$1685:$G$1739) -> 0 | F35: =SUMIF('Arbeitsvorgänge-KTBL'!$B$1754:$B$1815,Wintergerste!A35,'Arbeitsvorgänge-KTBL'!$G$1754:$G$1815) -> 0 | G35: =SUMIF('Arbeitsvorgänge-KTBL'!$B$1830:$B$1887,Wintergerste!A35,'Arbeitsvorgänge-KTBL'!$G$1830:$G$1887) -> 0 | H35: =SUMIF('Arbeitsvorgänge-KTBL'!$B$1902:$B$1966,Wintergerste!A35,'Arbeitsvorgänge-KTBL'!$G$1902:$G$1966) -> 0 | I35: =SUMIF('Arbeitsvorgänge-KTBL'!$B$1981:$B$2044,Wintergerste!A35,'Arbeitsvorgänge-KTBL'!$G$1981:$G$2044) -> 0 | J35: =SUMIF('Arbeitsvorgänge-KTBL'!$B$2059:$B$2129,Wintergerste!A35,'Arbeitsvorgänge-KTBL'!$G$2059:$G$2129) -> 0 | K35: 0
A36: Rest | C36: Akh/ha | D36: =SUMIF('Arbeitsvorgänge-KTBL'!$B$1616:$B$1670,Wintergerste!A36,'Arbeitsvorgänge-KTBL'!$G$1616:$G$1670) -> 0 | E36: =SUMIF('Arbeitsvorgänge-KTBL'!$B$1685:$B$1739,Wintergerste!A36,'Arbeitsvorgänge-KTBL'!$G$1685:$G$1739) -> 0 | F36: =SUMIF('Arbeitsvorgänge-KTBL'!$B$1754:$B$1815,Wintergerste!A36,'Arbeitsvorgänge-KTBL'!$G$1754:$G$1815) -> 0 | G36: =SUMIF('Arbeitsvorgänge-KTBL'!$B$1830:$B$1887,Wintergerste!A36,'Arbeitsvorgänge-KTBL'!$G$1830:$G$1887) -> 0 | H36: =SUMIF('Arbeitsvorgänge-KTBL'!$B$1902:$B$1966,Wintergerste!A36,'Arbeitsvorgänge-KTBL'!$G$1902:$G$1966) -> 0 | I36: =SUMIF('Arbeitsvorgänge-KTBL'!$B$1981:$B$2044,Wintergerste!A36,'Arbeitsvorgänge-KTBL'!$G$1981:$G$2044) -> 0 | J36: =SUMIF('Arbeitsvorgänge-KTBL'!$B$2059:$B$2129,Wintergerste!A36,'Arbeitsvorgänge-KTBL'!$G$2059:$G$2129) -> 0 | K36: 0
A37: Arbeitskraftstunden | C37: AKh/ha | D37: =SUM(D26:D36) -> 8.1 | E37: =SUM(E26:E36) -> 8.42 | F37: 8.91 | G37: 6.47 | H37: 6.9 | I37: 4.06 | J37: 4.32 | K37: 0
A38: DB ( je Akh) | C38: €/Akh | D38: =IF(D24>0,D24/D37,0) -> 72.24415837 | E38: 95.11329707 | F38: 119.5276548 | G38: 109.3950097 | H38: 156.6030728 | I38: 183.300636 | J38: 258.3191909 | K38: 0
A39: Aussaatmenge | C39: kg/ha | D39: 160 | E39: =D39 -> 160 | F39: 160 | G39: 160 | H39: =G39 -> 160 | I39: 160 | J39: =I39 -> 160 | K39: 0
A40: davon Zukaufsaatgut | C40: % | D40: 40 | E40: 40 | F40: 40 | G40: 40 | H40: =G40 -> 40 | I40: 40 | J40: =I40 -> 40 | K40: 0
A41: Saatgutpreis Eigen | C41: €/dt | D41: =D8+Stammdatenblatt!$K$186 -> 34.8633 | E41: =E8+Stammdatenblatt!$K$186 -> 34.8633 | F41: =F8+Stammdatenblatt!$K$186 -> 34.8633 | G41: =G8+Stammdatenblatt!$K$186 -> 34.8633 | H41: =H8+Stammdatenblatt!$K$186 -> 34.8633 | I41: =I8+Stammdatenblatt!$K$186 -> 34.8633 | J41: =J8+Stammdatenblatt!$K$186 -> 34.8633 | K41: 0
A42: Zukauf | C42: €/dt | D42: =+Stammdatenblatt!P84 -> 69.015 | E42: 69.015 | F42: 69.015 | G42: =+F42 -> 69.015 | H42: =G42 -> 69.015 | I42: =+H42 -> 69.015 | J42: =I42 -> 69.015 | K42: 0
A43: Saatgutkosten | C43: €/ha | D43: =D40/100*(D39*D42)/100+((100-D40)/100*D39*D41/100) -> 77.638368 | E43: 77.638368 | F43: 77.638368 | G43: 77.638368 | H43: 77.638368 | I43: 77.638368 | J43: 77.638368 | K43: 0
A44: Dünger: | B44: €/kg | D44: Düngerbedarf/ha (in kg Reinnährstoff) Nach Rechentabelle DÜV; N-min Durchschnittswerte LLH; Bodenart II
A45: =+Stammdatenblatt!A130 -> Stickstoff | B45: =+Stammdatenblatt!P130 -> 2.320205374 | C45: Aufw./ha | D45: 137 | E45: 154 | F45: 169 | G45: 149 | H45: 169 | I45: 149 | J45: 169 | K45: 0
A46: =+Stammdatenblatt!A131 -> Phosphor | B46: =+Stammdatenblatt!P131 -> 1.226340187 | C46: Aufw./ha | D46: 66 | E46: 83 | F46: 96 | G46: 76 | H46: 96 | I46: 76 | J46: 96 | K46: 0
A47: =+Stammdatenblatt!A132 -> Kali | B47: =+Stammdatenblatt!P132 -> 1.0165575 | C47: Aufw./ha | D47: 116 | E47: 143 | F47: 170 | G47: 134 | H47: 170 | I47: 134 | J47: 170 | K47: 0
A48: =+Stammdatenblatt!A133 -> Kalk | B48: =+Stammdatenblatt!P133 -> 0.04746777778 | C48: Aufw./ha | D48: 300 | E48: =D48 -> 300 | F48: 300 | G48: 300 | H48: 300 | I48: 300 | J48: 300 | K48: 0
A49: =+Stammdatenblatt!A134 -> Magnesium | B49: =+Stammdatenblatt!P134 -> 1.844103333 | C49: Aufw./ha | D49: 38 | E49: 42 | F49: 45 | G49: 42 | H49: 45 | I49: 42 | J49: 45 | K49: 0
A50: =+Stammdatenblatt!A135 -> Schwefel | B50: =+Stammdatenblatt!P135 -> 0.7582283333 | C50: Aufw./ha | D50: 3 | E50: 5 | F50: 10 | G50: 5 | H50: 10 | I50: 5 | J50: 10 | K50: 0
A51: Mineraldüngerkosten | C51: €/ha | D51: =D45*$B$45+D46*$B$46+D47*$B$47+D48*$B$48+D49*$B$49+D50*$B$50 -> 603.3182036 | E51: 699.9494007 | F51: 787.4654079 | G51: 670.614975 | H51: 787.4654079 | I51: 670.614975 | J51: 787.4654079 | K51: 0
A52: Herbizide | C52: €/ha | D52: 45 | E52: 50 | F52: 50 | G52: 50 | H52: 50 | I52: 50 | J52: 50 | K52: 0
A53: Fungizide | C53: €/ha | D53: 45 | E53: 55 | F53: 71 | G53: 55 | H53: 71 | I53: 55 | J53: 71 | K53: 0
A54: Insektizide | C54: €/ha | D54: 0 | E54: 7 | F54: 16 | G54: 7 | H54: 16 | I54: 7 | J54: 16 | K54: 0
A55: Wachstumsregler | C55: €/ha | D55: 10 | E55: 22 | F55: 26 | G55: 22 | H55: 26 | I55: 22 | J55: 26 | K55: 0
A56: Pflanzenbehandlungskosten | C56: €/ha | D56: =SUM(D52:D55) -> 100 | E56: 134 | F56: 163 | G56: 134 | H56: 163 | I56: 134 | J56: 163 | K56: 0
A57: *variable Kosten in Anlehnung an KTBL-Richtwerte für Arbeitsgänge incl. Zinsanspruch für 3 Monate

Sheet Dinkel
B3: Landesbetrieb Landwirtschaft Hessen
A4: =IF(Stammdatenblatt!G6+Stammdatenblatt!D77+Stammdatenblatt!D112+Stammdatenblatt!B129+Stammdatenblatt!D140+Stammdatenblatt!C183+Stammdatenblatt!C221+Stammdatenblatt!C239=0,"Produktionsverfahren wurden netto gerechnet", "Produktionsverfahren wurden brutto gerechnet") -> Produktionsverfahren wurden brutto gerechnet | F4: =Wirtschaftsdünger!N4 -> Letztes (aktuelles) WJ.
D5: bespelzt | F5: entspelzt | H5: eigene
A6: Dinkel | D6: 2 ha | E6: 5 ha | F6: 2 ha | G6: 5 ha | H6: Werte
A7: Leistung: Menge Hauptprodukt | C7: dt/ha | D7: 60 | E7: 60 | F7: 50 | G7: 50 | H7: 0
A8: Preis Hauptprodukt | C8: € | D8: =+Stammdatenblatt!P18 -> 26.705 | E8: =+D8 -> 26.705 | F8: =+Stammdatenblatt!P19 -> 52.32 | G8: =+F8 -> 52.32 | H8: 0
A9: Erlös Hauptprodukt | C9: €/ha | D9: =D7*D8 -> 1602.3 | E9: =E7*E8 -> 1602.3 | F9: =F7*F8 -> 2616 | G9: =G7*G8 -> 2616 | H9: =H7*H8 -> 0
A10: Erlös Nebenprodukt(e) | C10: €/ha | D10: 0 | E10: =D10 -> 0 | F10: =E10 -> 0 | G10: =F10 -> 0 | H10: 0
A11: Leistungen | C11: €/ha | D11: =D10+D9 -> 1602.3 | E11: =E10+E9 -> 1602.3 | F11: =F10+F9 -> 2616 | G11: =G10+G9 -> 2616 | H11: =H10+H9 -> 0
A12: Saatgutkosten | C12: €/ha | D12: =D43 -> 196.3296 | E12: =E43 -> 196.3296 | F12: =F43 -> 212.7232 | G12: =G43 -> 212.7232 | H12: =H43 -> 0
A13: Mineraldüngerkosten | C13: €/ha | D13: =D51 -> 496.4891531 | E13: =E51 -> 496.4891531 | F13: =F51 -> 496.4891531 | G13: =G51 -> 496.4891531 | H13: =H51 -> 0
A14: Pflanzenbehandlungskosten | C14: €/ha | D14: =D56*(1+Stammdatenblatt!C221) -> 85.68 | E14: =E56*(1+Stammdatenblatt!C221) -> 85.68 | F14: =F56*(1+Stammdatenblatt!C221) -> 85.68 | G14: =G56*(1+Stammdatenblatt!C221) -> 85.68 | H14: =H56 -> 0
A15: Versicherung | C15: €/ha | D15: =+D9/1000*Stammdatenblatt!$P$190 -> 11.40228726 | E15: =+E9/1000*Stammdatenblatt!$P$190 -> 11.40228726 | F15: =+F9/1000*Stammdatenblatt!$P$190 -> 18.6159792 | G15: =+G9/1000*Stammdatenblatt!$P$190 -> 18.6159792 | H15: =+H9/1000*Stammdatenblatt!$E$190 -> 0
A16: Trocknungskosten | C16: €/ha | D16: 57.12 | E16: =D16 -> 57.12 | F16: =E16 -> 57.12 | G16: =F16 -> 57.12 | H16: =H7/Stammdatenblatt!$E$204*Stammdatenblatt!$E$201+(Stammdatenblatt!$E$203*Stammdatenblatt!$E$202) -> 1.84
A17: Summe Direktkosten | C17: €/ha | D17: =SUM(D12:D16) -> 847.0210403 | E17: =SUM(E12:E16) -> 847.0210403 | F17: =SUM(F12:F16) -> 870.6283323 | G17: =SUM(G12:G16) -> 870.6283323 | H17: =SUM(H12:H16) -> 1.84
A18: Direktkostenfreie Leistung | C18: €/ha | D18: =D11-D17 -> 755.2789597 | E18: =E11-E17 -> 755.2789597 | F18: =F11-F17 -> 1745.371668 | G18: =G11-G17 -> 1745.371668 | H18: =H11-H17 -> -1.84
A19: Maschinenkosten eigen * | C19: €/ha | D19: ='Arbeitsvorgänge-KTBL'!T742 -> 232.8260597 | E19: ='Arbeitsvorgänge-KTBL'!T875 -> 218.462276 | F19: ='Arbeitsvorgänge-KTBL'!T742 -> 232.8260597 | G19: ='Arbeitsvorgänge-KTBL'!T875 -> 218.462276 | H19: 0
A20: Maschinenkosten fremd | C20: €/ha | D20: ='Arbeitsvorgänge-KTBL'!U742*(1+Stammdatenblatt!C239) -> 125.35 | E20: ='Arbeitsvorgänge-KTBL'!U875*(1+Stammdatenblatt!C239) -> 125.35 | F20: ='Arbeitsvorgänge-KTBL'!U677*(1+Stammdatenblatt!C239) -> 125.35 | G20: ='Arbeitsvorgänge-KTBL'!U742*(1+Stammdatenblatt!C239) -> 125.35 | H20: 0
A21: Reinigung/Entspelzung | C21: €/ha | D21: 0 | E21: =D21 -> 0 | F21: =Stammdatenblatt!K219*F7 -> 650 | G21: =F21 -> 650 | H21: 0
A22: xxx | C22: €/ha | D22: 0 | E22: =D22 -> 0 | F22: =E22 -> 0 | G22: =F22 -> 0 | H22: 0
A23: variable Kosten | C23: €/ha | D23: =SUM(D19:D22,D17) -> 1205.1971 | E23: =SUM(E19:E22,E17) -> 1190.833316 | F23: =SUM(F19:F22,F17) -> 1878.804392 | G23: =SUM(G19:G22,G17) -> 1864.440608 | H23: =SUM(H19:H22,H17) -> 1.84
A24: Deckungsbeitrag (DB) | C24: €/ha | D24: =D11-D23 -> 397.1028999 | E24: =E11-E23 -> 411.4666837 | F24: =F11-F23 -> 737.195608 | G24: =G11-G23 -> 751.5593917 | H24: =H11-H23 -> -1.84
A25: Zeit-Spanne | B25: AK-Bedarf
A26: FEB | C26: Akh/ha | D26: =SUMIF('Arbeitsvorgänge-KTBL'!$B$88:$B$153,' Dinkel'!A26,'Arbeitsvorgänge-KTBL'!$G$88:$G$153) -> 0.37 | E26: =SUMIF('Arbeitsvorgänge-KTBL'!$B$257:$B$325,' Dinkel'!A26,'Arbeitsvorgänge-KTBL'!$G$257:$G$325) -> 0.32 | F26: =SUMIF('Arbeitsvorgänge-KTBL'!$B$88:$B$153,' Dinkel'!A26,'Arbeitsvorgänge-KTBL'!$G$88:$G$153) -> 0.37 | G26: =SUMIF('Arbeitsvorgänge-KTBL'!$B$257:$B$325,' Dinkel'!A26,'Arbeitsvorgänge-KTBL'!$G$257:$G$325) -> 0.32 | H26: 0
A27: MRZ | C27: Akh/ha | D27: =SUMIF('Arbeitsvorgänge-KTBL'!$B$88:$B$153,' Dinkel'!A27,'Arbeitsvorgänge-KTBL'!$G$88:$G$153) -> 0.13 | E27: =SUMIF('Arbeitsvorgänge-KTBL'!$B$257:$B$325,' Dinkel'!A27,'Arbeitsvorgänge-KTBL'!$G$257:$G$325) -> 0.11 | F27: =SUMIF('Arbeitsvorgänge-KTBL'!$B$88:$B$153,' Dinkel'!A27,'Arbeitsvorgänge-KTBL'!$G$88:$G$153) -> 0.13 | G27: =SUMIF('Arbeitsvorgänge-KTBL'!$B$257:$B$325,' Dinkel'!A27,'Arbeitsvorgänge-KTBL'!$G$257:$G$325) -> 0.11 | H27: 0
A28: APR | C28: Akh/ha | D28: =SUMIF('Arbeitsvorgänge-KTBL'!$B$88:$B$153,' Dinkel'!A28,'Arbeitsvorgänge-KTBL'!$G$88:$G$153) -> 0.74 | E28: =SUMIF('Arbeitsvorgänge-KTBL'!$B$257:$B$325,' Dinkel'!A28,'Arbeitsvorgänge-KTBL'!$G$257:$G$325) -> 0.52 | F28: =SUMIF('Arbeitsvorgänge-KTBL'!$B$88:$B$153,' Dinkel'!A28,'Arbeitsvorgänge-KTBL'!$G$88:$G$153) -> 0.74 | G28: =SUMIF('Arbeitsvorgänge-KTBL'!$B$257:$B$325,' Dinkel'!A28,'Arbeitsvorgänge-KTBL'!$G$257:$G$325) -> 0.52 | H28: 0
A29: MAI | C29: Akh/ha | D29: =SUMIF('Arbeitsvorgänge-KTBL'!$B$88:$B$153,' Dinkel'!A29,'Arbeitsvorgänge-KTBL'!$G$88:$G$153) -> 0.13 | E29: =SUMIF('Arbeitsvorgänge-KTBL'!$B$257:$B$325,' Dinkel'!A29,'Arbeitsvorgänge-KTBL'!$G$257:$G$325) -> 0.11 | F29: =SUMIF('Arbeitsvorgänge-KTBL'!$B$88:$B$153,' Dinkel'!A29,'Arbeitsvorgänge-KTBL'!$G$88:$G$153) -> 0.13 | G29: =SUMIF('Arbeitsvorgänge-KTBL'!$B$257:$B$325,' Dinkel'!A29,'Arbeitsvorgänge-KTBL'!$G$257:$G$325) -> 0.11 | H29: 0
A30: JUN | C30: Akh/ha | D30: =SUMIF('Arbeitsvorgänge-KTBL'!$B$88:$B$153,' Dinkel'!A30,'Arbeitsvorgänge-KTBL'!$G$88:$G$153) -> 0.46 | E30: =SUMIF('Arbeitsvorgänge-KTBL'!$B$257:$B$325,' Dinkel'!A30,'Arbeitsvorgänge-KTBL'!$G$257:$G$325) -> 0.33 | F30: =SUMIF('Arbeitsvorgänge-KTBL'!$B$88:$B$153,' Dinkel'!A30,'Arbeitsvorgänge-KTBL'!$G$88:$G$153) -> 0.46 | G30: =SUMIF('Arbeitsvorgänge-KTBL'!$B$257:$B$325,' Dinkel'!A30,'Arbeitsvorgänge-KTBL'!$G$257:$G$325) -> 0.33 | H30: 0
A31: JUL | C31: Akh/ha | D31: =SUMIF('Arbeitsvorgänge-KTBL'!$B$88:$B$153,' Dinkel'!A31,'Arbeitsvorgänge-KTBL'!$G$88:$G$153) -> 0 | E31: =SUMIF('Arbeitsvorgänge-KTBL'!$B$257:$B$325,' Dinkel'!A31,'Arbeitsvorgänge-KTBL'!$G$257:$G$325) -> 0 | F31: =SUMIF('Arbeitsvorgänge-KTBL'!$B$88:$B$153,' Dinkel'!A31,'Arbeitsvorgänge-KTBL'!$G$88:$G$153) -> 0 | G31: =SUMIF('Arbeitsvorgänge-KTBL'!$B$257:$B$325,' Dinkel'!A31,'Arbeitsvorgänge-KTBL'!$G$257:$G$325) -> 0 | H31: 0
A32: AUG | C32: Akh/ha | D32: =SUMIF('Arbeitsvorgänge-KTBL'!$B$88:$B$153,' Dinkel'!A32,'Arbeitsvorgänge-KTBL'!$G$88:$G$153) -> 2.27 | E32: =SUMIF('Arbeitsvorgänge-KTBL'!$B$257:$B$325,' Dinkel'!A32,'Arbeitsvorgänge-KTBL'!$G$257:$G$325) -> 1.85 | F32: =SUMIF('Arbeitsvorgänge-KTBL'!$B$88:$B$153,' Dinkel'!A32,'Arbeitsvorgänge-KTBL'!$G$88:$G$153) -> 2.27 | G32: =SUMIF('Arbeitsvorgänge-KTBL'!$B$257:$B$325,' Dinkel'!A32,'Arbeitsvorgänge-KTBL'!$G$257:$G$325) -> 1.85 | H32: 0
A33: SEP | C33: Akh/ha | D33: =SUMIF('Arbeitsvorgänge-KTBL'!$B$88:$B$153,' Dinkel'!A33,'Arbeitsvorgänge-KTBL'!$G$88:$G$153) -> 3.11 | E33: =SUMIF('Arbeitsvorgänge-KTBL'!$B$257:$B$325,' Dinkel'!A33,'Arbeitsvorgänge-KTBL'!$G$257:$G$325) -> 2.32 | F33: =SUMIF('Arbeitsvorgänge-KTBL'!$B$88:$B$153,' Dinkel'!A33,'Arbeitsvorgänge-KTBL'!$G$88:$G$153) -> 3.11 | G33: =SUMIF('Arbeitsvorgänge-KTBL'!$B$257:$B$325,' Dinkel'!A33,'Arbeitsvorgänge-KTBL'!$G$257:$G$325) -> 2.32 | H33: 0
A34: OKT | C34: Akh/ha | D34: =SUMIF('Arbeitsvorgänge-KTBL'!$B$88:$B$153,' Dinkel'!A34,'Arbeitsvorgänge-KTBL'!$G$88:$G$153) -> 1.83 | E34: =SUMIF('Arbeitsvorgänge-KTBL'!$B$257:$B$325,' Dinkel'!A34,'Arbeitsvorgänge-KTBL'!$G$257:$G$325) -> 1.31 | F34: =SUMIF('Arbeitsvorgänge-KTBL'!$B$88:$B$153,' Dinkel'!A34,'Arbeitsvorgänge-KTBL'!$G$88:$G$153) -> 1.83 | G34: =SUMIF('Arbeitsvorgänge-KTBL'!$B$257:$B$325,' Dinkel'!A34,'Arbeitsvorgänge-KTBL'!$G$257:$G$325) -> 1.31 | H34: 0
A35: NOV | C35: Akh/ha | D35: =SUMIF('Arbeitsvorgänge-KTBL'!$B$88:$B$153,' Dinkel'!A35,'Arbeitsvorgänge-KTBL'!$G$88:$G$153) -> 0 | E35: =SUMIF('Arbeitsvorgänge-KTBL'!$B$257:$B$325,' Dinkel'!A35,'Arbeitsvorgänge-KTBL'!$G$257:$G$325) -> 0 | F35: =SUMIF('Arbeitsvorgänge-KTBL'!$B$88:$B$153,' Dinkel'!A35,'Arbeitsvorgänge-KTBL'!$G$88:$G$153) -> 0 | G35: =SUMIF('Arbeitsvorgänge-KTBL'!$B$257:$B$325,' Dinkel'!A35,'Arbeitsvorgänge-KTBL'!$G$257:$G$325) -> 0 | H35: 0
A36: Rest | C36: Akh/ha | D36: =SUMIF('Arbeitsvorgänge-KTBL'!$B$88:$B$153,' Dinkel'!A36,'Arbeitsvorgänge-KTBL'!$G$88:$G$153) -> 0 | E36: =SUMIF('Arbeitsvorgänge-KTBL'!$B$257:$B$325,' Dinkel'!A36,'Arbeitsvorgänge-KTBL'!$G$257:$G$325) -> 0 | F36: =SUMIF('Arbeitsvorgänge-KTBL'!$B$88:$B$153,' Dinkel'!A36,'Arbeitsvorgänge-KTBL'!$G$88:$G$153) -> 0 | G36: =SUMIF('Arbeitsvorgänge-KTBL'!$B$257:$B$325,' Dinkel'!A36,'Arbeitsvorgänge-KTBL'!$G$257:$G$325) -> 0 | H36: 0
A37: Arbeitskraftstunden | C37: AKh/ha | D37: =SUM(D26:D36) -> 9.04 | E37: =SUM(E26:E36) -> 6.87 | F37: =SUM(F26:F36) -> 9.04 | G37: =SUM(G26:G36) -> 6.87 | H37: =SUM(H26:H36) -> 0
A38: DB ( je Akh) | C38: €/Akh | D38: =ROUND(IF(D24>0,D24/D37,0),0) -> 44 | E38: =ROUND(IF(E24>0,E24/E37,0),0) -> 60 | F38: =ROUND(IF(F24>0,F24/F37,0),0) -> 82 | G38: =ROUND(IF(G24>0,G24/G37,0),0) -> 109 | H38: =ROUND(IF(H24>0,H24/H37,0),0) -> 0
A39: Aussaatmenge | C39: kg/ha | D39: 200 | E39: =D39 -> 200 | F39: 200 | G39: =F39 -> 200 | H39: 0
A40: davon Zukaufsaatgut | C40: % | D40: 68 | E40: 68 | F40: 68 | G40: 68 | H40: 0
A41: Saatgutpreis Eigen | C41: €/dt | D41: =D8+Stammdatenblatt!$K$186 -> 33.915 | E41: =E8+Stammdatenblatt!$K$186 -> 33.915 | F41: =F8+Stammdatenblatt!$K$186 -> 59.53 | G41: =G8+Stammdatenblatt!$K$186 -> 59.53 | H41: 0
A42: Zukauf | C42: €/dt | D42: =+Stammdatenblatt!P83 -> 128.4 | E42: =D42 -> 128.4 | F42: =+E42 -> 128.4 | G42: =F42 -> 128.4 | H42: 0
A43: Saatgutkosten | C43: €/ha | D43: =D40/100*(D39*D42)/100+((100-D40)/100*D39*D41/100) -> 196.3296 | E43: =E40/100*(E39*E42)/100+((100-E40)/100*E39*E41/100) -> 196.3296 | F43: =F40/100*(F39*F42)/100+((100-F40)/100*F39*F41/100) -> 212.7232 | G43: =G40/100*(G39*G42)/100+((100-G40)/100*G39*G41/100) -> 212.7232 | H43: =H40/100*(H39*H42)/100+((100-H40)/100*H39*H41/100) -> 0
A44: Dünger: | B44: €/kg | C44: Düngerbedarf/ha (in kg Reinnährstoff) Nach Rechentabelle DÜV; N-min Durchschnittswerte LLH; Bodenart II
A45: =+Stammdatenblatt!A130 -> Stickstoff | B45: =+Stammdatenblatt!P130 -> 2.320205374 | C45: Aufw./ha | D45: 112 | E45: 112 | F45: 112 | G45: 112 | H45: 0
A46: =+Stammdatenblatt!A131 -> Phosphor | B46: =+Stammdatenblatt!P131 -> 1.226340187 | C46: Aufw./ha | D46: 55 | E46: 55 | F46: 55 | G46: 55 | H46: 0
A47: =+Stammdatenblatt!A132 -> Kali | B47: =+Stammdatenblatt!P132 -> 1.0165575 | C47: Aufw./ha | D47: 125 | E47: 125 | F47: 125 | G47: 125 | H47: 0
A48: =+Stammdatenblatt!A133 -> Kalk | B48: =+Stammdatenblatt!P133 -> 0.04746777778 | C48: Aufw./ha | D48: 300 | E48: =D48 -> 300 | F48: 300 | G48: 300 | H48: 0
A49: =+Stammdatenblatt!A134 -> Magnesium | B49: =+Stammdatenblatt!P134 -> 1.844103333 | C49: Aufw./ha | D49: 11 | E49: 11 | F49: 11 | G49: 11 | H49: 0
A50: =+Stammdatenblatt!A135 -> Schwefel | B50: =+Stammdatenblatt!P135 -> 0.7582283333 | C50: Aufw./ha | D50: 10 | E50: 10 | F50: 10 | G50: 10 | H50: 0
A51: Mineraldüngerkosten | C51: €/ha | D51: =+$B45*D45+D46*$B46+$B47*D47+$B48*D48+$B49*D49+$B50*D50 -> 496.4891531 | E51: =+$B45*E45+E46*$B46+$B47*E47+$B48*E48+$B49*E49+$B50*E50 -> 496.4891531 | F51: =+$B45*F45+F46*$B46+$B47*F47+$B48*F48+$B49*F49+$B50*F50 -> 496.4891531 | G51: =+$B45*G45+G46*$B46+$B47*G47+$B48*G48+$B49*G49+$B50*G50 -> 496.4891531 | H51: =+$B45*H45+H46*$B46+$B47*H47+$B48*H48+$B49*H49+$B50*H50 -> 0
A52: Herbizide | C52: €/ha | D52: 45 | E52: 45 | F52: 45 | G52: 45 | H52: 0
A53: Fungizide | C53: €/ha | D53: 0 | E53: 0 | F53: 0 | G53: 0 | H53: 0
A54: Insektizide | C54: €/ha | D54: 12 | E54: 12 | F54: 12 | G54: 12 | H54: 0
A55: Wachstumsregler | C55: €/ha | D55: 15 | E55: 15 | F55: 15 | G55: 15 | H55: 0
A56: Pflanzenbehandlungskosten | C56: €/ha | D56: =SUM(D52:D55) -> 72 | E56: =SUM(E52:E55) -> 72 | F56: =SUM(F52:F55) -> 72 | G56: =SUM(G52:G55) -> 72 | H56: =SUM(H52:H55) -> 0
A57: *variable Kosten in Anlehnung an KTBL-Richtwerte für Arbeitsgänge incl. Zinsanspruch für 3 Monate

Sheet Braugerste
B3: Landesbetrieb Landwirtschaft Hessen
A4: =IF(Stammdatenblatt!G6+Stammdatenblatt!D77+Stammdatenblatt!D112+Stammdatenblatt!B129+Stammdatenblatt!D140+Stammdatenblatt!C183+Stammdatenblatt!C221+Stammdatenblatt!C239=0,"Produktionsverfahren wurden netto gerechnet", "Produktionsverfahren wurden brutto gerechnet") -> Produktionsverfahren wurden brutto gerechnet | H4: =Wirtschaftsdünger!N4 -> Letztes (aktuelles) WJ.
J5: eigene
A6: Braugerste | D6: 2 ha | F6: 5 ha | H6: 20 ha | J6: Werte
A7: Leistung: Menge Hauptprodukt | C7: dt/ha | D7: 55 | E7: 75 | F7: 55 | G7: 75 | H7: 55 | I7: 75 | J7: 0
A8: Preis Hauptprodukt | C8: € | D8: =+Stammdatenblatt!P21 -> 27.6206 | E8: =+D8 -> 27.6206 | F8: =E8 -> 27.6206 | G8: =F8 -> 27.6206 | H8: =G8 -> 27.6206 | I8: =H8 -> 27.6206 | J8: 0
A9: Erlös Hauptprodukt | C9: €/ha | D9: =D7*D8 -> 1519.133 | E9: 2071.545 | F9: 1519.133 | G9: 2071.545 | H9: 1519.133 | I9: 2071.545 | J9: 0
A10: Erlös Nebenprodukt(e) | C10: €/ha | D10: 0 | E10: =D10 -> 0 | F10: =E10 -> 0 | G10: =F10 -> 0 | H10: =G10 -> 0 | I10: =H10 -> 0 | J10: 0
A11: Leistungen | C11: €/ha | D11: =D9+D10 -> 1519.133 | E11: =E10+E9 -> 2071.545 | F11: 1519.133 | G11: 2071.545 | H11: 1519.133 | I11: 2071.545 | J11: 0
A12: Saatgutkosten | C12: €/ha | D12: =D43 -> 127.33 | E12: 127.33 | F12: 127.33 | G12: 127.33 | H12: 127.33 | I12: 127.33 | J12: =J43 -> 0
A13: Mineraldüngerkosten | C13: €/ha | D13: =D51 -> 512.7439378 | E13: 630.0792417 | F13: 512.7439378 | G13: 630.0792417 | H13: 512.7439378 | I13: 630.0792417 | J13: =J51 -> 0
A14: Pflanzenbehandlungskosten | C14: €/ha | D14: =D56*(1+Stammdatenblatt!C221) -> 91.63 | E14: =E56*(1+Stammdatenblatt!C221) -> 130.9 | F14: =F56*(1+Stammdatenblatt!C221) -> 91.63 | G14: =G56*(1+Stammdatenblatt!C221) -> 130.9 | H14: =H56*(1+Stammdatenblatt!C221) -> 91.63 | I14: =I56*(1+Stammdatenblatt!C221) -> 130.9 | J14: =J56 -> 0
A15: Versicherung | C15: €/ha | D15: =(D11/1000)*Stammdatenblatt!$P$191 -> 10.81045425 | E15: =(E11/1000)*Stammdatenblatt!$P$191 -> 14.74152853 | F15: =(F11/1000)*Stammdatenblatt!$P$191 -> 10.81045425 | G15: =(G11/1000)*Stammdatenblatt!$P$191 -> 14.74152853 | H15: =(H11/1000)*Stammdatenblatt!$P$191 -> 10.81045425 | I15: =(I11/1000)*Stammdatenblatt!$P$191 -> 14.74152853 | J15: =(J11/1000)*Stammdatenblatt!$E$191 -> 0
A16: Trocknungskosten | C16: €/ha | D16: =(D7*Stammdatenblatt!$P$201+D7*(Stammdatenblatt!$P$202*4))/3 -> 61.30483333 | E16: =(E7*Stammdatenblatt!$P$201+E7*(Stammdatenblatt!$P$202*4))/3 -> 83.5975 | F16: =N15 -> 0 | G16: =O15 -> 0 | H16: =N15 -> 0 | I16: =O15 -> 0 | J16: =J7/Stammdatenblatt!$E$204*Stammdatenblatt!$E$201+(Stammdatenblatt!$E$203*Stammdatenblatt!$E$202) -> 1.84
A17: Summe Direktkosten | C17: €/ha | D17: =SUM(D12:D16) -> 803.8192254 | E17: =SUM(E12:E16) -> 986.6482702 | F17: 742.514392 | G17: 903.0507702 | H17: 742.514392 | I17: 903.0507702 | J17: 1.84
A18: Direktkostenfreie Leistung | C18: €/ha | D18: =D11-D17 -> 715.3137746 | E18: =E11-E17 -> 1084.89673 | F18: 776.618608 | G18: 1168.49423 | H18: 776.618608 | I18: 1168.49423 | J18: -1.84
A19: Maschinenkosten eigen * | C19: €/ha | D19: ='Arbeitsvorgänge-KTBL'!T2192 -> 185.7809783 | E19: ='Arbeitsvorgänge-KTBL'!T2253 -> 231.2445095 | F19: ='Arbeitsvorgänge-KTBL'!T2315 -> 175.6193515 | G19: ='Arbeitsvorgänge-KTBL'!T2379 -> 217.493522 | H19: ='Arbeitsvorgänge-KTBL'!T2445 -> 155.5990693 | I19: ='Arbeitsvorgänge-KTBL'!T2513 -> 195.2576768 | J19: 0
A20: Maschinenkosten fremd | C20: €/ha | D20: ='Arbeitsvorgänge-KTBL'!U2192*(1+Stammdatenblatt!C239) -> 125.35 | E20: ='Arbeitsvorgänge-KTBL'!U2253*(1+Stammdatenblatt!C239) -> 125.35 | F20: ='Arbeitsvorgänge-KTBL'!U2315*(1+Stammdatenblatt!C239) -> 125.35 | G20: ='Arbeitsvorgänge-KTBL'!U2379*(1+Stammdatenblatt!C239) -> 125.35 | H20: ='Arbeitsvorgänge-KTBL'!U2445*(1+Stammdatenblatt!C239) -> 114.45 | I20: ='Arbeitsvorgänge-KTBL'!U2513*(1+Stammdatenblatt!C239) -> 114.45 | J20: 0
A21: Lohnkosten | C21: €/ha | D21: 0 | E21: =D21 -> 0 | F21: 0 | G21: 0 | H21: 0 | I21: 0 | J21: 0
A22: xxx | C22: €/ha | D22: 0 | E22: 0 | F22: 0 | G22: 0 | H22: 0 | I22: 0 | J22: 0
A23: variable Kosten | C23: €/ha | D23: =SUM(D19:D22,D17) -> 1114.950204 | E23: =SUM(E19:E22,E17) -> 1343.24278 | F23: 1043.483744 | G23: 1245.894292 | H23: 1012.563461 | I23: 1212.758447 | J23: 1.84
A24: Deckungsbeitrag (DB) | C24: €/ha | D24: =D11-D23 -> 404.1827964 | E24: 728.3022203 | F24: 475.6492565 | G24: 825.6507078 | H24: 506.5695387 | I24: 858.786553 | J24: -1.84
A25: Zeit-Spanne | B25: AK-Bedarf
A26: FEB | C26: Akh/ha | D26: =SUMIF('Arbeitsvorgänge-KTBL'!$B$2145:$B$2189,Braugerste!A26,'Arbeitsvorgänge-KTBL'!$G$2145:$G$2189) -> 0 | E26: =SUMIF('Arbeitsvorgänge-KTBL'!$B$2204:$B$2250,Braugerste!A26,'Arbeitsvorgänge-KTBL'!$G$2204:$G$2250) -> 0 | F26: =SUMIF('Arbeitsvorgänge-KTBL'!$B$2265:$B$2312,Braugerste!A26,'Arbeitsvorgänge-KTBL'!$G$2265:$G$2312) -> 0 | G26: =SUMIF('Arbeitsvorgänge-KTBL'!$B$2327:$B$2376,Braugerste!A26,'Arbeitsvorgänge-KTBL'!$G$2327:$G$2376) -> 0 | H26: =SUMIF('Arbeitsvorgänge-KTBL'!$B$2391:$B$2442,Braugerste!A26,'Arbeitsvorgänge-KTBL'!$G$2391:$G$2442) -> 0 | I26: =SUMIF('Arbeitsvorgänge-KTBL'!B2457:B2510,Braugerste!A26,'Arbeitsvorgänge-KTBL'!$G$2457:$G$2510) -> 0 | J26: 0
A27: MRZ | C27: Akh/ha | D27: =SUMIF('Arbeitsvorgänge-KTBL'!$B$2145:$B$2189,Braugerste!A27,'Arbeitsvorgänge-KTBL'!$G$2145:$G$2189) -> 2.02 | E27: =SUMIF('Arbeitsvorgänge-KTBL'!$B$2204:$B$2250,Braugerste!A27,'Arbeitsvorgänge-KTBL'!$G$2204:$G$2250) -> 2.07 | F27: =SUMIF('Arbeitsvorgänge-KTBL'!$B$2265:$B$2312,Braugerste!A27,'Arbeitsvorgänge-KTBL'!$G$2265:$G$2312) -> 1.47 | G27: =SUMIF('Arbeitsvorgänge-KTBL'!$B$2327:$B$2376,Braugerste!A27,'Arbeitsvorgänge-KTBL'!$G$2327:$G$2376) -> 1.52 | H27: =SUMIF('Arbeitsvorgänge-KTBL'!$B$2391:$B$2442,Braugerste!A27,'Arbeitsvorgänge-KTBL'!$G$2391:$G$2442) -> 0.88 | I27: =SUMIF('Arbeitsvorgänge-KTBL'!B2458:B2511,Braugerste!A27,'Arbeitsvorgänge-KTBL'!$G$2457:$G$2510) -> 1.82 | J27: 0
A28: APR | C28: Akh/ha | D28: =SUMIF('Arbeitsvorgänge-KTBL'!$B$2145:$B$2189,Braugerste!A28,'Arbeitsvorgänge-KTBL'!$G$2145:$G$2189) -> 0 | E28: =SUMIF('Arbeitsvorgänge-KTBL'!$B$2204:$B$2250,Braugerste!A28,'Arbeitsvorgänge-KTBL'!$G$2204:$G$2250) -> 0 | F28: =SUMIF('Arbeitsvorgänge-KTBL'!$B$2265:$B$2312,Braugerste!A28,'Arbeitsvorgänge-KTBL'!$G$2265:$G$2312) -> 0 | G28: =SUMIF('Arbeitsvorgänge-KTBL'!$B$2327:$B$2376,Braugerste!A28,'Arbeitsvorgänge-KTBL'!$G$2327:$G$2376) -> 0 | H28: =SUMIF('Arbeitsvorgänge-KTBL'!$B$2391:$B$2442,Braugerste!A28,'Arbeitsvorgänge-KTBL'!$G$2391:$G$2442) -> 0 | I28: =SUMIF('Arbeitsvorgänge-KTBL'!B2459:B2512,Braugerste!A28,'Arbeitsvorgänge-KTBL'!$G$2457:$G$2510) -> 0 | J28: 0
A29: MAI | C29: Akh/ha | D29: =SUMIF('Arbeitsvorgänge-KTBL'!$B$2145:$B$2189,Braugerste!A29,'Arbeitsvorgänge-KTBL'!$G$2145:$G$2189) -> 0 | E29: =SUMIF('Arbeitsvorgänge-KTBL'!$B$2204:$B$2250,Braugerste!A29,'Arbeitsvorgänge-KTBL'!$G$2204:$G$2250) -> 0 | F29: =SUMIF('Arbeitsvorgänge-KTBL'!$B$2265:$B$2312,Braugerste!A29,'Arbeitsvorgänge-KTBL'!$G$2265:$G$2312) -> 0 | G29: =SUMIF('Arbeitsvorgänge-KTBL'!$B$2327:$B$2376,Braugerste!A29,'Arbeitsvorgänge-KTBL'!$G$2327:$G$2376) -> 0 | H29: =SUMIF('Arbeitsvorgänge-KTBL'!$B$2391:$B$2442,Braugerste!A29,'Arbeitsvorgänge-KTBL'!$G$2391:$G$2442) -> 0 | I29: =SUMIF('Arbeitsvorgänge-KTBL'!B2460:B2513,Braugerste!A29,'Arbeitsvorgänge-KTBL'!$G$2457:$G$2510) -> 0 | J29: 0
A30: JUN | C30: Akh/ha | D30: =SUMIF('Arbeitsvorgänge-KTBL'!$B$2145:$B$2189,Braugerste!A30,'Arbeitsvorgänge-KTBL'!$G$2145:$G$2189) -> 0.41 | E30: =SUMIF('Arbeitsvorgänge-KTBL'!$B$2204:$B$2250,Braugerste!A30,'Arbeitsvorgänge-KTBL'!$G$2204:$G$2250) -> 0.41 | F30: =SUMIF('Arbeitsvorgänge-KTBL'!$B$2265:$B$2312,Braugerste!A30,'Arbeitsvorgänge-KTBL'!$G$2265:$G$2312) -> 0.3 | G30: =SUMIF('Arbeitsvorgänge-KTBL'!$B$2327:$B$2376,Braugerste!A30,'Arbeitsvorgänge-KTBL'!$G$2327:$G$2376) -> 0.3 | H30: =SUMIF('Arbeitsvorgänge-KTBL'!$B$2391:$B$2442,Braugerste!A30,'Arbeitsvorgänge-KTBL'!$G$2391:$G$2442) -> 0.23 | I30: =SUMIF('Arbeitsvorgänge-KTBL'!B2461:B2514,Braugerste!A30,'Arbeitsvorgänge-KTBL'!$G$2457:$G$2510) -> 0.23 | J30: 0
A31: JUL | C31: Akh/ha | D31: =SUMIF('Arbeitsvorgänge-KTBL'!$B$2145:$B$2189,Braugerste!A31,'Arbeitsvorgänge-KTBL'!$G$2145:$G$2189) -> 0.76 | E31: =SUMIF('Arbeitsvorgänge-KTBL'!$B$2204:$B$2250,Braugerste!A31,'Arbeitsvorgänge-KTBL'!$G$2204:$G$2250) -> 1.09 | F31: =SUMIF('Arbeitsvorgänge-KTBL'!$B$2265:$B$2312,Braugerste!A31,'Arbeitsvorgänge-KTBL'!$G$2265:$G$2312) -> 0.74 | G31: =SUMIF('Arbeitsvorgänge-KTBL'!$B$2327:$B$2376,Braugerste!A31,'Arbeitsvorgänge-KTBL'!$G$2327:$G$2376) -> 1.11 | H31: =SUMIF('Arbeitsvorgänge-KTBL'!$B$2391:$B$2442,Braugerste!A31,'Arbeitsvorgänge-KTBL'!$G$2391:$G$2442) -> 0.44 | I31: =SUMIF('Arbeitsvorgänge-KTBL'!B2462:B2515,Braugerste!A31,'Arbeitsvorgänge-KTBL'!$G$2457:$G$2510) -> 0.1 | J31: 0
A32: AUG | C32: Akh/ha | D32: =SUMIF('Arbeitsvorgänge-KTBL'!$B$2145:$B$2189,Braugerste!A32,'Arbeitsvorgänge-KTBL'!$G$2145:$G$2189) -> 1 | E32: =SUMIF('Arbeitsvorgänge-KTBL'!$B$2204:$B$2250,Braugerste!A32,'Arbeitsvorgänge-KTBL'!$G$2204:$G$2250) -> 1 | F32: =SUMIF('Arbeitsvorgänge-KTBL'!$B$2265:$B$2312,Braugerste!A32,'Arbeitsvorgänge-KTBL'!$G$2265:$G$2312) -> 0.63 | G32: =SUMIF('Arbeitsvorgänge-KTBL'!$B$2327:$B$2376,Braugerste!A32,'Arbeitsvorgänge-KTBL'!$G$2327:$G$2376) -> 0.63 | H32: =SUMIF('Arbeitsvorgänge-KTBL'!$B$2391:$B$2442,Braugerste!A32,'Arbeitsvorgänge-KTBL'!$G$2391:$G$2442) -> 0.4 | I32: =SUMIF('Arbeitsvorgänge-KTBL'!B2463:B2516,Braugerste!A32,'Arbeitsvorgänge-KTBL'!$G$2457:$G$2510) -> 0.66 | J32: 0
A33: SEP | C33: Akh/ha | D33: =SUMIF('Arbeitsvorgänge-KTBL'!$B$2145:$B$2189,Braugerste!A33,'Arbeitsvorgänge-KTBL'!$G$2145:$G$2189) -> 0.96 | E33: =SUMIF('Arbeitsvorgänge-KTBL'!$B$2204:$B$2250,Braugerste!A33,'Arbeitsvorgänge-KTBL'!$G$2204:$G$2250) -> 0.96 | F33: =SUMIF('Arbeitsvorgänge-KTBL'!$B$2265:$B$2312,Braugerste!A33,'Arbeitsvorgänge-KTBL'!$G$2265:$G$2312) -> 0.66 | G33: =SUMIF('Arbeitsvorgänge-KTBL'!$B$2327:$B$2376,Braugerste!A33,'Arbeitsvorgänge-KTBL'!$G$2327:$G$2376) -> 0.66 | H33: =SUMIF('Arbeitsvorgänge-KTBL'!$B$2391:$B$2442,Braugerste!A33,'Arbeitsvorgänge-KTBL'!$G$2391:$G$2442) -> 0.45 | I33: =SUMIF('Arbeitsvorgänge-KTBL'!B2464:B2517,Braugerste!A33,'Arbeitsvorgänge-KTBL'!$G$2457:$G$2510) -> 0.57 | J33: 0
A34: OKT | C34: Akh/ha | D34: =SUMIF('Arbeitsvorgänge-KTBL'!$B$2145:$B$2189,Braugerste!A34,'Arbeitsvorgänge-KTBL'!$G$2145:$G$2189) -> 2.07 | E34: =SUMIF('Arbeitsvorgänge-KTBL'!$B$2204:$B$2250,Braugerste!A34,'Arbeitsvorgänge-KTBL'!$G$2204:$G$2250) -> 2.13 | F34: =SUMIF('Arbeitsvorgänge-KTBL'!$B$2265:$B$2312,Braugerste!A34,'Arbeitsvorgänge-KTBL'!$G$2265:$G$2312) -> 1.58 | G34: =SUMIF('Arbeitsvorgänge-KTBL'!$B$2327:$B$2376,Braugerste!A34,'Arbeitsvorgänge-KTBL'!$G$2327:$G$2376) -> 1.63 | H34: =SUMIF('Arbeitsvorgänge-KTBL'!$B$2391:$B$2442,Braugerste!A34,'Arbeitsvorgänge-KTBL'!$G$2391:$G$2442) -> 1 | I34: =SUMIF('Arbeitsvorgänge-KTBL'!B2465:B2518,Braugerste!A34,'Arbeitsvorgänge-KTBL'!$G$2457:$G$2510) -> 0 | J34: 0
A35: NOV | C35: Akh/ha | D35: =SUMIF('Arbeitsvorgänge-KTBL'!$B$2145:$B$2189,Braugerste!A35,'Arbeitsvorgänge-KTBL'!$G$2145:$G$2189) -> 0 | E35: =SUMIF('Arbeitsvorgänge-KTBL'!$B$2204:$B$2250,Braugerste!A35,'Arbeitsvorgänge-KTBL'!$G$2204:$G$2250) -> 0 | F35: =SUMIF('Arbeitsvorgänge-KTBL'!$B$2265:$B$2312,Braugerste!A35,'Arbeitsvorgänge-KTBL'!$G$2265:$G$2312) -> 0 | G35: =SUMIF('Arbeitsvorgänge-KTBL'!$B$2327:$B$2376,Braugerste!A35,'Arbeitsvorgänge-KTBL'!$G$2327:$G$2376) -> 0 | H35: =SUMIF('Arbeitsvorgänge-KTBL'!$B$2391:$B$2442,Braugerste!A35,'Arbeitsvorgänge-KTBL'!$G$2391:$G$2442) -> 0 | I35: =SUMIF('Arbeitsvorgänge-KTBL'!B2466:B2519,Braugerste!A35,'Arbeitsvorgänge-KTBL'!$G$2457:$G$2510) -> 0 | J35: 0
A36: Rest | C36: Akh/ha | D36: =SUMIF('Arbeitsvorgänge-KTBL'!$B$2145:$B$2189,Braugerste!A36,'Arbeitsvorgänge-KTBL'!$G$2145:$G$2189) -> 0 | E36: =SUMIF('Arbeitsvorgänge-KTBL'!$B$2204:$B$2250,Braugerste!A36,'Arbeitsvorgänge-KTBL'!$G$2204:$G$2250) -> 0 | F36: =SUMIF('Arbeitsvorgänge-KTBL'!$B$2265:$B$2312,Braugerste!A36,'Arbeitsvorgänge-KTBL'!$G$2265:$G$2312) -> 0 | G36: =SUMIF('Arbeitsvorgänge-KTBL'!$B$2327:$B$2376,Braugerste!A36,'Arbeitsvorgänge-KTBL'!$G$2327:$G$2376) -> 0 | H36: =SUMIF('Arbeitsvorgänge-KTBL'!$B$2391:$B$2442,Braugerste!A36,'Arbeitsvorgänge-KTBL'!$G$2391:$G$2442) -> 0 | I36: =SUMIF('Arbeitsvorgänge-KTBL'!B2467:B2520,Braugerste!A36,'Arbeitsvorgänge-KTBL'!$G$2457:$G$2510) -> 0 | J36: 0
A37: Arbeitskraftstunden | C37: AKh/ha | D37: =SUM(D26:D36) -> 7.22 | E37: =SUM(E26:E36) -> 7.66 | F37: 5.38 | G37: 5.85 | H37: 3.4 | I37: 3.38 | J37: 0
A38: DB (je Akh) | C38: €/Akh | D38: =IF(D24>0,D24/D37,0) -> 55.98099673 | E38: 95.07861884 | F38: 88.41064247 | G38: 141.1368731 | H38: 148.9910408 | I38: 254.0788618 | J38: 0
A39: Aussaatmenge | C39: kg/ha | D39: 140 | E39: =D39 -> 140 | F39: =E39 -> 140 | G39: =F39 -> 140 | H39: =G39 -> 140 | I39: =H39 -> 140 | J39: 0
A40: davon Zukaufsaatgut | C40: % | D40: 100 | E40: =D40 -> 100 | F40: 100 | G40: 100 | H40: 100 | I40: 100 | J40: 0
A41: Saatgutpreis Eigen | C41: €/dt | D41: 0 | E41: 0 | F41: 0 | G41: 0 | H41: =G41 -> 0 | I41: =H41 -> 0 | J41: 0
A42: Zukauf | C42: €/dt | D42: =+Stammdatenblatt!P85 -> 90.95 | E42: =D42 -> 90.95 | F42: =+E42 -> 90.95 | G42: =F42 -> 90.95 | H42: =+G42 -> 90.95 | I42: =H42 -> 90.95 | J42: 0
A43: Saatgutkosten | C43: €/ha | D43: =D40/100*(D39*D42)/100+((100-D40)/100*D39*D41/100) -> 127.33 | E43: 127.33 | F43: 127.33 | G43: 127.33 | H43: 127.33 | I43: 127.33 | J43: 0
A44: Dünger: | B44: €/kg | C44: Düngerbedarf/ha (in kg Reinnährstoff) Nach Rechentabelle DÜV; N-min Durchschnittswerte LLH; Bodenart II
A45: =+Stammdatenblatt!A130 -> Stickstoff | B45: =+Stammdatenblatt!P130 -> 2.320205374 | C45: Aufw./ha | D45: 108 | E45: 128 | F45: 108 | G45: 128 | H45: 108 | I45: 128 | J45: 0
A46: =+Stammdatenblatt!A131 -> Phosphor | B46: =+Stammdatenblatt!P131 -> 1.226340187 | C46: Aufw./ha | D46: 57 | E46: 78 | F46: 57 | G46: 78 | H46: 57 | I46: 78 | J46: 0
A47: =+Stammdatenblatt!A132 -> Kali | B47: =+Stammdatenblatt!P132 -> 1.0165575 | C47: Aufw./ha | D47: 108 | E47: 147 | F47: 108 | G47: 147 | H47: 108 | I47: 147 | J47: 0
A48: =+Stammdatenblatt!A133 -> Kalk | B48: =+Stammdatenblatt!P133 -> 0.04746777778 | C48: Aufw./ha | D48: 300 | E48: =+D48 -> 300 | F48: 300 | G48: =+F48 -> 300 | H48: 300 | I48: =+H48 -> 300 | J48: 0
A49: =+Stammdatenblatt!A134 -> Magnesium | B49: =+Stammdatenblatt!P134 -> 1.844103333 | C49: Aufw./ha | D49: 37 | E49: 40 | F49: 37 | G49: 40 | H49: 37 | I49: 40 | J49: 0
A50: =+Stammdatenblatt!A135 -> Schwefel | B50: =+Stammdatenblatt!P135 -> 0.7582283333 | C50: Aufw./ha | D50: 0 | E50: =D50 -> 0 | F50: 0 | G50: =F50 -> 0 | H50: 0 | I50: =H50 -> 0 | J50: 0
A51: Mineraldüngerkosten | C51: €/ha | D51: =D45*$B$45+D46*$B$46+D47*$B$47+D48*$B$48+D49*$B$49+D50*$B$50 -> 512.7439378 | E51: 630.0792417 | F51: 512.7439378 | G51: 630.0792417 | H51: 512.7439378 | I51: 630.0792417 | J51: 0
A52: Herbizide | C52: €/ha | D52: 28 | E52: 35 | F52: 28 | G52: 35 | H52: 28 | I52: 35 | J52: 0
A53: Fungizide | C53: €/ha | D53: 45 | E53: 60 | F53: 45 | G53: 60 | H53: 45 | I53: 60 | J53: 0
A54: Insektizide | C54: €/ha | D54: 2 | E54: 3 | F54: 2 | G54: 3 | H54: 2 | I54: 3 | J54: 0
A55: Wachstumsregler | C55: €/ha | D55: 2 | E55: 12 | F55: 2 | G55: 12 | H55: 2 | I55: 12 | J55: 0
A56: Pflanzenbehandlungskosten | C56: €/ha | D56: =SUM(D52:D55) -> 77 | E56: 110 | F56: 77 | G56: 110 | H56: 77 | I56: 110 | J56: 0
A57: *variable Kosten in Anlehnung an KTBL-Richtwerte für Arbeitsgänge incl. Zinsanspruch für 3 Monate

Sheet Hafer
B3: Landesbetrieb Landwirtschaft Hessen
A4: =IF(Stammdatenblatt!G6+Stammdatenblatt!D77+Stammdatenblatt!D112+Stammdatenblatt!B129+Stammdatenblatt!D140+Stammdatenblatt!C183+Stammdatenblatt!C221+Stammdatenblatt!C239=0,"Produktionsverfahren wurden netto gerechnet", "Produktionsverfahren wurden brutto gerechnet") -> Produktionsverfahren wurden brutto gerechnet | H4: =Wirtschaftsdünger!N4 -> Letztes (aktuelles) WJ.
J5: eigene
A6: Hafer | D6: 2 ha | F6: 5 ha | H6: 20 ha | J6: Werte
A7: Leistung: Menge Hauptprodukt | C7: dt/ha | D7: 50 | E7: 70 | F7: 50 | G7: 70 | H7: 50 | I7: 70 | J7: 0
A8: Preis Hauptprodukt | C8: € | D8: =+Stammdatenblatt!P22 -> 20.6773 | E8: =+D8 -> 20.6773 | F8: =+E8 -> 20.6773 | G8: =F8 -> 20.6773 | H8: =+G8 -> 20.6773 | I8: =H8 -> 20.6773 | J8: 0
A9: Erlös Hauptprodukt | C9: €/ha | D9: =D7*D8 -> 1033.865 | E9: 1447.411 | F9: 1033.865 | G9: 1447.411 | H9: 1033.865 | I9: 1447.411 | J9: 0
A10: Erlös Nebenprodukt(e) | C10: €/ha | D10: 0 | E10: =D10 -> 0 | F10: =E10 -> 0 | G10: =F10 -> 0 | H10: =G10 -> 0 | I10: =H10 -> 0 | J10: 0
A11: Leistungen | C11: €/ha | D11: =D9+D10 -> 1033.865 | E11: =E10+E9 -> 1447.411 | F11: 1033.865 | G11: 1447.411 | H11: 1033.865 | I11: 1447.411 | J11: 0
A12: Saatgutkosten | C12: €/ha | D12: =D43 -> 60.7827233 | E12: 60.7827233 | F12: 60.7827233 | G12: 60.7827233 | H12: 60.7827233 | I12: 60.7827233 | J12: =J43 -> 0
A13: Mineraldüngerkosten | C13: €/ha | D13: =D51 -> 505.4791574 | E13: 642.9655755 | F13: 505.4791574 | G13: 642.9655755 | H13: 505.4791574 | I13: 642.9655755 | J13: =J51 -> 0
A14: Pflanzenbehandlungskosten | C14: €/ha | D14: =D56*(1+Stammdatenblatt!C221) -> 57.12 | E14: =E56*(1+Stammdatenblatt!C221) -> 79.73 | F14: =F56*(1+Stammdatenblatt!C221) -> 57.12 | G14: =G56*(1+Stammdatenblatt!C221) -> 79.73 | H14: =H56*(1+Stammdatenblatt!C221) -> 57.12 | I14: =I56*(1+Stammdatenblatt!C221) -> 79.73 | J14: =J56 -> 0
A15: Versicherung | C15: €/ha | D15: =(D11/1000)*Stammdatenblatt!$P$191 -> 7.357190113 | E15: =(E11/1000)*Stammdatenblatt!$P$191 -> 10.30006616 | F15: =(F11/1000)*Stammdatenblatt!$P$191 -> 7.357190113 | G15: =(G11/1000)*Stammdatenblatt!$P$191 -> 10.30006616 | H15: =(H11/1000)*Stammdatenblatt!$P$191 -> 7.357190113 | I15: =(I11/1000)*Stammdatenblatt!$P$191 -> 10.30006616 | J15: =(J11/1000)*Stammdatenblatt!$E$191 -> 0
A16: Trocknungskosten | C16: €/ha | D16: =(D7*Stammdatenblatt!$P$201+D7*(Stammdatenblatt!$P$202*4))/3 -> 55.73166667 | E16: =(E7*Stammdatenblatt!$P$201+E7*(Stammdatenblatt!$P$202*4))/3 -> 78.02433333 | F16: =D16 -> 55.73166667 | G16: =E16 -> 78.02433333 | H16: =D16 -> 55.73166667 | I16: =G16 -> 78.02433333 | J16: =J7/Stammdatenblatt!$E$204*Stammdatenblatt!$E$201+(Stammdatenblatt!$E$203*Stammdatenblatt!$E$202) -> 1.84
A17: Summe Direktkosten | C17: €/ha | D17: =SUM(D12:D16) -> 686.4707374 | E17: 871.8026983 | F17: 686.4707374 | G17: 871.8026983 | H17: 686.4707374 | I17: 871.8026983 | J17: 1.84
A18: Direktkostenfreie Leistung | C18: €/ha | D18: =D11-D17 -> 347.3942626 | E18: =E11-E17 -> 575.6083017 | F18: 347.3942626 | G18: 575.6083017 | H18: 347.3942626 | I18: 575.6083017 | J18: -1.84
A19: Maschinenkosten eigen * | C19: €/ha | D19: ='Arbeitsvorgänge-KTBL'!T2568 -> 180.6364287 | E19: ='Arbeitsvorgänge-KTBL'!T2626 -> 229.9113363 | F19: ='Arbeitsvorgänge-KTBL'!T2683 -> 170.4086757 | G19: ='Arbeitsvorgänge-KTBL'!T2744 -> 215.6204285 | H19: ='Arbeitsvorgänge-KTBL'!T2803 -> 151.0232203 | I19: ='Arbeitsvorgänge-KTBL'!T2868 -> 193.820395 | J19: 0
A20: Maschinenkosten fremd | C20: €/ha | D20: ='Arbeitsvorgänge-KTBL'!U2568*(1+Stammdatenblatt!C239) -> 125.35 | E20: ='Arbeitsvorgänge-KTBL'!U2626*(1+Stammdatenblatt!C239) -> 125.35 | F20: ='Arbeitsvorgänge-KTBL'!U2683*(1+Stammdatenblatt!C239) -> 125.35 | G20: ='Arbeitsvorgänge-KTBL'!U2744*(1+Stammdatenblatt!C239) -> 125.35 | H20: ='Arbeitsvorgänge-KTBL'!U2803*(1+Stammdatenblatt!C239) -> 114.45 | I20: ='Arbeitsvorgänge-KTBL'!U2868*(1+Stammdatenblatt!C239) -> 114.45 | J20: 0
A21: Lohnkosten | C21: €/ha | D21: 0 | E21: =D21 -> 0 | F21: 0 | G21: 0 | H21: 0 | I21: 0 | J21: 0
A22: xxx | C22: €/ha | D22: 0 | E22: 0 | F22: 0 | G22: 0 | H22: 0 | I22: 0 | J22: 0
A23: variable Kosten | C23: €/ha | D23: =SUM(D19:D22,D17) -> 992.4571662 | E23: =SUM(E19:E22,E17) -> 1227.064035 | F23: 982.2294132 | G23: 1212.773127 | H23: 951.9439577 | I23: 1180.073093 | J23: 1.84
A24: Deckungsbeitrag (DB) | C24: €/ha | D24: =D11-D23 -> 41.40783381 | E24: =E11-E23 -> 220.3469654 | F24: 51.63558681 | G24: 234.6378732 | H24: 81.92104231 | I24: 267.3379067 | J24: -1.84
A25: Zeit-Spanne | B25: AK-Bedarf
A26: FEB | C26: Akh/ha | D26: =SUMIF('Arbeitsvorgänge-KTBL'!$B$2526:$B$2565,Hafer!A26,'Arbeitsvorgänge-KTBL'!$G$2526:$G$2565) -> 0 | E26: =SUMIF('Arbeitsvorgänge-KTBL'!$B$2580:$B$2623,Hafer!A26,'Arbeitsvorgänge-KTBL'!$G$2580:$G$2623) -> 0 | F26: =SUMIF('Arbeitsvorgänge-KTBL'!$B$2638:$B$2680,Hafer!A26,'Arbeitsvorgänge-KTBL'!$G$2638:$G$2680) -> 0 | G26: =SUMIF('Arbeitsvorgänge-KTBL'!$B$2695:$B$2741,Hafer!A26,'Arbeitsvorgänge-KTBL'!$G$2695:$G$2741) -> 0 | H26: =SUMIF('Arbeitsvorgänge-KTBL'!$B$2756:$B$2800,Hafer!A26,'Arbeitsvorgänge-KTBL'!$G$2756:$G$2800) -> 0 | I26: =SUMIF('Arbeitsvorgänge-KTBL'!$B$2815:$B$2865,Hafer!A26,'Arbeitsvorgänge-KTBL'!$G$2815:$G$2865) -> 0 | J26: 0
A27: MRZ | C27: Akh/ha | D27: =SUMIF('Arbeitsvorgänge-KTBL'!$B$2526:$B$2565,Hafer!A27,'Arbeitsvorgänge-KTBL'!$G$2526:$G$2565) -> 2.02 | E27: =SUMIF('Arbeitsvorgänge-KTBL'!$B$2580:$B$2623,Hafer!A27,'Arbeitsvorgänge-KTBL'!$G$2580:$G$2623) -> 2.05 | F27: =SUMIF('Arbeitsvorgänge-KTBL'!$B$2638:$B$2680,Hafer!A27,'Arbeitsvorgänge-KTBL'!$G$2638:$G$2680) -> 1.45 | G27: =SUMIF('Arbeitsvorgänge-KTBL'!$B$2695:$B$2741,Hafer!A27,'Arbeitsvorgänge-KTBL'!$G$2695:$G$2741) -> 1.49 | H27: =SUMIF('Arbeitsvorgänge-KTBL'!$B$2756:$B$2800,Hafer!A27,'Arbeitsvorgänge-KTBL'!$G$2756:$G$2800) -> 0.89 | I27: =SUMIF('Arbeitsvorgänge-KTBL'!$B$2815:$B$2865,Hafer!A27,'Arbeitsvorgänge-KTBL'!$G$2815:$G$2865) -> 0.89 | J27: 0
A28: APR | C28: Akh/ha | D28: =SUMIF('Arbeitsvorgänge-KTBL'!$B$2526:$B$2565,Hafer!A28,'Arbeitsvorgänge-KTBL'!$G$2526:$G$2565) -> 0 | E28: =SUMIF('Arbeitsvorgänge-KTBL'!$B$2580:$B$2623,Hafer!A28,'Arbeitsvorgänge-KTBL'!$G$2580:$G$2623) -> 0 | F28: =SUMIF('Arbeitsvorgänge-KTBL'!$B$2638:$B$2680,Hafer!A28,'Arbeitsvorgänge-KTBL'!$G$2638:$G$2680) -> 0 | G28: =SUMIF('Arbeitsvorgänge-KTBL'!$B$2695:$B$2741,Hafer!A28,'Arbeitsvorgänge-KTBL'!$G$2695:$G$2741) -> 0 | H28: =SUMIF('Arbeitsvorgänge-KTBL'!$B$2756:$B$2800,Hafer!A28,'Arbeitsvorgänge-KTBL'!$G$2756:$G$2800) -> 0 | I28: =SUMIF('Arbeitsvorgänge-KTBL'!$B$2815:$B$2865,Hafer!A28,'Arbeitsvorgänge-KTBL'!$G$2815:$G$2865) -> 0 | J28: 0
A29: MAI | C29: Akh/ha | D29: =SUMIF('Arbeitsvorgänge-KTBL'!$B$2526:$B$2565,Hafer!A29,'Arbeitsvorgänge-KTBL'!$G$2526:$G$2565) -> 0.13 | E29: =SUMIF('Arbeitsvorgänge-KTBL'!$B$2580:$B$2623,Hafer!A29,'Arbeitsvorgänge-KTBL'!$G$2580:$G$2623) -> 0.41 | F29: =SUMIF('Arbeitsvorgänge-KTBL'!$B$2638:$B$2680,Hafer!A29,'Arbeitsvorgänge-KTBL'!$G$2638:$G$2680) -> 0.11 | G29: =SUMIF('Arbeitsvorgänge-KTBL'!$B$2695:$B$2741,Hafer!A29,'Arbeitsvorgänge-KTBL'!$G$2695:$G$2741) -> 0.3 | H29: =SUMIF('Arbeitsvorgänge-KTBL'!$B$2756:$B$2800,Hafer!A29,'Arbeitsvorgänge-KTBL'!$G$2756:$G$2800) -> 0.09 | I29: =SUMIF('Arbeitsvorgänge-KTBL'!$B$2815:$B$2865,Hafer!A29,'Arbeitsvorgänge-KTBL'!$G$2815:$G$2865) -> 0.23 | J29: 0
A30: JUN | C30: Akh/ha | D30: =SUMIF('Arbeitsvorgänge-KTBL'!$B$2526:$B$2565,Hafer!A30,'Arbeitsvorgänge-KTBL'!$G$2526:$G$2565) -> 0 | E30: =SUMIF('Arbeitsvorgänge-KTBL'!$B$2580:$B$2623,Hafer!A30,'Arbeitsvorgänge-KTBL'!$G$2580:$G$2623) -> 0 | F30: =SUMIF('Arbeitsvorgänge-KTBL'!$B$2638:$B$2680,Hafer!A30,'Arbeitsvorgänge-KTBL'!$G$2638:$G$2680) -> 0 | G30: =SUMIF('Arbeitsvorgänge-KTBL'!$B$2695:$B$2741,Hafer!A30,'Arbeitsvorgänge-KTBL'!$G$2695:$G$2741) -> 0 | H30: =SUMIF('Arbeitsvorgänge-KTBL'!$B$2756:$B$2800,Hafer!A30,'Arbeitsvorgänge-KTBL'!$G$2756:$G$2800) -> 0 | I30: =SUMIF('Arbeitsvorgänge-KTBL'!$B$2815:$B$2865,Hafer!A30,'Arbeitsvorgänge-KTBL'!$G$2815:$G$2865) -> 0 | J30: 0
A31: JUL | C31: Akh/ha | D31: =SUMIF('Arbeitsvorgänge-KTBL'!$B$2526:$B$2565,Hafer!A31,'Arbeitsvorgänge-KTBL'!$G$2526:$G$2565) -> 0.76 | E31: =SUMIF('Arbeitsvorgänge-KTBL'!$B$2580:$B$2623,Hafer!A31,'Arbeitsvorgänge-KTBL'!$G$2580:$G$2623) -> 1.09 | F31: =SUMIF('Arbeitsvorgänge-KTBL'!$B$2638:$B$2680,Hafer!A31,'Arbeitsvorgänge-KTBL'!$G$2638:$G$2680) -> 0.71 | G31: =SUMIF('Arbeitsvorgänge-KTBL'!$B$2695:$B$2741,Hafer!A31,'Arbeitsvorgänge-KTBL'!$G$2695:$G$2741) -> 1.08 | H31: =SUMIF('Arbeitsvorgänge-KTBL'!$B$2756:$B$2800,Hafer!A31,'Arbeitsvorgänge-KTBL'!$G$2756:$G$2800) -> 0.44 | I31: =SUMIF('Arbeitsvorgänge-KTBL'!$B$2815:$B$2865,Hafer!A31,'Arbeitsvorgänge-KTBL'!$G$2815:$G$2865) -> 0.65 | J31: 0
A32: AUG | C32: Akh/ha | D32: =SUMIF('Arbeitsvorgänge-KTBL'!$B$2526:$B$2565,Hafer!A32,'Arbeitsvorgänge-KTBL'!$G$2526:$G$2565) -> 1 | E32: =SUMIF('Arbeitsvorgänge-KTBL'!$B$2580:$B$2623,Hafer!A32,'Arbeitsvorgänge-KTBL'!$G$2580:$G$2623) -> 1 | F32: =SUMIF('Arbeitsvorgänge-KTBL'!$B$2638:$B$2680,Hafer!A32,'Arbeitsvorgänge-KTBL'!$G$2638:$G$2680) -> 0.63 | G32: =SUMIF('Arbeitsvorgänge-KTBL'!$B$2695:$B$2741,Hafer!A32,'Arbeitsvorgänge-KTBL'!$G$2695:$G$2741) -> 0.63 | H32: =SUMIF('Arbeitsvorgänge-KTBL'!$B$2756:$B$2800,Hafer!A32,'Arbeitsvorgänge-KTBL'!$G$2756:$G$2800) -> 0.4 | I32: =SUMIF('Arbeitsvorgänge-KTBL'!$B$2815:$B$2865,Hafer!A32,'Arbeitsvorgänge-KTBL'!$G$2815:$G$2865) -> 0.4 | J32: 0
A33: SEP | C33: Akh/ha | D33: =SUMIF('Arbeitsvorgänge-KTBL'!$B$2526:$B$2565,Hafer!A33,'Arbeitsvorgänge-KTBL'!$G$2526:$G$2565) -> 0.96 | E33: =SUMIF('Arbeitsvorgänge-KTBL'!$B$2580:$B$2623,Hafer!A33,'Arbeitsvorgänge-KTBL'!$G$2580:$G$2623) -> 0.96 | F33: =SUMIF('Arbeitsvorgänge-KTBL'!$B$2638:$B$2680,Hafer!A33,'Arbeitsvorgänge-KTBL'!$G$2638:$G$2680) -> 0.66 | G33: =SUMIF('Arbeitsvorgänge-KTBL'!$B$2695:$B$2741,Hafer!A33,'Arbeitsvorgänge-KTBL'!$G$2695:$G$2741) -> 0.66 | H33: =SUMIF('Arbeitsvorgänge-KTBL'!$B$2756:$B$2800,Hafer!A33,'Arbeitsvorgänge-KTBL'!$G$2756:$G$2800) -> 0.45 | I33: =SUMIF('Arbeitsvorgänge-KTBL'!$B$2815:$B$2865,Hafer!A33,'Arbeitsvorgänge-KTBL'!$G$2815:$G$2865) -> 0.45 | J33: 0
A34: OKT | C34: Akh/ha | D34: =SUMIF('Arbeitsvorgänge-KTBL'!$B$2526:$B$2565,Hafer!A34,'Arbeitsvorgänge-KTBL'!$G$2526:$G$2565) -> 2.06 | E34: =SUMIF('Arbeitsvorgänge-KTBL'!$B$2580:$B$2623,Hafer!A34,'Arbeitsvorgänge-KTBL'!$G$2580:$G$2623) -> 2.12 | F34: =SUMIF('Arbeitsvorgänge-KTBL'!$B$2638:$B$2680,Hafer!A34,'Arbeitsvorgänge-KTBL'!$G$2638:$G$2680) -> 1.56 | G34: =SUMIF('Arbeitsvorgänge-KTBL'!$B$2695:$B$2741,Hafer!A34,'Arbeitsvorgänge-KTBL'!$G$2695:$G$2741) -> 1.61 | H34: =SUMIF('Arbeitsvorgänge-KTBL'!$B$2756:$B$2800,Hafer!A34,'Arbeitsvorgänge-KTBL'!$G$2756:$G$2800) -> 1 | I34: =SUMIF('Arbeitsvorgänge-KTBL'!$B$2815:$B$2865,Hafer!A34,'Arbeitsvorgänge-KTBL'!$G$2815:$G$2865) -> 1.01 | J34: 0
A35: NOV | C35: Akh/ha | D35: =SUMIF('Arbeitsvorgänge-KTBL'!$B$2526:$B$2565,Hafer!A35,'Arbeitsvorgänge-KTBL'!$G$2526:$G$2565) -> 0 | E35: =SUMIF('Arbeitsvorgänge-KTBL'!$B$2580:$B$2623,Hafer!A35,'Arbeitsvorgänge-KTBL'!$G$2580:$G$2623) -> 0 | F35: =SUMIF('Arbeitsvorgänge-KTBL'!$B$2638:$B$2680,Hafer!A35,'Arbeitsvorgänge-KTBL'!$G$2638:$G$2680) -> 0 | G35: =SUMIF('Arbeitsvorgänge-KTBL'!$B$2695:$B$2741,Hafer!A35,'Arbeitsvorgänge-KTBL'!$G$2695:$G$2741) -> 0 | H35: =SUMIF('Arbeitsvorgänge-KTBL'!$B$2756:$B$2800,Hafer!A35,'Arbeitsvorgänge-KTBL'!$G$2756:$G$2800) -> 0 | I35: =SUMIF('Arbeitsvorgänge-KTBL'!$B$2815:$B$2865,Hafer!A35,'Arbeitsvorgänge-KTBL'!$G$2815:$G$2865) -> 0 | J35: 0
A36: Rest | C36: Akh/ha | D36: =SUMIF('Arbeitsvorgänge-KTBL'!$B$2526:$B$2565,Hafer!A36,'Arbeitsvorgänge-KTBL'!$G$2526:$G$2565) -> 0 | E36: =SUMIF('Arbeitsvorgänge-KTBL'!$B$2580:$B$2623,Hafer!A36,'Arbeitsvorgänge-KTBL'!$G$2580:$G$2623) -> 0 | F36: =SUMIF('Arbeitsvorgänge-KTBL'!$B$2638:$B$2680,Hafer!A36,'Arbeitsvorgänge-KTBL'!$G$2638:$G$2680) -> 0 | G36: =SUMIF('Arbeitsvorgänge-KTBL'!$B$2695:$B$2741,Hafer!A36,'Arbeitsvorgänge-KTBL'!$G$2695:$G$2741) -> 0 | H36: =SUMIF('Arbeitsvorgänge-KTBL'!$B$2756:$B$2800,Hafer!A36,'Arbeitsvorgänge-KTBL'!$G$2756:$G$2800) -> 0 | I36: =SUMIF('Arbeitsvorgänge-KTBL'!$B$2815:$B$2865,Hafer!A36,'Arbeitsvorgänge-KTBL'!$G$2815:$G$2865) -> 0 | J36: 0
A37: Arbeitskraftstunden | C37: AKh/ha | D37: =SUM(D26:D36) -> 6.93 | E37: =SUM(E27:E36) -> 7.63 | F37: 5.12 | G37: 5.77 | H37: 3.27 | I37: 3.63 | J37: 0
A38: DB (je Akh) | C38: €/Akh | D38: =IF(D24>0,D24/D37,0) -> 5.975156394 | E38: 28.87902561 | F38: 10.08507555 | G38: 40.66514266 | H38: 25.05230652 | I38: 73.64680624 | J38: 0
A39: Aussaatmenge | C39: kg/ha | D39: 130 | E39: =D39 -> 130 | F39: =E39 -> 130 | G39: =F39 -> 130 | H39: =G39 -> 130 | I39: =H39 -> 130 | J39: 0
A40: davon Zukaufsaatgut | C40: % | D40: 33 | E40: =D40 -> 33 | F40: =E40 -> 33 | G40: =F40 -> 33 | H40: 33 | I40: =H40 -> 33 | J40: 0
A41: Saatgutpreis Eigen | C41: €/dt | D41: =D8+Stammdatenblatt!$K$186 -> 27.8873 | E41: =E8+Stammdatenblatt!$K$186 -> 27.8873 | F41: =F8+Stammdatenblatt!$K$186 -> 27.8873 | G41: =G8+Stammdatenblatt!$K$186 -> 27.8873 | H41: =H8+Stammdatenblatt!$K$186 -> 27.8873 | I41: =I8+Stammdatenblatt!$K$186 -> 27.8873 | J41: 0
A42: Zukauf | C42: €/dt | D42: =+Stammdatenblatt!P86 -> 85.065 | E42: =D42 -> 85.065 | F42: =+E42 -> 85.065 | G42: =F42 -> 85.065 | H42: =+G42 -> 85.065 | I42: =H42 -> 85.065 | J42: 0
A43: Saatgutkosten | C43: €/ha | D43: =D40/100*(D39*D42)/100+((100-D40)/100*D39*D41/100) -> 60.7827233 | E43: 60.7827233 | F43: 60.7827233 | G43: 60.7827233 | H43: 60.7827233 | I43: 60.7827233 | J43: 0
A44: Dünger: | B44: €/kg | C44: Düngerbedarf/ha (in kg Reinnährstoff) Nach Rechentabelle DÜV; N-min Durchschnittswerte LLH; Bodenart II
A45: =+Stammdatenblatt!A130 -> Stickstoff | B45: =+Stammdatenblatt!P130 -> 2.320205374 | C45: Aufw./ha | D45: 98 | E45: 120 | F45: 98 | G45: 120 | H45: 98 | I45: 120 | J45: 0
A46: =+Stammdatenblatt!A131 -> Phosphor | B46: =+Stammdatenblatt!P131 -> 1.226340187 | C46: Aufw./ha | D46: 57 | E46: 79 | F46: 57 | G46: 79 | H46: 57 | I46: 79 | J46: 0
A47: =+Stammdatenblatt!A132 -> Kali | B47: =+Stammdatenblatt!P132 -> 1.0165575 | C47: Aufw./ha | D47: 124 | E47: 173 | F47: 124 | G47: 173 | H47: 124 | I47: 173 | J47: 0
A48: =+Stammdatenblatt!A133 -> Kalk | B48: =+Stammdatenblatt!P133 -> 0.04746777778 | C48: Aufw./ha | D48: 300 | E48: =D48 -> 300 | F48: 300 | G48: =F48 -> 300 | H48: 300 | I48: =H48 -> 300 | J48: 0
A49: =+Stammdatenblatt!A134 -> Magnesium | B49: =+Stammdatenblatt!P134 -> 1.844103333 | C49: Aufw./ha | D49: 36 | E49: 40 | F49: 36 | G49: 40 | H49: 36 | I49: 40 | J49: 0
A50: =+Stammdatenblatt!A135 -> Schwefel | B50: =+Stammdatenblatt!P135 -> 0.7582283333 | C50: Aufw./ha | D50: 2 | E50: 5 | F50: 2 | G50: 5 | H50: 2 | I50: 5 | J50: 0
A51: Mineraldüngerkosten | C51: €/ha | D51: =D45*$B$45+D46*$B$46+D47*$B$47+D48*$B$48+D49*$B$49+D50*$B$50 -> 505.4791574 | E51: 642.9655755 | F51: 505.4791574 | G51: 642.9655755 | H51: 505.4791574 | I51: 642.9655755 | J51: 0
A52: Herbizide | C52: €/ha | D52: 31 | E52: 35 | F52: 31 | G52: 35 | H52: 31 | I52: 35 | J52: 0
A53: Fungizide | C53: €/ha | D53: 13 | E53: 23 | F53: 13 | G53: 23 | H53: 13 | I53: 23 | J53: 0
A54: Insektizide | C54: €/ha | D54: 0 | E54: 3 | F54: 0 | G54: 3 | H54: 0 | I54: 3 | J54: 0
A55: Wachstumsregler | C55: €/ha | D55: 4 | E55: 6 | F55: 4 | G55: 6 | H55: 4 | I55: 6 | J55: 0
A56: Pflanzenbehandlungskosten | C56: €/ha | D56: =SUM(D52:D55) -> 48 | E56: 67 | F56: 48 | G56: 67 | H56: 48 | I56: 67 | J56: 0
A57: *variable Kosten in Anlehnung an KTBL-Richtwerte für Arbeitsgänge incl. Zinsanspruch für 3 Monate

Sheet Raps
B3: Landesbetrieb Landwirtschaft Hessen
A4: =IF(Stammdatenblatt!G6+Stammdatenblatt!D77+Stammdatenblatt!D112+Stammdatenblatt!B129+Stammdatenblatt!D140+Stammdatenblatt!C183+Stammdatenblatt!C221+Stammdatenblatt!C239=0,"Produktionsverfahren wurden netto gerechnet", "Produktionsverfahren wurden brutto gerechnet") -> Produktionsverfahren wurden brutto gerechnet | H4: =Wirtschaftsdünger!N4 -> Letztes (aktuelles) WJ.
D5: Winterraps | J5: eigene
A6: Raps | D6: 2 ha | F6: 5 ha | H6: 20 ha | J6: Werte
A7: Leistung: Menge Hauptprodukt | C7: dt/ha | D7: 35 | E7: 45 | F7: 35 | G7: 45 | H7: 35 | I7: 45 | J7: 0
A8: Preis Hauptprodukt | C8: € | D8: =+Stammdatenblatt!P25 -> 76.4199 | E8: =+D8 -> 76.4199 | F8: =+E8 -> 76.4199 | G8: =+F8 -> 76.4199 | H8: =+G8 -> 76.4199 | I8: =+H8 -> 76.4199 | J8: 0
A9: Erlös Hauptprodukt | C9: €/ha | D9: =D7*D8 -> 2674.6965 | E9: 3438.8955 | F9: 2674.6965 | G9: 3438.8955 | H9: 2674.6965 | I9: 3438.8955 | J9: 0
A10: Erlös Nebenprodukt(e) | C10: €/ha | D10: 0 | E10: 0 | F10: 0 | G10: 0 | H10: 0 | I10: 0 | J10: 0
A11: Leistungen | C11: €/ha | D11: =D9+D10 -> 2674.6965 | E11: =E10+E9 -> 3438.8955 | F11: 2674.6965 | G11: 3438.8955 | H11: 2674.6965 | I11: 3438.8955 | J11: 0
A12: Saatgutkosten ** | C12: €/ha | D12: =D43 -> 85.6 | E12: 85.6 | F12: 85.6 | G12: 85.6 | H12: 85.6 | I12: 85.6 | J12: =J43 -> 0
A13: Mineraldüngerkosten | C13: €/ha | D13: =D51 -> 741.9961432 | E13: 885.3648756 | F13: 741.9961432 | G13: 885.3648756 | H13: 741.9961432 | I13: 885.3648756 | J13: =J51 -> 0
A14: Pflanzenbehandlungsk. | C14: €/ha | D14: =D56*(1+Stammdatenblatt!C221) -> 202.3 | E14: =E56*(1+Stammdatenblatt!C221) -> 285.6 | F14: =F56*(1+Stammdatenblatt!C221) -> 202.3 | G14: =G56*(1+Stammdatenblatt!C221) -> 285.6 | H14: =H56*(1+Stammdatenblatt!C221) -> 202.3 | I14: =I56*(1+Stammdatenblatt!C221) -> 285.6 | J14: =J56 -> 0
A15: Versicherung | C15: €/ha | D15: =(D11/1000)*Stammdatenblatt!$P$192 -> 34.75714608 | E15: =(E11/1000)*Stammdatenblatt!$P$192 -> 44.68775924 | F15: =(F11/1000)*Stammdatenblatt!$P$192 -> 34.75714608 | G15: =(G11/1000)*Stammdatenblatt!$P$192 -> 44.68775924 | H15: =(H11/1000)*Stammdatenblatt!$P$192 -> 34.75714608 | I15: =(I11/1000)*Stammdatenblatt!$P$192 -> 44.68775924 | J15: =(J11/1000)*Stammdatenblatt!$E$192 -> 0
A16: Trocknungskosten | C16: €/ha | D16: =(D7*Stammdatenblatt!$P$206+D7*(Stammdatenblatt!$P$207*3))/3 -> 24.99 | E16: =(E7*Stammdatenblatt!$P$206+E7*(Stammdatenblatt!$P$207*3))/3 -> 32.13 | F16: =D16 -> 24.99 | G16: =E16 -> 32.13 | H16: =F16 -> 24.99 | I16: =G16 -> 32.13 | J16: =J7/Stammdatenblatt!$E$209*Stammdatenblatt!$E$206+(Stammdatenblatt!$E$208*Stammdatenblatt!$E$207) -> 1.41
A17: Summe Direktkosten | C17: €/ha | D17: =SUM(D12:D16) -> 1089.643289 | E17: =SUM(E12:E16) -> 1333.382635 | F17: 1089.643289 | G17: 1333.382635 | H17: 1089.643289 | I17: 1333.382635 | J17: 1.41
A18: Direktkostenfreie Leistung | C18: €/ha | D18: =D11-D17 -> 1585.053211 | E18: =E11-E17 -> 2105.512865 | F18: 1585.053211 | G18: 2105.512865 | H18: 1585.053211 | I18: 2105.512865 | J18: -1.41
A19: Maschinenkosten eigen * | C19: €/ha | D19: ='Arbeitsvorgänge-KTBL'!T2939 -> 251.588532 | E19: ='Arbeitsvorgänge-KTBL'!T3013 -> 268.0539282 | F19: ='Arbeitsvorgänge-KTBL'!T3083 -> 234.437627 | G19: ='Arbeitsvorgänge-KTBL'!T3157 -> 250.6762678 | H19: ='Arbeitsvorgänge-KTBL'!T3233 -> 211.320176 | I19: ='Arbeitsvorgänge-KTBL'!T3315 -> 226.542786 | J19: 0
A20: Maschinenkosten fremd | C20: €/ha | D20: ='Arbeitsvorgänge-KTBL'!U2939*(1+Stammdatenblatt!C239) -> 152.6 | E20: ='Arbeitsvorgänge-KTBL'!U3013*(1+Stammdatenblatt!C239) -> 152.6 | F20: ='Arbeitsvorgänge-KTBL'!U3083*(1+Stammdatenblatt!C239) -> 152.6 | G20: ='Arbeitsvorgänge-KTBL'!U3157*(1+Stammdatenblatt!C239) -> 152.6 | H20: ='Arbeitsvorgänge-KTBL'!U3233*(1+Stammdatenblatt!C239) -> 141.7 | I20: ='Arbeitsvorgänge-KTBL'!U3315*(1+Stammdatenblatt!C239) -> 141.7 | J20: 0
A21: Lohnkosten | C21: €/ha | D21: 0 | E21: =D21 -> 0 | F21: 0 | G21: 0 | H21: 0 | I21: 0 | J21: 0
A22: xxx | C22: €/ha | D22: 0 | E22: 0 | F22: 0 | G22: 0 | H22: 0 | I22: 0 | J22: 0
A23: variable Kosten | C23: €/ha | D23: =SUM(D19:D22,D17) -> 1493.831821 | E23: =SUM(E19:E22,E17) -> 1754.036563 | F23: 1476.680916 | G23: 1736.658903 | H23: 1442.663465 | I23: 1701.625421 | J23: 1.41
A24: Deckungsbeitrag (DB) | C24: €/ha | D24: =D11-D23 -> 1180.864679 | E24: 1684.858937 | F24: 1198.015584 | G24: 1702.236597 | H24: 1232.033035 | I24: 1737.270079 | J24: -1.41
A25: Zeit-Spanne | B25: AK-Bedarf
A26: FEB | C26: Akh/ha | D26: =SUMIF('Arbeitsvorgänge-KTBL'!$B$2881:$B$2936,Raps!A26,'Arbeitsvorgänge-KTBL'!$G$2881:$G$2936) -> 0.33 | E26: =SUMIF('Arbeitsvorgänge-KTBL'!$B$2951:$B$3010,Raps!A26,'Arbeitsvorgänge-KTBL'!$G$2951:$G$3010) -> 0.37 | F26: =SUMIF('Arbeitsvorgänge-KTBL'!$B$3025:$B$3080,Raps!A26,'Arbeitsvorgänge-KTBL'!$G$3025:$G$3080) -> 0.28 | G26: =SUMIF('Arbeitsvorgänge-KTBL'!$B$3095:$B$3154,Raps!A26,'Arbeitsvorgänge-KTBL'!$G$3095:$G$3154) -> 0.32 | H26: =SUMIF('Arbeitsvorgänge-KTBL'!$B$3169:$B$3230,Raps!A26,'Arbeitsvorgänge-KTBL'!$G$3169:$G$3230) -> 0.16 | I26: =SUMIF('Arbeitsvorgänge-KTBL'!$B$3245:$B$3312,Raps!A26,'Arbeitsvorgänge-KTBL'!$G$3245:$G$3312) -> 0.17 | J26: 0
A27: MRZ | C27: Akh/ha | D27: =SUMIF('Arbeitsvorgänge-KTBL'!$B$2881:$B$2936,Raps!A27,'Arbeitsvorgänge-KTBL'!$G$2881:$G$2936) -> 0 | E27: =SUMIF('Arbeitsvorgänge-KTBL'!$B$2951:$B$3010,Raps!A27,'Arbeitsvorgänge-KTBL'!$G$2951:$G$3010) -> 0 | F27: =SUMIF('Arbeitsvorgänge-KTBL'!$B$3025:$B$3080,Raps!A27,'Arbeitsvorgänge-KTBL'!$G$3025:$G$3080) -> 0 | G27: =SUMIF('Arbeitsvorgänge-KTBL'!$B$3095:$B$3154,Raps!A27,'Arbeitsvorgänge-KTBL'!$G$3095:$G$3154) -> 0 | H27: =SUMIF('Arbeitsvorgänge-KTBL'!$B$3169:$B$3230,Raps!A27,'Arbeitsvorgänge-KTBL'!$G$3169:$G$3230) -> 0 | I27: =SUMIF('Arbeitsvorgänge-KTBL'!$B$3245:$B$3312,Raps!A27,'Arbeitsvorgänge-KTBL'!$G$3245:$G$3312) -> 0 | J27: 0
A28: APR | C28: Akh/ha | D28: =SUMIF('Arbeitsvorgänge-KTBL'!$B$2881:$B$2936,Raps!A28,'Arbeitsvorgänge-KTBL'!$G$2881:$G$2936) -> 0.6 | E28: =SUMIF('Arbeitsvorgänge-KTBL'!$B$2951:$B$3010,Raps!A28,'Arbeitsvorgänge-KTBL'!$G$2951:$G$3010) -> 0.6 | F28: =SUMIF('Arbeitsvorgänge-KTBL'!$B$3025:$B$3080,Raps!A28,'Arbeitsvorgänge-KTBL'!$G$3025:$G$3080) -> 0.46 | G28: =SUMIF('Arbeitsvorgänge-KTBL'!$B$3095:$B$3154,Raps!A28,'Arbeitsvorgänge-KTBL'!$G$3095:$G$3154) -> 0.46 | H28: =SUMIF('Arbeitsvorgänge-KTBL'!$B$3169:$B$3230,Raps!A28,'Arbeitsvorgänge-KTBL'!$G$3169:$G$3230) -> 0.3 | I28: =SUMIF('Arbeitsvorgänge-KTBL'!$B$3245:$B$3312,Raps!A28,'Arbeitsvorgänge-KTBL'!$G$3245:$G$3312) -> 0.34 | J28: 0
A29: MAI | C29: Akh/ha | D29: =SUMIF('Arbeitsvorgänge-KTBL'!$B$2881:$B$2936,Raps!A29,'Arbeitsvorgänge-KTBL'!$G$2881:$G$2936) -> 0 | E29: =SUMIF('Arbeitsvorgänge-KTBL'!$B$2951:$B$3010,Raps!A29,'Arbeitsvorgänge-KTBL'!$G$2951:$G$3010) -> 0 | F29: =SUMIF('Arbeitsvorgänge-KTBL'!$B$3025:$B$3080,Raps!A29,'Arbeitsvorgänge-KTBL'!$G$3025:$G$3080) -> 0 | G29: =SUMIF('Arbeitsvorgänge-KTBL'!$B$3095:$B$3154,Raps!A29,'Arbeitsvorgänge-KTBL'!$G$3095:$G$3154) -> 0 | H29: =SUMIF('Arbeitsvorgänge-KTBL'!$B$3169:$B$3230,Raps!A29,'Arbeitsvorgänge-KTBL'!$G$3169:$G$3230) -> 0 | I29: =SUMIF('Arbeitsvorgänge-KTBL'!$B$3245:$B$3312,Raps!A29,'Arbeitsvorgänge-KTBL'!$G$3245:$G$3312) -> 0 | J29: 0
A30: JUN | C30: Akh/ha | D30: =SUMIF('Arbeitsvorgänge-KTBL'!$B$2881:$B$2936,Raps!A30,'Arbeitsvorgänge-KTBL'!$G$2881:$G$2936) -> 0 | E30: =SUMIF('Arbeitsvorgänge-KTBL'!$B$2951:$B$3010,Raps!A30,'Arbeitsvorgänge-KTBL'!$G$2951:$G$3010) -> 0.28 | F30: =SUMIF('Arbeitsvorgänge-KTBL'!$B$3025:$B$3080,Raps!A30,'Arbeitsvorgänge-KTBL'!$G$3025:$G$3080) -> 0 | G30: =SUMIF('Arbeitsvorgänge-KTBL'!$B$3095:$B$3154,Raps!A30,'Arbeitsvorgänge-KTBL'!$G$3095:$G$3154) -> 0.19 | H30: =SUMIF('Arbeitsvorgänge-KTBL'!$B$3169:$B$3230,Raps!A30,'Arbeitsvorgänge-KTBL'!$G$3169:$G$3230) -> 0 | I30: =SUMIF('Arbeitsvorgänge-KTBL'!$B$3245:$B$3312,Raps!A30,'Arbeitsvorgänge-KTBL'!$G$3245:$G$3312) -> 0.1 | J30: 0
A31: JUL | C31: Akh/ha | D31: =SUMIF('Arbeitsvorgänge-KTBL'!$B$2881:$B$2936,Raps!A31,'Arbeitsvorgänge-KTBL'!$G$2881:$G$2936) -> 3.77 | E31: =SUMIF('Arbeitsvorgänge-KTBL'!$B$2951:$B$3010,Raps!A31,'Arbeitsvorgänge-KTBL'!$G$2951:$G$3010) -> 3.91 | F31: =SUMIF('Arbeitsvorgänge-KTBL'!$B$3025:$B$3080,Raps!A31,'Arbeitsvorgänge-KTBL'!$G$3025:$G$3080) -> 2.86 | G31: =SUMIF('Arbeitsvorgänge-KTBL'!$B$3095:$B$3154,Raps!A31,'Arbeitsvorgänge-KTBL'!$G$3095:$G$3154) -> 3.03 | H31: =SUMIF('Arbeitsvorgänge-KTBL'!$B$3169:$B$3230,Raps!A31,'Arbeitsvorgänge-KTBL'!$G$3169:$G$3230) -> 1.8 | I31: =SUMIF('Arbeitsvorgänge-KTBL'!$B$3245:$B$3312,Raps!A31,'Arbeitsvorgänge-KTBL'!$G$3245:$G$3312) -> 1.9 | J31: 0
A32: AUG | C32: Akh/ha | D32: =SUMIF('Arbeitsvorgänge-KTBL'!$B$2881:$B$2936,Raps!A32,'Arbeitsvorgänge-KTBL'!$G$2881:$G$2936) -> 2.73 | E32: =SUMIF('Arbeitsvorgänge-KTBL'!$B$2951:$B$3010,Raps!A32,'Arbeitsvorgänge-KTBL'!$G$2951:$G$3010) -> 2.73 | F32: =SUMIF('Arbeitsvorgänge-KTBL'!$B$3025:$B$3080,Raps!A32,'Arbeitsvorgänge-KTBL'!$G$3025:$G$3080) -> 1.83 | G32: =SUMIF('Arbeitsvorgänge-KTBL'!$B$3095:$B$3154,Raps!A32,'Arbeitsvorgänge-KTBL'!$G$3095:$G$3154) -> 1.83 | H32: =SUMIF('Arbeitsvorgänge-KTBL'!$B$3169:$B$3230,Raps!A32,'Arbeitsvorgänge-KTBL'!$G$3169:$G$3230) -> 1.19 | I32: =SUMIF('Arbeitsvorgänge-KTBL'!$B$3245:$B$3312,Raps!A32,'Arbeitsvorgänge-KTBL'!$G$3245:$G$3312) -> 1.23 | J32: 0
A33: SEP | C33: Akh/ha | D33: =SUMIF('Arbeitsvorgänge-KTBL'!$B$2881:$B$2936,Raps!A33,'Arbeitsvorgänge-KTBL'!$G$2881:$G$2936) -> 0 | E33: =SUMIF('Arbeitsvorgänge-KTBL'!$B$2951:$B$3010,Raps!A33,'Arbeitsvorgänge-KTBL'!$G$2951:$G$3010) -> 0 | F33: =SUMIF('Arbeitsvorgänge-KTBL'!$B$3025:$B$3080,Raps!A33,'Arbeitsvorgänge-KTBL'!$G$3025:$G$3080) -> 0 | G33: =SUMIF('Arbeitsvorgänge-KTBL'!$B$3095:$B$3154,Raps!A33,'Arbeitsvorgänge-KTBL'!$G$3095:$G$3154) -> 0 | H33: =SUMIF('Arbeitsvorgänge-KTBL'!$B$3169:$B$3230,Raps!A33,'Arbeitsvorgänge-KTBL'!$G$3169:$G$3230) -> 0 | I33: =SUMIF('Arbeitsvorgänge-KTBL'!$B$3245:$B$3312,Raps!A33,'Arbeitsvorgänge-KTBL'!$G$3245:$G$3312) -> 0 | J33: 0
A34: OKT | C34: Akh/ha | D34: =SUMIF('Arbeitsvorgänge-KTBL'!$B$2881:$B$2936,Raps!A34,'Arbeitsvorgänge-KTBL'!$G$2881:$G$2936) -> 0.28 | E34: =SUMIF('Arbeitsvorgänge-KTBL'!$B$2951:$B$3010,Raps!A34,'Arbeitsvorgänge-KTBL'!$G$2951:$G$3010) -> 0.28 | F34: =SUMIF('Arbeitsvorgänge-KTBL'!$B$3025:$B$3080,Raps!A34,'Arbeitsvorgänge-KTBL'!$G$3025:$G$3080) -> 0.19 | G34: =SUMIF('Arbeitsvorgänge-KTBL'!$B$3095:$B$3154,Raps!A34,'Arbeitsvorgänge-KTBL'!$G$3095:$G$3154) -> 0.19 | H34: =SUMIF('Arbeitsvorgänge-KTBL'!$B$3169:$B$3230,Raps!A34,'Arbeitsvorgänge-KTBL'!$G$3169:$G$3230) -> 0.14 | I34: =SUMIF('Arbeitsvorgänge-KTBL'!$B$3245:$B$3312,Raps!A34,'Arbeitsvorgänge-KTBL'!$G$3245:$G$3312) -> 0.1 | J34: 0
A35: NOV | C35: Akh/ha | D35: =SUMIF('Arbeitsvorgänge-KTBL'!$B$2881:$B$2936,Raps!A35,'Arbeitsvorgänge-KTBL'!$G$2881:$G$2936) -> 0 | E35: =SUMIF('Arbeitsvorgänge-KTBL'!$B$2951:$B$3010,Raps!A35,'Arbeitsvorgänge-KTBL'!$G$2951:$G$3010) -> 0 | F35: =SUMIF('Arbeitsvorgänge-KTBL'!$B$3025:$B$3080,Raps!A35,'Arbeitsvorgänge-KTBL'!$G$3025:$G$3080) -> 0 | G35: =SUMIF('Arbeitsvorgänge-KTBL'!$B$3095:$B$3154,Raps!A35,'Arbeitsvorgänge-KTBL'!$G$3095:$G$3154) -> 0 | H35: =SUMIF('Arbeitsvorgänge-KTBL'!$B$3169:$B$3230,Raps!A35,'Arbeitsvorgänge-KTBL'!$G$3169:$G$3230) -> 0 | I35: =SUMIF('Arbeitsvorgänge-KTBL'!$B$3245:$B$3312,Raps!A35,'Arbeitsvorgänge-KTBL'!$G$3245:$G$3312) -> 0 | J35: 0
A36: Rest | C36: Akh/ha | D36: =SUMIF('Arbeitsvorgänge-KTBL'!$B$2881:$B$2936,Raps!A36,'Arbeitsvorgänge-KTBL'!$G$2881:$G$2936) -> 0 | E36: =SUMIF('Arbeitsvorgänge-KTBL'!$B$2951:$B$3010,Raps!A36,'Arbeitsvorgänge-KTBL'!$G$2951:$G$3010) -> 0 | F36: =SUMIF('Arbeitsvorgänge-KTBL'!$B$3025:$B$3080,Raps!A36,'Arbeitsvorgänge-KTBL'!$G$3025:$G$3080) -> 0 | G36: =SUMIF('Arbeitsvorgänge-KTBL'!$B$3095:$B$3154,Raps!A36,'Arbeitsvorgänge-KTBL'!$G$3095:$G$3154) -> 0 | H36: =SUMIF('Arbeitsvorgänge-KTBL'!$B$3169:$B$3230,Raps!A36,'Arbeitsvorgänge-KTBL'!$G$3169:$G$3230) -> 0 | I36: =SUMIF('Arbeitsvorgänge-KTBL'!$B$3245:$B$3312,Raps!A36,'Arbeitsvorgänge-KTBL'!$G$3245:$G$3312) -> 0 | J36: 0
A37: Arbeitskraftstunden | C37: AKh/ha | D37: =SUM(D26:D36) -> 7.71 | E37: =SUM(E26:E36) -> 8.17 | F37: 5.62 | G37: 6.02 | H37: 3.59 | I37: 3.84 | J37: 0
A38: DB (je Akh) | C38: €/Akh | D38: =IF(D24>0,D24/D37,0) -> 153.1601399 | E38: 206.2250841 | F38: 213.1700327 | G38: 282.7635544 | H38: 343.1846893 | I38: 452.4140831 | J38: 0
A39: Aussaatmenge | C39: kg/ha | D39: 4 | E39: =D39 -> 4 | F39: =E39 -> 4 | G39: =F39 -> 4 | H39: =G39 -> 4 | I39: =H39 -> 4 | J39: 0
A40: davon Zukaufsaatgut | C40: % | D40: 100 | E40: =D40 -> 100 | F40: 100 | G40: 100 | H40: 100 | I40: 100 | J40: 0
A41: Saatgutpreis Eigen | C41: €/dt | D41: 0 | E41: 0 | F41: 0 | G41: 0 | H41: =G41 -> 0 | I41: =H41 -> 0 | J41: 0
A42: Zukauf | C42: €/kg | D42: =+Stammdatenblatt!$P$87 -> 21.4 | E42: =D42 -> 21.4 | F42: =+E42 -> 21.4 | G42: =F42 -> 21.4 | H42: =+G42 -> 21.4 | I42: =+Stammdatenblatt!$P$87 -> 21.4 | J42: 0
A43: Saatgutkosten | C43: €/ha | D43: =+(D39*D40)/100*D42+(D39*(100-D40)/100)*D42 -> 85.6 | E43: 85.6 | F43: 85.6 | G43: 85.6 | H43: 85.6 | I43: 85.6 | J43: 0
A44: Dünger: | B44: €/kg | D44: Düngerbedarf/ha (in kg Reinnährstoff) Nach Rechentabelle DÜV; N-min Durchschnittswerte LLH; Bodenart II
A45: =+Stammdatenblatt!A130 -> Stickstoff | B45: =+Stammdatenblatt!P130 -> 2.320205374 | C45: Aufw./ha | D45: 152 | E45: 177 | F45: 152 | G45: 177 | H45: 152 | I45: 177 | J45: 0
A46: =+Stammdatenblatt!A131 -> Phosphor | B46: =+Stammdatenblatt!P131 -> 1.226340187 | C46: Aufw./ha | D46: 87 | E46: 112 | F46: 87 | G46: 112 | H46: 87 | I46: 112 | J46: 0
A47: =+Stammdatenblatt!A132 -> Kali | B47: =+Stammdatenblatt!P132 -> 1.0165575 | C47: Aufw./ha | D47: 184 | E47: 236 | F47: 184 | G47: 236 | H47: 184 | I47: 236 | J47: 0
A48: =+Stammdatenblatt!A133 -> Kalk | B48: =+Stammdatenblatt!P133 -> 0.04746777778 | C48: Aufw./ha | D48: 300 | E48: =D48 -> 300 | F48: 300 | G48: =F48 -> 300 | H48: 300 | I48: =H48 -> 300 | J48: 0
A49: =+Stammdatenblatt!A134 -> Magnesium | B49: =+Stammdatenblatt!P134 -> 1.844103333 | C49: Aufw./ha | D49: 40 | E49: 41 | F49: 40 | G49: 41 | H49: 40 | I49: 41 | J49: 0
A50: =+Stammdatenblatt!A135 -> Schwefel | B50: =+Stammdatenblatt!P135 -> 0.7582283333 | C50: Aufw./ha | D50: 10 | E50: 10 | F50: 10 | G50: =F50 -> 10 | H50: 10 | I50: =H50 -> 10 | J50: 0
A51: Mineraldüngerkosten | C51: €/ha | D51: =D45*$B$45+D46*$B$46+D47*$B$47+D48*$B$48+D49*$B$49+D50*$B$50 -> 741.9961432 | E51: 885.3648756 | F51: 741.9961432 | G51: 885.3648756 | H51: 741.9961432 | I51: 885.3648756 | J51: 0
A52: Herbizide | C52: €/ha | D52: 80 | E52: 90 | F52: 80 | G52: 90 | H52: 80 | I52: 90 | J52: 0
A53: Fungizide | C53: €/ha | D53: 40 | E53: 75 | F53: 40 | G53: 75 | H53: 40 | I53: 75 | J53: 0
A54: Insektizide | C54: €/ha | D54: 25 | E54: 50 | F54: 25 | G54: 50 | H54: 25 | I54: 50 | J54: 0
A55: Molluskizide | C55: €/ha | D55: 25 | E55: 25 | F55: 25 | G55: 25 | H55: 25 | I55: 25 | J55: 0
A56: Pflanzenbehandlungsk. | C56: €/ha | D56: =SUM(D52:D55) -> 170 | E56: 240 | F56: 170 | G56: 240 | H56: 170 | I56: 240 | J56: 0
A57: *variable Kosten in Anlehnung an KTBL-Richtwerte für Arbeitsgänge incl. Zinsanspruch für 3 Monate
A58: **Saatgut ab WJ 2013/2014 in sog. Units (Einheiten), siehe Hinweis mit Vergleichsberechnung rechts!

Sheet Erbsen
B3: Landesbetrieb Landwirtschaft Hessen
A4: =IF(Stammdatenblatt!G6+Stammdatenblatt!D77+Stammdatenblatt!D112+Stammdatenblatt!B129+Stammdatenblatt!D140+Stammdatenblatt!C183+Stammdatenblatt!C221+Stammdatenblatt!C239=0,"Produktionsverfahren wurden netto gerechnet", "Produktionsverfahren wurden brutto gerechnet") -> Produktionsverfahren wurden brutto gerechnet | E4: =Wirtschaftsdünger!N4 -> Letztes (aktuelles) WJ.
G5: eigene
A6: Erbsen | D6: 2 ha | E6: 5 ha | F6: 20 ha | G6: Werte
A7: Leistung: Menge Hauptprodukt | C7: dt/ha | D7: 50 | E7: 50 | F7: 50 | G7: 0
A8: Preis Hauptprodukt | C8: € | D8: =+Stammdatenblatt!P26 -> 27.1519 | E8: =D8 -> 27.1519 | F8: =+E8 -> 27.1519 | G8: 0
A9: Erlös Hauptprodukt | C9: €/ha | D9: =D7*D8 -> 1357.595 | E9: =E7*E8 -> 1357.595 | F9: =F7*F8 -> 1357.595 | G9: =G7*G8 -> 0
A10: Erlös Nebenprodukt(e) | C10: €/ha | D10: 0 | E10: =D10 -> 0 | F10: =E10 -> 0 | G10: 0
A11: Leistungen | C11: €/ha | D11: =D9+D10 -> 1357.595 | E11: =E10+E9 -> 1357.595 | F11: =F10+F9 -> 1357.595 | G11: =G10+G9 -> 0
A12: Saatgutkosten | C12: €/ha | D12: =D43 -> 128.079 | E12: =E43 -> 128.079 | F12: =F43 -> 128.079 | G12: =G43 -> 0
A13: Mineraldüngerkosten | C13: €/ha | D13: =D51 -> 395.2453207 | E13: =E51 -> 395.2453207 | F13: =F51 -> 395.2453207 | G13: =G51 -> 0
A14: Pflanzenbehandlungsk. | C14: €/ha | D14: =D56*(1+Stammdatenblatt!C221) -> 117.81 | E14: =E56*(1+Stammdatenblatt!C221) -> 117.81 | F14: =F56*(1+Stammdatenblatt!C221) -> 117.81 | G14: =G56 -> 0
A15: Versicherung | C15: €/ha | D15: =(D11/1000)*Stammdatenblatt!$P$193 -> 21.72898677 | E15: =(E11/1000)*Stammdatenblatt!$P$193 -> 21.72898677 | F15: =(F11/1000)*Stammdatenblatt!$P$193 -> 21.72898677 | G15: =(G11/1000)*Stammdatenblatt!$E$193 -> 0
A16: Trocknungskosten | C16: €/ha | D16: =K18 -> 0 | E16: =D16 -> 0 | F16: =E16 -> 0 | G16: =G7/Stammdatenblatt!$E$214*(Stammdatenblatt!$E$213*Stammdatenblatt!$K$223) -> 0
A17: Summe Direktkosten | C17: €/ha | D17: =SUM(D12:D16) -> 662.8633075 | E17: =SUM(E12:E16) -> 662.8633075 | F17: =SUM(F12:F16) -> 662.8633075 | G17: =SUM(G12:G16) -> 0
A18: Direktkostenfreie Leistung | C18: €/ha | D18: =D11-D17 -> 694.7316925 | E18: =E11-E17 -> 694.7316925 | F18: =F11-F17 -> 694.7316925 | G18: =G11-G17 -> 0
A19: Maschinenkosten eigen * | C19: €/ha | D19: ='Arbeitsvorgänge-KTBL'!T3369 -> 237.7875732 | E19: ='Arbeitsvorgänge-KTBL'!T3425 -> 221.7943505 | F19: ='Arbeitsvorgänge-KTBL'!T3485 -> 198.7706943 | G19: 0
A20: Maschinenkosten fremd | C20: €/ha | D20: ='Arbeitsvorgänge-KTBL'!U3369*(1+Stammdatenblatt!C239) -> 141.7 | E20: ='Arbeitsvorgänge-KTBL'!U3425*(1+Stammdatenblatt!C239) -> 141.7 | F20: ='Arbeitsvorgänge-KTBL'!U3485*(1+Stammdatenblatt!C239) -> 130.8 | G20: 0
A21: Lohnkosten | C21: €/ha | D21: 0 | E21: =D21 -> 0 | F21: =E21 -> 0 | G21: 0
A22: xxx | C22: €/ha | D22: 0 | E22: =D22 -> 0 | F22: =E22 -> 0 | G22: 0
A23: variable Kosten | C23: €/ha | D23: =SUM(D19:D22,D17) -> 1042.350881 | E23: =SUM(E19:E22,E17) -> 1026.357658 | F23: =SUM(F19:F22,F17) -> 992.4340017 | G23: =SUM(G19:G22,G17) -> 0
A24: Deckungsbeitrag (DB) | C24: €/ha | D24: =D11-D23 -> 315.2441193 | E24: =E11-E23 -> 331.237342 | F24: =F11-F23 -> 365.1609983 | G24: =G11-G23 -> 0
A25: Zeit-Spanne | B25: AK-Bedarf
A26: FEB | C26: Akh/ha | D26: =SUMIF('Arbeitsvorgänge-KTBL'!$B$3328:$B$3366,Erbsen!A26,'Arbeitsvorgänge-KTBL'!$G$3328:$G$3366) -> 0 | E26: =SUMIF('Arbeitsvorgänge-KTBL'!$B$3381:$B$3422,Erbsen!A26,'Arbeitsvorgänge-KTBL'!$G$3381:$G$3422) -> 0 | F26: =SUMIF('Arbeitsvorgänge-KTBL'!$B$3437:$B$3482,Erbsen!A26,'Arbeitsvorgänge-KTBL'!$G$3437:$G$3482) -> 0 | G26: 0
A27: MRZ | C27: Akh/ha | D27: =SUMIF('Arbeitsvorgänge-KTBL'!$B$3328:$B$3366,Erbsen!A27,'Arbeitsvorgänge-KTBL'!$G$3328:$G$3366) -> 2.12 | E27: =SUMIF('Arbeitsvorgänge-KTBL'!$B$3381:$B$3422,Erbsen!A27,'Arbeitsvorgänge-KTBL'!$G$3381:$G$3422) -> 1.31 | F27: =SUMIF('Arbeitsvorgänge-KTBL'!$B$3437:$B$3482,Erbsen!A27,'Arbeitsvorgänge-KTBL'!$G$3437:$G$3482) -> 0.85 | G27: 0
A28: APR | C28: Akh/ha | D28: =SUMIF('Arbeitsvorgänge-KTBL'!$B$3328:$B$3366,Erbsen!A28,'Arbeitsvorgänge-KTBL'!$G$3328:$G$3366) -> 0 | E28: =SUMIF('Arbeitsvorgänge-KTBL'!$B$3381:$B$3422,Erbsen!A28,'Arbeitsvorgänge-KTBL'!$G$3381:$G$3422) -> 0 | F28: =SUMIF('Arbeitsvorgänge-KTBL'!$B$3437:$B$3482,Erbsen!A28,'Arbeitsvorgänge-KTBL'!$G$3437:$G$3482) -> 0 | G28: 0
A29: MAI | C29: Akh/ha | D29: =SUMIF('Arbeitsvorgänge-KTBL'!$B$3328:$B$3366,Erbsen!A29,'Arbeitsvorgänge-KTBL'!$G$3328:$G$3366) -> 0 | E29: =SUMIF('Arbeitsvorgänge-KTBL'!$B$3381:$B$3422,Erbsen!A29,'Arbeitsvorgänge-KTBL'!$G$3381:$G$3422) -> 0.19 | F29: =SUMIF('Arbeitsvorgänge-KTBL'!$B$3437:$B$3482,Erbsen!A29,'Arbeitsvorgänge-KTBL'!$G$3437:$G$3482) -> 0.1 | G29: 0
A30: JUN | C30: Akh/ha | D30: =SUMIF('Arbeitsvorgänge-KTBL'!$B$3328:$B$3366,Erbsen!A30,'Arbeitsvorgänge-KTBL'!$G$3328:$G$3366) -> 0 | E30: =SUMIF('Arbeitsvorgänge-KTBL'!$B$3381:$B$3422,Erbsen!A30,'Arbeitsvorgänge-KTBL'!$G$3381:$G$3422) -> 0 | F30: =SUMIF('Arbeitsvorgänge-KTBL'!$B$3437:$B$3482,Erbsen!A30,'Arbeitsvorgänge-KTBL'!$G$3437:$G$3482) -> 0 | G30: 0
A31: JUL | C31: Akh/ha | D31: =SUMIF('Arbeitsvorgänge-KTBL'!$B$3328:$B$3366,Erbsen!A31,'Arbeitsvorgänge-KTBL'!$G$3328:$G$3366) -> 0.62 | E31: =SUMIF('Arbeitsvorgänge-KTBL'!$B$3381:$B$3422,Erbsen!A31,'Arbeitsvorgänge-KTBL'!$G$3381:$G$3422) -> 0.6 | F31: =SUMIF('Arbeitsvorgänge-KTBL'!$B$3437:$B$3482,Erbsen!A31,'Arbeitsvorgänge-KTBL'!$G$3437:$G$3482) -> 0.35 | G31: 0
A32: AUG | C32: Akh/ha | D32: =SUMIF('Arbeitsvorgänge-KTBL'!$B$3328:$B$3366,Erbsen!A32,'Arbeitsvorgänge-KTBL'!$G$3328:$G$3366) -> 1 | E32: =SUMIF('Arbeitsvorgänge-KTBL'!$B$3381:$B$3422,Erbsen!A32,'Arbeitsvorgänge-KTBL'!$G$3381:$G$3422) -> 0.63 | F32: =SUMIF('Arbeitsvorgänge-KTBL'!$B$3437:$B$3482,Erbsen!A32,'Arbeitsvorgänge-KTBL'!$G$3437:$G$3482) -> 0.4 | G32: 0
A33: SEP | C33: Akh/ha | D33: =SUMIF('Arbeitsvorgänge-KTBL'!$B$3328:$B$3366,Erbsen!A33,'Arbeitsvorgänge-KTBL'!$G$3328:$G$3366) -> 0.96 | E33: =SUMIF('Arbeitsvorgänge-KTBL'!$B$3381:$B$3422,Erbsen!A33,'Arbeitsvorgänge-KTBL'!$G$3381:$G$3422) -> 0.66 | F33: =SUMIF('Arbeitsvorgänge-KTBL'!$B$3437:$B$3482,Erbsen!A33,'Arbeitsvorgänge-KTBL'!$G$3437:$G$3482) -> 0.45 | G33: 0
A34: OKT | C34: Akh/ha | D34: =SUMIF('Arbeitsvorgänge-KTBL'!$B$3328:$B$3366,Erbsen!A34,'Arbeitsvorgänge-KTBL'!$G$3328:$G$3366) -> 2.14 | E34: =SUMIF('Arbeitsvorgänge-KTBL'!$B$3381:$B$3422,Erbsen!A34,'Arbeitsvorgänge-KTBL'!$G$3381:$G$3422) -> 1.64 | F34: =SUMIF('Arbeitsvorgänge-KTBL'!$B$3437:$B$3482,Erbsen!A34,'Arbeitsvorgänge-KTBL'!$G$3437:$G$3482) -> 1.02 | G34: 0
A35: NOV | C35: Akh/ha | D35: =SUMIF('Arbeitsvorgänge-KTBL'!$B$3328:$B$3366,Erbsen!A35,'Arbeitsvorgänge-KTBL'!$G$3328:$G$3366) -> 0 | E35: =SUMIF('Arbeitsvorgänge-KTBL'!$B$3381:$B$3422,Erbsen!A35,'Arbeitsvorgänge-KTBL'!$G$3381:$G$3422) -> 0 | F35: =SUMIF('Arbeitsvorgänge-KTBL'!$B$3437:$B$3482,Erbsen!A35,'Arbeitsvorgänge-KTBL'!$G$3437:$G$3482) -> 0 | G35: 0
A36: Rest | C36: Akh/ha | D36: =SUMIF('Arbeitsvorgänge-KTBL'!$B$3328:$B$3366,Erbsen!A36,'Arbeitsvorgänge-KTBL'!$G$3328:$G$3366) -> 0 | E36: =SUMIF('Arbeitsvorgänge-KTBL'!$B$3381:$B$3422,Erbsen!A36,'Arbeitsvorgänge-KTBL'!$G$3381:$G$3422) -> 0 | F36: =SUMIF('Arbeitsvorgänge-KTBL'!$B$3437:$B$3482,Erbsen!A36,'Arbeitsvorgänge-KTBL'!$G$3437:$G$3482) -> 0 | G36: 0
A37: Arbeitskraftstunden | C37: AKh/ha | D37: =SUM(D26:D36) -> 6.84 | E37: =SUM(E26:E36) -> 5.03 | F37: =SUM(F26:F36) -> 3.17 | G37: =SUM(G26:G36) -> 0
A38: DB ( je Akh) | C38: €/Akh | D38: =IF(D24>0,D24/D37,0) -> 46.08832153 | E38: =IF(E24>0,E24/E37,0) -> 65.85235427 | F38: =IF(F24>0,F24/F37,0) -> 115.1927439 | G38: =IF(G24>0,G24/G37,0) -> 0
A39: Aussaatmenge | C39: kg/ha | D39: 190 | E39: =D39 -> 190 | F39: 190 | G39: 0
A40: davon Zukaufsaatgut | C40: % | D40: 100 | E40: 100 | F40: 100 | G40: 0
A41: Saatgutpreis Eigen | C41: €/dt | D41: 0 | E41: 0 | F41: 0 | G41: 0
A42: Zukauf | C42: €/dt | D42: =+Stammdatenblatt!P88 -> 67.41 | E42: =+D42 -> 67.41 | F42: =+E42 -> 67.41 | G42: 0
A43: Saatgutkosten | C43: €/ha | D43: =D40/100*(D39*D42)/100+((100-D40)/100*D39*D41/100) -> 128.079 | E43: =E40/100*(E39*E42)/100+((100-E40)/100*E39*E41/100) -> 128.079 | F43: =F40/100*(F39*F42)/100+((100-F40)/100*F39*F41/100) -> 128.079 | G43: =G40/100*(G39*G42)/100+((100-G40)/100*G39*G41/100) -> 0
A44: Dünger: | B44: €/kg | C44: Düngerbedarf/ha (in kg Reinnährstoff) Nach Rechentabelle DÜV; N-min Durchschnittswerte LLH; Bodenart II
A45: =+Stammdatenblatt!A130 -> Stickstoff | B45: =+Stammdatenblatt!P130 -> 2.320205374 | C45: Aufw./ha | D45: 7 | E45: 7 | F45: 7 | G45: 0
A46: =+Stammdatenblatt!A131 -> Phosphor | B46: =+Stammdatenblatt!P131 -> 1.226340187 | C46: Aufw./ha | D46: 70 | E46: 70 | F46: 70 | G46: 0
A47: =+Stammdatenblatt!A132 -> Kali | B47: =+Stammdatenblatt!P132 -> 1.0165575 | C47: Aufw./ha | D47: 200 | E47: 200 | F47: 200 | G47: 0
A48: =+Stammdatenblatt!A133 -> Kalk | B48: =+Stammdatenblatt!P133 -> 0.04746777778 | C48: Aufw./ha | D48: 300 | E48: =D48 -> 300 | F48: 300 | G48: 0
A49: =+Stammdatenblatt!A134 -> Magnesium | B49: =+Stammdatenblatt!P134 -> 1.844103333 | C49: Aufw./ha | D49: 41 | E49: =D49 -> 41 | F49: =E49 -> 41 | G49: 0
A50: =+Stammdatenblatt!A135 -> Schwefel | B50: =+Stammdatenblatt!P135 -> 0.7582283333 | C50: Aufw./ha | D50: 0 | E50: =D50 -> 0 | F50: =E50 -> 0 | G50: 0
A51: Mineraldüngerkosten | C51: €/ha | D51: =D45*$B$45+D46*$B$46+D47*$B$47+D48*$B$48+D49*$B$49+D50*$B$50 -> 395.2453207 | E51: =E45*$B$45+E46*$B$46+E47*$B$47+E48*$B$48+E49*$B$49+E50*$B$50 -> 395.2453207 | F51: =F45*$B$45+F46*$B$46+F47*$B$47+F48*$B$48+F49*$B$49+F50*$B$50 -> 395.2453207 | G51: =G45*$B$45+G46*$B$46+G47*$B$47+G48*$B$48+G49*$B$49+G50*$B$50 -> 0
A52: Herbizide | C52: €/ha | D52: 85 | E52: 85 | F52: 85 | G52: 0
A53: Fungizide | C53: €/ha | D53: 6 | E53: 6 | F53: 6 | G53: 0
A54: Insektizide | C54: €/ha | D54: 8 | E54: 8 | F54: 8 | G54: 0
A55: Wachstumsregler | C55: €/ha | D55: 0 | E55: 0 | F55: 0 | G55: 0
A56: Pflanzenbehandlungsk. | C56: €/ha | D56: =SUM(D52:D55) -> 99 | E56: =SUM(E52:E55) -> 99 | F56: =SUM(F52:F55) -> 99 | G56: =SUM(G52:G55) -> 0
A57: *variable Kosten in Anlehnung an KTBL-Richtwerte für Arbeitsgänge incl. Zinsanspruch für 3 Monate

Sheet Ackerbohnen
B3: Landesbetrieb Landwirtschaft Hessen
A4: =IF(Stammdatenblatt!G6+Stammdatenblatt!D77+Stammdatenblatt!D112+Stammdatenblatt!B129+Stammdatenblatt!D140+Stammdatenblatt!C183+Stammdatenblatt!C221+Stammdatenblatt!C239=0,"Produktionsverfahren wurden netto gerechnet", "Produktionsverfahren wurden brutto gerechnet") -> Produktionsverfahren wurden brutto gerechnet | E4: =Wirtschaftsdünger!N4 -> Letztes (aktuelles) WJ.
G5: eigene
A6: Ackerbohnen | D6: 2 ha | E6: 5 ha | F6: 20 ha | G6: Werte
A7: Leistung: Menge Hauptprodukt | C7: dt/ha | D7: 55 | E7: 55 | F7: 55 | G7: 0
A8: Preis Hauptprodukt | C8: € | D8: =+Stammdatenblatt!P27 -> 27.795 | E8: =D8 -> 27.795 | F8: =+E8 -> 27.795 | G8: 0
A9: Erlös Hauptprodukt | C9: €/ha | D9: =D7*D8 -> 1528.725 | E9: =E7*E8 -> 1528.725 | F9: =F7*F8 -> 1528.725 | G9: =G7*G8 -> 0
A10: Erlös Nebenprodukt(e) | C10: €/ha | D10: 0 | E10: =D10 -> 0 | F10: =E10 -> 0 | G10: 0
A11: Leistungen | C11: €/ha | D11: =D10+D9 -> 1528.725 | E11: =E10+E9 -> 1528.725 | F11: =F10+F9 -> 1528.725 | G11: =G10+G9 -> 0
A12: Saatgutkosten | C12: €/ha | D12: =D43 -> 141.24 | E12: =E43 -> 141.24 | F12: =F43 -> 141.24 | G12: =G43 -> 0
A13: Mineraldüngerkosten | C13: €/ha | D13: =D51 -> 433.3629965 | E13: =E51 -> 433.3629965 | F13: =F51 -> 433.3629965 | G13: =G51 -> 0
A14: Pflanzenbehandlungsk. | C14: €/ha | D14: =D56*(1+Stammdatenblatt!C221) -> 124.95 | E14: =E56*(1+Stammdatenblatt!C221) -> 124.95 | F14: =F56*(1+Stammdatenblatt!C221) -> 124.95 | G14: =G56 -> 0
A15: Versicherung | C15: €/ha | D15: =(D11/1000)*Stammdatenblatt!$P$194 -> 24.46800799 | E15: =(E11/1000)*Stammdatenblatt!$P$194 -> 24.46800799 | F15: =(F11/1000)*Stammdatenblatt!$P$194 -> 24.46800799 | G15: =(G11/1000)*Stammdatenblatt!$E$194 -> 0
A16: Trocknungskosten | C16: €/ha | D16: =J19 -> 0 | E16: =J19 -> 0 | F16: =J19 -> 0 | G16: =G7/Stammdatenblatt!$E$214*(Stammdatenblatt!$E$213*Stammdatenblatt!$K$223) -> 0
A17: Summe Direktkosten | C17: €/ha | D17: =SUM(D12:D16) -> 724.0210045 | E17: =SUM(E12:E16) -> 724.0210045 | F17: =SUM(F12:F16) -> 724.0210045 | G17: =SUM(G12:G16) -> 0
A18: Direktkostenfreie Leistung | C18: €/ha | D18: =D11-D17 -> 804.7039955 | E18: =E11-E17 -> 804.7039955 | F18: =F11-F17 -> 804.7039955 | G18: =G11-G17 -> 0
A19: Maschinenkosten eigen * | C19: €/ha | D19: ='Arbeitsvorgänge-KTBL'!T3540 -> 225.8986782 | E19: ='Arbeitsvorgänge-KTBL'!T3597 -> 211.6694625 | F19: ='Arbeitsvorgänge-KTBL'!T3658 -> 189.0805783 | G19: 0
A20: Maschinenkosten fremd | C20: €/ha | D20: ='Arbeitsvorgänge-KTBL'!U3540*(1+Stammdatenblatt!C239) -> 141.7 | E20: ='Arbeitsvorgänge-KTBL'!U3597*(1+Stammdatenblatt!C239) -> 141.7 | F20: ='Arbeitsvorgänge-KTBL'!U3658*(1+Stammdatenblatt!C239) -> 130.8 | G20: 0
A21: Lohnkosten | C21: €/ha | D21: 0 | E21: =D21 -> 0 | F21: =E21 -> 0 | G21: 0
A22: xxx | C22: €/ha | D22: 0 | E22: =D22 -> 0 | F22: =E22 -> 0 | G22: 0
A23: variable Kosten | C23: €/ha | D23: =SUM(D19:D22,D17) -> 1091.619683 | E23: =SUM(E19:E22,E17) -> 1077.390467 | F23: =SUM(F19:F22,F17) -> 1043.901583 | G23: =SUM(G19:G22,G17) -> 0
A24: Deckungsbeitrag (DB) | C24: €/ha | D24: =D11-D23 -> 437.1053173 | E24: =E11-E23 -> 451.334533 | F24: =F11-F23 -> 484.8234173 | G24: =G11-G23 -> 0
A25: Zeit-Spanne | B25: AK-Bedarf
A26: FEB | C26: Akh/ha | D26: =SUMIF('Arbeitsvorgänge-KTBL'!$B$3498:$B$3537,' Ackerbohnen'!A26,'Arbeitsvorgänge-KTBL'!$G$3498:$G$3537) -> 0 | E26: =SUMIF('Arbeitsvorgänge-KTBL'!$B$3552:$B$3594,' Ackerbohnen'!A26,'Arbeitsvorgänge-KTBL'!$G$3552:$G$3594) -> 0 | F26: =SUMIF('Arbeitsvorgänge-KTBL'!$B$3609:$B$3655,' Ackerbohnen'!A26,'Arbeitsvorgänge-KTBL'!$G$3609:$G$3655) -> 0 | G26: 0
A27: MRZ | C27: Akh/ha | D27: =SUMIF('Arbeitsvorgänge-KTBL'!$B$3498:$B$3537,' Ackerbohnen'!A27,'Arbeitsvorgänge-KTBL'!$G$3498:$G$3537) -> 1.84 | E27: =SUMIF('Arbeitsvorgänge-KTBL'!$B$3552:$B$3594,' Ackerbohnen'!A27,'Arbeitsvorgänge-KTBL'!$G$3552:$G$3594) -> 1.31 | F27: =SUMIF('Arbeitsvorgänge-KTBL'!$B$3609:$B$3655,' Ackerbohnen'!A27,'Arbeitsvorgänge-KTBL'!$G$3609:$G$3655) -> 0.81 | G27: 0
A28: APR | C28: Akh/ha | D28: =SUMIF('Arbeitsvorgänge-KTBL'!$B$3498:$B$3537,' Ackerbohnen'!A28,'Arbeitsvorgänge-KTBL'!$G$3498:$G$3537) -> 0 | E28: =SUMIF('Arbeitsvorgänge-KTBL'!$B$3552:$B$3594,' Ackerbohnen'!A28,'Arbeitsvorgänge-KTBL'!$G$3552:$G$3594) -> 0 | F28: =SUMIF('Arbeitsvorgänge-KTBL'!$B$3609:$B$3655,' Ackerbohnen'!A28,'Arbeitsvorgänge-KTBL'!$G$3609:$G$3655) -> 0 | G28: 0
A29: MAI | C29: Akh/ha | D29: =SUMIF('Arbeitsvorgänge-KTBL'!$B$3498:$B$3537,' Ackerbohnen'!A29,'Arbeitsvorgänge-KTBL'!$G$3498:$G$3537) -> 0.28 | E29: =SUMIF('Arbeitsvorgänge-KTBL'!$B$3552:$B$3594,' Ackerbohnen'!A29,'Arbeitsvorgänge-KTBL'!$G$3552:$G$3594) -> 0.19 | F29: =SUMIF('Arbeitsvorgänge-KTBL'!$B$3609:$B$3655,' Ackerbohnen'!A29,'Arbeitsvorgänge-KTBL'!$G$3609:$G$3655) -> 0.14 | G29: 0
A30: JUN | C30: Akh/ha | D30: =SUMIF('Arbeitsvorgänge-KTBL'!$B$3498:$B$3537,' Ackerbohnen'!A30,'Arbeitsvorgänge-KTBL'!$G$3498:$G$3537) -> 0 | E30: =SUMIF('Arbeitsvorgänge-KTBL'!$B$3552:$B$3594,' Ackerbohnen'!A30,'Arbeitsvorgänge-KTBL'!$G$3552:$G$3594) -> 0 | F30: =SUMIF('Arbeitsvorgänge-KTBL'!$B$3609:$B$3655,' Ackerbohnen'!A30,'Arbeitsvorgänge-KTBL'!$G$3609:$G$3655) -> 0 | G30: 0
